Workbook

Sheet Overview

Sheet Select School
B3: =VLOOKUP(C3,SchList!$I$1:$J$499,2,FALSE) -> 9999 | C3: 1

Sheet Grade 3 Report
A2: Click here to return to the school and sheet selection interface
A3: ='Select School'!B3 -> 9999
A4: =TEXT(A3,"0000")&"-"&VLOOKUP(A3,SchList!$A$2:$B$504,2,FALSE) -> 9999-District
A5: Reading - Grade 3
A6: Satisfactory Progress Cut Scores at 64% or above | B6: Total # of Students | C6: % of Students Tested | D6: ='G3-5 Matrix'!C2&" ["&'G3-5 Matrix'!C3&"]" -> Overall [56] | F6: ='G3-5 Matrix'!D2&" ["&'G3-5 Matrix'!D3&"]" -> Vocabulary [15] | H6: ='G3-5 Matrix'!E2&" ["&'G3-5 Matrix'!E3&"]" -> Reading Application [25] | J6: ='G3-5 Matrix'!F2&" ["&'G3-5 Matrix'!F3&"]" -> Literary Analysis Fiction/Nonfiction [12] | L6: ='G3-5 Matrix'!G2&" ["&'G3-5 Matrix'!G3&"]" -> Informational Text/ Research Process [4]
D7: Average Score | E7: % Satisfactory | F7: Average Score | G7: % Satisfactory | H7: Average Score | I7: % Satisfactory | J7: Average Score | K7: % Satisfactory | L7: Average Score | M7: % Satisfactory
A8: Total Students | B8: =IFERROR(VLOOKUP(TEXT($A$3,"0000"),Mem_All!$A$2:$O$501,7,FALSE),0) -> 26713 | C8: =IFERROR((IF(OR(B8=0,B8="",B8="NA"),"NA",((IF(VLOOKUP($A$3,'G3-RALL'!$A$6:$AM$501,3,FALSE)>=B8,"100% ("&VLOOKUP($A$3,'G3-RALL'!$A$6:$AM$501,3,FALSE)&")",(ROUND((VLOOKUP($A$3,'G3-RALL'!$A$6:$AM$501,3,FALSE)/B8*100),0))&"% ("&IF(VLOOKUP($A$3,'G3-RALL'!$A$6:$AM$501,3,FALSE)="",0,VLOOKUP($A$3,'G3-RALL'!$A$6:$AM$501,3,FALSE))&")"))))),"0% (0)") -> 97% (25859) | D8: =IFERROR((IF($C8="NA","NA",VLOOKUP($A$3,'G3-RALL'!$A$6:$AM$501,4,FALSE))),"NA") -> 34.78946982 | E8: =IFERROR((IF($C8="NA","NA",VLOOKUP($A$3,'G3-RALL'!$A$6:$AM$501,6,FALSE)&"% ("&IF(VLOOKUP($A$3,'G3-RALL'!$A$6:$AM$501,5,FALSE)="",0,VLOOKUP($A$3,'G3-RALL'!$A$6:$AM$501,5,FALSE))&")")),"NA") -> 53% (13786) | F8: =IFERROR((IF($C8="NA","NA",VLOOKUP($A$3,'G3-RALL'!$A$6:$AM$501,7,FALSE))),"NA") -> 10.68421053 | G8: NA | H8: =IFERROR((IF($C8="NA","NA",VLOOKUP($A$3,'G3-RALL'!$A$6:$AM$501,10,FALSE))),"NA") -> 15.10810936 | I8: NA | J8: =IFERROR((IF($C8="NA","NA",VLOOKUP($A$3,'G3-RALL'!$A$6:$AM$501,13,FALSE))),"NA") -> 6.826528481 | K8: NA | L8: =IFERROR((IF($C8="NA","NA",VLOOKUP($A$3,'G3-RALL'!$A$6:$AM$501,16,FALSE))),"NA") -> 2.17657682 | M8: NA
A9: White | B9: =IFERROR(VLOOKUP(TEXT($A$3,"0000"),MEM_W!$A$2:$O$501,7,FALSE),0) -> 1991 | C9: =IFERROR((IF(OR(B9=0,B9="",B9="NA"),"NA",((IF(VLOOKUP($A$3,'G3-RW'!$A$6:$AM$500,3,FALSE)>=B9,"100% ("&VLOOKUP($A$3,'G3-RW'!$A$6:$AM$500,3,FALSE)&")",(ROUND((VLOOKUP($A$3,'G3-RW'!$A$6:$AM$500,3,FALSE)/B9*100),0))&"% ("&IF(VLOOKUP($A$3,'G3-RW'!$A$6:$AM$500,3,FALSE)="",0,VLOOKUP($A$3,'G3-RW'!$A$6:$AM$500,3,FALSE))&")"))))),"0% (0)") -> 95% (1898) | D9: =IFERROR((IF($C9="NA","NA",VLOOKUP($A$3,'G3-RW'!$A$6:$AM$501,4,FALSE))),"NA") -> 40.4808746 | E9: =IFERROR((IF($C9="NA","NA",VLOOKUP($A$3,'G3-RW'!$A$6:$AM$501,6,FALSE)&"% ("&IF(VLOOKUP($A$3,'G3-RW'!$A$6:$AM$501,5,FALSE)="",0,VLOOKUP($A$3,'G3-RW'!$A$6:$AM$501,5,FALSE))&")")),"NA") -> 76% (1437) | F9: =IFERROR((IF($C9="NA","NA",VLOOKUP($A$3,'G3-RW'!$A$6:$AM$501,7,FALSE))),"NA") -> 12.28108535 | G9: NA | H9: =IFERROR((IF($C9="NA","NA",VLOOKUP($A$3,'G3-RW'!$A$6:$AM$501,10,FALSE))),"NA") -> 17.70463646 | I9: NA | J9: =IFERROR((IF($C9="NA","NA",VLOOKUP($A$3,'G3-RW'!$A$6:$AM$501,13,FALSE))),"NA") -> 7.8613804 | K9: NA | L9: =IFERROR((IF($C9="NA","NA",VLOOKUP($A$3,'G3-RW'!$A$6:$AM$501,16,FALSE))),"NA") -> 2.640990516 | M9: NA
A10: Black | B10: =IFERROR(VLOOKUP(TEXT($A$3,"0000"),MEM_B!$A$2:$O$501,7,FALSE),0) -> 6087 | C10: =IFERROR((IF(OR(B10=0,B10="",B10="NA"),"NA",((IF(VLOOKUP($A$3,'G3-RB'!$A$6:$R$500,3,FALSE)>=B10,"100% ("&VLOOKUP($A$3,'G3-RB'!$A$6:$R$500,3,FALSE)&")",(ROUND((VLOOKUP($A$3,'G3-RB'!$A$6:$R$500,3,FALSE)/B10*100),0))&"% ("&IF(VLOOKUP($A$3,'G3-RB'!$A$6:$R$500,3,FALSE)="",0,VLOOKUP($A$3,'G3-RB'!$A$6:$R$500,3,FALSE))&")"))))),"0% (0)") -> 97% (5921) | D10: =IFERROR((IF($C10="NA","NA",VLOOKUP($A$3,'G3-RB'!$A$6:$AM$501,4,FALSE))),"NA") -> 31.73237629 | E10: =IFERROR((IF($C10="NA","NA",VLOOKUP($A$3,'G3-RB'!$A$6:$AM$501,6,FALSE)&"% ("&IF(VLOOKUP($A$3,'G3-RB'!$A$6:$AM$501,5,FALSE)="",0,VLOOKUP($A$3,'G3-RB'!$A$6:$AM$501,5,FALSE))&")")),"NA") -> 41% (2412) | F10: =IFERROR((IF($C10="NA","NA",VLOOKUP($A$3,'G3-RB'!$A$6:$AM$501,7,FALSE))),"NA") -> 9.721381523 | G10: NA | H10: =IFERROR((IF($C10="NA","NA",VLOOKUP($A$3,'G3-RB'!$A$6:$AM$501,10,FALSE))),"NA") -> 13.7084783 | I10: NA | J10: =IFERROR((IF($C10="NA","NA",VLOOKUP($A$3,'G3-RB'!$A$6:$AM$501,13,FALSE))),"NA") -> 6.378246918 | K10: NA | L10: =IFERROR((IF($C10="NA","NA",VLOOKUP($A$3,'G3-RB'!$A$6:$AM$501,16,FALSE))),"NA") -> 1.925992231 | M10: NA
A11: Hispanic | B11: =IFERROR(VLOOKUP(TEXT($A$3,"0000"),MEM_H!$A$2:$O$501,7,FALSE),0) -> 18029 | C11: =IFERROR((IF(OR(B11=0,B11="",B11="NA"),"NA",((IF(VLOOKUP($A$3,'G3-RH'!$A$6:$AM$500,3,FALSE)>=B11,"100% ("&VLOOKUP($A$3,'G3-RH'!$A$6:$AM$500,3,FALSE)&")",(ROUND((VLOOKUP($A$3,'G3-RH'!$A$6:$AM$500,3,FALSE)/B11*100),0))&"% ("&IF(VLOOKUP($A$3,'G3-RH'!$A$6:$AM$500,3,FALSE)="",0,VLOOKUP($A$3,'G3-RH'!$A$6:$AM$500,3,FALSE))&")"))))),"0% (0)") -> 97% (17455) | D11: =IFERROR((IF($C11="NA","NA",VLOOKUP($A$3,'G3-RH'!$A$6:$AM$501,4,FALSE))),"NA") -> 35.09285019 | E11: =IFERROR((IF($C11="NA","NA",VLOOKUP($A$3,'G3-RH'!$A$6:$AM$501,6,FALSE)&"% ("&IF(VLOOKUP($A$3,'G3-RH'!$A$6:$AM$501,5,FALSE)="",0,VLOOKUP($A$3,'G3-RH'!$A$6:$AM$501,5,FALSE))&")")),"NA") -> 55% (9560) | F11: =IFERROR((IF($C11="NA","NA",VLOOKUP($A$3,'G3-RH'!$A$6:$AM$501,7,FALSE))),"NA") -> 10.79719278 | G11: NA | H11: =IFERROR((IF($C11="NA","NA",VLOOKUP($A$3,'G3-RH'!$A$6:$AM$501,10,FALSE))),"NA") -> 15.24724148 | I11: NA | J11: =IFERROR((IF($C11="NA","NA",VLOOKUP($A$3,'G3-RH'!$A$6:$AM$501,13,FALSE))),"NA") -> 6.847510742 | K11: NA | L11: =IFERROR((IF($C11="NA","NA",VLOOKUP($A$3,'G3-RH'!$A$6:$AM$501,16,FALSE))),"NA") -> 2.207121169 | M11: NA
A12: Asian | B12: =IFERROR(VLOOKUP(TEXT($A$3,"0000"),MEM_A!$A$2:$O$501,7,FALSE),0) -> 286 | C12: =IFERROR((IF(OR(B12=0,B12="",B12="NA"),"NA",((IF(VLOOKUP($A$3,'G3-RA'!$A$6:$AM$500,3,FALSE)>=B12,"100% ("&VLOOKUP($A$3,'G3-RA'!$A$6:$AM$500,3,FALSE)&")",(ROUND((VLOOKUP($A$3,'G3-RA'!$A$6:$AM$500,3,FALSE)/B12*100),0))&"% ("&IF(VLOOKUP($A$3,'G3-RA'!$A$6:$AM$500,3,FALSE)="",0,VLOOKUP($A$3,'G3-RA'!$A$6:$AM$500,3,FALSE))&")"))))),"0% (0)") -> 94% (269) | D12: =IFERROR((IF($C12="NA","NA",VLOOKUP($A$3,'G3-RA'!$A$6:$AM$501,4,FALSE))),"NA") -> 40.36765799 | E12: =IFERROR((IF($C12="NA","NA",VLOOKUP($A$3,'G3-RA'!$A$6:$AM$501,6,FALSE)&"% ("&IF(VLOOKUP($A$3,'G3-RA'!$A$6:$AM$501,5,FALSE)="",0,VLOOKUP($A$3,'G3-RA'!$A$6:$AM$501,5,FALSE))&")")),"NA") -> 74% (199) | F12: =IFERROR((IF($C12="NA","NA",VLOOKUP($A$3,'G3-RA'!$A$6:$AM$501,7,FALSE))),"NA") -> 12.18066914 | G12: NA | H12: =IFERROR((IF($C12="NA","NA",VLOOKUP($A$3,'G3-RA'!$A$6:$AM$501,10,FALSE))),"NA") -> 17.73011152 | I12: NA | J12: =IFERROR((IF($C12="NA","NA",VLOOKUP($A$3,'G3-RA'!$A$6:$AM$501,13,FALSE))),"NA") -> 7.900371747 | K12: NA | L12: =IFERROR((IF($C12="NA","NA",VLOOKUP($A$3,'G3-RA'!$A$6:$AM$501,16,FALSE))),"NA") -> 2.568773234 | M12: NA
A13: Am. Indian | B13: =IFERROR(VLOOKUP(TEXT($A$3,"0000"),MEM_I!$A$2:$O$501,7,FALSE),0) -> 10 | C13: =IFERROR((IF(OR(B13=0,B13="",B13="NA"),"NA",((IF(VLOOKUP($A$3,'G3-RI'!$A$6:$AM$500,3,FALSE)>=B13,"100% ("&VLOOKUP($A$3,'G3-RI'!$A$6:$AM$500,3,FALSE)&")",(ROUND((VLOOKUP($A$3,'G3-RI'!$A$6:$AM$500,3,FALSE)/B13*100),0))&"% ("&IF(VLOOKUP($A$3,'G3-RI'!$A$6:$AM$500,3,FALSE)="",0,VLOOKUP($A$3,'G3-RI'!$A$6:$AM$500,3,FALSE))&")"))))),"0% (0)") -> 100% (11) | D13: =IFERROR((IF($C13="NA","NA",VLOOKUP($A$3,'G3-RI'!$A$6:$AM$501,4,FALSE))),"NA") -> 37.90909091 | E13: =IFERROR((IF($C13="NA","NA",VLOOKUP($A$3,'G3-RI'!$A$6:$AM$501,6,FALSE)&"% ("&IF(VLOOKUP($A$3,'G3-RI'!$A$6:$AM$501,5,FALSE)="",0,VLOOKUP($A$3,'G3-RI'!$A$6:$AM$501,5,FALSE))&")")),"NA") -> 55% (6) | F13: =IFERROR((IF($C13="NA","NA",VLOOKUP($A$3,'G3-RI'!$A$6:$AM$501,7,FALSE))),"NA") -> 12.09090909 | G13: NA | H13: =IFERROR((IF($C13="NA","NA",VLOOKUP($A$3,'G3-RI'!$A$6:$AM$501,10,FALSE))),"NA") -> 16.36363636 | I13: NA | J13: =IFERROR((IF($C13="NA","NA",VLOOKUP($A$3,'G3-RI'!$A$6:$AM$501,13,FALSE))),"NA") -> 7.272727273 | K13: NA | L13: =IFERROR((IF($C13="NA","NA",VLOOKUP($A$3,'G3-RI'!$A$6:$AM$501,16,FALSE))),"NA") -> 2.181818182 | M13: NA
A14: ED | B14: =IFERROR(VLOOKUP(TEXT($A$3,"0000"),MEM_ED!$A$2:$O$501,7,FALSE),0) -> 20596 | C14: =IFERROR((IF(OR(B14=0,B14="",B14="NA"),"NA",((IF(VLOOKUP($A$3,'G3-RED'!$A$6:$AM$500,3,FALSE)>=B14,"100% ("&VLOOKUP($A$3,'G3-RED'!$A$6:$AM$500,3,FALSE)&")",(ROUND((VLOOKUP($A$3,'G3-RED'!$A$6:$AM$500,3,FALSE)/B14*100),0))&"% ("&IF(VLOOKUP($A$3,'G3-RED'!$A$6:$AM$500,3,FALSE)="",0,VLOOKUP($A$3,'G3-RED'!$A$6:$AM$500,3,FALSE))&")"))))),"0% (0)") -> 100% (20832) | D14: =IFERROR((IF($C14="NA","NA",VLOOKUP($A$3,'G3-RED'!$A$6:$AM$501,4,FALSE))),"NA") -> 33.38063076 | E14: =IFERROR((IF($C14="NA","NA",VLOOKUP($A$3,'G3-RED'!$A$6:$AM$501,6,FALSE)&"% ("&IF(VLOOKUP($A$3,'G3-RED'!$A$6:$AM$501,5,FALSE)="",0,VLOOKUP($A$3,'G3-RED'!$A$6:$AM$501,5,FALSE))&")")),"NA") -> 48% (9941) | F14: =IFERROR((IF($C14="NA","NA",VLOOKUP($A$3,'G3-RED'!$A$6:$AM$501,7,FALSE))),"NA") -> 10.26848598 | G14: NA | H14: =IFERROR((IF($C14="NA","NA",VLOOKUP($A$3,'G3-RED'!$A$6:$AM$501,10,FALSE))),"NA") -> 14.46940764 | I14: NA | J14: =IFERROR((IF($C14="NA","NA",VLOOKUP($A$3,'G3-RED'!$A$6:$AM$501,13,FALSE))),"NA") -> 6.572537442 | K14: NA | L14: =IFERROR((IF($C14="NA","NA",VLOOKUP($A$3,'G3-RED'!$A$6:$AM$501,16,FALSE))),"NA") -> 2.074942396 | M14: NA
A15: ELL | B15: =IFERROR(VLOOKUP(TEXT($A$3,"0000"),MEM_ELL!$A$2:$O$501,7,FALSE),0) -> 12510 | C15: =IFERROR((IF(OR(B15=0,B15="",B15="NA"),"NA",((IF(VLOOKUP($A$3,'G3-RELL'!$A$6:$AM$500,3,FALSE)>=B15,"100% ("&VLOOKUP($A$3,'G3-RELL'!$A$6:$AM$500,3,FALSE)&")",(ROUND((VLOOKUP($A$3,'G3-RELL'!$A$6:$AM$500,3,FALSE)/B15*100),0))&"% ("&IF(VLOOKUP($A$3,'G3-RELL'!$A$6:$AM$500,3,FALSE)="",0,VLOOKUP($A$3,'G3-RELL'!$A$6:$AM$500,3,FALSE))&")"))))),"0% (0)") -> 98% (12252) | D15: =IFERROR((IF($C15="NA","NA",VLOOKUP($A$3,'G3-RELL'!$A$6:$AM$501,4,FALSE))),"NA") -> 32.97069866 | E15: =IFERROR((IF($C15="NA","NA",VLOOKUP($A$3,'G3-RELL'!$A$6:$AM$501,6,FALSE)&"% ("&IF(VLOOKUP($A$3,'G3-RELL'!$A$6:$AM$501,5,FALSE)="",0,VLOOKUP($A$3,'G3-RELL'!$A$6:$AM$501,5,FALSE))&")")),"NA") -> 47% (5700) | F15: =IFERROR((IF($C15="NA","NA",VLOOKUP($A$3,'G3-RELL'!$A$6:$AM$501,7,FALSE))),"NA") -> 10.14536402 | G15: NA | H15: =IFERROR((IF($C15="NA","NA",VLOOKUP($A$3,'G3-RELL'!$A$6:$AM$501,10,FALSE))),"NA") -> 14.31007183 | I15: NA | J15: =IFERROR((IF($C15="NA","NA",VLOOKUP($A$3,'G3-RELL'!$A$6:$AM$501,13,FALSE))),"NA") -> 6.456823376 | K15: NA | L15: =IFERROR((IF($C15="NA","NA",VLOOKUP($A$3,'G3-RELL'!$A$6:$AM$501,16,FALSE))),"NA") -> 2.058439438 | M15: NA
A16: SWD | B16: =IFERROR(VLOOKUP(TEXT($A$3,"0000"),MEM_SWD!$A$2:$O$501,7,FALSE),0) -> 2381 | C16: =IFERROR((IF(OR(B16=0,B16="",B16="NA"),"NA",((IF(VLOOKUP($A$3,'G3-RSWD'!$A$6:$AM$500,3,FALSE)>=B16,"100% ("&VLOOKUP($A$3,'G3-RSWD'!$A$6:$AM$500,3,FALSE)&")",(ROUND((VLOOKUP($A$3,'G3-RSWD'!$A$6:$AM$500,3,FALSE)/B16*100),0))&"% ("&IF(VLOOKUP($A$3,'G3-RSWD'!$A$6:$AM$500,3,FALSE)="",0,VLOOKUP($A$3,'G3-RSWD'!$A$6:$AM$500,3,FALSE))&")"))))),"0% (0)") -> 97% (2312) | D16: =IFERROR((IF($C16="NA","NA",VLOOKUP($A$3,'G3-RSWD'!$A$6:$AM$501,4,FALSE))),"NA") -> 24.95951557 | E16: =IFERROR((IF($C16="NA","NA",VLOOKUP($A$3,'G3-RSWD'!$A$6:$AM$501,6,FALSE)&"% ("&IF(VLOOKUP($A$3,'G3-RSWD'!$A$6:$AM$501,5,FALSE)="",0,VLOOKUP($A$3,'G3-RSWD'!$A$6:$AM$501,5,FALSE))&")")),"NA") -> 18% (426) | F16: =IFERROR((IF($C16="NA","NA",VLOOKUP($A$3,'G3-RSWD'!$A$6:$AM$501,7,FALSE))),"NA") -> 7.514100346 | G16: NA | H16: =IFERROR((IF($C16="NA","NA",VLOOKUP($A$3,'G3-RSWD'!$A$6:$AM$501,10,FALSE))),"NA") -> 10.76790657 | I16: NA | J16: =IFERROR((IF($C16="NA","NA",VLOOKUP($A$3,'G3-RSWD'!$A$6:$AM$501,13,FALSE))),"NA") -> 5.124394464 | K16: NA | L16: =IFERROR((IF($C16="NA","NA",VLOOKUP($A$3,'G3-RSWD'!$A$6:$AM$501,16,FALSE))),"NA") -> 1.560294118 | M16: NA
A17: Math - Grade 3
A18: Satisfactory Progress Cut Scores at 47% or above | B18: Total # of Students | C18: % of Students Tested | D18: ='G3-5 Matrix'!C10&" ["&'G3-5 Matrix'!C11&"]" -> Overall [34] | F18: ='G3-5 Matrix'!D10&" ["&'G3-5 Matrix'!D11&"]" -> Number: Operations, Problems, & Statistics [16] | H18: ='G3-5 Matrix'!E10&" ["&'G3-5 Matrix'!E11&"]" -> Number: Fractions [18] | J18: ='G3-5 Matrix'!F10&" ["&'G3-5 Matrix'!F11&"]" -> Geometry and Measurement [0]
D19: Average Score | E19: % Satisfactory | F19: Average Score | G19: % Satisfactory | H19: Average Score | I19: % Satisfactory | J19: Average Score | K19: % Satisfactory
A20: All students | B20: =IFERROR(VLOOKUP(TEXT($A$3,"0000"),Mem_All!$A$2:$O$501,7,FALSE),0) -> 26713 | C20: =IFERROR((IF(OR(B20=0,B20="",B20="NA"),"NA",((IF(VLOOKUP($A$3,'G3-MALL'!$A$6:$AG$500,3,FALSE)>=B20,"100% ("&VLOOKUP($A$3,'G3-MALL'!$A$6:$AG$500,3,FALSE)&")",(ROUND((VLOOKUP($A$3,'G3-MALL'!$A$6:$AG$500,3,FALSE)/B20*100),0))&"% ("&IF(VLOOKUP($A$3,'G3-MALL'!$A$6:$AG$500,3,FALSE)="",0,VLOOKUP($A$3,'G3-MALL'!$A$6:$AG$500,3,FALSE))&")"))))),"0% (0)") -> 96% (25610) | D20: =IFERROR((IF($C20="NA","NA",VLOOKUP($A$3,'G3-MALL'!$A$6:$AM$500,4,FALSE))),"NA") -> 18.72593128 | E20: =IF($C20="NA","NA",VLOOKUP($A$3,'G3-MALL'!$A$6:$AM$500,6,FALSE)&"% ("&IF(VLOOKUP($A$3,'G3-MALL'!$A$6:$AM$500,5,FALSE)="",0,VLOOKUP($A$3,'G3-MALL'!$A$6:$AM$500,5,FALSE))&")") -> 64% (16480) | F20: =IFERROR((IF($C20="NA","NA",VLOOKUP($A$3,'G3-MALL'!$A$6:$AM$500,7,FALSE))),"NA") -> 9.187376025 | G20: NA | H20: =IFERROR((IF($C20="NA","NA",VLOOKUP($A$3,'G3-MALL'!$A$6:$AM$500,10,FALSE))),"NA") -> 9.540550566 | I20: NA | J20: NT | K20: NT
A21: White | B21: =IFERROR(VLOOKUP(TEXT($A$3,"0000"),MEM_W!$A$2:$O$501,7,FALSE),0) -> 1991 | C21: =IFERROR((IF(OR(B21=0,B21="",B21="NA"),"NA",((IF(VLOOKUP($A$3,'G3-MW'!$A$6:$AG$500,3,FALSE)>=B21,"100% ("&VLOOKUP($A$3,'G3-MW'!$A$6:$AG$500,3,FALSE)&")",(ROUND((VLOOKUP($A$3,'G3-MW'!$A$6:$AG$500,3,FALSE)/B21*100),0))&"% ("&IF(VLOOKUP($A$3,'G3-MW'!$A$6:$AG$500,3,FALSE)="",0,VLOOKUP($A$3,'G3-MW'!$A$6:$AG$500,3,FALSE))&")"))))),"0% (0)") -> 95% (1893) | D21: =IFERROR((IF($C21="NA","NA",VLOOKUP($A$3,'G3-MW'!$A$6:$AM$500,4,FALSE))),"NA") -> 21.18938193 | E21: =IFERROR((IF($C21="NA","NA",ROUND(VLOOKUP($A$3,'G3-MW'!$A$6:$AM$500,6,FALSE),0)&"% ("&IF(VLOOKUP($A$3,'G3-MW'!$A$6:$AM$500,5,FALSE)="",0,VLOOKUP($A$3,'G3-MW'!$A$6:$AM$500,5,FALSE))&")")),"NA") -> 76% (1439) | F21: =IFERROR((IF($C21="NA","NA",VLOOKUP($A$3,'G3-MW'!$A$6:$AM$500,7,FALSE))),"NA") -> 10.36899102 | G21: NA | H21: =IFERROR((IF($C21="NA","NA",VLOOKUP($A$3,'G3-MW'!$A$6:$AM$500,10,FALSE))),"NA") -> 10.82889593 | I21: NA | J21: NT | K21: NT
A22: Black | B22: =IFERROR(VLOOKUP(TEXT($A$3,"0000"),MEM_B!$A$2:$O$501,7,FALSE),0) -> 6087 | C22: =IFERROR((IF(OR(B22=0,B22="",B22="NA"),"NA",((IF(VLOOKUP($A$3,'G3-MB'!$A$6:$AG$500,3,FALSE)>=B22,"100% ("&VLOOKUP($A$3,'G3-MB'!$A$6:$AG$500,3,FALSE)&")",(ROUND((VLOOKUP($A$3,'G3-MB'!$A$6:$AG$500,3,FALSE)/B22*100),0))&"% ("&IF(VLOOKUP($A$3,'G3-MB'!$A$6:$AG$500,3,FALSE)="",0,VLOOKUP($A$3,'G3-MB'!$A$6:$AG$500,3,FALSE))&")"))))),"0% (0)") -> 97% (5883) | D22: =IFERROR((IF($C22="NA","NA",VLOOKUP($A$3,'G3-MB'!$A$6:$AM$500,4,FALSE))),"NA") -> 17.61388747 | E22: =IFERROR((IF($C22="NA","NA",ROUND(VLOOKUP($A$3,'G3-MB'!$A$6:$AM$500,6,FALSE),0)&"% ("&IF(VLOOKUP($A$3,'G3-MB'!$A$6:$AM$500,5,FALSE)="",0,VLOOKUP($A$3,'G3-MB'!$A$6:$AM$500,5,FALSE))&")")),"NA") -> 58% (3434) | F22: =IFERROR((IF($C22="NA","NA",VLOOKUP($A$3,'G3-MB'!$A$6:$AM$500,7,FALSE))),"NA") -> 8.687387387 | G22: NA | H22: =IFERROR((IF($C22="NA","NA",VLOOKUP($A$3,'G3-MB'!$A$6:$AM$500,10,FALSE))),"NA") -> 8.924732279 | I22: NA | J22: NT | K22: NT
A23: Hispanic | B23: =IFERROR(VLOOKUP(TEXT($A$3,"0000"),MEM_H!$A$2:$O$501,7,FALSE),0) -> 18029 | C23: =IFERROR((IF(OR(B23=0,B23="",B23="NA"),"NA",((IF(VLOOKUP($A$3,'G3-MH'!$A$6:$AG$500,3,FALSE)>=B23,"100% ("&VLOOKUP($A$3,'G3-MH'!$A$6:$AG$500,3,FALSE)&")",(ROUND((VLOOKUP($A$3,'G3-MH'!$A$6:$AG$500,3,FALSE)/B23*100),0))&"% ("&IF(VLOOKUP($A$3,'G3-MH'!$A$6:$AG$500,3,FALSE)="",0,VLOOKUP($A$3,'G3-MH'!$A$6:$AG$500,3,FALSE))&")"))))),"0% (0)") -> 96% (17257) | D23: =IFERROR((IF($C23="NA","NA",VLOOKUP($A$3,'G3-MH'!$A$6:$AM$500,4,FALSE))),"NA") -> 18.75782581 | E23: =IFERROR((IF($C23="NA","NA",ROUND(VLOOKUP($A$3,'G3-MH'!$A$6:$AM$500,6,FALSE),0)&"% ("&IF(VLOOKUP($A$3,'G3-MH'!$A$6:$AM$500,5,FALSE)="",0,VLOOKUP($A$3,'G3-MH'!$A$6:$AM$500,5,FALSE))&")")),"NA") -> 65% (11176) | F23: =IFERROR((IF($C23="NA","NA",VLOOKUP($A$3,'G3-MH'!$A$6:$AM$500,7,FALSE))),"NA") -> 9.188022252 | G23: NA | H23: =IFERROR((IF($C23="NA","NA",VLOOKUP($A$3,'G3-MH'!$A$6:$AM$500,10,FALSE))),"NA") -> 9.571739004 | I23: NA | J23: NT | K23: NT
A24: Asian | B24: =IFERROR(VLOOKUP(TEXT($A$3,"0000"),MEM_A!$A$2:$O$501,7,FALSE),0) -> 286 | C24: =IFERROR((IF(OR(B24=0,B24="",B24="NA"),"NA",((IF(VLOOKUP($A$3,'G3-MA'!$A$6:$AG$500,3,FALSE)>=B24,"100% ("&VLOOKUP($A$3,'G3-MA'!$A$6:$AG$500,3,FALSE)&")",(ROUND((VLOOKUP($A$3,'G3-MA'!$A$6:$AG$500,3,FALSE)/B24*100),0))&"% ("&IF(VLOOKUP($A$3,'G3-MA'!$A$6:$AG$500,3,FALSE)="",0,VLOOKUP($A$3,'G3-MA'!$A$6:$AG$500,3,FALSE))&")"))))),"0% (0)") -> 93% (266) | D24: =IFERROR((IF($C24="NA","NA",VLOOKUP($A$3,'G3-MA'!$A$6:$AM$500,4,FALSE))),"NA") -> 22.97631579 | E24: =IFERROR((IF($C24="NA","NA",ROUND(VLOOKUP($A$3,'G3-MA'!$A$6:$AM$500,6,FALSE),0)&"% ("&IF(VLOOKUP($A$3,'G3-MA'!$A$6:$AM$500,5,FALSE)="",0,VLOOKUP($A$3,'G3-MA'!$A$6:$AM$500,5,FALSE))&")")),"NA") -> 83% (220) | F24: =IFERROR((IF($C24="NA","NA",VLOOKUP($A$3,'G3-MA'!$A$6:$AM$500,7,FALSE))),"NA") -> 11.36428571 | G24: NA | H24: =IFERROR((IF($C24="NA","NA",VLOOKUP($A$3,'G3-MA'!$A$6:$AM$500,10,FALSE))),"NA") -> 11.62105263 | I24: NA | J24: NT | K24: NT
A25: Am. Indian | B25: =IFERROR(VLOOKUP(TEXT($A$3,"0000"),MEM_I!$A$2:$O$501,7,FALSE),0) -> 10 | C25: =IFERROR((IF(OR(B25=0,B25="",B25="NA"),"NA",((IF(VLOOKUP($A$3,'G3-MI'!$A$6:$AG$500,3,FALSE)>=B25,"100% ("&VLOOKUP($A$3,'G3-MI'!$A$6:$AG$500,3,FALSE)&")",(ROUND((VLOOKUP($A$3,'G3-MI'!$A$6:$AG$500,3,FALSE)/B25*100),0))&"% ("&IF(VLOOKUP($A$3,'G3-MI'!$A$6:$AG$500,3,FALSE)="",0,VLOOKUP($A$3,'G3-MI'!$A$6:$AG$500,3,FALSE))&")"))))),"0% (0)") -> 100% (11) | D25: =IFERROR((IF($C25="NA","NA",VLOOKUP($A$3,'G3-MI'!$A$6:$AM$500,4,FALSE))),"NA") -> 20.81818182 | E25: =IFERROR((IF($C25="NA","NA",ROUND(VLOOKUP($A$3,'G3-MI'!$A$6:$AM$500,6,FALSE),0)&"% ("&IF(VLOOKUP($A$3,'G3-MI'!$A$6:$AM$500,5,FALSE)="",0,VLOOKUP($A$3,'G3-MI'!$A$6:$AM$500,5,FALSE))&")")),"NA") -> 82% (9) | F25: =IFERROR((IF($C25="NA","NA",VLOOKUP($A$3,'G3-MI'!$A$6:$AM$500,7,FALSE))),"NA") -> 10.09090909 | G25: NA | H25: =IFERROR((IF($C25="NA","NA",VLOOKUP($A$3,'G3-MI'!$A$6:$AM$500,10,FALSE))),"NA") -> 10.72727273 | I25: NA | J25: NT | K25: NT
A26: ED | B26: =IFERROR(VLOOKUP(TEXT($A$3,"0000"),MEM_ED!$A$2:$O$501,7,FALSE),0) -> 20596 | C26: =IFERROR((IF(OR(B26=0,B26="",B26="NA"),"NA",((IF(VLOOKUP($A$3,'G3-MED'!$A$6:$AG$500,3,FALSE)>=B26,"100% ("&VLOOKUP($A$3,'G3-MED'!$A$6:$AG$500,3,FALSE)&")",(ROUND((VLOOKUP($A$3,'G3-MED'!$A$6:$AG$500,3,FALSE)/B26*100),0))&"% ("&IF(VLOOKUP($A$3,'G3-MED'!$A$6:$AG$500,3,FALSE)="",0,VLOOKUP($A$3,'G3-MED'!$A$6:$AG$500,3,FALSE))&")"))))),"0% (0)") -> 100% (20663) | D26: =IFERROR((IF($C26="NA","NA",VLOOKUP($A$3,'G3-MED'!$A$6:$AM$500,4,FALSE))),"NA") -> 18.11915501 | E26: =IFERROR((IF($C26="NA","NA",ROUND(VLOOKUP($A$3,'G3-MED'!$A$6:$AM$500,6,FALSE),0)&"% ("&IF(VLOOKUP($A$3,'G3-MED'!$A$6:$AM$500,5,FALSE)="",0,VLOOKUP($A$3,'G3-MED'!$A$6:$AM$500,5,FALSE))&")")),"NA") -> 61% (12643) | F26: =IFERROR((IF($C26="NA","NA",VLOOKUP($A$3,'G3-MED'!$A$6:$AM$500,7,FALSE))),"NA") -> 8.881779025 | G26: NA | H26: =IFERROR((IF($C26="NA","NA",VLOOKUP($A$3,'G3-MED'!$A$6:$AM$500,10,FALSE))),"NA") -> 9.235154624 | I26: NA | J26: NT | K26: NT
A27: ELL | B27: =IFERROR(VLOOKUP(TEXT($A$3,"0000"),MEM_ELL!$A$2:$O$501,7,FALSE),0) -> 12510 | C27: =IFERROR((IF(OR(B27=0,B27="",B27="NA"),"NA",((IF(VLOOKUP($A$3,'G3-MELL'!$A$6:$AG$500,3,FALSE)>=B27,"100% ("&VLOOKUP($A$3,'G3-MELL'!$A$6:$AG$500,3,FALSE)&")",(ROUND((VLOOKUP($A$3,'G3-MELL'!$A$6:$AG$500,3,FALSE)/B27*100),0))&"% ("&IF(VLOOKUP($A$3,'G3-MELL'!$A$6:$AG$500,3,FALSE)="",0,VLOOKUP($A$3,'G3-MELL'!$A$6:$AG$500,3,FALSE))&")"))))),"0% (0)") -> 97% (12159) | D27: =IFERROR((IF($C27="NA","NA",VLOOKUP($A$3,'G3-MELL'!$A$6:$AM$500,4,FALSE))),"NA") -> 18.10255778 | E27: =IFERROR((IF($C27="NA","NA",ROUND(VLOOKUP($A$3,'G3-MELL'!$A$6:$AM$500,6,FALSE),0)&"% ("&IF(VLOOKUP($A$3,'G3-MELL'!$A$6:$AM$500,5,FALSE)="",0,VLOOKUP($A$3,'G3-MELL'!$A$6:$AM$500,5,FALSE))&")")),"NA") -> 61% (7437) | F27: =IFERROR((IF($C27="NA","NA",VLOOKUP($A$3,'G3-MELL'!$A$6:$AM$500,7,FALSE))),"NA") -> 8.855251254 | G27: NA | H27: =IFERROR((IF($C27="NA","NA",VLOOKUP($A$3,'G3-MELL'!$A$6:$AM$500,10,FALSE))),"NA") -> 9.247306522 | I27: NA | J27: NT | K27: NT
A28: SWD | B28: =IFERROR(VLOOKUP(TEXT($A$3,"0000"),MEM_SWD!$A$2:$O$501,7,FALSE),0) -> 2381 | C28: =IFERROR((IF(OR(B28=0,B28="",B28="NA"),"NA",((IF(VLOOKUP($A$3,'G3-MSWD'!$A$6:$AG$500,3,FALSE)>=B28,"100% ("&VLOOKUP($A$3,'G3-MSWD'!$A$6:$AG$500,3,FALSE)&")",(ROUND((VLOOKUP($A$3,'G3-MSWD'!$A$6:$AG$500,3,FALSE)/B28*100),0))&"% ("&IF(VLOOKUP($A$3,'G3-MSWD'!$A$6:$AG$500,3,FALSE)="",0,VLOOKUP($A$3,'G3-MSWD'!$A$6:$AG$500,3,FALSE))&")"))))),"0% (0)") -> 97% (2299) | D28: =IFERROR((IF($C28="NA","NA",VLOOKUP($A$3,'G3-MSWD'!$A$6:$AM$500,4,FALSE))),"NA") -> 14.55863419 | E28: =IFERROR((IF($C28="NA","NA",ROUND(VLOOKUP($A$3,'G3-MSWD'!$A$6:$AM$500,6,FALSE),0)&"% ("&IF(VLOOKUP($A$3,'G3-MSWD'!$A$6:$AM$500,5,FALSE)="",0,VLOOKUP($A$3,'G3-MSWD'!$A$6:$AM$500,5,FALSE))&")")),"NA") -> 38% (866) | F28: =IFERROR((IF($C28="NA","NA",VLOOKUP($A$3,'G3-MSWD'!$A$6:$AM$500,7,FALSE))),"NA") -> 7.234188778 | G28: NA | H28: =IFERROR((IF($C28="NA","NA",VLOOKUP($A$3,'G3-MSWD'!$A$6:$AM$500,10,FALSE))),"NA") -> 7.325358852 | I28: NA | J28: NT | K28: NT

Sheet Grade 4 Report
A2: Click here to return to the school and sheet selection interface
A3: ='Select School'!B3 -> 9999
A4: =TEXT(A3,"0000")&"-"&VLOOKUP(A3,SchList!$A$2:$B$504,2,FALSE) -> 9999-District
A5: Reading - Grade 4
A6: Satisfactory Progress Cut Scores at 67% or above | B6: Total # of Students | C6: % of Students Tested | D6: ='G3-5 Matrix'!C2&" ["&'G3-5 Matrix'!C5&"]" -> Overall [51] | F6: ='G3-5 Matrix'!D2&" ["&'G3-5 Matrix'!D5&"]" -> Vocabulary [16] | H6: ='G3-5 Matrix'!E2&" ["&'G3-5 Matrix'!E5&"]" -> Reading Application [20] | J6: ='G3-5 Matrix'!F2&" ["&'G3-5 Matrix'!F5&"]" -> Literary Analysis Fiction/Nonfiction [10] | L6: ='G3-5 Matrix'!G2&" ["&'G3-5 Matrix'!G5&"]" -> Informational Text/ Research Process [5]
D7: Average Score | E7: % Satisfactory | F7: Average Score | G7: % Satisfactory | H7: Average Score | I7: % Satisfactory | J7: Average Score | K7: % Satisfactory | L7: Average Score | M7: % Satisfactory
A8: All students | B8: =IFERROR(VLOOKUP(TEXT($A$3,"0000"),Mem_All!$A$2:$O$501,8,FALSE),0) -> 25536 | C8: =IFERROR((IF(OR(B8=0,B8="",B8="NA"),"NA",((IF(VLOOKUP($A$3,'G4-RALL'!$A$6:$AM$500,3,FALSE)>=B8,"100% ("&VLOOKUP($A$3,'G4-RALL'!$A$6:$AM$500,3,FALSE)&")",(ROUND((VLOOKUP($A$3,'G4-RALL'!$A$6:$AM$500,3,FALSE)/B8*100),0))&"% ("&IF(VLOOKUP($A$3,'G4-RALL'!$A$6:$AM$500,3,FALSE)="",0,VLOOKUP($A$3,'G4-RALL'!$A$6:$AM$500,3,FALSE))&")"))))),"NA") -> 97% (24692) | D8: =IFERROR((IF($C8="NA","NA",VLOOKUP($A$3,'G4-RALL'!$A$6:$AM$500,4,FALSE))),"NA") -> 34.52673335 | E8: =IFERROR((IF($C8="NA","NA",ROUND(VLOOKUP($A$3,'G4-RALL'!$A$6:$AM$500,6,FALSE),0)&"% ("&IF(VLOOKUP($A$3,'G4-RALL'!$A$6:$AM$500,5,FALSE)="",0,VLOOKUP($A$3,'G4-RALL'!$A$6:$AM$500,5,FALSE))&")")),"NA") -> 62% (15203) | F8: =IFERROR((IF($C8="NA","NA",VLOOKUP($A$3,'G4-RALL'!$A$6:$AM$500,7,FALSE))),"NA") -> 12.00421594 | G8: NA | H8: =IFERROR((IF($C8="NA","NA",VLOOKUP($A$3,'G4-RALL'!$A$6:$AM$500,10,FALSE))),"NA") -> 14.07415357 | I8: NA | J8: =IFERROR((IF($C8="NA","NA",VLOOKUP($A$3,'G4-RALL'!$A$6:$AM$500,13,FALSE))),"NA") -> 5.773286895 | K8: NA | L8: =IFERROR((IF($C8="NA","NA",VLOOKUP($A$3,'G4-RALL'!$A$6:$AM$500,16,FALSE))),"NA") -> 2.677024947 | M8: NA
A9: FCAT Level 1 | B9: =IFERROR(VLOOKUP(TEXT($A$3,"0000"),MEM_RL1!$A$2:$O$501,5,FALSE),0) -> 3633 | C9: =IFERROR((IF(OR(B9=0,B9="",B9="NA"),"NA",((IF(VLOOKUP($A$3,'G4-RL1'!$A$6:$AM$500,3,FALSE)>=B9,"100% ("&VLOOKUP($A$3,'G4-RL1'!$A$6:$AM$500,3,FALSE)&")",(ROUND((VLOOKUP($A$3,'G4-RL1'!$A$6:$AM$500,3,FALSE)/B9*100),0))&"% ("&IF(VLOOKUP($A$3,'G4-RL1'!$A$6:$AM$500,3,FALSE)="",0,VLOOKUP($A$3,'G4-RL1'!$A$6:$AM$500,3,FALSE))&")"))))),"NA") -> 97% (3529) | D9: =IFERROR((IF($C9="NA","NA",VLOOKUP($A$3,'G4-RL1'!$A$6:$AM$500,4,FALSE))),"NA") -> 22.35378294 | E9: =IFERROR((IF($C9="NA","NA",ROUND(VLOOKUP($A$3,'G4-RL1'!$A$6:$AM$500,6,FALSE),0)&"% ("&IF(VLOOKUP($A$3,'G4-RL1'!$A$6:$AM$500,5,FALSE)="",0,VLOOKUP($A$3,'G4-RL1'!$A$6:$AM$500,5,FALSE))&")")),"NA") -> 10% (349) | F9: =IFERROR((IF($C9="NA","NA",VLOOKUP($A$3,'G4-RL1'!$A$6:$AM$500,7,FALSE))),"NA") -> 8.178152451 | G9: NA | H9: =IFERROR((IF($C9="NA","NA",VLOOKUP($A$3,'G4-RL1'!$A$6:$AM$500,10,FALSE))),"NA") -> 8.842703315 | I9: NA | J9: =IFERROR((IF($C9="NA","NA",VLOOKUP($A$3,'G4-RL1'!$A$6:$AM$500,13,FALSE))),"NA") -> 3.658656843 | K9: NA | L9: =IFERROR((IF($C9="NA","NA",VLOOKUP($A$3,'G4-RL1'!$A$6:$AM$500,16,FALSE))),"NA") -> 1.681524511 | M9: NA
A10: FCAT Level 2 | B10: =IFERROR(VLOOKUP(TEXT($A$3,"0000"),MEM_RL2!$A$2:$O$501,5,FALSE),0) -> 6511 | C10: =IFERROR((IF(OR(B10=0,B10="",B10="NA"),"NA",((IF(VLOOKUP($A$3,'G4-RL2'!$A$6:$AM$500,3,FALSE)>=B10,"100% ("&VLOOKUP($A$3,'G4-RL2'!$A$6:$AM$500,3,FALSE)&")",(ROUND((VLOOKUP($A$3,'G4-RL2'!$A$6:$AM$500,3,FALSE)/B10*100),0))&"% ("&IF(VLOOKUP($A$3,'G4-RL2'!$A$6:$AM$500,3,FALSE)="",0,VLOOKUP($A$3,'G4-RL2'!$A$6:$AM$500,3,FALSE))&")"))))),"NA") -> 98% (6359) | D10: =IFERROR((IF($C10="NA","NA",VLOOKUP($A$3,'G4-RL2'!$A$6:$AM$500,4,FALSE))),"NA") -> 30.75603082 | E10: =IFERROR((IF($C10="NA","NA",ROUND(VLOOKUP($A$3,'G4-RL2'!$A$6:$AM$500,6,FALSE),0)&"% ("&IF(VLOOKUP($A$3,'G4-RL2'!$A$6:$AM$500,5,FALSE)="",0,VLOOKUP($A$3,'G4-RL2'!$A$6:$AM$500,5,FALSE))&")")),"NA") -> 39% (2478) | F10: =IFERROR((IF($C10="NA","NA",VLOOKUP($A$3,'G4-RL2'!$A$6:$AM$500,7,FALSE))),"NA") -> 11.13178173 | G10: NA | H10: =IFERROR((IF($C10="NA","NA",VLOOKUP($A$3,'G4-RL2'!$A$6:$AM$500,10,FALSE))),"NA") -> 12.49383551 | I10: NA | J10: =IFERROR((IF($C10="NA","NA",VLOOKUP($A$3,'G4-RL2'!$A$6:$AM$500,13,FALSE))),"NA") -> 4.952335273 | K10: NA | L10: =IFERROR((IF($C10="NA","NA",VLOOKUP($A$3,'G4-RL2'!$A$6:$AM$500,16,FALSE))),"NA") -> 2.174964617 | M10: NA
A11: FCAT Level 3 | B11: =IFERROR(VLOOKUP(TEXT($A$3,"0000"),MEM_RL3!$A$2:$O$501,5,FALSE),0) -> 5743 | C11: =IFERROR((IF(OR(B11=0,B11="",B11="NA"),"NA",((IF(VLOOKUP($A$3,'G4-RL3'!$A$6:$AM$500,3,FALSE)>=B11,"100% ("&VLOOKUP($A$3,'G4-RL3'!$A$6:$AM$500,3,FALSE)&")",(ROUND((VLOOKUP($A$3,'G4-RL3'!$A$6:$AM$500,3,FALSE)/B11*100),0))&"% ("&IF(VLOOKUP($A$3,'G4-RL3'!$A$6:$AM$500,3,FALSE)="",0,VLOOKUP($A$3,'G4-RL3'!$A$6:$AM$500,3,FALSE))&")"))))),"NA") -> 98% (5607) | D11: =IFERROR((IF($C11="NA","NA",VLOOKUP($A$3,'G4-RL3'!$A$6:$AM$500,4,FALSE))),"NA") -> 36.87114321 | E11: =IFERROR((IF($C11="NA","NA",ROUND(VLOOKUP($A$3,'G4-RL3'!$A$6:$AM$500,6,FALSE),0)&"% ("&IF(VLOOKUP($A$3,'G4-RL3'!$A$6:$AM$500,5,FALSE)="",0,VLOOKUP($A$3,'G4-RL3'!$A$6:$AM$500,5,FALSE))&")")),"NA") -> 77% (4306) | F11: =IFERROR((IF($C11="NA","NA",VLOOKUP($A$3,'G4-RL3'!$A$6:$AM$500,7,FALSE))),"NA") -> 12.77615481 | G11: NA | H11: =IFERROR((IF($C11="NA","NA",VLOOKUP($A$3,'G4-RL3'!$A$6:$AM$500,10,FALSE))),"NA") -> 15.21532014 | I11: NA | J11: =IFERROR((IF($C11="NA","NA",VLOOKUP($A$3,'G4-RL3'!$A$6:$AM$500,13,FALSE))),"NA") -> 6.083645443 | K11: NA | L11: =IFERROR((IF($C11="NA","NA",VLOOKUP($A$3,'G4-RL3'!$A$6:$AM$500,16,FALSE))),"NA") -> 2.7988229 | M11: NA
A12: FCAT Level 4 | B12: =IFERROR(VLOOKUP(TEXT($A$3,"0000"),MEM_RL4!$A$2:$O$501,5,FALSE),0) -> 5418 | C12: =IFERROR((IF(OR(B12=0,B12="",B12="NA"),"NA",((IF(VLOOKUP($A$3,'G4-RL4'!$A$6:$AM$500,3,FALSE)>=B12,"100% ("&VLOOKUP($A$3,'G4-RL4'!$A$6:$AM$500,3,FALSE)&")",(ROUND((VLOOKUP($A$3,'G4-RL4'!$A$6:$AM$500,3,FALSE)/B12*100),0))&"% ("&IF(VLOOKUP($A$3,'G4-RL4'!$A$6:$AM$500,3,FALSE)="",0,VLOOKUP($A$3,'G4-RL4'!$A$6:$AM$500,3,FALSE))&")"))))),"NA") -> 97% (5245) | D12: =IFERROR((IF($C12="NA","NA",VLOOKUP($A$3,'G4-RL4'!$A$6:$AM$500,4,FALSE))),"NA") -> 41.60827455 | E12: =IFERROR((IF($C12="NA","NA",ROUND(VLOOKUP($A$3,'G4-RL4'!$A$6:$AM$500,6,FALSE),0)&"% ("&IF(VLOOKUP($A$3,'G4-RL4'!$A$6:$AM$500,5,FALSE)="",0,VLOOKUP($A$3,'G4-RL4'!$A$6:$AM$500,5,FALSE))&")")),"NA") -> 96% (5013) | F12: =IFERROR((IF($C12="NA","NA",VLOOKUP($A$3,'G4-RL4'!$A$6:$AM$500,7,FALSE))),"NA") -> 14.04537655 | G12: NA | H12: =IFERROR((IF($C12="NA","NA",VLOOKUP($A$3,'G4-RL4'!$A$6:$AM$500,10,FALSE))),"NA") -> 17.04163966 | I12: NA | J12: =IFERROR((IF($C12="NA","NA",VLOOKUP($A$3,'G4-RL4'!$A$6:$AM$500,13,FALSE))),"NA") -> 7.136968541 | K12: NA | L12: =IFERROR((IF($C12="NA","NA",VLOOKUP($A$3,'G4-RL4'!$A$6:$AM$500,16,FALSE))),"NA") -> 3.39178265 | M12: NA
A13: FCAT Level 5 | B13: =IFERROR(VLOOKUP(TEXT($A$3,"0000"),MEM_RL5!$A$2:$O$501,4,FALSE),0) -> 2616 | C13: =IFERROR((IF(OR(B13=0,B13="",B13="NA"),"NA",((IF(VLOOKUP($A$3,'G4-RL5'!$A$6:$AM$500,3,FALSE)>=B13,"100% ("&VLOOKUP($A$3,'G4-RL5'!$A$6:$AM$500,3,FALSE)&")",(ROUND((VLOOKUP($A$3,'G4-RL5'!$A$6:$AM$500,3,FALSE)/B13*100),0))&"% ("&IF(VLOOKUP($A$3,'G4-RL5'!$A$6:$AM$500,3,FALSE)="",0,VLOOKUP($A$3,'G4-RL5'!$A$6:$AM$500,3,FALSE))&")"))))),"NA") -> 97% (2537) | D13: =IFERROR((IF($C13="NA","NA",VLOOKUP($A$3,'G4-RL5'!$A$6:$AM$500,4,FALSE))),"NA") -> 45.01072132 | E13: =IFERROR((IF($C13="NA","NA",ROUND(VLOOKUP($A$3,'G4-RL5'!$A$6:$AM$500,6,FALSE),0)&"% ("&IF(VLOOKUP($A$3,'G4-RL5'!$A$6:$AM$500,5,FALSE)="",0,VLOOKUP($A$3,'G4-RL5'!$A$6:$AM$500,5,FALSE))&")")),"NA") -> 100% (2529) | F13: =IFERROR((IF($C13="NA","NA",VLOOKUP($A$3,'G4-RL5'!$A$6:$AM$500,7,FALSE))),"NA") -> 14.95865195 | G13: NA | H13: =IFERROR((IF($C13="NA","NA",VLOOKUP($A$3,'G4-RL5'!$A$6:$AM$500,10,FALSE))),"NA") -> 18.20051242 | I13: NA | J13: =IFERROR((IF($C13="NA","NA",VLOOKUP($A$3,'G4-RL5'!$A$6:$AM$500,13,FALSE))),"NA") -> 7.99601892 | K13: NA | L13: =IFERROR((IF($C13="NA","NA",VLOOKUP($A$3,'G4-RL5'!$A$6:$AM$500,16,FALSE))),"NA") -> 3.860465116 | M13: NA
A14: White | B14: =IFERROR(VLOOKUP(TEXT($A$3,"0000"),MEM_W!$A$2:$O$501,8,FALSE),0) -> 2155 | C14: =IFERROR((IF(OR(B14=0,B14="",B14="NA"),"NA",((IF(VLOOKUP($A$3,'G4-RW'!$A$6:$AM$500,3,FALSE)>=B14,"100% ("&VLOOKUP($A$3,'G4-RW'!$A$6:$AM$500,3,FALSE)&")",(ROUND((VLOOKUP($A$3,'G4-RW'!$A$6:$AM$500,3,FALSE)/B14*100),0))&"% ("&IF(VLOOKUP($A$3,'G4-RW'!$A$6:$AM$500,3,FALSE)="",0,VLOOKUP($A$3,'G4-RW'!$A$6:$AM$500,3,FALSE))&")"))))),"NA") -> 96% (2065) | D14: =IFERROR((IF($C14="NA","NA",VLOOKUP($A$3,'G4-RW'!$A$6:$AM$500,4,FALSE))),"NA") -> 38.66547215 | E14: =IFERROR((IF($C14="NA","NA",ROUND(VLOOKUP($A$3,'G4-RW'!$A$6:$AM$500,6,FALSE),0)&"% ("&IF(VLOOKUP($A$3,'G4-RW'!$A$6:$AM$500,5,FALSE)="",0,VLOOKUP($A$3,'G4-RW'!$A$6:$AM$500,5,FALSE))&")")),"NA") -> 79% (1626) | F14: =IFERROR((IF($C14="NA","NA",VLOOKUP($A$3,'G4-RW'!$A$6:$AM$500,7,FALSE))),"NA") -> 13.23467312 | G14: NA | H14: =IFERROR((IF($C14="NA","NA",VLOOKUP($A$3,'G4-RW'!$A$6:$AM$500,10,FALSE))),"NA") -> 15.82106538 | I14: NA | J14: =IFERROR((IF($C14="NA","NA",VLOOKUP($A$3,'G4-RW'!$A$6:$AM$500,13,FALSE))),"NA") -> 6.515012107 | K14: NA | L14: =IFERROR((IF($C14="NA","NA",VLOOKUP($A$3,'G4-RW'!$A$6:$AM$500,16,FALSE))),"NA") -> 3.112590799 | M14: NA
A15: Black | B15: =IFERROR(VLOOKUP(TEXT($A$3,"0000"),MEM_B!$A$2:$O$501,8,FALSE),0) -> 5633 | C15: =IFERROR((IF(OR(B15=0,B15="",B15="NA"),"NA",((IF(VLOOKUP($A$3,'G4-RB'!$A$6:$AM$500,3,FALSE)>=B15,"100% ("&VLOOKUP($A$3,'G4-RB'!$A$6:$AM$500,3,FALSE)&")",(ROUND((VLOOKUP($A$3,'G4-RB'!$A$6:$AM$500,3,FALSE)/B15*100),0))&"% ("&IF(VLOOKUP($A$3,'G4-RB'!$A$6:$AM$500,3,FALSE)="",0,VLOOKUP($A$3,'G4-RB'!$A$6:$AM$500,3,FALSE))&")"))))),"NA") -> 97% (5457) | D15: =IFERROR((IF($C15="NA","NA",VLOOKUP($A$3,'G4-RB'!$A$6:$AM$500,4,FALSE))),"NA") -> 31.88647609 | E15: =IFERROR((IF($C15="NA","NA",ROUND(VLOOKUP($A$3,'G4-RB'!$A$6:$AM$500,6,FALSE),0)&"% ("&IF(VLOOKUP($A$3,'G4-RB'!$A$6:$AM$500,5,FALSE)="",0,VLOOKUP($A$3,'G4-RB'!$A$6:$AM$500,5,FALSE))&")")),"NA") -> 49% (2662) | F15: =IFERROR((IF($C15="NA","NA",VLOOKUP($A$3,'G4-RB'!$A$6:$AM$500,7,FALSE))),"NA") -> 11.43283856 | G15: NA | H15: =IFERROR((IF($C15="NA","NA",VLOOKUP($A$3,'G4-RB'!$A$6:$AM$500,10,FALSE))),"NA") -> 12.74130475 | I15: NA | J15: =IFERROR((IF($C15="NA","NA",VLOOKUP($A$3,'G4-RB'!$A$6:$AM$500,13,FALSE))),"NA") -> 5.371229613 | K15: NA | L15: =IFERROR((IF($C15="NA","NA",VLOOKUP($A$3,'G4-RB'!$A$6:$AM$500,16,FALSE))),"NA") -> 2.342440902 | M15: NA
A16: Hispanic | B16: =IFERROR(VLOOKUP(TEXT($A$3,"0000"),MEM_H!$A$2:$O$501,8,FALSE),0) -> 17310 | C16: =IFERROR((IF(OR(B16=0,B16="",B16="NA"),"NA",((IF(VLOOKUP($A$3,'G4-RH'!$A$6:$AM$500,3,FALSE)>=B16,"100% ("&VLOOKUP($A$3,'G4-RH'!$A$6:$AM$500,3,FALSE)&")",(ROUND((VLOOKUP($A$3,'G4-RH'!$A$6:$AM$500,3,FALSE)/B16*100),0))&"% ("&IF(VLOOKUP($A$3,'G4-RH'!$A$6:$AM$500,3,FALSE)="",0,VLOOKUP($A$3,'G4-RH'!$A$6:$AM$500,3,FALSE))&")"))))),"NA") -> 97% (16752) | D16: =IFERROR((IF($C16="NA","NA",VLOOKUP($A$3,'G4-RH'!$A$6:$AM$500,4,FALSE))),"NA") -> 34.77413443 | E16: =IFERROR((IF($C16="NA","NA",ROUND(VLOOKUP($A$3,'G4-RH'!$A$6:$AM$500,6,FALSE),0)&"% ("&IF(VLOOKUP($A$3,'G4-RH'!$A$6:$AM$500,5,FALSE)="",0,VLOOKUP($A$3,'G4-RH'!$A$6:$AM$500,5,FALSE))&")")),"NA") -> 63% (10587) | F16: =IFERROR((IF($C16="NA","NA",VLOOKUP($A$3,'G4-RH'!$A$6:$AM$500,7,FALSE))),"NA") -> 12.00645893 | G16: NA | H16: =IFERROR((IF($C16="NA","NA",VLOOKUP($A$3,'G4-RH'!$A$6:$AM$500,10,FALSE))),"NA") -> 14.25276385 | I16: NA | J16: =IFERROR((IF($C16="NA","NA",VLOOKUP($A$3,'G4-RH'!$A$6:$AM$500,13,FALSE))),"NA") -> 5.797570439 | K16: NA | L16: =IFERROR((IF($C16="NA","NA",VLOOKUP($A$3,'G4-RH'!$A$6:$AM$500,16,FALSE))),"NA") -> 2.716075692 | M16: NA
A17: Asian | B17: =IFERROR(VLOOKUP(TEXT($A$3,"0000"),MEM_A!$A$2:$O$501,8,FALSE),0) -> 309 | C17: =IFERROR((IF(OR(B17=0,B17="",B17="NA"),"NA",((IF(VLOOKUP($A$3,'G4-RA'!$A$6:$AM$500,3,FALSE)>=B17,"100% ("&VLOOKUP($A$3,'G4-RA'!$A$6:$AM$500,3,FALSE)&")",(ROUND((VLOOKUP($A$3,'G4-RA'!$A$6:$AM$500,3,FALSE)/B17*100),0))&"% ("&IF(VLOOKUP($A$3,'G4-RA'!$A$6:$AM$500,3,FALSE)="",0,VLOOKUP($A$3,'G4-RA'!$A$6:$AM$500,3,FALSE))&")"))))),"NA") -> 94% (291) | D17: =IFERROR((IF($C17="NA","NA",VLOOKUP($A$3,'G4-RA'!$A$6:$AM$500,4,FALSE))),"NA") -> 39.28453608 | E17: =IFERROR((IF($C17="NA","NA",ROUND(VLOOKUP($A$3,'G4-RA'!$A$6:$AM$500,6,FALSE),0)&"% ("&IF(VLOOKUP($A$3,'G4-RA'!$A$6:$AM$500,5,FALSE)="",0,VLOOKUP($A$3,'G4-RA'!$A$6:$AM$500,5,FALSE))&")")),"NA") -> 81% (235) | F17: =IFERROR((IF($C17="NA","NA",VLOOKUP($A$3,'G4-RA'!$A$6:$AM$500,7,FALSE))),"NA") -> 13.54158076 | G17: NA | H17: =IFERROR((IF($C17="NA","NA",VLOOKUP($A$3,'G4-RA'!$A$6:$AM$500,10,FALSE))),"NA") -> 15.95601375 | I17: NA | J17: =IFERROR((IF($C17="NA","NA",VLOOKUP($A$3,'G4-RA'!$A$6:$AM$500,13,FALSE))),"NA") -> 6.57766323 | K17: NA | L17: =IFERROR((IF($C17="NA","NA",VLOOKUP($A$3,'G4-RA'!$A$6:$AM$500,16,FALSE))),"NA") -> 3.232302405 | M17: NA
A18: Am. Indian | B18: =IFERROR(VLOOKUP(TEXT($A$3,"0000"),MEM_I!$A$2:$O$501,8,FALSE),0) -> 19 | C18: =IFERROR((IF(OR(B18=0,B18="",B18="NA"),"NA",((IF(VLOOKUP($A$3,'G4-RI'!$A$6:$AM$500,3,FALSE)>=B18,"100% ("&VLOOKUP($A$3,'G4-RI'!$A$6:$AM$500,3,FALSE)&")",(ROUND((VLOOKUP($A$3,'G4-RI'!$A$6:$AM$500,3,FALSE)/B18*100),0))&"% ("&IF(VLOOKUP($A$3,'G4-RI'!$A$6:$AM$500,3,FALSE)="",0,VLOOKUP($A$3,'G4-RI'!$A$6:$AM$500,3,FALSE))&")"))))),"NA") -> 100% (19) | D18: =IFERROR((IF($C18="NA","NA",VLOOKUP($A$3,'G4-RI'!$A$6:$AM$500,4,FALSE))),"NA") -> 39.05263158 | E18: =IFERROR((IF($C18="NA","NA",ROUND(VLOOKUP($A$3,'G4-RI'!$A$6:$AM$500,6,FALSE),0)&"% ("&IF(VLOOKUP($A$3,'G4-RI'!$A$6:$AM$500,5,FALSE)="",0,VLOOKUP($A$3,'G4-RI'!$A$6:$AM$500,5,FALSE))&")")),"NA") -> 95% (18) | F18: =IFERROR((IF($C18="NA","NA",VLOOKUP($A$3,'G4-RI'!$A$6:$AM$500,7,FALSE))),"NA") -> 13.36315789 | G18: NA | H18: =IFERROR((IF($C18="NA","NA",VLOOKUP($A$3,'G4-RI'!$A$6:$AM$500,10,FALSE))),"NA") -> 15.73157895 | I18: NA | J18: =IFERROR((IF($C18="NA","NA",VLOOKUP($A$3,'G4-RI'!$A$6:$AM$500,13,FALSE))),"NA") -> 6.847368421 | K18: NA | L18: =IFERROR((IF($C18="NA","NA",VLOOKUP($A$3,'G4-RI'!$A$6:$AM$500,16,FALSE))),"NA") -> 3.110526316 | M18: NA
A19: ED | B19: =IFERROR(VLOOKUP(TEXT($A$3,"0000"),MEM_ED!$A$2:$O$501,8,FALSE),0) -> 19411 | C19: =IFERROR((IF(OR(B19=0,B19="",B19="NA"),"NA",((IF(VLOOKUP($A$3,'G4-RED'!$A$6:$AM$500,3,FALSE)>=B19,"100% ("&VLOOKUP($A$3,'G4-RED'!$A$6:$AM$500,3,FALSE)&")",(ROUND((VLOOKUP($A$3,'G4-RED'!$A$6:$AM$500,3,FALSE)/B19*100),0))&"% ("&IF(VLOOKUP($A$3,'G4-RED'!$A$6:$AM$500,3,FALSE)="",0,VLOOKUP($A$3,'G4-RED'!$A$6:$AM$500,3,FALSE))&")"))))),"NA") -> 100% (19669) | D19: =IFERROR((IF($C19="NA","NA",VLOOKUP($A$3,'G4-RED'!$A$6:$AM$500,4,FALSE))),"NA") -> 33.29254665 | E19: =IFERROR((IF($C19="NA","NA",ROUND(VLOOKUP($A$3,'G4-RED'!$A$6:$AM$500,6,FALSE),0)&"% ("&IF(VLOOKUP($A$3,'G4-RED'!$A$6:$AM$500,5,FALSE)="",0,VLOOKUP($A$3,'G4-RED'!$A$6:$AM$500,5,FALSE))&")")),"NA") -> 56% (11076) | F19: =IFERROR((IF($C19="NA","NA",VLOOKUP($A$3,'G4-RED'!$A$6:$AM$500,7,FALSE))),"NA") -> 11.6393411 | G19: NA | H19: =IFERROR((IF($C19="NA","NA",VLOOKUP($A$3,'G4-RED'!$A$6:$AM$500,10,FALSE))),"NA") -> 13.55436474 | I19: NA | J19: =IFERROR((IF($C19="NA","NA",VLOOKUP($A$3,'G4-RED'!$A$6:$AM$500,13,FALSE))),"NA") -> 5.552732727 | K19: NA | L19: =IFERROR((IF($C19="NA","NA",VLOOKUP($A$3,'G4-RED'!$A$6:$AM$500,16,FALSE))),"NA") -> 2.544618435 | M19: NA
A20: ELL | B20: =IFERROR(VLOOKUP(TEXT($A$3,"0000"),MEM_ELL!$A$2:$O$501,8,FALSE),0) -> 10022 | C20: =IFERROR((IF(OR(B20=0,B20="",B20="NA"),"NA",((IF(VLOOKUP($A$3,'G4-RELL'!$A$6:$AM$500,3,FALSE)>=B20,"100% ("&VLOOKUP($A$3,'G4-RELL'!$A$6:$AM$500,3,FALSE)&")",(ROUND((VLOOKUP($A$3,'G4-RELL'!$A$6:$AM$500,3,FALSE)/B20*100),0))&"% ("&IF(VLOOKUP($A$3,'G4-RELL'!$A$6:$AM$500,3,FALSE)="",0,VLOOKUP($A$3,'G4-RELL'!$A$6:$AM$500,3,FALSE))&")"))))),"NA") -> 98% (9810) | D20: =IFERROR((IF($C20="NA","NA",VLOOKUP($A$3,'G4-RELL'!$A$6:$AM$500,4,FALSE))),"NA") -> 31.15616718 | E20: =IFERROR((IF($C20="NA","NA",ROUND(VLOOKUP($A$3,'G4-RELL'!$A$6:$AM$500,6,FALSE),0)&"% ("&IF(VLOOKUP($A$3,'G4-RELL'!$A$6:$AM$500,5,FALSE)="",0,VLOOKUP($A$3,'G4-RELL'!$A$6:$AM$500,5,FALSE))&")")),"NA") -> 48% (4710) | F20: =IFERROR((IF($C20="NA","NA",VLOOKUP($A$3,'G4-RELL'!$A$6:$AM$500,7,FALSE))),"NA") -> 10.86258919 | G20: NA | H20: =IFERROR((IF($C20="NA","NA",VLOOKUP($A$3,'G4-RELL'!$A$6:$AM$500,10,FALSE))),"NA") -> 12.83007136 | I20: NA | J20: =IFERROR((IF($C20="NA","NA",VLOOKUP($A$3,'G4-RELL'!$A$6:$AM$500,13,FALSE))),"NA") -> 5.112334353 | K20: NA | L20: =IFERROR((IF($C20="NA","NA",VLOOKUP($A$3,'G4-RELL'!$A$6:$AM$500,16,FALSE))),"NA") -> 2.351172273 | M20: NA
A21: SWD | B21: =IFERROR(VLOOKUP(TEXT($A$3,"0000"),MEM_SWD!$A$2:$O$501,8,FALSE),0) -> 2394 | C21: =IFERROR((IF(OR(B21=0,B21="",B21="NA"),"NA",((IF(VLOOKUP($A$3,'G4-RSWD'!$A$6:$AM$500,3,FALSE)>=B21,"100% ("&VLOOKUP($A$3,'G4-RSWD'!$A$6:$AM$500,3,FALSE)&")",(ROUND((VLOOKUP($A$3,'G4-RSWD'!$A$6:$AM$500,3,FALSE)/B21*100),0))&"% ("&IF(VLOOKUP($A$3,'G4-RSWD'!$A$6:$AM$500,3,FALSE)="",0,VLOOKUP($A$3,'G4-RSWD'!$A$6:$AM$500,3,FALSE))&")"))))),"NA") -> 98% (2337) | D21: =IFERROR((IF($C21="NA","NA",VLOOKUP($A$3,'G4-RSWD'!$A$6:$AM$500,4,FALSE))),"NA") -> 25.53782627 | E21: =IFERROR((IF($C21="NA","NA",ROUND(VLOOKUP($A$3,'G4-RSWD'!$A$6:$AM$500,6,FALSE),0)&"% ("&IF(VLOOKUP($A$3,'G4-RSWD'!$A$6:$AM$500,5,FALSE)="",0,VLOOKUP($A$3,'G4-RSWD'!$A$6:$AM$500,5,FALSE))&")")),"NA") -> 26% (600) | F21: =IFERROR((IF($C21="NA","NA",VLOOKUP($A$3,'G4-RSWD'!$A$6:$AM$500,7,FALSE))),"NA") -> 9.175395807 | G21: NA | H21: =IFERROR((IF($C21="NA","NA",VLOOKUP($A$3,'G4-RSWD'!$A$6:$AM$500,10,FALSE))),"NA") -> 10.2491656 | I21: NA | J21: =IFERROR((IF($C21="NA","NA",VLOOKUP($A$3,'G4-RSWD'!$A$6:$AM$500,13,FALSE))),"NA") -> 4.160162602 | K21: NA | L21: =IFERROR((IF($C21="NA","NA",VLOOKUP($A$3,'G4-RSWD'!$A$6:$AM$500,16,FALSE))),"NA") -> 1.964013693 | M21: NA
A22: Math - Grade 4
A23: Satisfactory Progress Cut Scores at 48% or above | B23: Total # of Students | C23: % of Students Tested | D23: ='G3-5 Matrix'!C13&" ["&'G3-5 Matrix'!C14&"]" -> Overall [40] | F23: ='G3-5 Matrix'!D13&" ["&'G3-5 Matrix'!D14&"]" -> Number: Operations & Problems [20] | H23: ='G3-5 Matrix'!E13&" ["&'G3-5 Matrix'!E14&"]" -> Number: Base Ten and Fractions [20] | J23: ='G3-5 Matrix'!F13&" ["&'G3-5 Matrix'!F14&"]" -> Geometry and Measurement [0]
D24: Average Score | E24: % Satisfactory | F24: Average Score | G24: % Satisfactory | H24: Average Score | I24: % Satisfactory | J24: Average Score | K24: % Satisfactory
A25: All students | B25: =IFERROR(VLOOKUP(TEXT($A$3,"0000"),Mem_All!$A$2:$O$501,8,FALSE),0) -> 25536 | C25: =IFERROR((IF(OR(B25=0,B25="",B25="NA"),"NA",((IF(VLOOKUP($A$3,'G4-MALL'!$A$6:$AM$500,3,FALSE)>=B25,"100% ("&VLOOKUP($A$3,'G4-MALL'!$A$6:$AM$500,3,FALSE)&")",(ROUND((VLOOKUP($A$3,'G4-MALL'!$A$6:$AM$500,3,FALSE)/B25*100),0))&"% ("&IF(VLOOKUP($A$3,'G4-MALL'!$A$6:$AM$500,3,FALSE)="",0,VLOOKUP($A$3,'G4-MALL'!$A$6:$AM$500,3,FALSE))&")"))))),"NA") -> 96% (24516) | D25: =IFERROR((IF($C25="NA","NA",VLOOKUP($A$3,'G4-MALL'!$A$6:$AM$500,4,FALSE))),"NA") -> 21.81740496 | E25: =IFERROR((IF($C25="NA","NA",ROUND(VLOOKUP($A$3,'G4-MALL'!$A$6:$AM$500,6,FALSE),0)&"% ("&IF(VLOOKUP($A$3,'G4-MALL'!$A$6:$AM$500,5,FALSE)="",0,VLOOKUP($A$3,'G4-MALL'!$A$6:$AM$500,5,FALSE))&")")),"NA") -> 62% (15095) | F25: =IFERROR((IF($C25="NA","NA",VLOOKUP($A$3,'G4-MALL'!$A$6:$AM$500,7,FALSE))),"NA") -> 11.24025534 | G25: NA | H25: =IFERROR((IF($C25="NA","NA",VLOOKUP($A$3,'G4-MALL'!$A$6:$AM$500,10,FALSE))),"NA") -> 10.57012155 | I25: NA | J25: NT | K25: NT
A26: FCAT Level 1 | B26: =IFERROR(VLOOKUP(TEXT($A$3,"0000"),MEM_ML1!$A$2:$O$501,5,FALSE),0) -> 3331 | C26: =IFERROR((IF(OR(B26=0,B26="",B26="NA"),"NA",((IF(VLOOKUP($A$3,'G4-ML1'!$A$6:$AM$500,3,FALSE)>=B26,"100% ("&VLOOKUP($A$3,'G4-ML1'!$A$6:$AM$500,3,FALSE)&")",(ROUND((VLOOKUP($A$3,'G4-ML1'!$A$6:$AM$500,3,FALSE)/B26*100),0))&"% ("&IF(VLOOKUP($A$3,'G4-ML1'!$A$6:$AM$500,3,FALSE)="",0,VLOOKUP($A$3,'G4-ML1'!$A$6:$AM$500,3,FALSE))&")"))))),"NA") -> 96% (3201) | D26: =IFERROR((IF($C26="NA","NA",VLOOKUP($A$3,'G4-ML1'!$A$6:$AM$500,4,FALSE))),"NA") -> 13.50877851 | E26: =IFERROR((IF($C26="NA","NA",ROUND(VLOOKUP($A$3,'G4-ML1'!$A$6:$AM$500,6,FALSE),0)&"% ("&IF(VLOOKUP($A$3,'G4-ML1'!$A$6:$AM$500,5,FALSE)="",0,VLOOKUP($A$3,'G4-ML1'!$A$6:$AM$500,5,FALSE))&")")),"NA") -> 14% (460) | F26: =IFERROR((IF($C26="NA","NA",VLOOKUP($A$3,'G4-ML1'!$A$6:$AM$500,7,FALSE))),"NA") -> 7.367322712 | G26: NA | H26: =IFERROR((IF($C26="NA","NA",VLOOKUP($A$3,'G4-ML1'!$A$6:$AM$500,10,FALSE))),"NA") -> 6.141549516 | I26: NA | J26: NT | K26: NT
A27: FCAT Level 2 | B27: =IFERROR(VLOOKUP(TEXT($A$3,"0000"),MEM_ML2!$A$2:$O$501,5,FALSE),0) -> 5373 | C27: =IFERROR((IF(OR(B27=0,B27="",B27="NA"),"NA",((IF(VLOOKUP($A$3,'G4-ML2'!$A$6:$AM$500,3,FALSE)>=B27,"100% ("&VLOOKUP($A$3,'G4-ML2'!$A$6:$AM$500,3,FALSE)&")",(ROUND((VLOOKUP($A$3,'G4-ML2'!$A$6:$AM$500,3,FALSE)/B27*100),0))&"% ("&IF(VLOOKUP($A$3,'G4-ML2'!$A$6:$AM$500,3,FALSE)="",0,VLOOKUP($A$3,'G4-ML2'!$A$6:$AM$500,3,FALSE))&")"))))),"NA") -> 96% (5172) | D27: =IFERROR((IF($C27="NA","NA",VLOOKUP($A$3,'G4-ML2'!$A$6:$AM$500,4,FALSE))),"NA") -> 17.3779389 | E27: =IFERROR((IF($C27="NA","NA",ROUND(VLOOKUP($A$3,'G4-ML2'!$A$6:$AM$500,6,FALSE),0)&"% ("&IF(VLOOKUP($A$3,'G4-ML2'!$A$6:$AM$500,5,FALSE)="",0,VLOOKUP($A$3,'G4-ML2'!$A$6:$AM$500,5,FALSE))&")")),"NA") -> 37% (1931) | F27: =IFERROR((IF($C27="NA","NA",VLOOKUP($A$3,'G4-ML2'!$A$6:$AM$500,7,FALSE))),"NA") -> 9.34433488 | G27: NA | H27: =IFERROR((IF($C27="NA","NA",VLOOKUP($A$3,'G4-ML2'!$A$6:$AM$500,10,FALSE))),"NA") -> 8.037645012 | I27: NA | J27: NT | K27: NT
A28: FCAT Level 3 | B28: =IFERROR(VLOOKUP(TEXT($A$3,"0000"),MEM_ML3!$A$2:$O$501,5,FALSE),0) -> 7673 | C28: =IFERROR((IF(OR(B28=0,B28="",B28="NA"),"NA",((IF(VLOOKUP($A$3,'G4-ML3'!$A$6:$AM$500,3,FALSE)>=B28,"100% ("&VLOOKUP($A$3,'G4-ML3'!$A$6:$AM$500,3,FALSE)&")",(ROUND((VLOOKUP($A$3,'G4-ML3'!$A$6:$AM$500,3,FALSE)/B28*100),0))&"% ("&IF(VLOOKUP($A$3,'G4-ML3'!$A$6:$AM$500,3,FALSE)="",0,VLOOKUP($A$3,'G4-ML3'!$A$6:$AM$500,3,FALSE))&")"))))),"NA") -> 96% (7370) | D28: =IFERROR((IF($C28="NA","NA",VLOOKUP($A$3,'G4-ML3'!$A$6:$AM$500,4,FALSE))),"NA") -> 22.04226594 | E28: =IFERROR((IF($C28="NA","NA",ROUND(VLOOKUP($A$3,'G4-ML3'!$A$6:$AM$500,6,FALSE),0)&"% ("&IF(VLOOKUP($A$3,'G4-ML3'!$A$6:$AM$500,5,FALSE)="",0,VLOOKUP($A$3,'G4-ML3'!$A$6:$AM$500,5,FALSE))&")")),"NA") -> 70% (5168) | F28: =IFERROR((IF($C28="NA","NA",VLOOKUP($A$3,'G4-ML3'!$A$6:$AM$500,7,FALSE))),"NA") -> 11.32720488 | G28: NA | H28: =IFERROR((IF($C28="NA","NA",VLOOKUP($A$3,'G4-ML3'!$A$6:$AM$500,10,FALSE))),"NA") -> 10.70930801 | I28: NA | J28: NT | K28: NT
A29: FCAT Level 4 | B29: =IFERROR(VLOOKUP(TEXT($A$3,"0000"),MEM_ML4!$A$2:$O$501,5,FALSE),0) -> 4920 | C29: =IFERROR((IF(OR(B29=0,B29="",B29="NA"),"NA",((IF(VLOOKUP($A$3,'G4-ML4'!$A$6:$AM$500,3,FALSE)>=B29,"100% ("&VLOOKUP($A$3,'G4-ML4'!$A$6:$AM$500,3,FALSE)&")",(ROUND((VLOOKUP($A$3,'G4-ML4'!$A$6:$AM$500,3,FALSE)/B29*100),0))&"% ("&IF(VLOOKUP($A$3,'G4-ML4'!$A$6:$AM$500,3,FALSE)="",0,VLOOKUP($A$3,'G4-ML4'!$A$6:$AM$500,3,FALSE))&")"))))),"NA") -> 97% (4766) | D29: =IFERROR((IF($C29="NA","NA",VLOOKUP($A$3,'G4-ML4'!$A$6:$AM$500,4,FALSE))),"NA") -> 27.28843894 | E29: =IFERROR((IF($C29="NA","NA",ROUND(VLOOKUP($A$3,'G4-ML4'!$A$6:$AM$500,6,FALSE),0)&"% ("&IF(VLOOKUP($A$3,'G4-ML4'!$A$6:$AM$500,5,FALSE)="",0,VLOOKUP($A$3,'G4-ML4'!$A$6:$AM$500,5,FALSE))&")")),"NA") -> 92% (4369) | F29: =IFERROR((IF($C29="NA","NA",VLOOKUP($A$3,'G4-ML4'!$A$6:$AM$500,7,FALSE))),"NA") -> 13.66712128 | G29: NA | H29: =IFERROR((IF($C29="NA","NA",VLOOKUP($A$3,'G4-ML4'!$A$6:$AM$500,10,FALSE))),"NA") -> 13.62878724 | I29: NA | J29: NT | K29: NT
A30: FCAT Level 5 | B30: =IFERROR(VLOOKUP(TEXT($A$3,"0000"),MEM_ML5!$A$3:$M$501,5,FALSE),0) -> 2666 | C30: =IFERROR((IF(OR(B30=0,B30="",B30="NA"),"NA",((IF(VLOOKUP($A$3,'G4-ML5'!$A$6:$AM$500,3,FALSE)>=B30,"100% ("&VLOOKUP($A$3,'G4-ML5'!$A$6:$AM$500,3,FALSE)&")",(ROUND((VLOOKUP($A$3,'G4-ML5'!$A$6:$AM$500,3,FALSE)/B30*100),0))&"% ("&IF(VLOOKUP($A$3,'G4-ML5'!$A$6:$AM$500,3,FALSE)="",0,VLOOKUP($A$3,'G4-ML5'!$A$6:$AM$500,3,FALSE))&")"))))),"NA") -> 97% (2597) | D30: =IFERROR((IF($C30="NA","NA",VLOOKUP($A$3,'G4-ML5'!$A$6:$AM$500,4,FALSE))),"NA") -> 32.02117828 | E30: =IFERROR((IF($C30="NA","NA",ROUND(VLOOKUP($A$3,'G4-ML5'!$A$6:$AM$500,6,FALSE),0)&"% ("&IF(VLOOKUP($A$3,'G4-ML5'!$A$6:$AM$500,5,FALSE)="",0,VLOOKUP($A$3,'G4-ML5'!$A$6:$AM$500,5,FALSE))&")")),"NA") -> 99% (2562) | F30: =IFERROR((IF($C30="NA","NA",VLOOKUP($A$3,'G4-ML5'!$A$6:$AM$500,7,FALSE))),"NA") -> 15.97154409 | G30: NA | H30: =IFERROR((IF($C30="NA","NA",VLOOKUP($A$3,'G4-ML5'!$A$6:$AM$500,10,FALSE))),"NA") -> 16.04358876 | I30: NA | J30: NT | K30: NT
A31: White | B31: =IFERROR(VLOOKUP(TEXT($A$3,"0000"),MEM_W!$A$2:$O$501,8,FALSE),0) -> 2155 | C31: =IFERROR((IF(OR(B31=0,B31="",B31="NA"),"NA",((IF(VLOOKUP($A$3,'G4-MW'!$A$6:$AM$500,3,FALSE)>=B31,"100% ("&VLOOKUP($A$3,'G4-MW'!$A$6:$AM$500,3,FALSE)&")",(ROUND((VLOOKUP($A$3,'G4-MW'!$A$6:$AM$500,3,FALSE)/B31*100),0))&"% ("&IF(VLOOKUP($A$3,'G4-MW'!$A$6:$AM$500,3,FALSE)="",0,VLOOKUP($A$3,'G4-MW'!$A$6:$AM$500,3,FALSE))&")"))))),"NA") -> 95% (2048) | D31: =IFERROR((IF($C31="NA","NA",VLOOKUP($A$3,'G4-MW'!$A$6:$AM$500,4,FALSE))),"NA") -> 24.84355469 | E31: =IFERROR((IF($C31="NA","NA",ROUND(VLOOKUP($A$3,'G4-MW'!$A$6:$AM$500,6,FALSE),0)&"% ("&IF(VLOOKUP($A$3,'G4-MW'!$A$6:$AM$500,5,FALSE)="",0,VLOOKUP($A$3,'G4-MW'!$A$6:$AM$500,5,FALSE))&")")),"NA") -> 75% (1534) | F31: =IFERROR((IF($C31="NA","NA",VLOOKUP($A$3,'G4-MW'!$A$6:$AM$500,7,FALSE))),"NA") -> 12.81933594 | G31: NA | H31: =IFERROR((IF($C31="NA","NA",VLOOKUP($A$3,'G4-MW'!$A$6:$AM$500,10,FALSE))),"NA") -> 12.0265625 | I31: NA | J31: NT | K31: NT
A32: Black | B32: =IFERROR(VLOOKUP(TEXT($A$3,"0000"),MEM_B!$A$2:$O$501,8,FALSE),0) -> 5633 | C32: =IFERROR((IF(OR(B32=0,B32="",B32="NA"),"NA",((IF(VLOOKUP($A$3,'G4-MB'!$A$6:$AM$500,3,FALSE)>=B32,"100% ("&VLOOKUP($A$3,'G4-MB'!$A$6:$AM$500,3,FALSE)&")",(ROUND((VLOOKUP($A$3,'G4-MB'!$A$6:$AM$500,3,FALSE)/B32*100),0))&"% ("&IF(VLOOKUP($A$3,'G4-MB'!$A$6:$AM$500,3,FALSE)="",0,VLOOKUP($A$3,'G4-MB'!$A$6:$AM$500,3,FALSE))&")"))))),"NA") -> 96% (5422) | D32: =IFERROR((IF($C32="NA","NA",VLOOKUP($A$3,'G4-MB'!$A$6:$AM$500,4,FALSE))),"NA") -> 20.28753228 | E32: =IFERROR((IF($C32="NA","NA",ROUND(VLOOKUP($A$3,'G4-MB'!$A$6:$AM$500,6,FALSE),0)&"% ("&IF(VLOOKUP($A$3,'G4-MB'!$A$6:$AM$500,5,FALSE)="",0,VLOOKUP($A$3,'G4-MB'!$A$6:$AM$500,5,FALSE))&")")),"NA") -> 54% (2951) | F32: =IFERROR((IF($C32="NA","NA",VLOOKUP($A$3,'G4-MB'!$A$6:$AM$500,7,FALSE))),"NA") -> 10.34264109 | G32: NA | H32: =IFERROR((IF($C32="NA","NA",VLOOKUP($A$3,'G4-MB'!$A$6:$AM$500,10,FALSE))),"NA") -> 9.94323128 | I32: NA | J32: NT | K32: NT
A33: Hispanic | B33: =IFERROR(VLOOKUP(TEXT($A$3,"0000"),MEM_H!$A$2:$O$501,8,FALSE),0) -> 17310 | C33: =IFERROR((IF(OR(B33=0,B33="",B33="NA"),"NA",((IF(VLOOKUP($A$3,'G4-MH'!$A$6:$AM$500,3,FALSE)>=B33,"100% ("&VLOOKUP($A$3,'G4-MH'!$A$6:$AM$500,3,FALSE)&")",(ROUND((VLOOKUP($A$3,'G4-MH'!$A$6:$AM$500,3,FALSE)/B33*100),0))&"% ("&IF(VLOOKUP($A$3,'G4-MH'!$A$6:$AM$500,3,FALSE)="",0,VLOOKUP($A$3,'G4-MH'!$A$6:$AM$500,3,FALSE))&")"))))),"NA") -> 96% (16635) | D33: =IFERROR((IF($C33="NA","NA",VLOOKUP($A$3,'G4-MH'!$A$6:$AM$500,4,FALSE))),"NA") -> 21.84270514 | E33: =IFERROR((IF($C33="NA","NA",ROUND(VLOOKUP($A$3,'G4-MH'!$A$6:$AM$500,6,FALSE),0)&"% ("&IF(VLOOKUP($A$3,'G4-MH'!$A$6:$AM$500,5,FALSE)="",0,VLOOKUP($A$3,'G4-MH'!$A$6:$AM$500,5,FALSE))&")")),"NA") -> 62% (10297) | F33: =IFERROR((IF($C33="NA","NA",VLOOKUP($A$3,'G4-MH'!$A$6:$AM$500,7,FALSE))),"NA") -> 11.29979561 | G33: NA | H33: =IFERROR((IF($C33="NA","NA",VLOOKUP($A$3,'G4-MH'!$A$6:$AM$500,10,FALSE))),"NA") -> 10.55049594 | I33: NA | J33: NT | K33: NT
A34: Asian | B34: =IFERROR(VLOOKUP(TEXT($A$3,"0000"),MEM_A!$A$2:$O$501,8,FALSE),0) -> 309 | C34: =IFERROR((IF(OR(B34=0,B34="",B34="NA"),"NA",((IF(VLOOKUP($A$3,'G4-MA'!$A$6:$AM$500,3,FALSE)>=B34,"100% ("&VLOOKUP($A$3,'G4-MA'!$A$6:$AM$500,3,FALSE)&")",(ROUND((VLOOKUP($A$3,'G4-MA'!$A$6:$AM$500,3,FALSE)/B34*100),0))&"% ("&IF(VLOOKUP($A$3,'G4-MA'!$A$6:$AM$500,3,FALSE)="",0,VLOOKUP($A$3,'G4-MA'!$A$6:$AM$500,3,FALSE))&")"))))),"NA") -> 93% (288) | D34: =IFERROR((IF($C34="NA","NA",VLOOKUP($A$3,'G4-MA'!$A$6:$AM$500,4,FALSE))),"NA") -> 26.89965278 | E34: =IFERROR((IF($C34="NA","NA",ROUND(VLOOKUP($A$3,'G4-MA'!$A$6:$AM$500,6,FALSE),0)&"% ("&IF(VLOOKUP($A$3,'G4-MA'!$A$6:$AM$500,5,FALSE)="",0,VLOOKUP($A$3,'G4-MA'!$A$6:$AM$500,5,FALSE))&")")),"NA") -> 81% (232) | F34: =IFERROR((IF($C34="NA","NA",VLOOKUP($A$3,'G4-MA'!$A$6:$AM$500,7,FALSE))),"NA") -> 13.53993056 | G34: NA | H34: =IFERROR((IF($C34="NA","NA",VLOOKUP($A$3,'G4-MA'!$A$6:$AM$500,10,FALSE))),"NA") -> 13.36979167 | I34: NA | J34: NT | K34: NT
A35: Am. Indian | B35: =IFERROR(VLOOKUP(TEXT($A$3,"0000"),MEM_I!$A$2:$O$501,8,FALSE),0) -> 19 | C35: =IFERROR((IF(OR(B35=0,B35="",B35="NA"),"NA",((IF(VLOOKUP($A$3,'G4-MI'!$A$6:$AM$500,3,FALSE)>=B35,"100% ("&VLOOKUP($A$3,'G4-MI'!$A$6:$AM$500,3,FALSE)&")",(ROUND((VLOOKUP($A$3,'G4-MI'!$A$6:$AM$500,3,FALSE)/B35*100),0))&"% ("&IF(VLOOKUP($A$3,'G4-MI'!$A$6:$AM$500,3,FALSE)="",0,VLOOKUP($A$3,'G4-MI'!$A$6:$AM$500,3,FALSE))&")"))))),"NA") -> 89% (17) | D35: =IFERROR((IF($C35="NA","NA",VLOOKUP($A$3,'G4-MI'!$A$6:$AM$500,4,FALSE))),"NA") -> 23.46470588 | E35: =IFERROR((IF($C35="NA","NA",ROUND(VLOOKUP($A$3,'G4-MI'!$A$6:$AM$500,6,FALSE),0)&"% ("&IF(VLOOKUP($A$3,'G4-MI'!$A$6:$AM$500,5,FALSE)="",0,VLOOKUP($A$3,'G4-MI'!$A$6:$AM$500,5,FALSE))&")")),"NA") -> 65% (11) | F35: =IFERROR((IF($C35="NA","NA",VLOOKUP($A$3,'G4-MI'!$A$6:$AM$500,7,FALSE))),"NA") -> 12.00588235 | G35: NA | H35: =IFERROR((IF($C35="NA","NA",VLOOKUP($A$3,'G4-MI'!$A$6:$AM$500,10,FALSE))),"NA") -> 11.47647059 | I35: NA | J35: NT | K35: NT
A36: ED | B36: =IFERROR(VLOOKUP(TEXT($A$3,"0000"),MEM_ED!$A$2:$O$501,8,FALSE),0) -> 19411 | C36: =IFERROR((IF(OR(B36=0,B36="",B36="NA"),"NA",((IF(VLOOKUP($A$3,'G4-MED'!$A$6:$AM$500,3,FALSE)>=B36,"100% ("&VLOOKUP($A$3,'G4-MED'!$A$6:$AM$500,3,FALSE)&")",(ROUND((VLOOKUP($A$3,'G4-MED'!$A$6:$AM$500,3,FALSE)/B36*100),0))&"% ("&IF(VLOOKUP($A$3,'G4-MED'!$A$6:$AM$500,3,FALSE)="",0,VLOOKUP($A$3,'G4-MED'!$A$6:$AM$500,3,FALSE))&")"))))),"NA") -> 100% (19537) | D36: =IFERROR((IF($C36="NA","NA",VLOOKUP($A$3,'G4-MED'!$A$6:$AM$500,4,FALSE))),"NA") -> 20.93683268 | E36: =IFERROR((IF($C36="NA","NA",ROUND(VLOOKUP($A$3,'G4-MED'!$A$6:$AM$500,6,FALSE),0)&"% ("&IF(VLOOKUP($A$3,'G4-MED'!$A$6:$AM$500,5,FALSE)="",0,VLOOKUP($A$3,'G4-MED'!$A$6:$AM$500,5,FALSE))&")")),"NA") -> 58% (11253) | F36: =IFERROR((IF($C36="NA","NA",VLOOKUP($A$3,'G4-MED'!$A$6:$AM$500,7,FALSE))),"NA") -> 10.80238522 | G36: NA | H36: =IFERROR((IF($C36="NA","NA",VLOOKUP($A$3,'G4-MED'!$A$6:$AM$500,10,FALSE))),"NA") -> 10.14105031 | I36: NA | J36: NT | K36: NT
A37: ELL | B37: =IFERROR(VLOOKUP(TEXT($A$3,"0000"),MEM_ELL!$A$2:$O$501,8,FALSE),0) -> 10022 | C37: =IFERROR((IF(OR(B37=0,B37="",B37="NA"),"NA",((IF(VLOOKUP($A$3,'G4-MELL'!$A$6:$AM$500,3,FALSE)>=B37,"100% ("&VLOOKUP($A$3,'G4-MELL'!$A$6:$AM$500,3,FALSE)&")",(ROUND((VLOOKUP($A$3,'G4-MELL'!$A$6:$AM$500,3,FALSE)/B37*100),0))&"% ("&IF(VLOOKUP($A$3,'G4-MELL'!$A$6:$AM$500,3,FALSE)="",0,VLOOKUP($A$3,'G4-MELL'!$A$6:$AM$500,3,FALSE))&")"))))),"NA") -> 97% (9757) | D37: =IFERROR((IF($C37="NA","NA",VLOOKUP($A$3,'G4-MELL'!$A$6:$AM$500,4,FALSE))),"NA") -> 19.60879369 | E37: =IFERROR((IF($C37="NA","NA",ROUND(VLOOKUP($A$3,'G4-MELL'!$A$6:$AM$500,6,FALSE),0)&"% ("&IF(VLOOKUP($A$3,'G4-MELL'!$A$6:$AM$500,5,FALSE)="",0,VLOOKUP($A$3,'G4-MELL'!$A$6:$AM$500,5,FALSE))&")")),"NA") -> 51% (4975) | F37: =IFERROR((IF($C37="NA","NA",VLOOKUP($A$3,'G4-MELL'!$A$6:$AM$500,7,FALSE))),"NA") -> 10.18458543 | G37: NA | H37: =IFERROR((IF($C37="NA","NA",VLOOKUP($A$3,'G4-MELL'!$A$6:$AM$500,10,FALSE))),"NA") -> 9.424208261 | I37: NA | J37: NT | K37: NT
A38: SWD | B38: =IFERROR(VLOOKUP(TEXT($A$3,"0000"),MEM_SWD!$A$2:$O$501,8,FALSE),0) -> 2394 | C38: =IFERROR((IF(OR(B38=0,B38="",B38="NA"),"NA",((IF(VLOOKUP($A$3,'G4-MSWD'!$A$6:$AM$500,3,FALSE)>=B38,"100% ("&VLOOKUP($A$3,'G4-MSWD'!$A$6:$AM$500,3,FALSE)&")",(ROUND((VLOOKUP($A$3,'G4-MSWD'!$A$6:$AM$500,3,FALSE)/B38*100),0))&"% ("&IF(VLOOKUP($A$3,'G4-MSWD'!$A$6:$AM$500,3,FALSE)="",0,VLOOKUP($A$3,'G4-MSWD'!$A$6:$AM$500,3,FALSE))&")"))))),"NA") -> 97% (2314) | D38: =IFERROR((IF($C38="NA","NA",VLOOKUP($A$3,'G4-MSWD'!$A$6:$AM$500,4,FALSE))),"NA") -> 16.47653414 | E38: =IFERROR((IF($C38="NA","NA",ROUND(VLOOKUP($A$3,'G4-MSWD'!$A$6:$AM$500,6,FALSE),0)&"% ("&IF(VLOOKUP($A$3,'G4-MSWD'!$A$6:$AM$500,5,FALSE)="",0,VLOOKUP($A$3,'G4-MSWD'!$A$6:$AM$500,5,FALSE))&")")),"NA") -> 33% (774) | F38: =IFERROR((IF($C38="NA","NA",VLOOKUP($A$3,'G4-MSWD'!$A$6:$AM$500,7,FALSE))),"NA") -> 8.745808124 | G38: NA | H38: =IFERROR((IF($C38="NA","NA",VLOOKUP($A$3,'G4-MSWD'!$A$6:$AM$500,10,FALSE))),"NA") -> 7.733491789 | I38: NA | J38: NT | K38: NT
A39: District Writing Midyear, Grade 4 | P39: Writing Grade 4
A40: Level of Proficiency at 3 or above | B40: Total # of Students | C40: % of Students Tested (Max. of the two prompts) | D40: Combined Prompts (Weighted Values) | H40: Expository | J40: Narrative | P40: =H40 -> Expository | Q40: =J40 -> Narrative
D41: Average Score | E41: % at 3.0 | F41: % at or above 4.0 | H41: Average Score | I41: % Proficient | J41: Average Score | K41: % Proficient | P41: Number Tested | Q41: Number Tested
A42: All students | B42: =IFERROR(VLOOKUP(TEXT($A$3,"0000"),Mem_All!$A$2:$O$500,8,FALSE),0) -> 25536 | C42: =IF(OR(B42=0,B42="",B42="NA"),"NA",IF(VLOOKUP($A$3,'G4-WALL'!$A$6:$Z$500,3,FALSE)>B42,"100% ("&VLOOKUP($A$3,'G4-WALL'!$A$6:$Z$500,3,FALSE)&")",ROUND(VLOOKUP($A$3,'G4-WALL'!$A$6:$Z$500,3,FALSE)/B42*100,0)&"%("&VLOOKUP($A$3,'G4-WALL'!$A$6:$Z$500,3,FALSE)&")")) ->  | D42: =IFERROR((IF($C42="NA","NA",VLOOKUP($A$3,'G4-WALL'!$A$6:$Z$500,4,FALSE))),"NA") -> NA | E42: =IF($D42="NA","NA",ROUND(VLOOKUP($A$3,'G4-WALL'!$A$6:$Z$500,6,FALSE),0)&"% ("&VLOOKUP($A$3,'G4-WALL'!$A$6:$Z$500,5,FALSE)&")") -> NA | F42: =IF($D42="NA","NA",ROUND(VLOOKUP($A$3,'G4-WALL'!$A$6:$Z$500,8,FALSE),0)&"% ("&VLOOKUP($A$3,'G4-WALL'!$A$6:$Z$500,7,FALSE)&")") -> NA | H42: =IFERROR(IF(VLOOKUP($A$3,'G4-WALL'!$A$6:$Z$500,9,FALSE)=0,"NA",VLOOKUP($A$3,'G4-WALL'!$A$6:$Z$500,10,FALSE)),"NA") -> NA | I42: =IFERROR(IF(H42="NA","NA",VLOOKUP($A$3,'G4-WALL'!$A$6:$Z$500,16,FALSE)&"% ("&VLOOKUP($A$3,'G4-WALL'!$A$6:$Z$500,12,FALSE)&")"),"") -> NA | J42: =IFERROR(IF(VLOOKUP($A$3,'G4-WALL'!$A$6:$Z$500,17,FALSE)=0,"NA",VLOOKUP($A$3,'G4-WALL'!$A$6:$Z$500,18,FALSE)),"NA") -> NA | K42: =IFERROR(IF(J42="NA","NA",VLOOKUP($A$3,'G4-WALL'!$A$6:$Z$500,24,FALSE)&"% ("&VLOOKUP($A$3,'G4-WALL'!$A$6:$Z$500,20,FALSE)&")"),"") -> NA | P42: =IFERROR(IF(VLOOKUP($A$3,'G4-WALL'!$A$6:$Z$500,9,FALSE)="","0",VLOOKUP($A$3,'G4-WALL'!$A$6:$Z$500,9,FALSE)),"Not Test") -> Not Test | Q42: =IFERROR(IF(VLOOKUP($A$3,'G4-WALL'!$A$6:$Z$500,17,FALSE)="","0",VLOOKUP($A$3,'G4-WALL'!$A$6:$Z$500,17,FALSE)),"Not Test") -> Not Test
A43: White | B43: =IFERROR(VLOOKUP(TEXT($A$3,"0000"),MEM_W!$A$2:$O$500,8,FALSE),0) -> 2155 | C43: =IF(OR(B43=0,B43="",B43="NA"),"NA",IF(VLOOKUP($A$3,'G4-WW'!$A$6:$Z$500,3,FALSE)>B43,"100% ("&VLOOKUP($A$3,'G4-WW'!$A$6:$Z$500,3,FALSE)&")",ROUND(VLOOKUP($A$3,'G4-WW'!$A$6:$Z$500,3,FALSE)/B43*100,0)&"%("&VLOOKUP($A$3,'G4-WW'!$A$6:$Z$500,3,FALSE)&")")) ->  | D43: =IFERROR((IF($C43="NA","NA",VLOOKUP($A$3,'G4-WW'!$A$6:$Z$500,4,FALSE))),"NA") -> NA | E43: =IF($D43="NA","NA",ROUND(VLOOKUP($A$3,'G4-WW'!$A$6:$Z$500,6,FALSE),0)&"% ("&VLOOKUP($A$3,'G4-WW'!$A$6:$Z$500,5,FALSE)&")") -> NA | F43: =IF($D43="NA","NA",ROUND(VLOOKUP($A$3,'G4-WW'!$A$6:$Z$500,8,FALSE),0)&"% ("&VLOOKUP($A$3,'G4-WW'!$A$6:$Z$500,7,FALSE)&")") -> NA | H43: =IFERROR(IF(VLOOKUP($A$3,'G4-WW'!$A$6:$Z$500,9,FALSE)=0,"NA",VLOOKUP($A$3,'G4-WW'!$A$6:$Z$500,10,FALSE)),"NA") -> NA | I43: =IFERROR(IF(H43="NA","NA",VLOOKUP($A$3,'G4-WW'!$A$6:$Z$500,16,FALSE)&"% ("&VLOOKUP($A$3,'G4-WW'!$A$6:$Z$500,12,FALSE)&")"),"") -> NA | J43: =IFERROR(IF(VLOOKUP($A$3,'G4-WW'!$A$6:$Z$500,17,FALSE)=0,"NA",VLOOKUP($A$3,'G4-WW'!$A$6:$Z$500,18,FALSE)),"NA") -> NA | K43: =IFERROR(IF(J43="NA","NA",VLOOKUP($A$3,'G4-WW'!$A$6:$Z$500,24,FALSE)&"% ("&VLOOKUP($A$3,'G4-WW'!$A$6:$Z$500,20,FALSE)&")"),"") -> NA | P43: =IFERROR(IF(VLOOKUP($A$3,'G4-WW'!$A$6:$Z$500,9,FALSE)="","0",VLOOKUP($A$3,'G4-WW'!$A$6:$Z$500,9,FALSE)),"Not Test") -> Not Test | Q43: =IFERROR(IF(VLOOKUP($A$3,'G4-WW'!$A$6:$Z$500,17,FALSE)="","0",VLOOKUP($A$3,'G4-WW'!$A$6:$Z$500,17,FALSE)),"Not Test") -> Not Test
A44: Black | B44: =IFERROR(VLOOKUP(TEXT($A$3,"0000"),MEM_B!$A$2:$O$500,8,FALSE),0) -> 5633 | C44: =IF(OR(B44=0,B44="",B44="NA"),"NA",IF(VLOOKUP($A$3,'G4-WB'!$A$6:$Z$500,3,FALSE)>B44,"100% ("&VLOOKUP($A$3,'G4-WB'!$A$6:$Z$500,3,FALSE)&")",ROUND(VLOOKUP($A$3,'G4-WB'!$A$6:$Z$500,3,FALSE)/B44*100,0)&"%("&VLOOKUP($A$3,'G4-WB'!$A$6:$Z$500,3,FALSE)&")")) ->  | D44: =IFERROR((IF($C44="NA","NA",VLOOKUP($A$3,'G4-WB'!$A$6:$Z$500,4,FALSE))),"NA") -> NA | E44: =IF($D44="NA","NA",ROUND(VLOOKUP($A$3,'G4-WB'!$A$6:$Z$500,6,FALSE),0)&"% ("&VLOOKUP($A$3,'G4-WB'!$A$6:$Z$500,5,FALSE)&")") -> NA | F44: =IF($D44="NA","NA",ROUND(VLOOKUP($A$3,'G4-WB'!$A$6:$Z$500,8,FALSE),0)&"% ("&VLOOKUP($A$3,'G4-WB'!$A$6:$Z$500,7,FALSE)&")") -> NA | H44: =IFERROR(IF(VLOOKUP($A$3,'G4-WB'!$A$6:$Z$500,9,FALSE)=0,"NA",VLOOKUP($A$3,'G4-WB'!$A$6:$Z$500,10,FALSE)),"NA") -> NA | I44: =IFERROR(IF(H44="NA","NA",VLOOKUP($A$3,'G4-WB'!$A$6:$Z$500,16,FALSE)&"% ("&VLOOKUP($A$3,'G4-WB'!$A$6:$Z$500,12,FALSE)&")"),"") -> NA | J44: =IFERROR(IF(VLOOKUP($A$3,'G4-WB'!$A$6:$Z$500,17,FALSE)=0,"NA",VLOOKUP($A$3,'G4-WB'!$A$6:$Z$500,18,FALSE)),"NA") -> NA | K44: =IFERROR(IF(J44="NA","NA",VLOOKUP($A$3,'G4-WB'!$A$6:$Z$500,24,FALSE)&"% ("&VLOOKUP($A$3,'G4-WB'!$A$6:$Z$500,20,FALSE)&")"),"") -> NA | P44: =IFERROR(IF(VLOOKUP($A$3,'G4-WB'!$A$6:$Z$500,9,FALSE)="","0",VLOOKUP($A$3,'G4-WB'!$A$6:$Z$500,9,FALSE)),"Not Test") -> Not Test | Q44: =IFERROR(IF(VLOOKUP($A$3,'G4-WB'!$A$6:$Z$500,17,FALSE)="","0",VLOOKUP($A$3,'G4-WB'!$A$6:$Z$500,17,FALSE)),"Not Test") -> Not Test
A45: Hispanic | B45: =IFERROR(VLOOKUP(TEXT($A$3,"0000"),MEM_H!$A$2:$O$500,8,FALSE),0) -> 17310 | C45: =IF(OR(B45=0,B45="",B45="NA"),"NA",IF(VLOOKUP($A$3,'G4-WH'!$A$6:$Z$500,3,FALSE)>B45,"100% ("&VLOOKUP($A$3,'G4-WH'!$A$6:$Z$500,3,FALSE)&")",ROUND(VLOOKUP($A$3,'G4-WH'!$A$6:$Z$500,3,FALSE)/B45*100,0)&"%("&VLOOKUP($A$3,'G4-WH'!$A$6:$Z$500,3,FALSE)&")")) ->  | D45: =IFERROR((IF($C45="NA","NA",VLOOKUP($A$3,'G4-WH'!$A$6:$Z$500,4,FALSE))),"NA") -> NA | E45: =IF($D45="NA","NA",ROUND(VLOOKUP($A$3,'G4-WH'!$A$6:$Z$500,6,FALSE),0)&"% ("&VLOOKUP($A$3,'G4-WH'!$A$6:$Z$500,5,FALSE)&")") -> NA | F45: =IF($D45="NA","NA",ROUND(VLOOKUP($A$3,'G4-WH'!$A$6:$Z$500,8,FALSE),0)&"% ("&VLOOKUP($A$3,'G4-WH'!$A$6:$Z$500,7,FALSE)&")") -> NA | H45: =IFERROR(IF(VLOOKUP($A$3,'G4-WH'!$A$6:$Z$500,9,FALSE)=0,"NA",VLOOKUP($A$3,'G4-WH'!$A$6:$Z$500,10,FALSE)),"NA") -> NA | I45: =IFERROR(IF(H45="NA","NA",VLOOKUP($A$3,'G4-WH'!$A$6:$Z$500,16,FALSE)&"% ("&VLOOKUP($A$3,'G4-WH'!$A$6:$Z$500,12,FALSE)&")"),"") -> NA | J45: =IFERROR(IF(VLOOKUP($A$3,'G4-WH'!$A$6:$Z$500,17,FALSE)=0,"NA",VLOOKUP($A$3,'G4-WH'!$A$6:$Z$500,18,FALSE)),"NA") -> NA | K45: =IFERROR(IF(J45="NA","NA",VLOOKUP($A$3,'G4-WH'!$A$6:$Z$500,24,FALSE)&"% ("&VLOOKUP($A$3,'G4-WH'!$A$6:$Z$500,20,FALSE)&")"),"") -> NA | P45: =IFERROR(IF(VLOOKUP($A$3,'G4-WH'!$A$6:$Z$500,9,FALSE)="","0",VLOOKUP($A$3,'G4-WH'!$A$6:$Z$500,9,FALSE)),"Not Test") -> Not Test | Q45: =IFERROR(IF(VLOOKUP($A$3,'G4-WH'!$A$6:$Z$500,17,FALSE)="","0",VLOOKUP($A$3,'G4-WH'!$A$6:$Z$500,17,FALSE)),"Not Test") -> Not Test
A46: Asian | B46: =IFERROR(VLOOKUP(TEXT($A$3,"0000"),MEM_A!$A$2:$O$500,8,FALSE),0) -> 309 | C46: =IF(OR(B46=0,B46="",B46="NA"),"NA",IF(VLOOKUP($A$3,'G4-WA'!$A$6:$Z$500,3,FALSE)>B46,"100% ("&VLOOKUP($A$3,'G4-WA'!$A$6:$Z$500,3,FALSE)&")",ROUND(VLOOKUP($A$3,'G4-WA'!$A$6:$Z$500,3,FALSE)/B46*100,0)&"%("&VLOOKUP($A$3,'G4-WA'!$A$6:$Z$500,3,FALSE)&")")) ->  | D46: =IFERROR((IF($C46="NA","NA",VLOOKUP($A$3,'G4-WA'!$A$6:$Z$500,4,FALSE))),"NA") -> NA | E46: =IF($D46="NA","NA",ROUND(VLOOKUP($A$3,'G4-WA'!$A$6:$Z$500,6,FALSE),0)&"% ("&VLOOKUP($A$3,'G4-WA'!$A$6:$Z$500,5,FALSE)&")") -> NA | F46: =IF($D46="NA","NA",ROUND(VLOOKUP($A$3,'G4-WA'!$A$6:$Z$500,8,FALSE),0)&"% ("&VLOOKUP($A$3,'G4-WA'!$A$6:$Z$500,7,FALSE)&")") -> NA | H46: =IFERROR(IF(VLOOKUP($A$3,'G4-WA'!$A$6:$Z$500,9,FALSE)=0,"NA",VLOOKUP($A$3,'G4-WA'!$A$6:$Z$500,10,FALSE)),"NA") -> NA | I46: =IFERROR(IF(H46="NA","NA",VLOOKUP($A$3,'G4-WA'!$A$6:$Z$500,16,FALSE)&"% ("&VLOOKUP($A$3,'G4-WA'!$A$6:$Z$500,12,FALSE)&")"),"") -> NA | J46: =IFERROR(IF(VLOOKUP($A$3,'G4-WA'!$A$6:$Z$500,17,FALSE)=0,"NA",VLOOKUP($A$3,'G4-WA'!$A$6:$Z$500,18,FALSE)),"NA") -> NA | K46: =IFERROR(IF(J46="NA","NA",VLOOKUP($A$3,'G4-WA'!$A$6:$Z$500,24,FALSE)&"% ("&VLOOKUP($A$3,'G4-WA'!$A$6:$Z$500,20,FALSE)&")"),"") -> NA | P46: =IFERROR(IF(VLOOKUP($A$3,'G4-WA'!$A$6:$Z$500,9,FALSE)="","0",VLOOKUP($A$3,'G4-WA'!$A$6:$Z$500,9,FALSE)),"Not Test") -> Not Test | Q46: =IFERROR(IF(VLOOKUP($A$3,'G4-WA'!$A$6:$Z$500,17,FALSE)="","0",VLOOKUP($A$3,'G4-WA'!$A$6:$Z$500,17,FALSE)),"Not Test") -> Not Test
A47: Am. Indian | B47: =IFERROR(VLOOKUP(TEXT($A$3,"0000"),MEM_I!$A$2:$O$500,8,FALSE),0) -> 19 | C47: =IF(OR(B47=0,B47="",B47="NA"),"NA",IF(VLOOKUP($A$3,'G4-WI'!$A$6:$Z$500,3,FALSE)>B47,"100% ("&VLOOKUP($A$3,'G4-WI'!$A$6:$Z$500,3,FALSE)&")",ROUND(VLOOKUP($A$3,'G4-WI'!$A$6:$Z$500,3,FALSE)/B47*100,0)&"%("&VLOOKUP($A$3,'G4-WI'!$A$6:$Z$500,3,FALSE)&")")) ->  | D47: =IFERROR((IF($C47="NA","NA",VLOOKUP($A$3,'G4-WI'!$A$6:$Z$500,4,FALSE))),"NA") -> NA | E47: =IF($D47="NA","NA",ROUND(VLOOKUP($A$3,'G4-WI'!$A$6:$Z$500,6,FALSE),0)&"% ("&VLOOKUP($A$3,'G4-WI'!$A$6:$Z$500,5,FALSE)&")") -> NA | F47: =IF($D47="NA","NA",ROUND(VLOOKUP($A$3,'G4-WI'!$A$6:$Z$500,8,FALSE),0)&"% ("&VLOOKUP($A$3,'G4-WI'!$A$6:$Z$500,7,FALSE)&")") -> NA | H47: =IFERROR(IF(VLOOKUP($A$3,'G4-WI'!$A$6:$Z$500,9,FALSE)=0,"NA",VLOOKUP($A$3,'G4-WI'!$A$6:$Z$500,10,FALSE)),"NA") -> NA | I47: =IFERROR(IF(H47="NA","NA",VLOOKUP($A$3,'G4-WI'!$A$6:$Z$500,16,FALSE)&"% ("&VLOOKUP($A$3,'G4-WI'!$A$6:$Z$500,12,FALSE)&")"),"") -> NA | J47: =IFERROR(IF(VLOOKUP($A$3,'G4-WI'!$A$6:$Z$500,17,FALSE)=0,"NA",VLOOKUP($A$3,'G4-WI'!$A$6:$Z$500,18,FALSE)),"NA") -> NA | K47: =IFERROR(IF(J47="NA","NA",VLOOKUP($A$3,'G4-WI'!$A$6:$Z$500,24,FALSE)&"% ("&VLOOKUP($A$3,'G4-WI'!$A$6:$Z$500,20,FALSE)&")"),"") -> NA | P47: =IFERROR(IF(VLOOKUP($A$3,'G4-WI'!$A$6:$Z$500,9,FALSE)="","0",VLOOKUP($A$3,'G4-WI'!$A$6:$Z$500,9,FALSE)),"Not Test") -> Not Test | Q47: =IFERROR(IF(VLOOKUP($A$3,'G4-WI'!$A$6:$Z$500,17,FALSE)="","0",VLOOKUP($A$3,'G4-WI'!$A$6:$Z$500,17,FALSE)),"Not Test") -> Not Test
A48: ED | B48: =IFERROR(VLOOKUP(TEXT($A$3,"0000"),MEM_ED!$A$2:$O$500,8,FALSE),0) -> 19411 | C48: =IF(OR(B48=0,B48="",B48="NA"),"NA",IF(VLOOKUP($A$3,'G4-WED'!$A$6:$Z$500,3,FALSE)>B48,"100% ("&VLOOKUP($A$3,'G4-WED'!$A$6:$Z$500,3,FALSE)&")",ROUND(VLOOKUP($A$3,'G4-WED'!$A$6:$Z$500,3,FALSE)/B48*100,0)&"%("&VLOOKUP($A$3,'G4-WED'!$A$6:$Z$500,3,FALSE)&")")) ->  | D48: =IFERROR((IF($C48="NA","NA",VLOOKUP($A$3,'G4-WED'!$A$6:$Z$500,4,FALSE))),"NA") -> NA | E48: =IF($D48="NA","NA",ROUND(VLOOKUP($A$3,'G4-WED'!$A$6:$Z$500,6,FALSE),0)&"% ("&VLOOKUP($A$3,'G4-WED'!$A$6:$Z$500,5,FALSE)&")") -> NA | F48: =IF($D48="NA","NA",ROUND(VLOOKUP($A$3,'G4-WED'!$A$6:$Z$500,8,FALSE),0)&"% ("&VLOOKUP($A$3,'G4-WED'!$A$6:$Z$500,7,FALSE)&")") -> NA | H48: =IFERROR(IF(VLOOKUP($A$3,'G4-WED'!$A$6:$Z$500,9,FALSE)=0,"NA",VLOOKUP($A$3,'G4-WED'!$A$6:$Z$500,10,FALSE)),"NA") -> NA | I48: =IFERROR(IF(H48="NA","NA",VLOOKUP($A$3,'G4-WED'!$A$6:$Z$500,16,FALSE)&"% ("&VLOOKUP($A$3,'G4-WED'!$A$6:$Z$500,12,FALSE)&")"),"") -> NA | J48: =IFERROR(IF(VLOOKUP($A$3,'G4-WED'!$A$6:$Z$500,17,FALSE)=0,"NA",VLOOKUP($A$3,'G4-WED'!$A$6:$Z$500,18,FALSE)),"NA") -> NA | K48: =IFERROR(IF(J48="NA","NA",VLOOKUP($A$3,'G4-WED'!$A$6:$Z$500,24,FALSE)&"% ("&VLOOKUP($A$3,'G4-WED'!$A$6:$Z$500,20,FALSE)&")"),"") -> NA | P48: =IFERROR(IF(VLOOKUP($A$3,'G4-WED'!$A$6:$Z$500,9,FALSE)="","0",VLOOKUP($A$3,'G4-WED'!$A$6:$Z$500,9,FALSE)),"Not Test") -> Not Test | Q48: =IFERROR(IF(VLOOKUP($A$3,'G4-WED'!$A$6:$Z$500,17,FALSE)="","0",VLOOKUP($A$3,'G4-WED'!$A$6:$Z$500,17,FALSE)),"Not Test") -> Not Test
A49: ELL | B49: =IFERROR(VLOOKUP(TEXT($A$3,"0000"),MEM_ELL!$A$2:$O$500,8,FALSE),0) -> 10022 | C49: =IF(OR(B49=0,B49="",B49="NA"),"NA",IF(VLOOKUP($A$3,'G4-WELL'!$A$6:$Z$500,3,FALSE)>B49,"100% ("&VLOOKUP($A$3,'G4-WELL'!$A$6:$Z$500,3,FALSE)&")",ROUND(VLOOKUP($A$3,'G4-WELL'!$A$6:$Z$500,3,FALSE)/B49*100,0)&"%("&VLOOKUP($A$3,'G4-WELL'!$A$6:$Z$500,3,FALSE)&")")) ->  | D49: =IFERROR((IF($C49="NA","NA",VLOOKUP($A$3,'G4-WELL'!$A$6:$Z$500,4,FALSE))),"NA") -> NA | E49: =IF($D49="NA","NA",ROUND(VLOOKUP($A$3,'G4-WELL'!$A$6:$Z$500,6,FALSE),0)&"% ("&VLOOKUP($A$3,'G4-WELL'!$A$6:$Z$500,5,FALSE)&")") -> NA | F49: =IF($D49="NA","NA",ROUND(VLOOKUP($A$3,'G4-WELL'!$A$6:$Z$500,8,FALSE),0)&"% ("&VLOOKUP($A$3,'G4-WELL'!$A$6:$Z$500,7,FALSE)&")") -> NA | H49: =IFERROR(IF(VLOOKUP($A$3,'G4-WELL'!$A$6:$Z$500,9,FALSE)=0,"NA",VLOOKUP($A$3,'G4-WELL'!$A$6:$Z$500,10,FALSE)),"NA") -> NA | I49: =IFERROR(IF(H49="NA","NA",VLOOKUP($A$3,'G4-WELL'!$A$6:$Z$500,16,FALSE)&"% ("&VLOOKUP($A$3,'G4-WELL'!$A$6:$Z$500,12,FALSE)&")"),"") -> NA | J49: =IFERROR(IF(VLOOKUP($A$3,'G4-WELL'!$A$6:$Z$500,17,FALSE)=0,"NA",VLOOKUP($A$3,'G4-WELL'!$A$6:$Z$500,18,FALSE)),"NA") -> NA | K49: =IFERROR(IF(J49="NA","NA",VLOOKUP($A$3,'G4-WELL'!$A$6:$Z$500,24,FALSE)&"% ("&VLOOKUP($A$3,'G4-WELL'!$A$6:$Z$500,20,FALSE)&")"),"") -> NA | P49: =IFERROR(IF(VLOOKUP($A$3,'G4-WELL'!$A$6:$Z$500,9,FALSE)="","0",VLOOKUP($A$3,'G4-WELL'!$A$6:$Z$500,9,FALSE)),"Not Test") -> Not Test | Q49: =IFERROR(IF(VLOOKUP($A$3,'G4-WELL'!$A$6:$Z$500,17,FALSE)="","0",VLOOKUP($A$3,'G4-WELL'!$A$6:$Z$500,17,FALSE)),"Not Test") -> Not Test
A50: SWD | B50: =IFERROR(VLOOKUP(TEXT($A$3,"0000"),MEM_SWD!$A$2:$O$500,8,FALSE),0) -> 2394 | C50: =IF(OR(B50=0,B50="",B50="NA"),"NA",IF(VLOOKUP($A$3,'G4-WSWD'!$A$6:$Z$500,3,FALSE)>B50,"100% ("&VLOOKUP($A$3,'G4-WSWD'!$A$6:$Z$500,3,FALSE)&")",ROUND(VLOOKUP($A$3,'G4-WSWD'!$A$6:$Z$500,3,FALSE)/B50*100,0)&"%("&VLOOKUP($A$3,'G4-WSWD'!$A$6:$Z$500,3,FALSE)&")")) ->  | D50: =IFERROR((IF($C50="NA","NA",VLOOKUP($A$3,'G4-WSWD'!$A$6:$Z$500,4,FALSE))),"NA") -> NA | E50: =IF($D50="NA","NA",ROUND(VLOOKUP($A$3,'G4-WSWD'!$A$6:$Z$500,6,FALSE),0)&"% ("&VLOOKUP($A$3,'G4-WSWD'!$A$6:$Z$500,5,FALSE)&")") -> NA | F50: =IF($D50="NA","NA",ROUND(VLOOKUP($A$3,'G4-WSWD'!$A$6:$Z$500,8,FALSE),0)&"% ("&VLOOKUP($A$3,'G4-WSWD'!$A$6:$Z$500,7,FALSE)&")") -> NA | H50: =IFERROR(IF(VLOOKUP($A$3,'G4-WSWD'!$A$6:$Z$500,9,FALSE)=0,"NA",VLOOKUP($A$3,'G4-WSWD'!$A$6:$Z$500,10,FALSE)),"NA") -> NA | I50: =IFERROR(IF(H50="NA","NA",VLOOKUP($A$3,'G4-WSWD'!$A$6:$Z$500,16,FALSE)&"% ("&VLOOKUP($A$3,'G4-WSWD'!$A$6:$Z$500,12,FALSE)&")"),"") -> NA | J50: =IFERROR(IF(VLOOKUP($A$3,'G4-WSWD'!$A$6:$Z$500,17,FALSE)=0,"NA",VLOOKUP($A$3,'G4-WSWD'!$A$6:$Z$500,18,FALSE)),"NA") -> NA | K50: =IFERROR(IF(J50="NA","NA",VLOOKUP($A$3,'G4-WSWD'!$A$6:$Z$500,24,FALSE)&"% ("&VLOOKUP($A$3,'G4-WSWD'!$A$6:$Z$500,20,FALSE)&")"),"") -> NA | P50: =IFERROR(IF(VLOOKUP($A$3,'G4-WSWD'!$A$6:$Z$500,9,FALSE)="","0",VLOOKUP($A$3,'G4-WSWD'!$A$6:$Z$500,9,FALSE)),"Not Test") -> Not Test | Q50: =IFERROR(IF(VLOOKUP($A$3,'G4-WSWD'!$A$6:$Z$500,17,FALSE)="","0",VLOOKUP($A$3,'G4-WSWD'!$A$6:$Z$500,17,FALSE)),"Not Test") -> Not Test

Sheet Grade 5 Report
A2: Click here to return to the school and sheet selection interface
A3: ='Select School'!B3 -> 9999
A4: =TEXT(A3,"0000")&"-"&VLOOKUP(A3,SchList!$A$2:$B$504,2,FALSE) -> 9999-District
A5: Reading - Grade 5
A6: Satisfactory Progress Cut Scores at 66% or above | B6: Total # of Students | C6: % of Students Tested | D6: ='G3-5 Matrix'!C2&" ["&'G3-5 Matrix'!C7&"]" -> Overall [59] | F6: ='G3-5 Matrix'!D2&" ["&'G3-5 Matrix'!D7&"]" -> Vocabulary [15] | H6: ='G3-5 Matrix'!E2&" ["&'G3-5 Matrix'!E7&"]" -> Reading Application [25] | J6: ='G3-5 Matrix'!F2&" ["&'G3-5 Matrix'!F7&"]" -> Literary Analysis Fiction/Nonfiction [11] | L6: ='G3-5 Matrix'!G2&" ["&'G3-5 Matrix'!G7&"]" -> Informational Text/ Research Process [8]
D7: Average Score | E7: % Satisfactory | F7: Average Score | G7: % Satisfactory | H7: Average Score | I7: % Satisfactory | J7: Average Score | K7: % Satisfactory | L7: Average Score | M7: % Satisfactory
A8: All students | B8: =IFERROR(VLOOKUP(TEXT($A$3,"0000"),Mem_All!$A$2:$O$501,9,FALSE),0) -> 25529 | C8: =IFERROR((IF(OR(B8=0,B8="",B8="NA"),"NA",((IF(VLOOKUP($A$3,'G5-RALL'!$A$6:$AM$500,3,FALSE)>=B8,"100% ("&VLOOKUP($A$3,'G5-RALL'!$A$6:$AM$500,3,FALSE)&")",(ROUND((VLOOKUP($A$3,'G5-RALL'!$A$6:$AM$500,3,FALSE)/B8*100),0))&"% ("&IF(VLOOKUP($A$3,'G5-RALL'!$A$6:$AM$500,3,FALSE)="",0,VLOOKUP($A$3,'G5-RALL'!$A$6:$AM$500,3,FALSE))&")"))))),"0% (0)") -> 97% (24698) | D8: =IFERROR((IF($C8="NA","NA",VLOOKUP($A$3,'G5-RALL'!$A$6:$AM$500,4,FALSE))),"NA") -> 38.4169285 | E8: =IFERROR((IF($C8="NA","NA",ROUND(VLOOKUP($A$3,'G5-RALL'!$A$6:$AM$500,6,FALSE),0)&"% ("&IF(VLOOKUP($A$3,'G5-RALL'!$A$6:$AM$500,5,FALSE)="",0,VLOOKUP($A$3,'G5-RALL'!$A$6:$AM$500,5,FALSE))&")")),"NA") -> 57% (14174) | F8: =IFERROR((IF($C8="NA","NA",VLOOKUP($A$3,'G5-RALL'!$A$6:$AM$500,7,FALSE))),"NA") -> 10.83739169 | G8: NA | H8: =IFERROR((IF($C8="NA","NA",VLOOKUP($A$3,'G5-RALL'!$A$6:$AM$500,10,FALSE))),"NA") -> 16.48487732 | I8: NA | J8: =IFERROR((IF($C8="NA","NA",VLOOKUP($A$3,'G5-RALL'!$A$6:$AM$500,13,FALSE))),"NA") -> 6.693489351 | K8: NA | L8: =IFERROR((IF($C8="NA","NA",VLOOKUP($A$3,'G5-RALL'!$A$6:$AM$500,16,FALSE))),"NA") -> 4.399060653 | M8: NA
A9: FCAT Level 1 | B9: =IFERROR(VLOOKUP(TEXT($A$3,"0000"),MEM_RL1!$A$2:$O$501,6,FALSE),0) -> 3646 | C9: =IFERROR((IF(OR(B9=0,B9="",B9="NA"),"NA",((IF(VLOOKUP($A$3,'G5-RL1'!$A$6:$AM$500,3,FALSE)>=B9,"100% ("&VLOOKUP($A$3,'G5-RL1'!$A$6:$AM$500,3,FALSE)&")",(ROUND((VLOOKUP($A$3,'G5-RL1'!$A$6:$AM$500,3,FALSE)/B9*100),0))&"% ("&IF(VLOOKUP($A$3,'G5-RL1'!$A$6:$AM$500,3,FALSE)="",0,VLOOKUP($A$3,'G5-RL1'!$A$6:$AM$500,3,FALSE))&")"))))),"0% (0)") -> 98% (3558) | D9: =IFERROR((IF($C9="NA","NA",VLOOKUP($A$3,'G5-RL1'!$A$6:$AM$500,4,FALSE))),"NA") -> 25.75005621 | E9: =IFERROR((IF($C9="NA","NA",ROUND(VLOOKUP($A$3,'G5-RL1'!$A$6:$AM$500,6,FALSE),0)&"% ("&IF(VLOOKUP($A$3,'G5-RL1'!$A$6:$AM$500,5,FALSE)="",0,VLOOKUP($A$3,'G5-RL1'!$A$6:$AM$500,5,FALSE))&")")),"NA") -> 7% (263) | F9: =IFERROR((IF($C9="NA","NA",VLOOKUP($A$3,'G5-RL1'!$A$6:$AM$500,7,FALSE))),"NA") -> 7.376869028 | G9: NA | H9: =IFERROR((IF($C9="NA","NA",VLOOKUP($A$3,'G5-RL1'!$A$6:$AM$500,10,FALSE))),"NA") -> 10.9465149 | I9: NA | J9: =IFERROR((IF($C9="NA","NA",VLOOKUP($A$3,'G5-RL1'!$A$6:$AM$500,13,FALSE))),"NA") -> 4.559977515 | K9: NA | L9: =IFERROR((IF($C9="NA","NA",VLOOKUP($A$3,'G5-RL1'!$A$6:$AM$500,16,FALSE))),"NA") -> 2.871247892 | M9: NA
A10: FCAT Level 2 | B10: =IFERROR(VLOOKUP(TEXT($A$3,"0000"),MEM_RL2!$A$2:$O$501,6,FALSE),0) -> 5893 | C10: =IFERROR((IF(OR(B10=0,B10="",B10="NA"),"NA",((IF(VLOOKUP($A$3,'G5-RL2'!$A$6:$AM$500,3,FALSE)>=B10,"100% ("&VLOOKUP($A$3,'G5-RL2'!$A$6:$AM$500,3,FALSE)&")",(ROUND((VLOOKUP($A$3,'G5-RL2'!$A$6:$AM$500,3,FALSE)/B10*100),0))&"% ("&IF(VLOOKUP($A$3,'G5-RL2'!$A$6:$AM$500,3,FALSE)="",0,VLOOKUP($A$3,'G5-RL2'!$A$6:$AM$500,3,FALSE))&")"))))),"0% (0)") -> 98% (5790) | D10: =IFERROR((IF($C10="NA","NA",VLOOKUP($A$3,'G5-RL2'!$A$6:$AM$500,4,FALSE))),"NA") -> 34.79338515 | E10: =IFERROR((IF($C10="NA","NA",ROUND(VLOOKUP($A$3,'G5-RL2'!$A$6:$AM$500,6,FALSE),0)&"% ("&IF(VLOOKUP($A$3,'G5-RL2'!$A$6:$AM$500,5,FALSE)="",0,VLOOKUP($A$3,'G5-RL2'!$A$6:$AM$500,5,FALSE))&")")),"NA") -> 31% (1822) | F10: =IFERROR((IF($C10="NA","NA",VLOOKUP($A$3,'G5-RL2'!$A$6:$AM$500,7,FALSE))),"NA") -> 10.06507772 | G10: NA | H10: =IFERROR((IF($C10="NA","NA",VLOOKUP($A$3,'G5-RL2'!$A$6:$AM$500,10,FALSE))),"NA") -> 14.81946459 | I10: NA | J10: =IFERROR((IF($C10="NA","NA",VLOOKUP($A$3,'G5-RL2'!$A$6:$AM$500,13,FALSE))),"NA") -> 6.032400691 | K10: NA | L10: =IFERROR((IF($C10="NA","NA",VLOOKUP($A$3,'G5-RL2'!$A$6:$AM$500,16,FALSE))),"NA") -> 3.885906736 | M10: NA
A11: FCAT Level 3 | B11: =IFERROR(VLOOKUP(TEXT($A$3,"0000"),MEM_RL3!$A$2:$O$501,6,FALSE),0) -> 6110 | C11: =IFERROR((IF(OR(B11=0,B11="",B11="NA"),"NA",((IF(VLOOKUP($A$3,'G5-RL3'!$A$6:$AM$500,3,FALSE)>=B11,"100% ("&VLOOKUP($A$3,'G5-RL3'!$A$6:$AM$500,3,FALSE)&")",(ROUND((VLOOKUP($A$3,'G5-RL3'!$A$6:$AM$500,3,FALSE)/B11*100),0))&"% ("&IF(VLOOKUP($A$3,'G5-RL3'!$A$6:$AM$500,3,FALSE)="",0,VLOOKUP($A$3,'G5-RL3'!$A$6:$AM$500,3,FALSE))&")"))))),"0% (0)") -> 98% (6017) | D11: =IFERROR((IF($C11="NA","NA",VLOOKUP($A$3,'G5-RL3'!$A$6:$AM$500,4,FALSE))),"NA") -> 40.4606947 | E11: =IFERROR((IF($C11="NA","NA",ROUND(VLOOKUP($A$3,'G5-RL3'!$A$6:$AM$500,6,FALSE),0)&"% ("&IF(VLOOKUP($A$3,'G5-RL3'!$A$6:$AM$500,5,FALSE)="",0,VLOOKUP($A$3,'G5-RL3'!$A$6:$AM$500,5,FALSE))&")")),"NA") -> 68% (4084) | F11: =IFERROR((IF($C11="NA","NA",VLOOKUP($A$3,'G5-RL3'!$A$6:$AM$500,7,FALSE))),"NA") -> 11.51263088 | G11: NA | H11: =IFERROR((IF($C11="NA","NA",VLOOKUP($A$3,'G5-RL3'!$A$6:$AM$500,10,FALSE))),"NA") -> 17.34505568 | I11: NA | J11: =IFERROR((IF($C11="NA","NA",VLOOKUP($A$3,'G5-RL3'!$A$6:$AM$500,13,FALSE))),"NA") -> 7.014907761 | K11: NA | L11: =IFERROR((IF($C11="NA","NA",VLOOKUP($A$3,'G5-RL3'!$A$6:$AM$500,16,FALSE))),"NA") -> 4.594365963 | M11: NA
A12: FCAT Level 4 | B12: =IFERROR(VLOOKUP(TEXT($A$3,"0000"),MEM_RL4!$A$2:$O$501,6,FALSE),0) -> 5955 | C12: =IFERROR((IF(OR(B12=0,B12="",B12="NA"),"NA",((IF(VLOOKUP($A$3,'G5-RL4'!$A$6:$AM$500,3,FALSE)>=B12,"100% ("&VLOOKUP($A$3,'G5-RL4'!$A$6:$AM$500,3,FALSE)&")",(ROUND((VLOOKUP($A$3,'G5-RL4'!$A$6:$AM$500,3,FALSE)/B12*100),0))&"% ("&IF(VLOOKUP($A$3,'G5-RL4'!$A$6:$AM$500,3,FALSE)="",0,VLOOKUP($A$3,'G5-RL4'!$A$6:$AM$500,3,FALSE))&")"))))),"0% (0)") -> 98% (5842) | D12: =IFERROR((IF($C12="NA","NA",VLOOKUP($A$3,'G5-RL4'!$A$6:$AM$500,4,FALSE))),"NA") -> 45.19330709 | E12: =IFERROR((IF($C12="NA","NA",ROUND(VLOOKUP($A$3,'G5-RL4'!$A$6:$AM$500,6,FALSE),0)&"% ("&IF(VLOOKUP($A$3,'G5-RL4'!$A$6:$AM$500,5,FALSE)="",0,VLOOKUP($A$3,'G5-RL4'!$A$6:$AM$500,5,FALSE))&")")),"NA") -> 92% (5361) | F12: =IFERROR((IF($C12="NA","NA",VLOOKUP($A$3,'G5-RL4'!$A$6:$AM$500,7,FALSE))),"NA") -> 12.54936666 | G12: NA | H12: =IFERROR((IF($C12="NA","NA",VLOOKUP($A$3,'G5-RL4'!$A$6:$AM$500,10,FALSE))),"NA") -> 19.52163643 | I12: NA | J12: =IFERROR((IF($C12="NA","NA",VLOOKUP($A$3,'G5-RL4'!$A$6:$AM$500,13,FALSE))),"NA") -> 7.846559397 | K12: NA | L12: =IFERROR((IF($C12="NA","NA",VLOOKUP($A$3,'G5-RL4'!$A$6:$AM$500,16,FALSE))),"NA") -> 5.275693256 | M12: NA
A13: FCAT Level 5 | B13: =IFERROR(VLOOKUP(TEXT($A$3,"0000"),MEM_RL5!$A$2:$O$501,5,FALSE),0) -> 2370 | C13: =IFERROR((IF(OR(B13=0,B13="",B13="NA"),"NA",((IF(VLOOKUP($A$3,'G5-RL5'!$A$6:$AM$500,3,FALSE)>=B13,"100% ("&VLOOKUP($A$3,'G5-RL5'!$A$6:$AM$500,3,FALSE)&")",(ROUND((VLOOKUP($A$3,'G5-RL5'!$A$6:$AM$500,3,FALSE)/B13*100),0))&"% ("&IF(VLOOKUP($A$3,'G5-RL5'!$A$6:$AM$500,3,FALSE)="",0,VLOOKUP($A$3,'G5-RL5'!$A$6:$AM$500,3,FALSE))&")"))))),"0% (0)") -> 97% (2306) | D13: =IFERROR((IF($C13="NA","NA",VLOOKUP($A$3,'G5-RL5'!$A$6:$AM$500,4,FALSE))),"NA") -> 48.8942758 | E13: =IFERROR((IF($C13="NA","NA",ROUND(VLOOKUP($A$3,'G5-RL5'!$A$6:$AM$500,6,FALSE),0)&"% ("&IF(VLOOKUP($A$3,'G5-RL5'!$A$6:$AM$500,5,FALSE)="",0,VLOOKUP($A$3,'G5-RL5'!$A$6:$AM$500,5,FALSE))&")")),"NA") -> 99% (2282) | F13: =IFERROR((IF($C13="NA","NA",VLOOKUP($A$3,'G5-RL5'!$A$6:$AM$500,7,FALSE))),"NA") -> 13.24332177 | G13: NA | H13: =IFERROR((IF($C13="NA","NA",VLOOKUP($A$3,'G5-RL5'!$A$6:$AM$500,10,FALSE))),"NA") -> 21.11669558 | I13: NA | J13: =IFERROR((IF($C13="NA","NA",VLOOKUP($A$3,'G5-RL5'!$A$6:$AM$500,13,FALSE))),"NA") -> 8.671769297 | K13: NA | L13: =IFERROR((IF($C13="NA","NA",VLOOKUP($A$3,'G5-RL5'!$A$6:$AM$500,16,FALSE))),"NA") -> 5.856981787 | M13: NA
A14: White | B14: =IFERROR(VLOOKUP(TEXT($A$3,"0000"),MEM_W!$A$2:$O$501,9,FALSE),0) -> 2134 | C14: =IFERROR((IF(OR(B14=0,B14="",B14="NA"),"NA",((IF(VLOOKUP($A$3,'G5-RW'!$A$6:$AM$500,3,FALSE)>=B14,"100% ("&VLOOKUP($A$3,'G5-RW'!$A$6:$AM$500,3,FALSE)&")",(ROUND((VLOOKUP($A$3,'G5-RW'!$A$6:$AM$500,3,FALSE)/B14*100),0))&"% ("&IF(VLOOKUP($A$3,'G5-RW'!$A$6:$AM$500,3,FALSE)="",0,VLOOKUP($A$3,'G5-RW'!$A$6:$AM$500,3,FALSE))&")"))))),"0% (0)") -> 95% (2026) | D14: =IFERROR((IF($C14="NA","NA",VLOOKUP($A$3,'G5-RW'!$A$6:$AM$500,4,FALSE))),"NA") -> 41.94442251 | E14: =IFERROR((IF($C14="NA","NA",ROUND(VLOOKUP($A$3,'G5-RW'!$A$6:$AM$500,6,FALSE),0)&"% ("&IF(VLOOKUP($A$3,'G5-RW'!$A$6:$AM$500,5,FALSE)="",0,VLOOKUP($A$3,'G5-RW'!$A$6:$AM$500,5,FALSE))&")")),"NA") -> 73% (1474) | F14: =IFERROR((IF($C14="NA","NA",VLOOKUP($A$3,'G5-RW'!$A$6:$AM$500,7,FALSE))),"NA") -> 11.83356367 | G14: NA | H14: =IFERROR((IF($C14="NA","NA",VLOOKUP($A$3,'G5-RW'!$A$6:$AM$500,10,FALSE))),"NA") -> 17.94264561 | I14: NA | J14: =IFERROR((IF($C14="NA","NA",VLOOKUP($A$3,'G5-RW'!$A$6:$AM$500,13,FALSE))),"NA") -> 7.366090819 | K14: NA | L14: =IFERROR((IF($C14="NA","NA",VLOOKUP($A$3,'G5-RW'!$A$6:$AM$500,16,FALSE))),"NA") -> 4.803998026 | M14: NA
A15: Black | B15: =IFERROR(VLOOKUP(TEXT($A$3,"0000"),MEM_B!$A$2:$O$501,9,FALSE),0) -> 5742 | C15: =IFERROR((IF(OR(B15=0,B15="",B15="NA"),"NA",((IF(VLOOKUP($A$3,'G5-RB'!$A$6:$AM$500,3,FALSE)>=B15,"100% ("&VLOOKUP($A$3,'G5-RB'!$A$6:$AM$500,3,FALSE)&")",(ROUND((VLOOKUP($A$3,'G5-RB'!$A$6:$AM$500,3,FALSE)/B15*100),0))&"% ("&IF(VLOOKUP($A$3,'G5-RB'!$A$6:$AM$500,3,FALSE)="",0,VLOOKUP($A$3,'G5-RB'!$A$6:$AM$500,3,FALSE))&")"))))),"0% (0)") -> 97% (5567) | D15: =IFERROR((IF($C15="NA","NA",VLOOKUP($A$3,'G5-RB'!$A$6:$AM$500,4,FALSE))),"NA") -> 36.87431292 | E15: =IFERROR((IF($C15="NA","NA",ROUND(VLOOKUP($A$3,'G5-RB'!$A$6:$AM$500,6,FALSE),0)&"% ("&IF(VLOOKUP($A$3,'G5-RB'!$A$6:$AM$500,5,FALSE)="",0,VLOOKUP($A$3,'G5-RB'!$A$6:$AM$500,5,FALSE))&")")),"NA") -> 49% (2750) | F15: =IFERROR((IF($C15="NA","NA",VLOOKUP($A$3,'G5-RB'!$A$6:$AM$500,7,FALSE))),"NA") -> 10.43930304 | G15: NA | H15: =IFERROR((IF($C15="NA","NA",VLOOKUP($A$3,'G5-RB'!$A$6:$AM$500,10,FALSE))),"NA") -> 15.80001796 | I15: NA | J15: =IFERROR((IF($C15="NA","NA",VLOOKUP($A$3,'G5-RB'!$A$6:$AM$500,13,FALSE))),"NA") -> 6.464271601 | K15: NA | L15: =IFERROR((IF($C15="NA","NA",VLOOKUP($A$3,'G5-RB'!$A$6:$AM$500,16,FALSE))),"NA") -> 4.168241423 | M15: NA
A16: Hispanic | B16: =IFERROR(VLOOKUP(TEXT($A$3,"0000"),MEM_H!$A$2:$O$501,9,FALSE),0) -> 17216 | C16: =IFERROR((IF(OR(B16=0,B16="",B16="NA"),"NA",((IF(VLOOKUP($A$3,'G5-RH'!$A$6:$AM$500,3,FALSE)>=B16,"100% ("&VLOOKUP($A$3,'G5-RH'!$A$6:$AM$500,3,FALSE)&")",(ROUND((VLOOKUP($A$3,'G5-RH'!$A$6:$AM$500,3,FALSE)/B16*100),0))&"% ("&IF(VLOOKUP($A$3,'G5-RH'!$A$6:$AM$500,3,FALSE)="",0,VLOOKUP($A$3,'G5-RH'!$A$6:$AM$500,3,FALSE))&")"))))),"0% (0)") -> 97% (16684) | D16: =IFERROR((IF($C16="NA","NA",VLOOKUP($A$3,'G5-RH'!$A$6:$AM$500,4,FALSE))),"NA") -> 38.39187845 | E16: =IFERROR((IF($C16="NA","NA",ROUND(VLOOKUP($A$3,'G5-RH'!$A$6:$AM$500,6,FALSE),0)&"% ("&IF(VLOOKUP($A$3,'G5-RH'!$A$6:$AM$500,5,FALSE)="",0,VLOOKUP($A$3,'G5-RH'!$A$6:$AM$500,5,FALSE))&")")),"NA") -> 58% (9627) | F16: =IFERROR((IF($C16="NA","NA",VLOOKUP($A$3,'G5-RH'!$A$6:$AM$500,7,FALSE))),"NA") -> 10.82849437 | G16: NA | H16: =IFERROR((IF($C16="NA","NA",VLOOKUP($A$3,'G5-RH'!$A$6:$AM$500,10,FALSE))),"NA") -> 16.48658595 | I16: NA | J16: =IFERROR((IF($C16="NA","NA",VLOOKUP($A$3,'G5-RH'!$A$6:$AM$500,13,FALSE))),"NA") -> 6.664379046 | K16: NA | L16: =IFERROR((IF($C16="NA","NA",VLOOKUP($A$3,'G5-RH'!$A$6:$AM$500,16,FALSE))),"NA") -> 4.416243107 | M16: NA
A17: Asian | B17: =IFERROR(VLOOKUP(TEXT($A$3,"0000"),MEM_A!$A$2:$O$501,9,FALSE),0) -> 319 | C17: =IFERROR((IF(OR(B17=0,B17="",B17="NA"),"NA",((IF(VLOOKUP($A$3,'G5-RA'!$A$6:$AM$500,3,FALSE)>=B17,"100% ("&VLOOKUP($A$3,'G5-RA'!$A$6:$AM$500,3,FALSE)&")",(ROUND((VLOOKUP($A$3,'G5-RA'!$A$6:$AM$500,3,FALSE)/B17*100),0))&"% ("&IF(VLOOKUP($A$3,'G5-RA'!$A$6:$AM$500,3,FALSE)="",0,VLOOKUP($A$3,'G5-RA'!$A$6:$AM$500,3,FALSE))&")"))))),"0% (0)") -> 95% (304) | D17: =IFERROR((IF($C17="NA","NA",VLOOKUP($A$3,'G5-RA'!$A$6:$AM$500,4,FALSE))),"NA") -> 43.53421053 | E17: =IFERROR((IF($C17="NA","NA",ROUND(VLOOKUP($A$3,'G5-RA'!$A$6:$AM$500,6,FALSE),0)&"% ("&IF(VLOOKUP($A$3,'G5-RA'!$A$6:$AM$500,5,FALSE)="",0,VLOOKUP($A$3,'G5-RA'!$A$6:$AM$500,5,FALSE))&")")),"NA") -> 79% (240) | F17: =IFERROR((IF($C17="NA","NA",VLOOKUP($A$3,'G5-RA'!$A$6:$AM$500,7,FALSE))),"NA") -> 12.07072368 | G17: NA | H17: =IFERROR((IF($C17="NA","NA",VLOOKUP($A$3,'G5-RA'!$A$6:$AM$500,10,FALSE))),"NA") -> 18.78125 | I17: NA | J17: =IFERROR((IF($C17="NA","NA",VLOOKUP($A$3,'G5-RA'!$A$6:$AM$500,13,FALSE))),"NA") -> 7.550657895 | K17: NA | L17: =IFERROR((IF($C17="NA","NA",VLOOKUP($A$3,'G5-RA'!$A$6:$AM$500,16,FALSE))),"NA") -> 5.153947368 | M17: NA
A18: Am. Indian | B18: =IFERROR(VLOOKUP(TEXT($A$3,"0000"),MEM_I!$A$2:$O$501,9,FALSE),0) -> 23 | C18: =IFERROR((IF(OR(B18=0,B18="",B18="NA"),"NA",((IF(VLOOKUP($A$3,'G5-RI'!$A$6:$AM$500,3,FALSE)>=B18,"100% ("&VLOOKUP($A$3,'G5-RI'!$A$6:$AM$500,3,FALSE)&")",(ROUND((VLOOKUP($A$3,'G5-RI'!$A$6:$AM$500,3,FALSE)/B18*100),0))&"% ("&IF(VLOOKUP($A$3,'G5-RI'!$A$6:$AM$500,3,FALSE)="",0,VLOOKUP($A$3,'G5-RI'!$A$6:$AM$500,3,FALSE))&")"))))),"0% (0)") -> 96% (22) | D18: =IFERROR((IF($C18="NA","NA",VLOOKUP($A$3,'G5-RI'!$A$6:$AM$500,4,FALSE))),"NA") -> 40.77272727 | E18: =IFERROR((IF($C18="NA","NA",ROUND(VLOOKUP($A$3,'G5-RI'!$A$6:$AM$500,6,FALSE),0)&"% ("&IF(VLOOKUP($A$3,'G5-RI'!$A$6:$AM$500,5,FALSE)="",0,VLOOKUP($A$3,'G5-RI'!$A$6:$AM$500,5,FALSE))&")")),"NA") -> 73% (16) | F18: =IFERROR((IF($C18="NA","NA",VLOOKUP($A$3,'G5-RI'!$A$6:$AM$500,7,FALSE))),"NA") -> 11.54545455 | G18: NA | H18: =IFERROR((IF($C18="NA","NA",VLOOKUP($A$3,'G5-RI'!$A$6:$AM$500,10,FALSE))),"NA") -> 17.36363636 | I18: NA | J18: =IFERROR((IF($C18="NA","NA",VLOOKUP($A$3,'G5-RI'!$A$6:$AM$500,13,FALSE))),"NA") -> 7.409090909 | K18: NA | L18: =IFERROR((IF($C18="NA","NA",VLOOKUP($A$3,'G5-RI'!$A$6:$AM$500,16,FALSE))),"NA") -> 4.454545455 | M18: NA
A19: ED | B19: =IFERROR(VLOOKUP(TEXT($A$3,"0000"),MEM_ED!$A$2:$O$501,9,FALSE),0) -> 19444 | C19: =IFERROR((IF(OR(B19=0,B19="",B19="NA"),"NA",((IF(VLOOKUP($A$3,'G5-RED'!$A$6:$AM$500,3,FALSE)>=B19,"100% ("&VLOOKUP($A$3,'G5-RED'!$A$6:$AM$500,3,FALSE)&")",(ROUND((VLOOKUP($A$3,'G5-RED'!$A$6:$AM$500,3,FALSE)/B19*100),0))&"% ("&IF(VLOOKUP($A$3,'G5-RED'!$A$6:$AM$500,3,FALSE)="",0,VLOOKUP($A$3,'G5-RED'!$A$6:$AM$500,3,FALSE))&")"))))),"0% (0)") -> 100% (19749) | D19: =IFERROR((IF($C19="NA","NA",VLOOKUP($A$3,'G5-RED'!$A$6:$AM$500,4,FALSE))),"NA") -> 37.37400375 | E19: =IFERROR((IF($C19="NA","NA",ROUND(VLOOKUP($A$3,'G5-RED'!$A$6:$AM$500,6,FALSE),0)&"% ("&IF(VLOOKUP($A$3,'G5-RED'!$A$6:$AM$500,5,FALSE)="",0,VLOOKUP($A$3,'G5-RED'!$A$6:$AM$500,5,FALSE))&")")),"NA") -> 53% (10420) | F19: =IFERROR((IF($C19="NA","NA",VLOOKUP($A$3,'G5-RED'!$A$6:$AM$500,7,FALSE))),"NA") -> 10.56291458 | G19: NA | H19: =IFERROR((IF($C19="NA","NA",VLOOKUP($A$3,'G5-RED'!$A$6:$AM$500,10,FALSE))),"NA") -> 16.0454504 | I19: NA | J19: =IFERROR((IF($C19="NA","NA",VLOOKUP($A$3,'G5-RED'!$A$6:$AM$500,13,FALSE))),"NA") -> 6.502121626 | K19: NA | L19: =IFERROR((IF($C19="NA","NA",VLOOKUP($A$3,'G5-RED'!$A$6:$AM$500,16,FALSE))),"NA") -> 4.27186693 | M19: NA
A20: ELL | B20: =IFERROR(VLOOKUP(TEXT($A$3,"0000"),MEM_ELL!$A$2:$O$501,9,FALSE),0) -> 6350 | C20: =IFERROR((IF(OR(B20=0,B20="",B20="NA"),"NA",((IF(VLOOKUP($A$3,'G5-RELL'!$A$6:$AM$500,3,FALSE)>=B20,"100% ("&VLOOKUP($A$3,'G5-RELL'!$A$6:$AM$500,3,FALSE)&")",(ROUND((VLOOKUP($A$3,'G5-RELL'!$A$6:$AM$500,3,FALSE)/B20*100),0))&"% ("&IF(VLOOKUP($A$3,'G5-RELL'!$A$6:$AM$500,3,FALSE)="",0,VLOOKUP($A$3,'G5-RELL'!$A$6:$AM$500,3,FALSE))&")"))))),"0% (0)") -> 99% (6316) | D20: =IFERROR((IF($C20="NA","NA",VLOOKUP($A$3,'G5-RELL'!$A$6:$AM$500,4,FALSE))),"NA") -> 31.87001267 | E20: =IFERROR((IF($C20="NA","NA",ROUND(VLOOKUP($A$3,'G5-RELL'!$A$6:$AM$500,6,FALSE),0)&"% ("&IF(VLOOKUP($A$3,'G5-RELL'!$A$6:$AM$500,5,FALSE)="",0,VLOOKUP($A$3,'G5-RELL'!$A$6:$AM$500,5,FALSE))&")")),"NA") -> 29% (1821) | F20: =IFERROR((IF($C20="NA","NA",VLOOKUP($A$3,'G5-RELL'!$A$6:$AM$500,7,FALSE))),"NA") -> 8.935560481 | G20: NA | H20: =IFERROR((IF($C20="NA","NA",VLOOKUP($A$3,'G5-RELL'!$A$6:$AM$500,10,FALSE))),"NA") -> 13.71659278 | I20: NA | J20: =IFERROR((IF($C20="NA","NA",VLOOKUP($A$3,'G5-RELL'!$A$6:$AM$500,13,FALSE))),"NA") -> 5.570297657 | K20: NA | L20: =IFERROR((IF($C20="NA","NA",VLOOKUP($A$3,'G5-RELL'!$A$6:$AM$500,16,FALSE))),"NA") -> 3.647561748 | M20: NA
A21: SWD | B21: =IFERROR(VLOOKUP(TEXT($A$3,"0000"),MEM_SWD!$A$2:$O$501,9,FALSE),0) -> 2483 | C21: =IFERROR((IF(OR(B21=0,B21="",B21="NA"),"NA",((IF(VLOOKUP($A$3,'G5-RSWD'!$A$6:$AM$500,3,FALSE)>=B21,"100% ("&VLOOKUP($A$3,'G5-RSWD'!$A$6:$AM$500,3,FALSE)&")",(ROUND((VLOOKUP($A$3,'G5-RSWD'!$A$6:$AM$500,3,FALSE)/B21*100),0))&"% ("&IF(VLOOKUP($A$3,'G5-RSWD'!$A$6:$AM$500,3,FALSE)="",0,VLOOKUP($A$3,'G5-RSWD'!$A$6:$AM$500,3,FALSE))&")"))))),"0% (0)") -> 97% (2417) | D21: =IFERROR((IF($C21="NA","NA",VLOOKUP($A$3,'G5-RSWD'!$A$6:$AM$500,4,FALSE))),"NA") -> 29.65970211 | E21: =IFERROR((IF($C21="NA","NA",ROUND(VLOOKUP($A$3,'G5-RSWD'!$A$6:$AM$500,6,FALSE),0)&"% ("&IF(VLOOKUP($A$3,'G5-RSWD'!$A$6:$AM$500,5,FALSE)="",0,VLOOKUP($A$3,'G5-RSWD'!$A$6:$AM$500,5,FALSE))&")")),"NA") -> 23% (557) | F21: =IFERROR((IF($C21="NA","NA",VLOOKUP($A$3,'G5-RSWD'!$A$6:$AM$500,7,FALSE))),"NA") -> 8.547827886 | G21: NA | H21: =IFERROR((IF($C21="NA","NA",VLOOKUP($A$3,'G5-RSWD'!$A$6:$AM$500,10,FALSE))),"NA") -> 12.57215556 | I21: NA | J21: =IFERROR((IF($C21="NA","NA",VLOOKUP($A$3,'G5-RSWD'!$A$6:$AM$500,13,FALSE))),"NA") -> 5.19230451 | K21: NA | L21: =IFERROR((IF($C21="NA","NA",VLOOKUP($A$3,'G5-RSWD'!$A$6:$AM$500,16,FALSE))),"NA") -> 3.356764584 | M21: NA
A22: Math - Grade 5
A23: Satisfactory Progress Cut Scores at 63% or above | B23: Total # of Students | C23: % of Students Tested | D23: ='G3-5 Matrix'!C16&" ["&'G3-5 Matrix'!C17&"]" -> Overall [38] | F23: ='G3-5 Matrix'!D16&" ["&'G3-5 Matrix'!D17&"]" -> Number: Base Ten & Fractions [21] | H23: ='G3-5 Matrix'!E16&" ["&'G3-5 Matrix'!E17&"]" -> Expressions, Equations, & Statistics [11] | J23: ='G3-5 Matrix'!F16&" ["&'G3-5 Matrix'!F17&"]" -> Geometry and Measurement [6]
D24: Average Score | E24: % Satisfactory | F24: Average Score | G24: % Satisfactory | H24: Average Score | I24: % Satisfactory | J24: Average Score | K24: % Satisfactory
A25: All students | B25: =IFERROR(VLOOKUP(TEXT($A$3,"0000"),Mem_All!$A$2:$O$501,9,FALSE),0) -> 25529 | C25: =IFERROR((IF(OR(B25=0,B25="",B25="NA"),"NA",((IF(VLOOKUP($A$3,'G5-MALL'!$A$6:$AA$500,3,FALSE)>=B25,"100% ("&VLOOKUP($A$3,'G5-MALL'!$A$6:$AA$500,3,FALSE)&")",(ROUND((VLOOKUP($A$3,'G5-MALL'!$A$6:$AA$500,3,FALSE)/B25*100),0))&"% ("&IF(VLOOKUP($A$3,'G5-MALL'!$A$6:$AA$500,3,FALSE)="",0,VLOOKUP($A$3,'G5-MALL'!$A$6:$AA$500,3,FALSE))&")"))))),"0% (0)") -> 96% (24574) | D25: =IFERROR((IF($C25="NA","NA",VLOOKUP($A$3,'G5-MALL'!$A$6:$AM$500,4,FALSE))),"NA") -> 23.37148612 | E25: =IFERROR((IF($C25="NA","NA",ROUND(VLOOKUP($A$3,'G5-MALL'!$A$6:$AM$500,6,FALSE),0)&"% ("&IF(VLOOKUP($A$3,'G5-MALL'!$A$6:$AM$500,5,FALSE)="",0,VLOOKUP($A$3,'G5-MALL'!$A$6:$AM$500,5,FALSE))&")")),"NA") -> 50% (12337) | F25: =IFERROR((IF($C25="NA","NA",VLOOKUP($A$3,'G5-MALL'!$A$6:$AM$500,7,FALSE))),"NA") -> 11.69584113 | G25: NA | H25: =IFERROR((IF($C25="NA","NA",VLOOKUP($A$3,'G5-MALL'!$A$6:$AM$500,10,FALSE))),"NA") -> 7.341775861 | I25: NA | J25: =IFERROR((IF($C25="NA","NA",VLOOKUP($A$3,'G5-MALL'!$A$6:$AM$500,13,FALSE))),"NA") -> 4.334296411 | K25: NA
A26: FCAT Level 1 | B26: =IFERROR(VLOOKUP(TEXT($A$3,"0000"),MEM_ML1!$A$2:$O$501,6,FALSE),0) -> 4095 | C26: =IFERROR((IF(OR(B26=0,B26="",B26="NA"),"NA",((IF(VLOOKUP($A$3,'G5-ML1'!$A$6:$AG$500,3,FALSE)>=B26,"100% ("&VLOOKUP($A$3,'G5-ML1'!$A$6:$AG$500,3,FALSE)&")",(ROUND((VLOOKUP($A$3,'G5-ML1'!$A$6:$AG$500,3,FALSE)/B26*100),0))&"% ("&IF(VLOOKUP($A$3,'G5-ML1'!$A$6:$AG$500,3,FALSE)="",0,VLOOKUP($A$3,'G5-ML1'!$A$6:$AG$500,3,FALSE))&")"))))),"0% (0)") -> 96% (3929) | D26: =IFERROR((IF($C26="NA","NA",VLOOKUP($A$3,'G5-ML1'!$A$6:$AM$500,4,FALSE))),"NA") -> 15.88533978 | E26: =IFERROR((IF($C26="NA","NA",ROUND(VLOOKUP($A$3,'G5-ML1'!$A$6:$AM$500,6,FALSE),0)&"% ("&IF(VLOOKUP($A$3,'G5-ML1'!$A$6:$AM$500,5,FALSE)="",0,VLOOKUP($A$3,'G5-ML1'!$A$6:$AM$500,5,FALSE))&")")),"NA") -> 8% (318) | F26: =IFERROR((IF($C26="NA","NA",VLOOKUP($A$3,'G5-ML1'!$A$6:$AM$500,7,FALSE))),"NA") -> 7.211046068 | G26: NA | H26: =IFERROR((IF($C26="NA","NA",VLOOKUP($A$3,'G5-ML1'!$A$6:$AM$500,10,FALSE))),"NA") -> 5.481038432 | I26: NA | J26: =IFERROR((IF($C26="NA","NA",VLOOKUP($A$3,'G5-ML1'!$A$6:$AM$500,13,FALSE))),"NA") -> 3.198396539 | K26: NA
A27: FCAT Level 2 | B27: =IFERROR(VLOOKUP(TEXT($A$3,"0000"),MEM_ML2!$A$2:$O$501,6,FALSE),0) -> 4808 | C27: =IFERROR((IF(OR(B27=0,B27="",B27="NA"),"NA",((IF(VLOOKUP($A$3,'G5-ML2'!$A$6:$AG$500,3,FALSE)>=B27,"100% ("&VLOOKUP($A$3,'G5-ML2'!$A$6:$AG$500,3,FALSE)&")",(ROUND((VLOOKUP($A$3,'G5-ML2'!$A$6:$AG$500,3,FALSE)/B27*100),0))&"% ("&IF(VLOOKUP($A$3,'G5-ML2'!$A$6:$AG$500,3,FALSE)="",0,VLOOKUP($A$3,'G5-ML2'!$A$6:$AG$500,3,FALSE))&")"))))),"0% (0)") -> 97% (4678) | D27: =IFERROR((IF($C27="NA","NA",VLOOKUP($A$3,'G5-ML2'!$A$6:$AM$500,4,FALSE))),"NA") -> 20.11626764 | E27: =IFERROR((IF($C27="NA","NA",ROUND(VLOOKUP($A$3,'G5-ML2'!$A$6:$AM$500,6,FALSE),0)&"% ("&IF(VLOOKUP($A$3,'G5-ML2'!$A$6:$AM$500,5,FALSE)="",0,VLOOKUP($A$3,'G5-ML2'!$A$6:$AM$500,5,FALSE))&")")),"NA") -> 26% (1214) | F27: =IFERROR((IF($C27="NA","NA",VLOOKUP($A$3,'G5-ML2'!$A$6:$AM$500,7,FALSE))),"NA") -> 9.507374947 | G27: NA | H27: =IFERROR((IF($C27="NA","NA",VLOOKUP($A$3,'G5-ML2'!$A$6:$AM$500,10,FALSE))),"NA") -> 6.614215477 | I27: NA | J27: =IFERROR((IF($C27="NA","NA",VLOOKUP($A$3,'G5-ML2'!$A$6:$AM$500,13,FALSE))),"NA") -> 4.00012826 | K27: NA
A28: FCAT Level 3 | B28: =IFERROR(VLOOKUP(TEXT($A$3,"0000"),MEM_ML3!$A$2:$O$501,6,FALSE),0) -> 6715 | C28: =IFERROR((IF(OR(B28=0,B28="",B28="NA"),"NA",((IF(VLOOKUP($A$3,'G5-ML3'!$A$6:$AG$500,3,FALSE)>=B28,"100% ("&VLOOKUP($A$3,'G5-ML3'!$A$6:$AG$500,3,FALSE)&")",(ROUND((VLOOKUP($A$3,'G5-ML3'!$A$6:$AG$500,3,FALSE)/B28*100),0))&"% ("&IF(VLOOKUP($A$3,'G5-ML3'!$A$6:$AG$500,3,FALSE)="",0,VLOOKUP($A$3,'G5-ML3'!$A$6:$AG$500,3,FALSE))&")"))))),"0% (0)") -> 98% (6561) | D28: =IFERROR((IF($C28="NA","NA",VLOOKUP($A$3,'G5-ML3'!$A$6:$AM$500,4,FALSE))),"NA") -> 23.69669258 | E28: =IFERROR((IF($C28="NA","NA",ROUND(VLOOKUP($A$3,'G5-ML3'!$A$6:$AM$500,6,FALSE),0)&"% ("&IF(VLOOKUP($A$3,'G5-ML3'!$A$6:$AM$500,5,FALSE)="",0,VLOOKUP($A$3,'G5-ML3'!$A$6:$AM$500,5,FALSE))&")")),"NA") -> 52% (3440) | F28: =IFERROR((IF($C28="NA","NA",VLOOKUP($A$3,'G5-ML3'!$A$6:$AM$500,7,FALSE))),"NA") -> 11.75299497 | G28: NA | H28: =IFERROR((IF($C28="NA","NA",VLOOKUP($A$3,'G5-ML3'!$A$6:$AM$500,10,FALSE))),"NA") -> 7.501005944 | I28: NA | J28: =IFERROR((IF($C28="NA","NA",VLOOKUP($A$3,'G5-ML3'!$A$6:$AM$500,13,FALSE))),"NA") -> 4.443636641 | K28: NA
A29: FCAT Level 4 | B29: =IFERROR(VLOOKUP(TEXT($A$3,"0000"),MEM_ML4!$A$2:$O$501,6,FALSE),0) -> 5178 | C29: =IFERROR((IF(OR(B29=0,B29="",B29="NA"),"NA",((IF(VLOOKUP($A$3,'G5-ML4'!$A$6:$AG$500,3,FALSE)>=B29,"100% ("&VLOOKUP($A$3,'G5-ML4'!$A$6:$AG$500,3,FALSE)&")",(ROUND((VLOOKUP($A$3,'G5-ML4'!$A$6:$AG$500,3,FALSE)/B29*100),0))&"% ("&IF(VLOOKUP($A$3,'G5-ML4'!$A$6:$AG$500,3,FALSE)="",0,VLOOKUP($A$3,'G5-ML4'!$A$6:$AG$500,3,FALSE))&")"))))),"0% (0)") -> 98% (5077) | D29: =IFERROR((IF($C29="NA","NA",VLOOKUP($A$3,'G5-ML4'!$A$6:$AM$500,4,FALSE))),"NA") -> 27.58896986 | E29: =IFERROR((IF($C29="NA","NA",ROUND(VLOOKUP($A$3,'G5-ML4'!$A$6:$AM$500,6,FALSE),0)&"% ("&IF(VLOOKUP($A$3,'G5-ML4'!$A$6:$AM$500,5,FALSE)="",0,VLOOKUP($A$3,'G5-ML4'!$A$6:$AM$500,5,FALSE))&")")),"NA") -> 79% (4007) | F29: =IFERROR((IF($C29="NA","NA",VLOOKUP($A$3,'G5-ML4'!$A$6:$AM$500,7,FALSE))),"NA") -> 14.34538113 | G29: NA | H29: =IFERROR((IF($C29="NA","NA",VLOOKUP($A$3,'G5-ML4'!$A$6:$AM$500,10,FALSE))),"NA") -> 8.350718929 | I29: NA | J29: =IFERROR((IF($C29="NA","NA",VLOOKUP($A$3,'G5-ML4'!$A$6:$AM$500,13,FALSE))),"NA") -> 4.901575734 | K29: NA
A30: FCAT Level 5 | B30: =IFERROR(VLOOKUP(TEXT($A$3,"0000"),MEM_ML5!$A$3:$M$501,6,FALSE),0) -> 3226 | C30: =IFERROR((IF(OR(B30=0,B30="",B30="NA"),"NA",((IF(VLOOKUP($A$3,'G5-ML5'!$A$6:$AG$500,3,FALSE)>=B30,"100% ("&VLOOKUP($A$3,'G5-ML5'!$A$6:$AG$500,3,FALSE)&")",(ROUND((VLOOKUP($A$3,'G5-ML5'!$A$6:$AG$500,3,FALSE)/B30*100),0))&"% ("&IF(VLOOKUP($A$3,'G5-ML5'!$A$6:$AG$500,3,FALSE)="",0,VLOOKUP($A$3,'G5-ML5'!$A$6:$AG$500,3,FALSE))&")"))))),"0% (0)") -> 98% (3164) | D30: =IFERROR((IF($C30="NA","NA",VLOOKUP($A$3,'G5-ML5'!$A$6:$AM$500,4,FALSE))),"NA") -> 31.29266751 | E30: =IFERROR((IF($C30="NA","NA",ROUND(VLOOKUP($A$3,'G5-ML5'!$A$6:$AM$500,6,FALSE),0)&"% ("&IF(VLOOKUP($A$3,'G5-ML5'!$A$6:$AM$500,5,FALSE)="",0,VLOOKUP($A$3,'G5-ML5'!$A$6:$AM$500,5,FALSE))&")")),"NA") -> 93% (2956) | F30: =IFERROR((IF($C30="NA","NA",VLOOKUP($A$3,'G5-ML5'!$A$6:$AM$500,7,FALSE))),"NA") -> 16.78211125 | G30: NA | H30: =IFERROR((IF($C30="NA","NA",VLOOKUP($A$3,'G5-ML5'!$A$6:$AM$500,10,FALSE))),"NA") -> 9.147661188 | I30: NA | J30: =IFERROR((IF($C30="NA","NA",VLOOKUP($A$3,'G5-ML5'!$A$6:$AM$500,13,FALSE))),"NA") -> 5.357364096 | K30: NA
A31: White | B31: =IFERROR(VLOOKUP(TEXT($A$3,"0000"),MEM_W!$A$2:$O$501,9,FALSE),0) -> 2134 | C31: =IFERROR((IF(OR(B31=0,B31="",B31="NA"),"NA",((IF(VLOOKUP($A$3,'G5-MW'!$A$6:$AG$500,3,FALSE)>=B31,"100% ("&VLOOKUP($A$3,'G5-MW'!$A$6:$AG$500,3,FALSE)&")",(ROUND((VLOOKUP($A$3,'G5-MW'!$A$6:$AG$500,3,FALSE)/B31*100),0))&"% ("&IF(VLOOKUP($A$3,'G5-MW'!$A$6:$AG$500,3,FALSE)="",0,VLOOKUP($A$3,'G5-MW'!$A$6:$AG$500,3,FALSE))&")"))))),"0% (0)") -> 95% (2022) | D31: =IFERROR((IF($C31="NA","NA",VLOOKUP($A$3,'G5-MW'!$A$6:$AM$500,4,FALSE))),"NA") -> 25.64826904 | E31: =IFERROR((IF($C31="NA","NA",ROUND(VLOOKUP($A$3,'G5-MW'!$A$6:$AM$500,6,FALSE),0)&"% ("&IF(VLOOKUP($A$3,'G5-MW'!$A$6:$AM$500,5,FALSE)="",0,VLOOKUP($A$3,'G5-MW'!$A$6:$AM$500,5,FALSE))&")")),"NA") -> 64% (1289) | F31: =IFERROR((IF($C31="NA","NA",VLOOKUP($A$3,'G5-MW'!$A$6:$AM$500,7,FALSE))),"NA") -> 13.15212661 | G31: NA | H31: =IFERROR((IF($C31="NA","NA",VLOOKUP($A$3,'G5-MW'!$A$6:$AM$500,10,FALSE))),"NA") -> 7.857072206 | I31: NA | J31: =IFERROR((IF($C31="NA","NA",VLOOKUP($A$3,'G5-MW'!$A$6:$AM$500,13,FALSE))),"NA") -> 4.65603363 | K31: NA
A32: Black | B32: =IFERROR(VLOOKUP(TEXT($A$3,"0000"),MEM_B!$A$2:$O$501,9,FALSE),0) -> 5742 | C32: =IFERROR((IF(OR(B32=0,B32="",B32="NA"),"NA",((IF(VLOOKUP($A$3,'G5-MB'!$A$6:$AG$500,3,FALSE)>=B32,"100% ("&VLOOKUP($A$3,'G5-MB'!$A$6:$AG$500,3,FALSE)&")",(ROUND((VLOOKUP($A$3,'G5-MB'!$A$6:$AG$500,3,FALSE)/B32*100),0))&"% ("&IF(VLOOKUP($A$3,'G5-MB'!$A$6:$AG$500,3,FALSE)="",0,VLOOKUP($A$3,'G5-MB'!$A$6:$AG$500,3,FALSE))&")"))))),"0% (0)") -> 96% (5537) | D32: =IFERROR((IF($C32="NA","NA",VLOOKUP($A$3,'G5-MB'!$A$6:$AM$500,4,FALSE))),"NA") -> 22.07374029 | E32: =IFERROR((IF($C32="NA","NA",ROUND(VLOOKUP($A$3,'G5-MB'!$A$6:$AM$500,6,FALSE),0)&"% ("&IF(VLOOKUP($A$3,'G5-MB'!$A$6:$AM$500,5,FALSE)="",0,VLOOKUP($A$3,'G5-MB'!$A$6:$AM$500,5,FALSE))&")")),"NA") -> 43% (2365) | F32: =IFERROR((IF($C32="NA","NA",VLOOKUP($A$3,'G5-MB'!$A$6:$AM$500,7,FALSE))),"NA") -> 10.86566733 | G32: NA | H32: =IFERROR((IF($C32="NA","NA",VLOOKUP($A$3,'G5-MB'!$A$6:$AM$500,10,FALSE))),"NA") -> 7.076810547 | I32: NA | J32: =IFERROR((IF($C32="NA","NA",VLOOKUP($A$3,'G5-MB'!$A$6:$AM$500,13,FALSE))),"NA") -> 4.141213654 | K32: NA
A33: Hispanic | B33: =IFERROR(VLOOKUP(TEXT($A$3,"0000"),MEM_H!$A$2:$O$501,9,FALSE),0) -> 17216 | C33: =IFERROR((IF(OR(B33=0,B33="",B33="NA"),"NA",((IF(VLOOKUP($A$3,'G5-MH'!$A$6:$AG$500,3,FALSE)>=B33,"100% ("&VLOOKUP($A$3,'G5-MH'!$A$6:$AG$500,3,FALSE)&")",(ROUND((VLOOKUP($A$3,'G5-MH'!$A$6:$AG$500,3,FALSE)/B33*100),0))&"% ("&IF(VLOOKUP($A$3,'G5-MH'!$A$6:$AG$500,3,FALSE)="",0,VLOOKUP($A$3,'G5-MH'!$A$6:$AG$500,3,FALSE))&")"))))),"0% (0)") -> 96% (16598) | D33: =IFERROR((IF($C33="NA","NA",VLOOKUP($A$3,'G5-MH'!$A$6:$AM$500,4,FALSE))),"NA") -> 23.43332329 | E33: =IFERROR((IF($C33="NA","NA",ROUND(VLOOKUP($A$3,'G5-MH'!$A$6:$AM$500,6,FALSE),0)&"% ("&IF(VLOOKUP($A$3,'G5-MH'!$A$6:$AM$500,5,FALSE)="",0,VLOOKUP($A$3,'G5-MH'!$A$6:$AM$500,5,FALSE))&")")),"NA") -> 51% (8388) | F33: =IFERROR((IF($C33="NA","NA",VLOOKUP($A$3,'G5-MH'!$A$6:$AM$500,7,FALSE))),"NA") -> 11.72990119 | G33: NA | H33: =IFERROR((IF($C33="NA","NA",VLOOKUP($A$3,'G5-MH'!$A$6:$AM$500,10,FALSE))),"NA") -> 7.348403422 | I33: NA | J33: =IFERROR((IF($C33="NA","NA",VLOOKUP($A$3,'G5-MH'!$A$6:$AM$500,13,FALSE))),"NA") -> 4.349126401 | K33: NA
A34: Asian | B34: =IFERROR(VLOOKUP(TEXT($A$3,"0000"),MEM_A!$A$2:$O$501,9,FALSE),0) -> 319 | C34: =IFERROR((IF(OR(B34=0,B34="",B34="NA"),"NA",((IF(VLOOKUP($A$3,'G5-MA'!$A$6:$AG$500,3,FALSE)>=B34,"100% ("&VLOOKUP($A$3,'G5-MA'!$A$6:$AG$500,3,FALSE)&")",(ROUND((VLOOKUP($A$3,'G5-MA'!$A$6:$AG$500,3,FALSE)/B34*100),0))&"% ("&IF(VLOOKUP($A$3,'G5-MA'!$A$6:$AG$500,3,FALSE)="",0,VLOOKUP($A$3,'G5-MA'!$A$6:$AG$500,3,FALSE))&")"))))),"0% (0)") -> 95% (302) | D34: =IFERROR((IF($C34="NA","NA",VLOOKUP($A$3,'G5-MA'!$A$6:$AM$500,4,FALSE))),"NA") -> 28.2218543 | E34: =IFERROR((IF($C34="NA","NA",ROUND(VLOOKUP($A$3,'G5-MA'!$A$6:$AM$500,6,FALSE),0)&"% ("&IF(VLOOKUP($A$3,'G5-MA'!$A$6:$AM$500,5,FALSE)="",0,VLOOKUP($A$3,'G5-MA'!$A$6:$AM$500,5,FALSE))&")")),"NA") -> 77% (233) | F34: =IFERROR((IF($C34="NA","NA",VLOOKUP($A$3,'G5-MA'!$A$6:$AM$500,7,FALSE))),"NA") -> 14.85728477 | G34: NA | H34: =IFERROR((IF($C34="NA","NA",VLOOKUP($A$3,'G5-MA'!$A$6:$AM$500,10,FALSE))),"NA") -> 8.36986755 | I34: NA | J34: =IFERROR((IF($C34="NA","NA",VLOOKUP($A$3,'G5-MA'!$A$6:$AM$500,13,FALSE))),"NA") -> 5.006622517 | K34: NA
A35: Am. Indian | B35: =IFERROR(VLOOKUP(TEXT($A$3,"0000"),MEM_I!$A$2:$O$501,9,FALSE),0) -> 23 | C35: =IFERROR((IF(OR(B35=0,B35="",B35="NA"),"NA",((IF(VLOOKUP($A$3,'G5-MI'!$A$6:$AG$500,3,FALSE)>=B35,"100% ("&VLOOKUP($A$3,'G5-MI'!$A$6:$AG$500,3,FALSE)&")",(ROUND((VLOOKUP($A$3,'G5-MI'!$A$6:$AG$500,3,FALSE)/B35*100),0))&"% ("&IF(VLOOKUP($A$3,'G5-MI'!$A$6:$AG$500,3,FALSE)="",0,VLOOKUP($A$3,'G5-MI'!$A$6:$AG$500,3,FALSE))&")"))))),"0% (0)") -> 96% (22) | D35: =IFERROR((IF($C35="NA","NA",VLOOKUP($A$3,'G5-MI'!$A$6:$AM$500,4,FALSE))),"NA") -> 23.45454545 | E35: =IFERROR((IF($C35="NA","NA",ROUND(VLOOKUP($A$3,'G5-MI'!$A$6:$AM$500,6,FALSE),0)&"% ("&IF(VLOOKUP($A$3,'G5-MI'!$A$6:$AM$500,5,FALSE)="",0,VLOOKUP($A$3,'G5-MI'!$A$6:$AM$500,5,FALSE))&")")),"NA") -> 50% (11) | F35: =IFERROR((IF($C35="NA","NA",VLOOKUP($A$3,'G5-MI'!$A$6:$AM$500,7,FALSE))),"NA") -> 11.63636364 | G35: NA | H35: =IFERROR((IF($C35="NA","NA",VLOOKUP($A$3,'G5-MI'!$A$6:$AM$500,10,FALSE))),"NA") -> 7.272727273 | I35: NA | J35: =IFERROR((IF($C35="NA","NA",VLOOKUP($A$3,'G5-MI'!$A$6:$AM$500,13,FALSE))),"NA") -> 4.545454545 | K35: NA
A36: ED | B36: =IFERROR(VLOOKUP(TEXT($A$3,"0000"),MEM_ED!$A$2:$O$501,9,FALSE),0) -> 19444 | C36: =IFERROR((IF(OR(B36=0,B36="",B36="NA"),"NA",((IF(VLOOKUP($A$3,'G5-MED'!$A$6:$AG$500,3,FALSE)>=B36,"100% ("&VLOOKUP($A$3,'G5-MED'!$A$6:$AG$500,3,FALSE)&")",(ROUND((VLOOKUP($A$3,'G5-MED'!$A$6:$AG$500,3,FALSE)/B36*100),0))&"% ("&IF(VLOOKUP($A$3,'G5-MED'!$A$6:$AG$500,3,FALSE)="",0,VLOOKUP($A$3,'G5-MED'!$A$6:$AG$500,3,FALSE))&")"))))),"0% (0)") -> 100% (19620) | D36: =IFERROR((IF($C36="NA","NA",VLOOKUP($A$3,'G5-MED'!$A$6:$AM$500,4,FALSE))),"NA") -> 22.64711009 | E36: =IFERROR((IF($C36="NA","NA",ROUND(VLOOKUP($A$3,'G5-MED'!$A$6:$AM$500,6,FALSE),0)&"% ("&IF(VLOOKUP($A$3,'G5-MED'!$A$6:$AM$500,5,FALSE)="",0,VLOOKUP($A$3,'G5-MED'!$A$6:$AM$500,5,FALSE))&")")),"NA") -> 46% (9008) | F36: =IFERROR((IF($C36="NA","NA",VLOOKUP($A$3,'G5-MED'!$A$6:$AM$500,7,FALSE))),"NA") -> 11.22253823 | G36: NA | H36: =IFERROR((IF($C36="NA","NA",VLOOKUP($A$3,'G5-MED'!$A$6:$AM$500,10,FALSE))),"NA") -> 7.174765545 | I36: NA | J36: =IFERROR((IF($C36="NA","NA",VLOOKUP($A$3,'G5-MED'!$A$6:$AM$500,13,FALSE))),"NA") -> 4.242675841 | K36: NA
A37: ELL | B37: =IFERROR(VLOOKUP(TEXT($A$3,"0000"),MEM_ELL!$A$2:$O$501,9,FALSE),0) -> 6350 | C37: =IFERROR((IF(OR(B37=0,B37="",B37="NA"),"NA",((IF(VLOOKUP($A$3,'G5-MELL'!$A$6:$AG$500,3,FALSE)>=B37,"100% ("&VLOOKUP($A$3,'G5-MELL'!$A$6:$AG$500,3,FALSE)&")",(ROUND((VLOOKUP($A$3,'G5-MELL'!$A$6:$AG$500,3,FALSE)/B37*100),0))&"% ("&IF(VLOOKUP($A$3,'G5-MELL'!$A$6:$AG$500,3,FALSE)="",0,VLOOKUP($A$3,'G5-MELL'!$A$6:$AG$500,3,FALSE))&")"))))),"0% (0)") -> 99% (6269) | D37: =IFERROR((IF($C37="NA","NA",VLOOKUP($A$3,'G5-MELL'!$A$6:$AM$500,4,FALSE))),"NA") -> 19.9333227 | E37: =IFERROR((IF($C37="NA","NA",ROUND(VLOOKUP($A$3,'G5-MELL'!$A$6:$AM$500,6,FALSE),0)&"% ("&IF(VLOOKUP($A$3,'G5-MELL'!$A$6:$AM$500,5,FALSE)="",0,VLOOKUP($A$3,'G5-MELL'!$A$6:$AM$500,5,FALSE))&")")),"NA") -> 30% (1865) | F37: =IFERROR((IF($C37="NA","NA",VLOOKUP($A$3,'G5-MELL'!$A$6:$AM$500,7,FALSE))),"NA") -> 9.638379327 | G37: NA | H37: =IFERROR((IF($C37="NA","NA",VLOOKUP($A$3,'G5-MELL'!$A$6:$AM$500,10,FALSE))),"NA") -> 6.47312171 | I37: NA | J37: =IFERROR((IF($C37="NA","NA",VLOOKUP($A$3,'G5-MELL'!$A$6:$AM$500,13,FALSE))),"NA") -> 3.821821662 | K37: NA
A38: SWD | B38: =IFERROR(VLOOKUP(TEXT($A$3,"0000"),MEM_SWD!$A$2:$O$501,9,FALSE),0) -> 2483 | C38: =IFERROR((IF(OR(B38=0,B38="",B38="NA"),"NA",((IF(VLOOKUP($A$3,'G5-MSWD'!$A$6:$AG$500,3,FALSE)>=B38,"100% ("&VLOOKUP($A$3,'G5-MSWD'!$A$6:$AG$500,3,FALSE)&")",(ROUND((VLOOKUP($A$3,'G5-MSWD'!$A$6:$AG$500,3,FALSE)/B38*100),0))&"% ("&IF(VLOOKUP($A$3,'G5-MSWD'!$A$6:$AG$500,3,FALSE)="",0,VLOOKUP($A$3,'G5-MSWD'!$A$6:$AG$500,3,FALSE))&")"))))),"0% (0)") -> 97% (2404) | D38: =IFERROR((IF($C38="NA","NA",VLOOKUP($A$3,'G5-MSWD'!$A$6:$AM$500,4,FALSE))),"NA") -> 18.54496672 | E38: =IFERROR((IF($C38="NA","NA",ROUND(VLOOKUP($A$3,'G5-MSWD'!$A$6:$AM$500,6,FALSE),0)&"% ("&IF(VLOOKUP($A$3,'G5-MSWD'!$A$6:$AM$500,5,FALSE)="",0,VLOOKUP($A$3,'G5-MSWD'!$A$6:$AM$500,5,FALSE))&")")),"NA") -> 24% (580) | F38: =IFERROR((IF($C38="NA","NA",VLOOKUP($A$3,'G5-MSWD'!$A$6:$AM$500,7,FALSE))),"NA") -> 8.734733777 | G38: NA | H38: =IFERROR((IF($C38="NA","NA",VLOOKUP($A$3,'G5-MSWD'!$A$6:$AM$500,10,FALSE))),"NA") -> 6.171006656 | I38: NA | J38: =IFERROR((IF($C38="NA","NA",VLOOKUP($A$3,'G5-MSWD'!$A$6:$AM$500,13,FALSE))),"NA") -> 3.646547421 | K38: NA
A39: Science - Grade 5
A40: Satisfactory Progress Cut Scores at 53% or above | B40: Total # of Students | C40: % of Students Tested | D40: ='G3-5 Matrix'!C19&" ["&'G3-5 Matrix'!C20&"]" -> Overall [68] | F40: ='G3-5 Matrix'!D19&" ["&'G3-5 Matrix'!D20&"]" -> Nature of Science [9] | H40: ='G3-5 Matrix'!E19&" ["&'G3-5 Matrix'!E20&"]" -> Earth & Space Science [20] | J40: ='G3-5 Matrix'!F19&" ["&'G3-5 Matrix'!F20&"]" -> Physical Science [24] | L40: ='G3-5 Matrix'!G19&" ["&'G3-5 Matrix'!G20&"]" -> Life Science [15]
D41: Average Score | E41: % Satisfactory | F41: Average Score | G41: % Satisfactory | H41: Average Score | I41: % Satisfactory | J41: Average Score | K41: % Satisfactory | L41: Average Score | M41: % Satisfactory
A42: All students | B42: =IFERROR(VLOOKUP(TEXT($A$3,"0000"),Mem_All!$A$2:$O$501,9,FALSE),0) -> 25529 | C42: =IFERROR((IF(OR(B42=0,B42="",B42="NA"),"NA",((IF(VLOOKUP($A$3,'G5-SALL'!$A$6:$AM$500,3,FALSE)>=B42,"100% ("&VLOOKUP($A$3,'G5-SALL'!$A$6:$AM$500,3,FALSE)&")",(ROUND((VLOOKUP($A$3,'G5-SALL'!$A$6:$AM$500,3,FALSE)/B42*100),0))&"% ("&IF(VLOOKUP($A$3,'G5-SALL'!$A$6:$AM$500,3,FALSE)="",0,VLOOKUP($A$3,'G5-SALL'!$A$6:$AM$500,3,FALSE))&")"))))),"0% (0)") -> 96% (24415) | D42: =IFERROR((IF($C42="NA","NA",VLOOKUP($A$3,'G5-SALL'!$A$6:$AM$500,4,FALSE))),"NA") -> 36.35738276 | E42: =IFERROR((IF($C42="NA","NA",ROUND(VLOOKUP($A$3,'G5-SALL'!$A$6:$AM$500,6,FALSE),0)&"% ("&IF(VLOOKUP($A$3,'G5-SALL'!$A$6:$AM$500,5,FALSE)="",0,VLOOKUP($A$3,'G5-SALL'!$A$6:$AM$500,5,FALSE))&")")),"NA") -> 52% (12802) | F42: =IFERROR((IF($C42="NA","NA",VLOOKUP($A$3,'G5-SALL'!$A$6:$AM$500,7,FALSE))),"NA") -> 4.276465288 | G42: NA | H42: =IFERROR((IF($C42="NA","NA",VLOOKUP($A$3,'G5-SALL'!$A$6:$AM$500,10,FALSE))),"NA") -> 11.40219947 | I42: NA | J42: =IFERROR((IF($C42="NA","NA",VLOOKUP($A$3,'G5-SALL'!$A$6:$AM$500,13,FALSE))),"NA") -> 13.38740528 | K42: NA | L42: =IFERROR((IF($C42="NA","NA",VLOOKUP($A$3,'G5-SALL'!$A$6:$AM$500,16,FALSE))),"NA") -> 7.29557649 | M42: NA

Sheet G3-5 Matrix (hidden)
A2: Grade | B2: Reading | C2: Overall | D2: Vocabulary | E2: Reading Application | F2: Literary Analysis Fiction/Nonfiction | G2: Informational Text/ Research Process
A3: 3 | B3: N of Items | C3: =SUM(D3:G3) -> 56 | D3: 15 | E3: 25 | F3: 12 | G3: 4
A4: 3 | B4: 51% Cut | C4: =ROUND(0.505*C3,2) -> 28.28 | D4: =ROUND(0.505*D3,2) -> 7.58 | E4: 12.63 | F4: 6.06 | G4: 2.02
A5: 4 | B5: N of Items | C5: =SUM(D5:G5) -> 51 | D5: 16 | E5: 20 | F5: 10 | G5: 5
A6: 4 | B6: 51% Cut | C6: =ROUND(0.505*C5,2) -> 25.76 | D6: =ROUND(0.505*D5,2) -> 8.08 | E6: 10.1 | F6: 5.05 | G6: 2.53
A7: 5 | B7: N of Items | C7: =SUM(D7:G7) -> 59 | D7: 15 | E7: 25 | F7: 11 | G7: 8
A8: 5 | B8: 51% Cut | C8: =ROUND(0.505*C7,2) -> 29.8 | D8: =ROUND(0.505*D7,2) -> 7.58 | E8: 12.63 | F8: 5.56 | G8: 4.04
A10: 3 | B10: Math | C10: Overall | D10: Number: Operations, Problems, & Statistics | E10: Number: Fractions | F10: Geometry and Measurement
A11: 3 | B11: N of Items | C11: =SUM(D11:F11) -> 34 | D11: 16 | E11: 18 | F11: 0
A12: 3 | B12: 51% Cut | C12: =ROUND(0.505*C11,2) -> 17.17 | D12: =ROUND(0.505*D11,2) -> 8.08 | E12: 9.09 | F12: 0
A13: 4 | B13: Math | C13: Overall | D13: Number: Operations & Problems | E13: Number: Base Ten and Fractions | F13: Geometry and Measurement
A14: 4 | B14: N of Items | C14: =SUM(D14:G14) -> 40 | D14: 20 | E14: 20 | F14: 0
A15: 4 | B15: 51% Cut | C15: =ROUND(0.505*C14,2) -> 20.2 | D15: =ROUND(0.505*D14,2) -> 10.1 | E15: 10.1 | F15: 0
A16: 5 | B16: Math | C16: Overall | D16: Number: Base Ten & Fractions | E16: Expressions, Equations, & Statistics | F16: Geometry and Measurement
A17: 5 | B17: N of Items | C17: =SUM(D17:F17) -> 38 | D17: 21 | E17: 11 | F17: 6
A18: 5 | B18: 51% Cut | C18: =ROUND(0.505*C17,2) -> 19.19 | D18: =ROUND(0.505*D17,2) -> 10.61 | E18: 5.56 | F18: 3.03
A19: 5 | B19: Science | C19: Overall | D19: Nature of Science | E19: Earth & Space Science | F19: Physical Science | G19: Life Science
A20: 5 | B20: N of Items | C20: =SUM(D20:G20) -> 68 | D20: 9 | E20: 20 | F20: 24 | G20: 15
A21: 5 | B21: 51% Cut | C21: =ROUND(0.505*C20,2) -> 34.34 | D21: =ROUND(0.505*D20,2) -> 4.55 | E21: 10.1 | F21: 12.12 | G21: 7.58

Sheet Mem_All (hidden)
A1: SCHOOL_NUMBER | B1: S_SCHL_NAME | C1: Total Of STUDENT_ID | D1: 00 | E1: 01 | F1: 02 | G1: 03 | H1: 04 | I1: 05 | J1: 06 | K1: 07 | L1: 08 | M1: 09 | N1: 10 | O1: 11 | P1: 12 | Q1: PK
A2: 0041 | B2: AIR BASE ELEMENTARY | C2: 731 | D2: 96 | E2: 107 | F2: 117 | G2: 109 | H2: 115 | I2: 116 | Q2: 71
A3: 0070 | B3: CORAL REEF MONTESSORI ACAD CH | C3: 416 | D3: 73 | E3: 57 | F3: 57 | G3: 55 | H3: 42 | I3: 41 | J3: 29 | K3: 31 | L3: 31
A4: 0071 | B4: EUGENIA B. THOMAS K-8 CENTER | C4: 1609 | D4: 152 | E4: 198 | F4: 181 | G4: 196 | H4: 192 | I4: 160 | J4: 150 | K4: 160 | L4: 178 | Q4: 42
A5: 0072 | B5: SUMMERVILLE CHARTER SCHOOL | C5: 433 | E5: 101 | F5: 82 | G5: 84 | H5: 78 | I5: 88
A6: 0073 | B6: MANDARIN LAKES K-8 CENTER | C6: 1091 | D6: 125 | E6: 146 | F6: 144 | G6: 152 | H6: 119 | I6: 120 | J6: 113 | K6: 74 | L6: 98
A7: 0081 | B7: LENORA B. SMITH ELEMENTARY | C7: 424 | D7: 59 | E7: 65 | F7: 68 | G7: 77 | H7: 63 | I7: 54 | Q7: 38
A8: 0091 | B8: BOB GRAHAM EDUCATION CTR | C8: 1719 | D8: 124 | E8: 146 | F8: 161 | G8: 193 | H8: 215 | I8: 195 | J8: 218 | K8: 227 | L8: 240
A9: 0092 | B9: NORMAN S. EDELCUP/SUNNY ISLES | C9: 1796 | D9: 203 | E9: 206 | F9: 217 | G9: 219 | H9: 209 | I9: 167 | J9: 184 | K9: 197 | L9: 194
A10: 0100 | B10: MATER ACADEMY | C10: 744 | D10: 123 | E10: 96 | F10: 148 | G10: 124 | H10: 126 | I10: 127
A11: 0101 | B11: ARCOLA LAKE ELEMENTARY | C11: 534 | D11: 66 | E11: 73 | F11: 70 | G11: 70 | H11: 65 | I11: 86 | Q11: 104
A12: 0102 | B12: MIAMI COMMUNITY CHARTER SCHOOL | C12: 515 | D12: 95 | E12: 97 | F12: 94 | G12: 89 | H12: 72 | I12: 68
A13: 0111 | B13: MAYA ANGELOU ELEMENTARY | C13: 718 | D13: 146 | E13: 117 | F13: 105 | G13: 99 | H13: 88 | I13: 97 | Q13: 66
A14: 0121 | B14: AUBURNDALE ELEMENTARY | C14: 844 | D14: 102 | E14: 149 | F14: 134 | G14: 132 | H14: 136 | I14: 132 | Q14: 59
A15: 0122 | B15: DR ROLANDO ESPINOSA K-8 | C15: 1650 | D15: 146 | E15: 171 | F15: 188 | G15: 182 | H15: 202 | I15: 174 | J15: 187 | K15: 184 | L15: 196 | Q15: 20
A16: 0125 | B16: NORMA BUTLER BOSSARD ELEM | C16: 1263 | D16: 201 | E16: 207 | F16: 176 | G16: 229 | H16: 203 | I16: 227 | Q16: 20
A17: 0161 | B17: AVOCADO ELEMENTARY | C17: 576 | D17: 142 | E17: 143 | F17: 151 | G17: 140
A18: 0201 | B18: BANYAN ELEMENTARY | C18: 364 | D18: 53 | E18: 59 | F18: 62 | G18: 37 | H18: 58 | I18: 54 | Q18: 41
A19: 0211 | B19: DR. MANUEL C. BARREIRO ELEM | C19: 826 | D19: 105 | E19: 117 | F19: 125 | G19: 128 | H19: 166 | I19: 165 | Q19: 20
A20: 0231 | B20: AVENTURA WATERWAYS K-8 CENTER | C20: 1850 | D20: 208 | E20: 229 | F20: 206 | G20: 198 | H20: 215 | I20: 194 | J20: 202 | K20: 184 | L20: 214
A21: 0241 | B21: RUTH K BROAD/BAY HARBOR K-8 | C21: 1271 | D21: 131 | E21: 124 | F21: 158 | G21: 145 | H21: 166 | I21: 124 | J21: 160 | K21: 114 | L21: 129 | Q21: 20
A22: 0251 | B22: ETHEL KOGER BECKHAM ELEMENTARY | C22: 717 | D22: 123 | E22: 110 | F22: 109 | G22: 116 | H22: 114 | I22: 106 | Q22: 39
A23: 0261 | B23: BEL-AIRE ELEMENTARY | C23: 461 | D23: 74 | E23: 75 | F23: 72 | G23: 75 | H23: 61 | I23: 67 | Q23: 37
A24: 0271 | B24: BENT TREE ELEMENTARY | C24: 571 | D24: 104 | E24: 73 | F24: 96 | G24: 86 | H24: 85 | I24: 100 | Q24: 27
A25: 0311 | B25: GOULDS ELEMENTARY | C25: 606 | D25: 106 | E25: 121 | F25: 115 | G25: 81 | H25: 99 | I25: 84
A26: 0312 | B26: MATER GARDENS ACADEMY | C26: 615 | D26: 101 | E26: 103 | F26: 101 | G26: 108 | H26: 100 | I26: 102
A27: 0321 | B27: BISCAYNE ELEMENTARY | C27: 676 | D27: 100 | E27: 88 | F27: 91 | G27: 120 | H27: 108 | I27: 107 | Q27: 62
A28: 0331 | B28: CHAPMAN PARTNERSHIP ECC NORTH | C28: 36 | Q28: 36
A29: 0332 | B29: SOMERSET ACADEMY(SILVER PALMS) | C29: 636 | G29: 66 | H29: 46 | I29: 89 | J29: 164 | K29: 149 | L29: 122
A30: 0339 | B30: SOMERSET ACADEMY CHARTER ELEM | C30: 314 | D30: 45 | E30: 60 | F30: 60 | G30: 59 | H30: 49 | I30: 41
A31: 0341 | B31: ARCH CREEK ELEMENTARY SCHOOL | C31: 566 | D31: 81 | E31: 92 | F31: 95 | G31: 98 | H31: 98 | I31: 102
A32: 0342 | B32: PINECREST ACADEMY SOUTH CAMPUS | C32: 747 | D32: 138 | E32: 132 | F32: 119 | G32: 126 | H32: 111 | I32: 121
A33: 0351 | B33: CHAPMAN PARTNERSHIP ECC SOUTH | C33: 92 | Q33: 92
A34: 0361 | B34: BISCAYNE GARDENS ELEMENTARY | C34: 615 | D34: 108 | E34: 92 | F34: 86 | G34: 92 | H34: 85 | I34: 79 | Q34: 73
A35: 0400 | B35: RENAISSANCE ELEMENTARY CHARTER | C35: 919 | D35: 166 | E35: 157 | F35: 154 | G35: 157 | H35: 152 | I35: 133
A36: 0401 | B36: VAN E. BLANTON ELEMENTARY | C36: 549 | D36: 91 | E36: 81 | F36: 85 | G36: 99 | H36: 73 | I36: 80 | Q36: 40
A37: 0410 | B37: ACADEMIR CHARTER SCHOOL WEST | C37: 614 | D37: 97 | E37: 163 | F37: 121 | G37: 113 | H37: 64 | I37: 56
A38: 0441 | B38: BLUE LAKES ELEMENTARY | C38: 471 | D38: 60 | E38: 60 | F38: 60 | G38: 75 | H38: 74 | I38: 66 | Q38: 76
A39: 0451 | B39: BOWMAN ASHE/DOOLIN K-8 ACAD | C39: 1431 | D39: 142 | E39: 112 | F39: 125 | G39: 124 | H39: 152 | I39: 139 | J39: 153 | K39: 205 | L39: 227 | Q39: 52
A40: 0461 | B40: BRENTWOOD ELEMENTARY | C40: 786 | D40: 129 | E40: 113 | F40: 121 | G40: 140 | H40: 100 | I40: 123 | Q40: 60
A41: 0481 | B41: JAMES H. BRIGHT/JW JOHNSON ES | C41: 767 | D41: 100 | E41: 106 | F41: 115 | G41: 128 | H41: 119 | I41: 136 | Q41: 63
A42: 0510 | B42: ARCHIMEDEAN ACADEMY | C42: 561 | D42: 78 | E42: 131 | F42: 104 | G42: 84 | H42: 80 | I42: 84
A43: 0520 | B43: SOMERSET ACADEMY | C43: 575 | D43: 107 | E43: 101 | F43: 79 | G43: 103 | H43: 91 | I43: 94
A44: 0521 | B44: BROADMOOR ELEMENTARY | C44: 461 | D44: 74 | E44: 72 | F44: 70 | G44: 67 | H44: 61 | I44: 66 | Q44: 51
A45: 0561 | B45: W.J. BRYAN ELEMENTARY | C45: 742 | D45: 120 | E45: 127 | F45: 104 | G45: 123 | H45: 110 | I45: 124 | Q45: 34
A46: 0600 | B46: PINECREST PREP ACADEMY | C46: 645 | D46: 76 | E46: 124 | F46: 112 | G46: 121 | H46: 113 | I46: 99
A47: 0641 | B47: BUNCHE PARK ELEMENTARY | C47: 281 | D47: 45 | E47: 47 | F47: 45 | G47: 39 | H47: 34 | I47: 31 | Q47: 40
A48: 0651 | B48: CAMPBELL DRIVE K-8 CENTER | C48: 792 | D48: 112 | E48: 108 | F48: 103 | G48: 106 | H48: 87 | I48: 103 | J48: 60 | K48: 67 | Q48: 46
A49: 0661 | B49: CARIBBEAN ELEMENTARY | C49: 616 | D49: 112 | E49: 104 | F49: 84 | G49: 107 | H49: 81 | I49: 82 | Q49: 46
A50: 0671 | B50: CALUSA ELEMENTARY | C50: 909 | D50: 139 | E50: 157 | F50: 121 | G50: 140 | H50: 166 | I50: 166 | Q50: 20
A51: 0681 | B51: CAROL CITY ELEMENTARY | C51: 633 | D51: 100 | E51: 88 | F51: 111 | G51: 93 | H51: 83 | I51: 91 | Q51: 67
A52: 0721 | B52: GEORGE WASHINGTON CARVER ELEM | C52: 460 | D52: 67 | E52: 79 | F52: 71 | G52: 85 | H52: 79 | I52: 79
A53: 0761 | B53: FIENBERG/FISHER K-8 CENTER | C53: 841 | D53: 72 | E53: 77 | F53: 79 | G53: 86 | H53: 82 | I53: 94 | J53: 103 | K53: 95 | L53: 85 | Q53: 68
A54: 0771 | B54: WILLIAM A. CHAPMAN ELEMENTARY | C54: 502 | D54: 91 | E54: 61 | F54: 70 | G54: 71 | H54: 57 | I54: 48 | Q54: 104
A55: 0801 | B55: CITRUS GROVE ELEMENTARY | C55: 879 | D55: 124 | E55: 122 | F55: 146 | G55: 133 | H55: 160 | I55: 140 | Q55: 54
A56: 0831 | B56: CLAUDE PEPPER ELEMENTARY | C56: 747 | D56: 95 | E56: 118 | F56: 106 | G56: 127 | H56: 112 | I56: 114 | Q56: 75
A57: 0841 | B57: COCONUT GROVE ELEMENTARY | C57: 395 | D57: 81 | E57: 63 | F57: 52 | G57: 50 | H57: 62 | I57: 55 | Q57: 32
A58: 0861 | B58: COLONIAL DRIVE ELEMENTARY | C58: 291 | D58: 43 | E58: 34 | F58: 43 | G58: 52 | H58: 32 | I58: 48 | Q58: 39
A59: 0881 | B59: COMSTOCK ELEMENTARY | C59: 562 | D59: 90 | E59: 87 | F59: 78 | G59: 89 | H59: 85 | I59: 76 | Q59: 57
A60: 0921 | B60: NEVA KING COOPER EDUCATIONAL | C60: 42 | D60: 3 | F60: 4 | P60: 31 | Q60: 4
A61: 0950 | B61: AVENTURA CITY OF EXCELLENCE | C61: 983 | D61: 108 | E61: 108 | F61: 113 | G61: 110 | H61: 118 | I61: 112 | J61: 110 | K61: 102 | L61: 102
A62: 0961 | B62: CORAL GABLES PREPARATORY ACAD | C62: 785 | D62: 85 | E62: 91 | F62: 86 | G62: 95 | H62: 102 | I62: 87 | J62: 69 | K62: 98 | L62: 52 | Q62: 20
A63: 1001 | B63: CORAL PARK ELEMENTARY | C63: 1104 | D63: 163 | E63: 167 | F63: 154 | G63: 171 | H63: 168 | I63: 206 | Q63: 75
A64: 1010 | B64: CHARTER SCHOOL AT WATERSTONE | C64: 904 | E64: 215 | F64: 192 | G64: 157 | H64: 167 | I64: 173
A65: 1014 | B65: ADVANCED LEARNING CHARTER SCH | C65: 451 | D65: 52 | E65: 102 | F65: 99 | G65: 68 | H65: 69 | I65: 61
A66: 1017 | B66: MATER ACADEMY OF INTL STUDIES | C66: 499 | D66: 124 | E66: 113 | F66: 84 | G66: 80 | H66: 45 | I66: 53
A67: 1020 | B67: YOUTH CO-OP CHARTER SCHOOL | C67: 604 | D67: 83 | E67: 71 | F67: 60 | G67: 55 | H67: 42 | I67: 52 | J67: 65 | K67: 89 | L67: 87
A68: 1041 | B68: CORAL REEF ELEMENTARY | C68: 818 | D68: 134 | E68: 103 | F68: 131 | G68: 136 | H68: 153 | I68: 142 | Q68: 19
A69: 1070 | B69: SOUTH FLORIDA AUTISM CHARTER | C69: 16 | D69: 7 | E69: 3 | F69: 6
A70: 1081 | B70: CORAL TERRACE ELEMENTARY | C70: 501 | D70: 73 | E70: 80 | F70: 83 | G70: 81 | H70: 76 | I70: 89 | Q70: 19
A71: 1121 | B71: CORAL WAY K-8 CENTER | C71: 1520 | D71: 152 | E71: 152 | F71: 150 | G71: 170 | H71: 162 | I71: 188 | J71: 167 | K71: 165 | L71: 183 | Q71: 31
A72: 1161 | B72: CRESTVIEW ELEMENTARY | C72: 482 | D72: 79 | E72: 64 | F72: 68 | G72: 87 | H72: 66 | I72: 99 | Q72: 19
A73: 1241 | B73: CUTLER RIDGE ELEMENTARY | C73: 808 | D73: 119 | E73: 100 | F73: 120 | G73: 160 | H73: 153 | I73: 136 | Q73: 20
A74: 1281 | B74: CYPRESS ELEMENTARY | C74: 338 | D74: 43 | E74: 62 | F74: 36 | G74: 51 | H74: 63 | I74: 63 | Q74: 20
A75: 1331 | B75: DEVON AIRE K-8 CENTER | C75: 1538 | D75: 129 | E75: 174 | F75: 159 | G75: 161 | H75: 166 | I75: 175 | J75: 191 | K75: 175 | L75: 189 | Q75: 19
A76: 1361 | B76: FREDERICK DOUGLASS ELEMENTARY | C76: 352 | D76: 46 | E76: 38 | F76: 38 | G76: 65 | H76: 27 | I76: 29 | Q76: 109
A77: 1371 | B77: MARJORY STONEMAN DOUGLAS ELEM | C77: 1045 | D77: 144 | E77: 168 | F77: 155 | G77: 155 | H77: 160 | I77: 205 | Q77: 58
A78: 1401 | B78: CHARLES R. DREW K-8 CENTER | C78: 383 | D78: 54 | E78: 40 | F78: 38 | G78: 38 | H78: 34 | I78: 40 | J78: 47 | Q78: 92
A79: 1441 | B79: PAUL LAURENCE DUNBAR K-8 CTR | C79: 396 | D79: 58 | E79: 62 | F79: 64 | G79: 59 | H79: 52 | I79: 55 | J79: 28 | Q79: 18
A80: 1481 | B80: JOHN G. DUPUIS ELEMENTARY | C80: 717 | D80: 82 | E80: 98 | F80: 112 | G80: 103 | H80: 108 | I80: 131 | Q80: 83
A81: 1521 | B81: AMELIA EARHART ELEMENTARY | C81: 452 | D81: 55 | E81: 55 | F81: 76 | G81: 80 | H81: 65 | I81: 74 | Q81: 47
A82: 1561 | B82: EARLINGTON HEIGHTS ELEMENTARY | C82: 480 | D82: 91 | E82: 69 | F82: 90 | G82: 73 | H82: 73 | I82: 67 | Q82: 17
A83: 1601 | B83: EDISON PARK K-8 CENTER | C83: 391 | D83: 68 | E83: 63 | F83: 69 | G83: 59 | H83: 44 | I83: 46 | J83: 23 | Q83: 19
A84: 1641 | B84: EMERSON ELEMENTARY | C84: 402 | D84: 66 | E84: 67 | F84: 48 | G84: 74 | H84: 57 | I84: 70 | Q84: 20
A85: 1681 | B85: LILLIE C. EVANS K-8 CENTER | C85: 511 | D85: 45 | E85: 54 | F85: 64 | G85: 47 | H85: 67 | I85: 47 | J85: 67 | K85: 38 | L85: 25 | Q85: 57
A86: 1691 | B86: CHRISTINA M. EVE ELEMENTARY | C86: 638 | D86: 103 | E86: 86 | F86: 114 | G86: 94 | H86: 104 | I86: 113 | Q86: 24
A87: 1721 | B87: EVERGLADES K-8 CENTER | C87: 1147 | D87: 94 | E87: 129 | F87: 115 | G87: 99 | H87: 122 | I87: 120 | J87: 136 | K87: 150 | L87: 142 | Q87: 40
A88: 1761 | B88: DAVID FAIRCHILD ELEMENTARY | C88: 625 | D88: 99 | E88: 102 | F88: 102 | G88: 120 | H88: 87 | I88: 83 | Q88: 32
A89: 1801 | B89: FAIRLAWN ELEMENTARY | C89: 682 | D89: 97 | E89: 117 | F89: 108 | G89: 105 | H89: 118 | I89: 117 | Q89: 20
A90: 1811 | B90: DANTE B. FASCELL ELEMENTARY | C90: 542 | D90: 84 | E90: 86 | F90: 85 | G90: 85 | H90: 81 | I90: 101 | Q90: 20
A91: 1841 | B91: FLAGAMI ELEMENTARY | C91: 484 | D91: 62 | E91: 76 | F91: 77 | G91: 77 | H91: 76 | I91: 88 | Q91: 28
A92: 1881 | B92: HENRY M. FLAGLER ELEMENTARY | C92: 834 | D92: 130 | E92: 145 | F92: 125 | G92: 135 | H92: 120 | I92: 129 | Q92: 50
A93: 1921 | B93: FLAMINGO ELEMENTARY | C93: 760 | D93: 94 | E93: 102 | F93: 119 | G93: 144 | H93: 125 | I93: 156 | Q93: 20
A94: 2001 | B94: FLORIDA CITY ELEMENTARY | C94: 751 | D94: 142 | E94: 141 | F94: 125 | G94: 97 | H94: 115 | I94: 91 | Q94: 40
A95: 2003 | B95: BRIDGEPOINT ACADEMY | C95: 311 | D95: 60 | E95: 38 | F95: 75 | G95: 53 | H95: 44 | I95: 41
A96: 2004 | B96: ISAAC ACADEMY K-8 | C96: 25 | F96: 25
A97: 2006 | B97: RICHARD ALLEN LEADERSHIP ACAD | C97: 78 | D97: 10 | E97: 14 | F97: 9 | G97: 18 | H97: 16 | I97: 11
A98: 2007 | B98: SOMERSET ACADEMY ELEMENTARY | C98: 473 | D98: 75 | E98: 77 | F98: 75 | G98: 97 | H98: 99 | I98: 50
A99: 2012 | B99: SOMERSET ARTS ACADEMY | C99: 295 | D99: 43 | E99: 60 | F99: 31 | G99: 54 | H99: 70 | I99: 37
A100: 2013 | B100: BRIDGEPOINT ACAD GREATER MIAMI | C100: 270 | D100: 81 | E100: 85 | F100: 36 | G100: 23 | H100: 25 | I100: 20
A101: 2021 | B101: GLORIA FLOYD ELEMENTARY | C101: 587 | D101: 101 | E101: 100 | F101: 80 | G101: 87 | H101: 93 | I101: 91 | Q101: 35
A102: 2041 | B102: BENJAMIN FRANKLIN K-8 CENTER | C102: 538 | D102: 68 | E102: 65 | F102: 69 | G102: 66 | H102: 66 | I102: 76 | J102: 64 | K102: 45 | Q102: 19
A103: 2060 | B103: GIBSON CHARTER SCHOOL | C103: 251 | D103: 28 | E103: 26 | F103: 28 | G103: 21 | H103: 21 | I103: 29 | J103: 40 | K103: 30 | L103: 28
A104: 2081 | B104: FULFORD ELEMENTARY | C104: 524 | D104: 93 | E104: 92 | F104: 70 | G104: 82 | H104: 90 | I104: 77 | Q104: 20
A105: 2111 | B105: HIALEAH GARDENS ELEMENTARY | C105: 838 | D105: 144 | E105: 120 | F105: 129 | G105: 131 | H105: 137 | I105: 135 | Q105: 42
A106: 2151 | B106: JACK D. GORDON ELEMENTARY | C106: 1099 | D106: 166 | E106: 156 | F106: 188 | G106: 179 | H106: 189 | I106: 201 | Q106: 20
A107: 2161 | B107: GOLDEN GLADES ELEMENTARY | C107: 271 | D107: 45 | E107: 36 | F107: 35 | G107: 49 | H107: 39 | I107: 34 | Q107: 33
A108: 2181 | B108: JOELLA C. GOOD ELEMENTARY | C108: 920 | D108: 150 | E108: 130 | F108: 142 | G108: 158 | H108: 165 | I108: 157 | Q108: 18
A109: 2191 | B109: SPANISH LAKE ELEMENTARY | C109: 1648 | D109: 262 | E109: 254 | F109: 254 | G109: 300 | H109: 271 | I109: 299 | Q109: 8
A110: 2241 | B110: GRATIGNY ELEMENTARY | C110: 688 | D110: 90 | E110: 80 | F110: 74 | G110: 102 | H110: 79 | I110: 92 | J110: 78 | Q110: 93
A111: 2261 | B111: GREENGLADE ELEMENTARY | C111: 486 | D111: 77 | E111: 58 | F111: 62 | G111: 84 | H111: 91 | I111: 80 | Q111: 34
A112: 2281 | B112: GREYNOLDS PARK ELEMENTARY | C112: 782 | D112: 130 | E112: 116 | F112: 100 | G112: 132 | H112: 107 | I112: 113 | Q112: 84
A113: 2321 | B113: GULFSTREAM ELEMENTARY | C113: 574 | D113: 94 | E113: 86 | F113: 90 | G113: 72 | H113: 66 | I113: 62 | Q113: 104
A114: 2331 | B114: CHARLES R. HADLEY ELEMENTARY | C114: 1026 | D114: 166 | E114: 174 | F114: 177 | G114: 146 | H114: 177 | I114: 149 | Q114: 37
A115: 2341 | B115: JOE HALL ELEMENTARY | C115: 572 | D115: 89 | E115: 66 | F115: 98 | G115: 97 | H115: 93 | I115: 111 | Q115: 18
A116: 2351 | B116: ENEIDA MASSAS HARTNER ELEM | C116: 558 | D116: 94 | E116: 102 | F116: 85 | G116: 91 | H116: 80 | I116: 86 | Q116: 20
A117: 2361 | B117: HIALEAH ELEMENTARY | C117: 678 | D117: 76 | E117: 103 | F117: 114 | G117: 113 | H117: 120 | I117: 124 | Q117: 28
A118: 2371 | B118: WEST HIALEAH GARDENS ELEM | C118: 1150 | D118: 177 | E118: 166 | F118: 203 | G118: 203 | H118: 209 | I118: 177 | Q118: 15
A119: 2401 | B119: HIBISCUS ELEMENTARY | C119: 542 | D119: 84 | E119: 72 | F119: 84 | G119: 85 | H119: 71 | I119: 111 | Q119: 35
A120: 2441 | B120: VIRGINIA A BOONE/HIGHLAND OAKS | C120: 730 | D120: 98 | E120: 138 | F120: 108 | G120: 142 | H120: 123 | I120: 87 | Q120: 34
A121: 2501 | B121: HOLMES ELEMENTARY | C121: 591 | D121: 120 | E121: 106 | F121: 89 | G121: 105 | H121: 73 | I121: 77 | Q121: 21
A122: 2511 | B122: ZORA NEALE HURSTON ELEMENTARY | C122: 756 | D122: 102 | E122: 118 | F122: 94 | G122: 131 | H122: 116 | I122: 133 | Q122: 62
A123: 2521 | B123: OLIVER HOOVER ELEMENTARY | C123: 812 | D123: 116 | E123: 112 | F123: 126 | G123: 139 | H123: 135 | I123: 137 | Q123: 47
A124: 2531 | B124: THENA C. CROWDER EARLY CHLDHD | C124: 54 | Q124: 54
A125: 2541 | B125: HOWARD DRIVE ELEMENTARY | C125: 654 | D125: 76 | E125: 91 | F125: 102 | G125: 97 | H125: 135 | I125: 113 | Q125: 40
A126: 2581 | B126: MADIE IVES ELEMENTARY | C126: 734 | D126: 108 | E126: 136 | F126: 109 | G126: 112 | H126: 125 | I126: 118 | Q126: 26
A127: 2641 | B127: KENDALE ELEMENTARY | C127: 494 | D127: 74 | E127: 75 | F127: 78 | G127: 80 | H127: 75 | I127: 81 | Q127: 31
A128: 2651 | B128: KENDALE LAKES ELEMENTARY | C128: 725 | D128: 128 | E128: 104 | F128: 98 | G128: 107 | H128: 108 | I128: 126 | Q128: 54
A129: 2661 | B129: KENSINGTON PARK ELEMENTARY | C129: 1137 | D129: 164 | E129: 162 | F129: 176 | G129: 197 | H129: 198 | I129: 196 | Q129: 44
A130: 2701 | B130: KENWOOD K-8 CENTER | C130: 1059 | D130: 115 | E130: 88 | F130: 100 | G130: 120 | H130: 117 | I130: 101 | J130: 144 | K130: 121 | L130: 127 | Q130: 26
A131: 2741 | B131: KEY BISCAYNE K-8 CENTER | C131: 1333 | D131: 150 | E131: 155 | F131: 143 | G131: 179 | H131: 160 | I131: 158 | J131: 157 | K131: 142 | L131: 69 | Q131: 20
A132: 2781 | B132: KINLOCH PARK ELEMENTARY | C132: 827 | D132: 129 | E132: 117 | F132: 122 | G132: 132 | H132: 138 | I132: 170 | Q132: 19
A133: 2801 | B133: LAKE STEVENS ELEMENTARY | C133: 289 | D133: 48 | E133: 32 | F133: 44 | G133: 39 | H133: 53 | I133: 42 | Q133: 31
A134: 2821 | B134: LAKEVIEW ELEMENTARY | C134: 432 | D134: 64 | E134: 61 | F134: 62 | G134: 65 | H134: 70 | I134: 80 | Q134: 30
A135: 2881 | B135: LEEWOOD K-8 CENTER | C135: 792 | D135: 91 | E135: 81 | F135: 88 | G135: 103 | H135: 109 | I135: 86 | J135: 76 | K135: 68 | L135: 52 | Q135: 38
A136: 2891 | B136: WILLIAM LEHMAN ELEMENTARY | C136: 623 | D136: 96 | E136: 91 | F136: 89 | G136: 108 | H136: 117 | I136: 94 | Q136: 28
A137: 2901 | B137: LEISURE CITY K-8 CENTER | C137: 1125 | D137: 96 | E137: 112 | F137: 131 | G137: 98 | H137: 125 | I137: 121 | J137: 99 | K137: 111 | L137: 132 | Q137: 100
A138: 2911 | B138: LINDA LENTIN K-8 CENTER | C138: 964 | D138: 96 | E138: 80 | F138: 85 | G138: 97 | H138: 100 | I138: 138 | J138: 119 | K138: 106 | L138: 108 | Q138: 35
A139: 2941 | B139: LAURA C. SAUNDERS ELEMENTARY | C139: 695 | D139: 137 | E139: 122 | F139: 112 | G139: 117 | H139: 96 | I139: 94 | Q139: 17
A140: 2981 | B140: LIBERTY CITY ELEMENTARY | C140: 491 | D140: 72 | E140: 59 | F140: 42 | G140: 60 | H140: 60 | I140: 45 | Q140: 153
A141: 3021 | B141: JESSE J MCCRARY JR ELEMENTARY | C141: 598 | D141: 116 | E141: 94 | F141: 86 | G141: 100 | H141: 87 | I141: 75 | Q141: 40
A142: 3024 | B142: FLORIDA INTERNATIONAL EL ACAD | C142: 453 | D142: 84 | E142: 73 | F142: 90 | G142: 86 | H142: 65 | I142: 55
A143: 3025 | B143: ADVANTAGE ACADEMY SANTA FE | C143: 286 | D143: 59 | E143: 88 | F143: 57 | G143: 24 | H143: 34 | I143: 24
A144: 3026 | B144: ADVANTAGE ACAD AT SUMMERVILLE | C144: 109 | D144: 109
A145: 3027 | B145: ADVANTAGE ACAD AT WATERSTONE | C145: 239 | D145: 239
A146: 3029 | B146: DORAL ACADEMY OF TECHNOLOGY | C146: 202 | J146: 69 | K146: 63 | L146: 70
A147: 3030 | B147: DORAL ACADEMY | C147: 927 | D147: 182 | E147: 173 | F147: 143 | G147: 127 | H147: 150 | I147: 152
A148: 3032 | B148: PALM GLADES PREPATORY ACADEMY | C148: 429 | J148: 174 | K148: 127 | L148: 128
A149: 3033 | B149: SOMERSET OAKS ACADEMY | C149: 53 | D149: 41 | E149: 12
A150: 3034 | B150: BRIDGEPOINT ACAD VILLAGE GREEN | C150: 166 | D150: 61 | E150: 47 | F150: 16 | G150: 19 | H150: 11 | I150: 12
A151: 3035 | B151: RAMZ ACADEMY ELEM MIAMI CAMPUS | C151: 146 | D151: 37 | E151: 34 | F151: 18 | G151: 25 | H151: 12 | I151: 20
A152: 3041 | B152: LORAH PARK ELEMENTARY | C152: 424 | D152: 85 | E152: 65 | F152: 80 | G152: 64 | H152: 53 | I152: 57 | Q152: 20
A153: 3051 | B153: TOUSSAINT L'OUVERTURE ELEM | C153: 481 | D153: 70 | E153: 66 | F153: 66 | G153: 87 | H153: 76 | I153: 78 | Q153: 38
A154: 3061 | B154: LUDLAM ELEMENTARY | C154: 401 | D154: 71 | E154: 66 | F154: 69 | G154: 56 | H154: 59 | I154: 62 | Q154: 18
A155: 3100 | B155: MATER ACADEMY EAST CHARTER | C155: 619 | D155: 156 | E155: 122 | F155: 128 | G155: 82 | H155: 67 | I155: 64
A156: 3101 | B156: FRANK C. MARTIN K-8 CENTER | C156: 1151 | D156: 101 | E156: 115 | F156: 120 | G156: 142 | H156: 128 | I156: 126 | J156: 136 | K156: 134 | L156: 130 | Q156: 19
A157: 3111 | B157: WESLEY MATTHEWS ELEMENTARY | C157: 519 | D157: 83 | E157: 71 | F157: 75 | G157: 84 | H157: 79 | I157: 89 | Q157: 38
A158: 3141 | B158: MEADOWLANE ELEMENTARY | C158: 1105 | D158: 138 | E158: 172 | F158: 180 | G158: 184 | H158: 193 | I158: 219 | Q158: 19
A159: 3181 | B159: MELROSE ELEMENTARY | C159: 797 | D159: 81 | E159: 76 | F159: 103 | G159: 98 | H159: 104 | I159: 77 | Q159: 258
A160: 3191 | B160: ADA MERRITT K-8 CENTER | C160: 722 | D160: 72 | E160: 71 | F160: 67 | G160: 78 | H160: 61 | I160: 73 | J160: 98 | K160: 112 | L160: 90
A161: 3241 | B161: MIAMI GARDENS ELEMENTARY | C161: 291 | D161: 41 | E161: 49 | F161: 43 | G161: 38 | H161: 53 | I161: 38 | Q161: 29
A162: 3261 | B162: MIAMI HEIGHTS ELEMENTARY | C162: 1159 | D162: 177 | E162: 165 | F162: 153 | G162: 196 | H162: 166 | I162: 181 | Q162: 121
A163: 3281 | B163: MIAMI LAKES K-8 CENTER | C163: 1392 | D163: 125 | E163: 151 | F163: 128 | G163: 146 | H163: 167 | I163: 153 | J163: 166 | K163: 152 | L163: 185 | Q163: 19
A164: 3301 | B164: MIAMI PARK ELEMENTARY | C164: 472 | D164: 71 | E164: 72 | F164: 58 | G164: 73 | H164: 60 | I164: 62 | Q164: 76
A165: 3341 | B165: MIAMI SHORES ELEMENTARY | C165: 783 | D165: 116 | E165: 151 | F165: 120 | G165: 134 | H165: 118 | I165: 126 | Q165: 18
A166: 3381 | B166: MIAMI SPRINGS ELEMENTARY | C166: 553 | D166: 69 | E166: 74 | F166: 91 | G166: 83 | H166: 99 | I166: 105 | Q166: 32
A167: 3421 | B167: M.A. MILAM K-8 CENTER | C167: 1000 | D167: 73 | E167: 90 | F167: 81 | G167: 98 | H167: 103 | I167: 112 | J167: 123 | K167: 155 | L167: 145 | Q167: 20
A168: 3431 | B168: PHYLLIS RUTH MILLER ELEMENTARY | C168: 696 | D168: 113 | E168: 94 | F168: 95 | G168: 130 | H168: 104 | I168: 99 | Q168: 61
A169: 3501 | B169: MORNINGSIDE K-8 ACADEMY | C169: 441 | D169: 63 | E169: 53 | F169: 68 | G169: 57 | H169: 74 | I169: 68 | J169: 25 | Q169: 33
A170: 3541 | B170: ROBERT RUSSA MOTON ELEMENTARY | C170: 336 | D170: 64 | E170: 64 | F170: 48 | G170: 38 | H170: 48 | I170: 35 | Q170: 39
A171: 3581 | B171: MYRTLE GROVE K-8 CENTER | C171: 441 | D171: 67 | E171: 63 | F171: 58 | G171: 52 | H171: 50 | I171: 51 | J171: 42 | Q171: 58
A172: 3600 | B172: DOWNTOWN MIAMI CHARTER SCHOOL | C172: 647 | D172: 108 | E172: 100 | F172: 96 | G172: 83 | H172: 99 | I172: 90 | J172: 71
A173: 3610 | B173: KEYS GATE CHARTER SCHOOL | C173: 2041 | D173: 213 | E173: 226 | F173: 221 | G173: 217 | H173: 170 | I173: 188 | J173: 246 | K173: 285 | L173: 275
A174: 3621 | B174: COCONUT PALM K-8 ACADEMY | C174: 1208 | D174: 146 | E174: 139 | F174: 157 | G174: 160 | H174: 137 | I174: 136 | J174: 138 | K174: 117 | L174: 78
A175: 3661 | B175: NATURAL BRIDGE ELEMENTARY | C175: 608 | D175: 102 | E175: 83 | F175: 101 | G175: 95 | H175: 83 | I175: 74 | Q175: 70
A176: 3701 | B176: NORLAND ELEMENTARY | C176: 629 | D176: 109 | E176: 92 | F176: 86 | G176: 90 | H176: 97 | I176: 110 | Q176: 45
A177: 3741 | B177: NORTH BEACH ELEMENTARY | C177: 1011 | D177: 147 | E177: 175 | F177: 165 | G177: 171 | H177: 149 | I177: 162 | Q177: 42
A178: 3781 | B178: BARBARA HAWKINS ELEMENTARY | C178: 337 | D178: 53 | E178: 55 | F178: 51 | G178: 68 | H178: 47 | I178: 43 | Q178: 20
A179: 3821 | B179: NORTH COUNTY K-8 CENTER | C179: 376 | D179: 45 | E179: 41 | F179: 56 | G179: 49 | H179: 39 | I179: 40 | J179: 46 | K179: 40 | Q179: 20
A180: 3861 | B180: NORTH GLADE ELEMENTARY | C180: 358 | D180: 56 | E180: 48 | F180: 57 | G180: 69 | H180: 50 | I180: 44 | Q180: 34
A181: 3901 | B181: NORTH HIALEAH ELEMENTARY | C181: 610 | D181: 71 | E181: 90 | F181: 108 | G181: 104 | H181: 109 | I181: 109 | Q181: 19
A182: 3941 | B182: NORTH MIAMI ELEMENTARY | C182: 616 | D182: 96 | E182: 93 | F182: 98 | G182: 85 | H182: 95 | I182: 77 | Q182: 72
A183: 3981 | B183: NORTH TWIN LAKES ELEMENTARY | C183: 587 | D183: 72 | E183: 89 | F183: 79 | G183: 98 | H183: 108 | I183: 83 | Q183: 58
A184: 4000 | B184: MIAMI CHILDREN'S MUSEUM | C184: 300 | D184: 60 | E184: 54 | F184: 49 | G184: 53 | H184: 37 | I184: 47
A185: 4001 | B185: NORWOOD ELEMENTARY | C185: 465 | D185: 72 | E185: 73 | F185: 80 | G185: 66 | H185: 65 | I185: 65 | Q185: 44
A186: 4012 | B186: SOMERSET ACAD AT SILVER PALMS | C186: 610 | D186: 142 | E186: 119 | F186: 127 | G186: 65 | H186: 89 | I186: 68
A187: 4021 | B187: OAK GROVE ELEMENTARY | C187: 694 | D187: 89 | E187: 105 | F187: 83 | G187: 97 | H187: 101 | I187: 107 | J187: 58 | Q187: 54
A188: 4031 | B188: GATEWAY ENVIRONMENTAL K-8 | C188: 1578 | D188: 220 | E188: 239 | F188: 199 | G188: 222 | H188: 211 | I188: 172 | J188: 150 | K188: 128 | Q188: 37
A189: 4061 | B189: OJUS ELEMENTARY | C189: 915 | D189: 155 | E189: 151 | F189: 149 | G189: 159 | H189: 157 | I189: 144
A190: 4070 | B190: EARLY BEGINNINGS ACADEMY-CIVIC | C190: 128 | D190: 26 | E190: 10 | F190: 3 | Q190: 89
A191: 4071 | B191: OLINDA ELEMENTARY | C191: 355 | D191: 52 | E191: 47 | F191: 62 | G191: 58 | H191: 50 | I191: 49 | Q191: 37
A192: 4081 | B192: PRIMARY LEARNING CENTER | C192: 212 | D192: 54 | E192: 51 | F192: 35 | G192: 18 | Q192: 54
A193: 4091 | B193: OLYMPIA HEIGHTS ELEMENTARY | C193: 518 | D193: 78 | E193: 86 | F193: 91 | G193: 78 | H193: 89 | I193: 75 | Q193: 21
A194: 4121 | B194: DR. ROBERT B. INGRAM EL | C194: 404 | D194: 73 | E194: 58 | F194: 73 | G194: 69 | H194: 64 | I194: 47 | Q194: 20
A195: 4171 | B195: ORCHARD VILLA ELEMENTARY | C195: 467 | D195: 78 | E195: 77 | F195: 63 | G195: 76 | H195: 60 | I195: 53 | Q195: 60
A196: 4221 | B196: PALMETTO ELEMENTARY | C196: 620 | D196: 73 | E196: 105 | F196: 79 | G196: 112 | H196: 100 | I196: 103 | Q196: 48
A197: 4241 | B197: PALM LAKES ELEMENTARY | C197: 877 | D197: 95 | E197: 139 | F197: 127 | G197: 157 | H197: 138 | I197: 170 | Q197: 51
A198: 4261 | B198: PALM SPRINGS ELEMENTARY | C198: 740 | D198: 96 | E198: 117 | F198: 114 | G198: 130 | H198: 127 | I198: 115 | Q198: 41
A199: 4281 | B199: PALM SPRINGS NORTH ELEMENTARY | C199: 1017 | D199: 170 | E199: 142 | F199: 174 | G199: 160 | H199: 183 | I199: 158 | Q199: 30
A200: 4301 | B200: PARKVIEW ELEMENTARY | C200: 407 | D200: 69 | E200: 73 | F200: 48 | G200: 70 | H200: 61 | I200: 51 | Q200: 35
... 273 more rows

Sheet G10RPassingR (hidden)
A1: SCHOOL_NUMBER | B1: STUDENT_GRADE | C1: FCAT_READ_PASS_FAIL | D1: Total Of STUDENT_ID | E1: NoLevel | F1: L2 | G1: L3 | H1: L4 | I1: L5 | J1: B | K1: W | L1: H | M1: A | N1: I | O1: 2 | P1: 3 | Q1: PPR | R1: Y | S1: SWD
A2: 7001 | B2: 10 | C2: P | D2: 3 | E2: 1 | F2: 0 | G2: 1 | H2: 1 | I2: 0 | J2: 1 | K2: 1 | L2: 1 | M2: 0 | N2: 0 | O2: 1 | P2: 0 | Q2: 0 | R2: 0 | S2: 0
A3: 7015 | B3: 10 | C3: P | D3: 3 | E3: 2 | F3: 0 | G3: 1 | H3: 0 | I3: 0 | J3: 3 | K3: 0 | L3: 0 | M3: 0 | N3: 0 | O3: 2 | P3: 0 | Q3: 0 | R3: 0 | S3: 0
A4: 7022 | B4: 10 | C4: P | D4: 1 | E4: 0 | F4: 0 | G4: 0 | H4: 1 | I4: 0 | J4: 0 | K4: 1 | L4: 0 | M4: 0 | N4: 0 | O4: 1 | P4: 0 | Q4: 0 | R4: 0 | S4: 0
A5: 7036 | B5: 10 | C5: P | D5: 1 | E5: 1 | F5: 0 | G5: 0 | H5: 0 | I5: 0 | J5: 1 | K5: 0 | L5: 0 | M5: 0 | N5: 0 | O5: 1 | P5: 0 | Q5: 0 | R5: 0 | S5: 0
A6: 7049 | B6: 10 | C6: P | D6: 4 | E6: 1 | F6: 0 | G6: 3 | H6: 0 | I6: 0 | J6: 0 | K6: 0 | L6: 4 | M6: 0 | N6: 0 | O6: 2 | P6: 1 | Q6: 2 | R6: 0 | S6: 0
A7: 7050 | B7: 10 | C7: P | D7: 3 | E7: 1 | F7: 0 | G7: 1 | H7: 0 | I7: 1 | J7: 1 | K7: 1 | L7: 1 | M7: 0 | N7: 0 | O7: 3 | P7: 0 | Q7: 0 | R7: 0 | S7: 0
A8: 7051 | B8: 10 | C8: P | D8: 7 | E8: 4 | F8: 0 | G8: 2 | H8: 1 | I8: 0 | J8: 1 | K8: 0 | L8: 6 | M8: 0 | N8: 0 | O8: 6 | P8: 0 | Q8: 2 | R8: 2 | S8: 0
A9: 7055 | B9: 10 | C9: P | D9: 1 | E9: 0 | F9: 0 | G9: 1 | H9: 0 | I9: 0 | J9: 0 | K9: 0 | L9: 1 | M9: 0 | N9: 0 | O9: 1 | P9: 0 | Q9: 0 | R9: 1 | S9: 0
A10: 7062 | B10: 10 | C10: P | D10: 1 | E10: 1 | F10: 0 | G10: 0 | H10: 0 | I10: 0 | J10: 1 | K10: 0 | L10: 0 | M10: 0 | N10: 0 | O10: 1 | P10: 0 | Q10: 0 | R10: 0 | S10: 0
A11: 7065 | B11: 10 | C11: P | D11: 2 | E11: 2 | F11: 0 | G11: 0 | H11: 0 | I11: 0 | J11: 0 | K11: 0 | L11: 2 | M11: 0 | N11: 0 | O11: 2 | P11: 0 | Q11: 0 | R11: 0 | S11: 0
A12: 7067 | B12: 10 | C12: P | D12: 8 | E12: 2 | F12: 2 | G12: 3 | H12: 1 | I12: 0 | J12: 1 | K12: 0 | L12: 7 | M12: 0 | N12: 0 | O12: 6 | P12: 0 | Q12: 0 | R12: 0 | S12: 0
A13: 7068 | B13: 10 | C13: P | D13: 1 | E13: 0 | F13: 0 | G13: 0 | H13: 1 | I13: 0 | J13: 0 | K13: 0 | L13: 1 | M13: 0 | N13: 0 | O13: 0 | P13: 0 | Q13: 0 | R13: 0 | S13: 0
A14: 7069 | B14: 10 | C14: P | D14: 1 | E14: 1 | F14: 0 | G14: 0 | H14: 0 | I14: 0 | J14: 1 | K14: 0 | L14: 0 | M14: 0 | N14: 0 | O14: 0 | P14: 0 | Q14: 0 | R14: 1 | S14: 0
A15: 7081 | B15: 10 | C15: P | D15: 1 | E15: 1 | F15: 0 | G15: 0 | H15: 0 | I15: 0 | J15: 1 | K15: 0 | L15: 0 | M15: 0 | N15: 0 | O15: 1 | P15: 0 | Q15: 0 | R15: 0 | S15: 1
A16: 7121 | B16: 10 | C16: P | D16: 3 | E16: 0 | F16: 0 | G16: 2 | H16: 1 | I16: 0 | J16: 0 | K16: 0 | L16: 3 | M16: 0 | N16: 0 | O16: 3 | P16: 0 | Q16: 0 | R16: 0 | S16: 0
A17: 7131 | B17: 10 | C17: P | D17: 1 | E17: 0 | F17: 0 | G17: 1 | H17: 0 | I17: 0 | J17: 0 | K17: 0 | L17: 1 | M17: 0 | N17: 0 | O17: 0 | P17: 0 | Q17: 0 | R17: 1 | S17: 0
A18: 7141 | B18: 10 | C18: P | D18: 18 | E18: 4 | F18: 0 | G18: 11 | H18: 3 | I18: 0 | J18: 9 | K18: 1 | L18: 8 | M18: 0 | N18: 0 | O18: 9 | P18: 3 | Q18: 0 | R18: 2 | S18: 2
A19: 7160 | B19: 10 | C19: P | D19: 3 | E19: 1 | F19: 0 | G19: 1 | H19: 1 | I19: 0 | J19: 0 | K19: 0 | L19: 3 | M19: 0 | N19: 0 | O19: 2 | P19: 0 | Q19: 0 | R19: 0 | S19: 0
A20: 7201 | B20: 10 | C20: P | D20: 3 | E20: 1 | F20: 0 | G20: 1 | H20: 1 | I20: 0 | J20: 0 | K20: 1 | L20: 2 | M20: 0 | N20: 0 | O20: 1 | P20: 0 | Q20: 0 | R20: 0 | S20: 0
A21: 7241 | B21: 10 | C21: P | D21: 3 | E21: 0 | F21: 0 | G21: 2 | H21: 1 | I21: 0 | J21: 0 | K21: 0 | L21: 3 | M21: 0 | N21: 0 | O21: 1 | P21: 0 | Q21: 0 | R21: 0 | S21: 0
A22: 7251 | B22: 10 | C22: P | D22: 2 | E22: 0 | F22: 0 | G22: 2 | H22: 0 | I22: 0 | J22: 1 | K22: 0 | L22: 1 | M22: 0 | N22: 0 | O22: 1 | P22: 0 | Q22: 0 | R22: 0 | S22: 0
A23: 7262 | B23: 10 | C23: P | D23: 1 | E23: 1 | F23: 0 | G23: 0 | H23: 0 | I23: 0 | J23: 0 | K23: 0 | L23: 1 | M23: 0 | N23: 0 | O23: 1 | P23: 0 | Q23: 0 | R23: 0 | S23: 0
A24: 7361 | B24: 10 | C24: P | D24: 10 | E24: 2 | F24: 0 | G24: 7 | H24: 1 | I24: 0 | J24: 0 | K24: 1 | L24: 9 | M24: 0 | N24: 0 | O24: 5 | P24: 1 | Q24: 0 | R24: 1 | S24: 1
A25: 7391 | B25: 10 | C25: P | D25: 1 | E25: 0 | F25: 0 | G25: 1 | H25: 0 | I25: 0 | J25: 1 | K25: 0 | L25: 0 | M25: 0 | N25: 0 | O25: 1 | P25: 0 | Q25: 0 | R25: 0 | S25: 0
A26: 7461 | B26: 10 | C26: P | D26: 7 | E26: 1 | F26: 0 | G26: 6 | H26: 0 | I26: 0 | J26: 1 | K26: 0 | L26: 6 | M26: 0 | N26: 0 | O26: 6 | P26: 0 | Q26: 0 | R26: 0 | S26: 4
A27: 7531 | B27: 10 | C27: P | D27: 6 | E27: 1 | F27: 0 | G27: 4 | H27: 0 | I27: 1 | J27: 0 | K27: 0 | L27: 6 | M27: 0 | N27: 0 | O27: 5 | P27: 1 | Q27: 0 | R27: 1 | S27: 2
A28: 7701 | B28: 10 | C28: P | D28: 6 | E28: 0 | F28: 0 | G28: 4 | H28: 2 | I28: 0 | J28: 0 | K28: 2 | L28: 4 | M28: 0 | N28: 0 | O28: 5 | P28: 0 | Q28: 0 | R28: 0 | S28: 0
A29: 7751 | B29: 10 | C29: P | D29: 3 | E29: 0 | F29: 0 | G29: 1 | H29: 1 | I29: 1 | J29: 0 | K29: 0 | L29: 3 | M29: 0 | N29: 0 | O29: 3 | P29: 0 | Q29: 0 | R29: 0 | S29: 0
A30: 7781 | B30: 10 | C30: P | D30: 8 | E30: 0 | F30: 0 | G30: 3 | H30: 4 | I30: 1 | J30: 0 | K30: 0 | L30: 8 | M30: 0 | N30: 0 | O30: 5 | P30: 2 | Q30: 0 | R30: 0 | S30: 0
A31: 7791 | B31: 10 | C31: P | D31: 1 | E31: 0 | F31: 0 | G31: 1 | H31: 0 | I31: 0 | J31: 0 | K31: 0 | L31: 1 | M31: 0 | N31: 0 | O31: 1 | P31: 0 | Q31: 0 | R31: 0 | S31: 0
A32: 8017 | B32: 10 | C32: P | D32: 1 | E32: 0 | F32: 0 | G32: 1 | H32: 0 | I32: 0 | J32: 1 | K32: 0 | L32: 0 | M32: 0 | N32: 0 | O32: 1 | P32: 0 | Q32: 0 | R32: 0 | S32: 0
A33: 9732 | B33: 10 | C33: P | D33: 1 | E33: 0 | F33: 0 | G33: 0 | H33: 1 | I33: 0 | J33: 0 | K33: 0 | L33: 1 | M33: 0 | N33: 0 | O33: 1 | P33: 0 | Q33: 0 | R33: 0 | S33: 1
A34: (blank) | B34: 10 | C34: P | D34: 0 | E34: 0 | F34: 0 | G34: 0 | H34: 0 | I34: 0 | J34: 0 | K34: 0 | L34: 0 | M34: 0 | N34: 0 | O34: 0 | P34: 0 | Q34: 0 | R34: 0 | S34: 0
A35: Grand Total | B35: 10 | C35: P | D35: 0 | E35: 0 | F35: 0 | G35: 0 | H35: 0 | I35: 0 | J35: 0 | K35: 0 | L35: 0 | M35: 0 | N35: 0 | O35: 0 | P35: 0 | Q35: 0 | R35: 0 | S35: 0
A36: 9999 | B36: 10 | C36: P | D36: 115 | E36: 28 | F36: 2 | G36: 60 | H36: 21 | I36: 4 | J36: 24 | K36: 8 | L36: 83 | M36: 0 | N36: 0 | O36: 78 | P36: 8 | Q36: 4 | R36: 9 | S36: 11
A45: 1 | B45: 2 | C45: 3 | D45: 4 | E45: 5 | F45: 6 | G45: 7 | H45: 8 | I45: 9 | J45: 10 | K45: 11 | L45: 12 | M45: 13 | N45: 14 | O45: 15 | P45: 16 | Q45: 17 | R45: 18 | S45: 19

Sheet MEM_RL1 (hidden)
A1: S_SCHOOL_NUM | B1: S_SCHL_NAME | C1: Total Of STUDENT_ID | D1: 03 | E1: 04 | F1: 05 | G1: 06 | H1: 07 | I1: 08 | J1: 09 | K1: 10
A2: 0041 | B2: AIR BASE ELEMENTARY | C2: 5 | D2: 2 | F2: 3
A3: 0070 | B3: CORAL REEF MONTESSORI ACAD CH | C3: 4 | D3: 2 | E3: 1 | F3: 1
A4: 0071 | B4: EUGENIA B. THOMAS K-8 CENTER | C4: 78 | D4: 8 | E4: 18 | F4: 7 | G4: 15 | H4: 14 | I4: 16
A5: 0072 | B5: SUMMERVILLE CHARTER SCHOOL | C5: 21 | D5: 2 | E5: 8 | F5: 11
A6: 0073 | B6: MANDARIN LAKES K-8 CENTER | C6: 172 | D6: 29 | E6: 25 | F6: 24 | G6: 35 | H6: 23 | I6: 36
A7: 0081 | B7: LENORA B. SMITH ELEMENTARY | C7: 45 | D7: 8 | E7: 18 | F7: 19
A8: 0091 | B8: BOB GRAHAM EDUCATION CTR | C8: 100 | D8: 5 | E8: 10 | F8: 17 | G8: 22 | H8: 25 | I8: 21
A9: 0092 | B9: NORMAN S. EDELCUP/SUNNY ISLES | C9: 71 | D9: 2 | E9: 16 | F9: 10 | G9: 10 | H9: 11 | I9: 22
A10: 0100 | B10: MATER ACADEMY | C10: 17 | D10: 5 | E10: 6 | F10: 6
A11: 0101 | B11: ARCOLA LAKE ELEMENTARY | C11: 49 | D11: 14 | E11: 19 | F11: 16
A12: 0102 | B12: MIAMI COMMUNITY CHARTER SCHOOL | C12: 38 | D12: 6 | E12: 19 | F12: 13
A13: 0111 | B13: MAYA ANGELOU ELEMENTARY | C13: 58 | D13: 17 | E13: 20 | F13: 21
A14: 0121 | B14: AUBURNDALE ELEMENTARY | C14: 52 | D14: 4 | E14: 18 | F14: 30
A15: 0122 | B15: DR ROLANDO ESPINOSA K-8 | C15: 117 | D15: 7 | E15: 23 | F15: 15 | G15: 30 | H15: 21 | I15: 21
A16: 0125 | B16: NORMA BUTLER BOSSARD ELEM | C16: 40 | D16: 10 | E16: 12 | F16: 18
A17: 0161 | B17: AVOCADO ELEMENTARY | C17: 23 | D17: 23
A18: 0201 | B18: BANYAN ELEMENTARY | C18: 5 | E18: 1 | F18: 4
A19: 0211 | B19: DR. MANUEL C. BARREIRO ELEM | C19: 35 | D19: 2 | E19: 20 | F19: 13
A20: 0231 | B20: AVENTURA WATERWAYS K-8 CENTER | C20: 111 | D20: 16 | E20: 16 | F20: 26 | G20: 14 | H20: 21 | I20: 18
A21: 0241 | B21: RUTH K BROAD/BAY HARBOR K-8 | C21: 57 | D21: 4 | E21: 10 | F21: 11 | G21: 13 | H21: 8 | I21: 11
A22: 0251 | B22: ETHEL KOGER BECKHAM ELEMENTARY | C22: 10 | D22: 1 | E22: 6 | F22: 3
A23: 0261 | B23: BEL-AIRE ELEMENTARY | C23: 42 | D23: 7 | E23: 13 | F23: 22
A24: 0271 | B24: BENT TREE ELEMENTARY | C24: 20 | D24: 4 | E24: 6 | F24: 10
A25: 0311 | B25: GOULDS ELEMENTARY | C25: 46 | D25: 11 | E25: 21 | F25: 14
A26: 0312 | B26: MATER GARDENS ACADEMY | C26: 5 | D26: 1 | E26: 4
A27: 0321 | B27: BISCAYNE ELEMENTARY | C27: 55 | D27: 13 | E27: 20 | F27: 22
A28: 0332 | B28: SOMERSET ACADEMY(SILVER PALMS) | C28: 56 | D28: 2 | E28: 5 | F28: 4 | G28: 14 | H28: 18 | I28: 13
A29: 0339 | B29: SOMERSET ACADEMY CHARTER ELEM | C29: 10 | D29: 1 | E29: 4 | F29: 5
A30: 0341 | B30: ARCH CREEK ELEMENTARY SCHOOL | C30: 35 | D30: 7 | E30: 19 | F30: 9
A31: 0342 | B31: PINECREST ACADEMY SOUTH CAMPUS | C31: 13 | D31: 2 | E31: 7 | F31: 4
A32: 0361 | B32: BISCAYNE GARDENS ELEMENTARY | C32: 47 | D32: 11 | E32: 17 | F32: 19
A33: 0400 | B33: RENAISSANCE ELEMENTARY CHARTER | C33: 15 | D33: 1 | E33: 13 | F33: 1
A34: 0401 | B34: VAN E. BLANTON ELEMENTARY | C34: 46 | D34: 17 | E34: 9 | F34: 20
A35: 0410 | B35: ACADEMIR CHARTER SCHOOL WEST | C35: 6 | E35: 4 | F35: 2
A36: 0441 | B36: BLUE LAKES ELEMENTARY | C36: 18 | D36: 1 | E36: 11 | F36: 6
A37: 0451 | B37: BOWMAN ASHE/DOOLIN K-8 ACAD | C37: 171 | D37: 3 | E37: 16 | F37: 11 | G37: 36 | H37: 52 | I37: 53
A38: 0461 | B38: BRENTWOOD ELEMENTARY | C38: 58 | D38: 18 | E38: 17 | F38: 23
A39: 0481 | B39: JAMES H. BRIGHT/JW JOHNSON ES | C39: 78 | D39: 17 | E39: 23 | F39: 38
A40: 0510 | B40: ARCHIMEDEAN ACADEMY | C40: 2 | E40: 1 | F40: 1
A41: 0520 | B41: SOMERSET ACADEMY | C41: 7 | D41: 1 | E41: 4 | F41: 2
A42: 0521 | B42: BROADMOOR ELEMENTARY | C42: 38 | D42: 6 | E42: 16 | F42: 16
A43: 0561 | B43: W.J. BRYAN ELEMENTARY | C43: 48 | D43: 16 | E43: 16 | F43: 16
A44: 0600 | B44: PINECREST PREP ACADEMY | C44: 6 | E44: 5 | F44: 1
A45: 0641 | B45: BUNCHE PARK ELEMENTARY | C45: 23 | D45: 3 | E45: 10 | F45: 10
A46: 0651 | B46: CAMPBELL DRIVE K-8 CENTER | C46: 95 | D46: 18 | E46: 18 | F46: 25 | G46: 16 | H46: 18
A47: 0661 | B47: CARIBBEAN ELEMENTARY | C47: 46 | D47: 11 | E47: 19 | F47: 16
A48: 0671 | B48: CALUSA ELEMENTARY | C48: 20 | D48: 4 | E48: 7 | F48: 9
A49: 0681 | B49: CAROL CITY ELEMENTARY | C49: 60 | D49: 11 | E49: 28 | F49: 21
A50: 0721 | B50: GEORGE WASHINGTON CARVER ELEM | C50: 36 | D50: 4 | E50: 14 | F50: 18
A51: 0761 | B51: FIENBERG/FISHER K-8 CENTER | C51: 93 | D51: 4 | E51: 17 | F51: 18 | G51: 22 | H51: 19 | I51: 13
A52: 0771 | B52: WILLIAM A. CHAPMAN ELEMENTARY | C52: 26 | D52: 10 | E52: 7 | F52: 9
A53: 0801 | B53: CITRUS GROVE ELEMENTARY | C53: 95 | D53: 12 | E53: 42 | F53: 41
A54: 0831 | B54: CLAUDE PEPPER ELEMENTARY | C54: 30 | D54: 4 | E54: 16 | F54: 10
A55: 0841 | B55: COCONUT GROVE ELEMENTARY | C55: 13 | E55: 11 | F55: 2
A56: 0861 | B56: COLONIAL DRIVE ELEMENTARY | C56: 20 | D56: 7 | E56: 6 | F56: 7
A57: 0881 | B57: COMSTOCK ELEMENTARY | C57: 44 | D57: 9 | E57: 18 | F57: 17
A58: 0950 | B58: AVENTURA CITY OF EXCELLENCE | C58: 5 | D58: 1 | G58: 1 | H58: 1 | I58: 2
A59: 0961 | B59: CORAL GABLES PREPARATORY ACAD | C59: 19 | E59: 4 | F59: 3 | G59: 6 | H59: 5 | I59: 1
A60: 1001 | B60: CORAL PARK ELEMENTARY | C60: 28 | E60: 12 | F60: 16
A61: 1010 | B61: CHARTER SCHOOL AT WATERSTONE | C61: 22 | E61: 12 | F61: 10
A62: 1014 | B62: ADVANCED LEARNING CHARTER SCH | C62: 26 | D62: 5 | E62: 16 | F62: 5
A63: 1017 | B63: MATER ACADEMY OF INTL STUDIES | C63: 19 | D63: 3 | E63: 7 | F63: 9
A64: 1020 | B64: YOUTH CO-OP CHARTER SCHOOL | C64: 35 | D64: 4 | E64: 3 | F64: 4 | G64: 8 | H64: 11 | I64: 5
A65: 1041 | B65: CORAL REEF ELEMENTARY | C65: 24 | D65: 3 | E65: 9 | F65: 12
A66: 1081 | B66: CORAL TERRACE ELEMENTARY | C66: 42 | D66: 6 | E66: 15 | F66: 21
A67: 1121 | B67: CORAL WAY K-8 CENTER | C67: 146 | D67: 6 | E67: 30 | F67: 29 | G67: 34 | H67: 29 | I67: 18
A68: 1161 | B68: CRESTVIEW ELEMENTARY | C68: 42 | D68: 7 | E68: 14 | F68: 21
A69: 1241 | B69: CUTLER RIDGE ELEMENTARY | C69: 44 | D69: 5 | E69: 20 | F69: 19
A70: 1281 | B70: CYPRESS ELEMENTARY | C70: 9 | E70: 5 | F70: 4
A71: 1331 | B71: DEVON AIRE K-8 CENTER | C71: 63 | D71: 2 | E71: 7 | F71: 6 | G71: 17 | H71: 19 | I71: 12
A72: 1361 | B72: FREDERICK DOUGLASS ELEMENTARY | C72: 30 | D72: 10 | E72: 8 | F72: 12
A73: 1371 | B73: MARJORY STONEMAN DOUGLAS ELEM | C73: 60 | D73: 13 | E73: 27 | F73: 20
A74: 1401 | B74: CHARLES R. DREW K-8 CENTER | C74: 37 | D74: 4 | E74: 4 | F74: 19 | G74: 10
A75: 1441 | B75: PAUL LAURENCE DUNBAR K-8 CTR | C75: 51 | D75: 6 | E75: 12 | F75: 23 | G75: 10
A76: 1481 | B76: JOHN G. DUPUIS ELEMENTARY | C76: 34 | D76: 2 | E76: 14 | F76: 18
A77: 1521 | B77: AMELIA EARHART ELEMENTARY | C77: 36 | D77: 13 | E77: 11 | F77: 12
A78: 1561 | B78: EARLINGTON HEIGHTS ELEMENTARY | C78: 47 | D78: 1 | E78: 22 | F78: 24
A79: 1601 | B79: EDISON PARK K-8 CENTER | C79: 45 | D79: 8 | E79: 14 | F79: 14 | G79: 9
A80: 1641 | B80: EMERSON ELEMENTARY | C80: 20 | D80: 6 | E80: 7 | F80: 7
A81: 1681 | B81: LILLIE C. EVANS K-8 CENTER | C81: 62 | D81: 5 | E81: 22 | F81: 7 | G81: 19 | H81: 6 | I81: 3
A82: 1691 | B82: CHRISTINA M. EVE ELEMENTARY | C82: 13 | D82: 1 | E82: 5 | F82: 7
A83: 1721 | B83: EVERGLADES K-8 CENTER | C83: 81 | D83: 3 | E83: 11 | F83: 8 | G83: 9 | H83: 29 | I83: 21
A84: 1761 | B84: DAVID FAIRCHILD ELEMENTARY | C84: 9 | E84: 2 | F84: 7
A85: 1801 | B85: FAIRLAWN ELEMENTARY | C85: 37 | D85: 2 | E85: 17 | F85: 18
A86: 1811 | B86: DANTE B. FASCELL ELEMENTARY | C86: 16 | E86: 9 | F86: 7
A87: 1841 | B87: FLAGAMI ELEMENTARY | C87: 39 | D87: 2 | E87: 15 | F87: 22
A88: 1881 | B88: HENRY M. FLAGLER ELEMENTARY | C88: 56 | D88: 11 | E88: 25 | F88: 20
A89: 1921 | B89: FLAMINGO ELEMENTARY | C89: 85 | D89: 19 | E89: 32 | F89: 34
A90: 2001 | B90: FLORIDA CITY ELEMENTARY | C90: 78 | D90: 9 | E90: 35 | F90: 34
A91: 2003 | B91: BRIDGEPOINT ACADEMY | C91: 6 | D91: 1 | E91: 3 | F91: 2
A92: 2006 | B92: RICHARD ALLEN LEADERSHIP ACAD | C92: 6 | E92: 5 | F92: 1
A93: 2007 | B93: SOMERSET ACADEMY ELEMENTARY | C93: 3 | E93: 1 | F93: 2
A94: 2012 | B94: SOMERSET ARTS ACADEMY | C94: 12 | D94: 1 | E94: 9 | F94: 2
A95: 2013 | B95: BRIDGEPOINT ACAD GREATER MIAMI | C95: 7 | E95: 3 | F95: 4
A96: 2021 | B96: GLORIA FLOYD ELEMENTARY | C96: 21 | D96: 8 | E96: 5 | F96: 8
A97: 2041 | B97: BENJAMIN FRANKLIN K-8 CENTER | C97: 63 | D97: 5 | E97: 12 | F97: 15 | G97: 19 | H97: 12
A98: 2060 | B98: GIBSON CHARTER SCHOOL | C98: 48 | D98: 3 | E98: 6 | F98: 10 | G98: 12 | H98: 7 | I98: 10
A99: 2081 | B99: FULFORD ELEMENTARY | C99: 52 | D99: 11 | E99: 22 | F99: 19
A100: 2111 | B100: HIALEAH GARDENS ELEMENTARY | C100: 33 | D100: 8 | E100: 18 | F100: 7
A101: 2151 | B101: JACK D. GORDON ELEMENTARY | C101: 38 | D101: 8 | E101: 20 | F101: 10
A102: 2161 | B102: GOLDEN GLADES ELEMENTARY | C102: 29 | D102: 6 | E102: 14 | F102: 9
A103: 2181 | B103: JOELLA C. GOOD ELEMENTARY | C103: 60 | D103: 8 | E103: 22 | F103: 30
A104: 2191 | B104: SPANISH LAKE ELEMENTARY | C104: 64 | D104: 8 | E104: 24 | F104: 32
A105: 2241 | B105: GRATIGNY ELEMENTARY | C105: 81 | D105: 11 | E105: 22 | F105: 27 | G105: 21
A106: 2261 | B106: GREENGLADE ELEMENTARY | C106: 18 | E106: 11 | F106: 7
A107: 2281 | B107: GREYNOLDS PARK ELEMENTARY | C107: 67 | D107: 14 | E107: 24 | F107: 29
A108: 2321 | B108: GULFSTREAM ELEMENTARY | C108: 27 | D108: 6 | E108: 7 | F108: 14
A109: 2331 | B109: CHARLES R. HADLEY ELEMENTARY | C109: 30 | D109: 4 | E109: 11 | F109: 15
A110: 2341 | B110: JOE HALL ELEMENTARY | C110: 32 | D110: 4 | E110: 12 | F110: 16
A111: 2351 | B111: ENEIDA MASSAS HARTNER ELEM | C111: 41 | D111: 11 | E111: 16 | F111: 14
A112: 2361 | B112: HIALEAH ELEMENTARY | C112: 53 | D112: 6 | E112: 21 | F112: 26
A113: 2371 | B113: WEST HIALEAH GARDENS ELEM | C113: 59 | D113: 9 | E113: 25 | F113: 25
A114: 2401 | B114: HIBISCUS ELEMENTARY | C114: 34 | D114: 8 | E114: 10 | F114: 16
A115: 2441 | B115: VIRGINIA A BOONE/HIGHLAND OAKS | C115: 21 | D115: 1 | E115: 12 | F115: 8
A116: 2501 | B116: HOLMES ELEMENTARY | C116: 66 | D116: 22 | E116: 19 | F116: 25
A117: 2511 | B117: ZORA NEALE HURSTON ELEMENTARY | C117: 33 | D117: 4 | E117: 19 | F117: 10
A118: 2521 | B118: OLIVER HOOVER ELEMENTARY | C118: 25 | D118: 4 | E118: 12 | F118: 9
A119: 2541 | B119: HOWARD DRIVE ELEMENTARY | C119: 30 | D119: 4 | E119: 15 | F119: 11
A120: 2581 | B120: MADIE IVES ELEMENTARY | C120: 43 | D120: 10 | E120: 15 | F120: 18
A121: 2641 | B121: KENDALE ELEMENTARY | C121: 8 | D121: 1 | E121: 4 | F121: 3
A122: 2651 | B122: KENDALE LAKES ELEMENTARY | C122: 23 | D122: 5 | E122: 13 | F122: 5
A123: 2661 | B123: KENSINGTON PARK ELEMENTARY | C123: 121 | D123: 27 | E123: 48 | F123: 46
A124: 2701 | B124: KENWOOD K-8 CENTER | C124: 69 | D124: 8 | E124: 8 | F124: 11 | G124: 20 | H124: 7 | I124: 15
A125: 2741 | B125: KEY BISCAYNE K-8 CENTER | C125: 32 | D125: 3 | E125: 6 | F125: 4 | G125: 6 | H125: 6 | I125: 7
A126: 2781 | B126: KINLOCH PARK ELEMENTARY | C126: 75 | D126: 11 | E126: 19 | F126: 45
A127: 2801 | B127: LAKE STEVENS ELEMENTARY | C127: 23 | D127: 3 | E127: 10 | F127: 10
A128: 2821 | B128: LAKEVIEW ELEMENTARY | C128: 45 | D128: 9 | E128: 14 | F128: 22
A129: 2881 | B129: LEEWOOD K-8 CENTER | C129: 22 | E129: 5 | F129: 6 | G129: 9 | H129: 2
A130: 2891 | B130: WILLIAM LEHMAN ELEMENTARY | C130: 14 | D130: 2 | E130: 9 | F130: 3
A131: 2901 | B131: LEISURE CITY K-8 CENTER | C131: 170 | D131: 18 | E131: 27 | F131: 30 | G131: 29 | H131: 36 | I131: 30
A132: 2911 | B132: LINDA LENTIN K-8 CENTER | C132: 143 | D132: 6 | E132: 24 | F132: 41 | G132: 24 | H132: 25 | I132: 23
A133: 2941 | B133: LAURA C. SAUNDERS ELEMENTARY | C133: 73 | D133: 21 | E133: 24 | F133: 28
A134: 2981 | B134: LIBERTY CITY ELEMENTARY | C134: 46 | D134: 3 | E134: 27 | F134: 16
A135: 3021 | B135: JESSE J MCCRARY JR ELEMENTARY | C135: 60 | D135: 16 | E135: 26 | F135: 18
A136: 3024 | B136: FLORIDA INTERNATIONAL EL ACAD | C136: 55 | D136: 18 | E136: 19 | F136: 18
A137: 3025 | B137: ADVANTAGE ACADEMY SANTA FE | C137: 4 | E137: 4
A138: 3029 | B138: DORAL ACADEMY OF TECHNOLOGY | C138: 2 | G138: 2
A139: 3030 | B139: DORAL ACADEMY | C139: 13 | D139: 1 | E139: 9 | F139: 3
A140: 3032 | B140: PALM GLADES PREPATORY ACADEMY | C140: 75 | G140: 31 | H140: 24 | I140: 20
A141: 3034 | B141: BRIDGEPOINT ACAD VILLAGE GREEN | C141: 3 | E141: 2 | F141: 1
A142: 3035 | B142: RAMZ ACADEMY ELEM MIAMI CAMPUS | C142: 2 | E142: 1 | F142: 1
A143: 3041 | B143: LORAH PARK ELEMENTARY | C143: 31 | D143: 9 | E143: 10 | F143: 12
A144: 3051 | B144: TOUSSAINT L'OUVERTURE ELEM | C144: 51 | D144: 16 | E144: 20 | F144: 15
A145: 3061 | B145: LUDLAM ELEMENTARY | C145: 14 | E145: 4 | F145: 10
A146: 3100 | B146: MATER ACADEMY EAST CHARTER | C146: 6 | D146: 4 | E146: 1 | F146: 1
A147: 3101 | B147: FRANK C. MARTIN K-8 CENTER | C147: 14 | E147: 3 | F147: 3 | G147: 3 | H147: 1 | I147: 4
A148: 3111 | B148: WESLEY MATTHEWS ELEMENTARY | C148: 15 | E148: 6 | F148: 9
A149: 3141 | B149: MEADOWLANE ELEMENTARY | C149: 85 | D149: 11 | E149: 24 | F149: 50
A150: 3181 | B150: MELROSE ELEMENTARY | C150: 41 | D150: 4 | E150: 19 | F150: 18
A151: 3191 | B151: ADA MERRITT K-8 CENTER | C151: 7 | E151: 2 | F151: 1 | G151: 2 | H151: 2
A152: 3241 | B152: MIAMI GARDENS ELEMENTARY | C152: 28 | D152: 4 | E152: 10 | F152: 14
A153: 3261 | B153: MIAMI HEIGHTS ELEMENTARY | C153: 58 | D153: 15 | E153: 26 | F153: 17
A154: 3281 | B154: MIAMI LAKES K-8 CENTER | C154: 86 | D154: 5 | E154: 12 | F154: 15 | G154: 16 | H154: 19 | I154: 19
A155: 3301 | B155: MIAMI PARK ELEMENTARY | C155: 56 | D155: 15 | E155: 18 | F155: 23
A156: 3341 | B156: MIAMI SHORES ELEMENTARY | C156: 33 | D156: 15 | E156: 8 | F156: 10
A157: 3381 | B157: MIAMI SPRINGS ELEMENTARY | C157: 25 | D157: 4 | E157: 7 | F157: 14
A158: 3421 | B158: M.A. MILAM K-8 CENTER | C158: 122 | D158: 9 | E158: 17 | F158: 16 | G158: 18 | H158: 31 | I158: 31
A159: 3431 | B159: PHYLLIS RUTH MILLER ELEMENTARY | C159: 38 | D159: 5 | E159: 16 | F159: 17
A160: 3501 | B160: MORNINGSIDE K-8 ACADEMY | C160: 32 | D160: 7 | E160: 8 | F160: 12 | G160: 5
A161: 3541 | B161: ROBERT RUSSA MOTON ELEMENTARY | C161: 24 | D161: 7 | E161: 11 | F161: 6
A162: 3581 | B162: MYRTLE GROVE K-8 CENTER | C162: 48 | D162: 8 | E162: 14 | F162: 17 | G162: 9
A163: 3600 | B163: DOWNTOWN MIAMI CHARTER SCHOOL | C163: 33 | D163: 2 | E163: 6 | F163: 12 | G163: 13
A164: 3610 | B164: KEYS GATE CHARTER SCHOOL | C164: 191 | D164: 12 | E164: 20 | F164: 25 | G164: 28 | H164: 60 | I164: 46
A165: 3621 | B165: COCONUT PALM K-8 ACADEMY | C165: 151 | D165: 18 | E165: 28 | F165: 29 | G165: 33 | H165: 24 | I165: 19
A166: 3661 | B166: NATURAL BRIDGE ELEMENTARY | C166: 54 | D166: 9 | E166: 23 | F166: 22
A167: 3701 | B167: NORLAND ELEMENTARY | C167: 37 | D167: 6 | E167: 10 | F167: 21
A168: 3741 | B168: NORTH BEACH ELEMENTARY | C168: 10 | D168: 2 | E168: 3 | F168: 5
A169: 3781 | B169: BARBARA HAWKINS ELEMENTARY | C169: 23 | D169: 6 | E169: 5 | F169: 12
A170: 3821 | B170: NORTH COUNTY K-8 CENTER | C170: 45 | D170: 7 | E170: 6 | F170: 10 | G170: 14 | H170: 8
A171: 3861 | B171: NORTH GLADE ELEMENTARY | C171: 32 | D171: 4 | E171: 17 | F171: 11
A172: 3901 | B172: NORTH HIALEAH ELEMENTARY | C172: 49 | D172: 11 | E172: 25 | F172: 13
A173: 3941 | B173: NORTH MIAMI ELEMENTARY | C173: 59 | D173: 14 | E173: 29 | F173: 16
A174: 3981 | B174: NORTH TWIN LAKES ELEMENTARY | C174: 31 | D174: 4 | E174: 16 | F174: 11
A175: 4000 | B175: MIAMI CHILDREN'S MUSEUM | C175: 4 | F175: 4
A176: 4001 | B176: NORWOOD ELEMENTARY | C176: 23 | D176: 2 | E176: 13 | F176: 8
A177: 4012 | B177: SOMERSET ACAD AT SILVER PALMS | C177: 12 | D177: 1 | E177: 6 | F177: 5
A178: 4021 | B178: OAK GROVE ELEMENTARY | C178: 71 | D178: 11 | E178: 19 | F178: 23 | G178: 18
A179: 4031 | B179: GATEWAY ENVIRONMENTAL K-8 | C179: 135 | D179: 17 | E179: 36 | F179: 24 | G179: 30 | H179: 28
A180: 4061 | B180: OJUS ELEMENTARY | C180: 32 | D180: 8 | E180: 10 | F180: 14
A181: 4071 | B181: OLINDA ELEMENTARY | C181: 32 | D181: 6 | E181: 18 | F181: 8
A182: 4091 | B182: OLYMPIA HEIGHTS ELEMENTARY | C182: 17 | D182: 3 | E182: 9 | F182: 5
A183: 4121 | B183: DR. ROBERT B. INGRAM EL | C183: 32 | D183: 10 | E183: 15 | F183: 7
A184: 4171 | B184: ORCHARD VILLA ELEMENTARY | C184: 40 | D184: 6 | E184: 17 | F184: 17
A185: 4221 | B185: PALMETTO ELEMENTARY | C185: 16 | D185: 3 | E185: 7 | F185: 6
A186: 4241 | B186: PALM LAKES ELEMENTARY | C186: 63 | D186: 9 | E186: 22 | F186: 32
A187: 4261 | B187: PALM SPRINGS ELEMENTARY | C187: 51 | D187: 12 | E187: 26 | F187: 13
A188: 4281 | B188: PALM SPRINGS NORTH ELEMENTARY | C188: 36 | D188: 3 | E188: 18 | F188: 15
A189: 4301 | B189: PARKVIEW ELEMENTARY | C189: 22 | D189: 10 | E189: 5 | F189: 7
A190: 4341 | B190: PARKWAY ELEMENTARY | C190: 17 | D190: 2 | E190: 8 | F190: 7
A191: 4381 | B191: DR HENRY E PERRINE ACADEMY | C191: 32 | E191: 20 | F191: 12
A192: 4391 | B192: IRVING & BEATRICE PESKOE K-8 | C192: 74 | D192: 11 | E192: 17 | F192: 16 | G192: 18 | H192: 12
A193: 4401 | B193: KELSEY L. PHARR ELEMENTARY | C193: 34 | D193: 9 | E193: 13 | F193: 12
A194: 4421 | B194: PINECREST ELEMENTARY | C194: 16 | D194: 3 | E194: 8 | F194: 5
A195: 4441 | B195: PINE LAKE ELEMENTARY | C195: 44 | D195: 12 | E195: 16 | F195: 16
A196: 4461 | B196: PINE VILLA ELEMENTARY | C196: 29 | D196: 4 | E196: 18 | F196: 7
A197: 4491 | B197: HENRY E.S. REEVES ELEMENTARY | C197: 75 | D197: 20 | E197: 38 | F197: 17
A198: 4501 | B198: POINCIANA PARK ELEMENTARY | C198: 50 | D198: 17 | E198: 19 | F198: 14
A199: 4511 | B199: DR GILBERT L. PORTER ELEM | C199: 36 | D199: 5 | E199: 18 | F199: 13
A200: 4541 | B200: RAINBOW PARK ELEMENTARY | C200: 32 | D200: 4 | E200: 17 | F200: 11
... 246 more rows

Sheet MEM_RL2 (hidden)
A1: S_SCHOOL_NUM | B1: S_SCHL_NAME | C1: Total Of STUDENT_ID | D1: 03 | E1: 04 | F1: 05 | G1: 06 | H1: 07 | I1: 08 | J1: 09 | K1: 10
A2: 0041 | B2: AIR BASE ELEMENTARY | C2: 33 | E2: 18 | F2: 15
A3: 0070 | B3: CORAL REEF MONTESSORI ACAD CH | C3: 46 | E3: 10 | F3: 10 | G3: 9 | H3: 8 | I3: 9
A4: 0071 | B4: EUGENIA B. THOMAS K-8 CENTER | C4: 162 | E4: 44 | F4: 23 | G4: 30 | H4: 28 | I4: 37
A5: 0072 | B5: SUMMERVILLE CHARTER SCHOOL | C5: 54 | E5: 25 | F5: 29
A6: 0073 | B6: MANDARIN LAKES K-8 CENTER | C6: 167 | E6: 54 | F6: 44 | G6: 29 | H6: 20 | I6: 20
A7: 0081 | B7: LENORA B. SMITH ELEMENTARY | C7: 42 | E7: 28 | F7: 14
A8: 0091 | B8: BOB GRAHAM EDUCATION CTR | C8: 230 | E8: 43 | F8: 41 | G8: 61 | H8: 42 | I8: 43
A9: 0092 | B9: NORMAN S. EDELCUP/SUNNY ISLES | C9: 137 | E9: 35 | F9: 30 | G9: 22 | H9: 28 | I9: 22
A10: 0100 | B10: MATER ACADEMY | C10: 71 | E10: 30 | F10: 41
A11: 0101 | B11: ARCOLA LAKE ELEMENTARY | C11: 51 | E11: 16 | F11: 35
A12: 0102 | B12: MIAMI COMMUNITY CHARTER SCHOOL | C12: 51 | E12: 21 | F12: 30
A13: 0111 | B13: MAYA ANGELOU ELEMENTARY | C13: 65 | E13: 35 | F13: 30
A14: 0121 | B14: AUBURNDALE ELEMENTARY | C14: 63 | E14: 38 | F14: 25
A15: 0122 | B15: DR ROLANDO ESPINOSA K-8 | C15: 174 | E15: 27 | F15: 33 | G15: 30 | H15: 36 | I15: 48
A16: 0125 | B16: NORMA BUTLER BOSSARD ELEM | C16: 89 | E16: 48 | F16: 41
A17: 0201 | B17: BANYAN ELEMENTARY | C17: 24 | E17: 11 | F17: 13
A18: 0211 | B18: DR. MANUEL C. BARREIRO ELEM | C18: 75 | E18: 36 | F18: 39
A19: 0231 | B19: AVENTURA WATERWAYS K-8 CENTER | C19: 188 | E19: 24 | F19: 36 | G19: 40 | H19: 45 | I19: 43
A20: 0241 | B20: RUTH K BROAD/BAY HARBOR K-8 | C20: 108 | E20: 22 | F20: 26 | G20: 19 | H20: 22 | I20: 19
A21: 0251 | B21: ETHEL KOGER BECKHAM ELEMENTARY | C21: 33 | E21: 14 | F21: 19
A22: 0261 | B22: BEL-AIRE ELEMENTARY | C22: 49 | E22: 27 | F22: 22
A23: 0271 | B23: BENT TREE ELEMENTARY | C23: 46 | E23: 23 | F23: 23
A24: 0311 | B24: GOULDS ELEMENTARY | C24: 73 | E24: 37 | F24: 36
A25: 0312 | B25: MATER GARDENS ACADEMY | C25: 41 | E25: 25 | F25: 16
A26: 0321 | B26: BISCAYNE ELEMENTARY | C26: 66 | E26: 33 | F26: 33
A27: 0332 | B27: SOMERSET ACADEMY(SILVER PALMS) | C27: 144 | E27: 17 | F27: 24 | G27: 31 | H27: 40 | I27: 32
A28: 0339 | B28: SOMERSET ACADEMY CHARTER ELEM | C28: 22 | E28: 12 | F28: 10
A29: 0341 | B29: ARCH CREEK ELEMENTARY SCHOOL | C29: 64 | E29: 28 | F29: 36
A30: 0342 | B30: PINECREST ACADEMY SOUTH CAMPUS | C30: 53 | E30: 34 | F30: 19
A31: 0361 | B31: BISCAYNE GARDENS ELEMENTARY | C31: 58 | E31: 33 | F31: 25
A32: 0400 | B32: RENAISSANCE ELEMENTARY CHARTER | C32: 41 | E32: 21 | F32: 20
A33: 0401 | B33: VAN E. BLANTON ELEMENTARY | C33: 47 | E33: 27 | F33: 20
A34: 0410 | B34: ACADEMIR CHARTER SCHOOL WEST | C34: 35 | E34: 23 | F34: 12
A35: 0441 | B35: BLUE LAKES ELEMENTARY | C35: 24 | E35: 13 | F35: 11
A36: 0451 | B36: BOWMAN ASHE/DOOLIN K-8 ACAD | C36: 199 | E36: 33 | F36: 39 | G36: 24 | H36: 52 | I36: 51
A37: 0461 | B37: BRENTWOOD ELEMENTARY | C37: 89 | E37: 45 | F37: 44
A38: 0481 | B38: JAMES H. BRIGHT/JW JOHNSON ES | C38: 60 | E38: 26 | F38: 34
A39: 0510 | B39: ARCHIMEDEAN ACADEMY | C39: 11 | E39: 7 | F39: 4
A40: 0520 | B40: SOMERSET ACADEMY | C40: 24 | E40: 16 | F40: 8
A41: 0521 | B41: BROADMOOR ELEMENTARY | C41: 44 | E41: 21 | F41: 23
A42: 0561 | B42: W.J. BRYAN ELEMENTARY | C42: 80 | E42: 43 | F42: 37
A43: 0600 | B43: PINECREST PREP ACADEMY | C43: 34 | E43: 18 | F43: 16
A44: 0641 | B44: BUNCHE PARK ELEMENTARY | C44: 17 | E44: 10 | F44: 7
A45: 0651 | B45: CAMPBELL DRIVE K-8 CENTER | C45: 105 | E45: 34 | F45: 37 | G45: 17 | H45: 17
A46: 0661 | B46: CARIBBEAN ELEMENTARY | C46: 66 | E46: 35 | F46: 31
A47: 0671 | B47: CALUSA ELEMENTARY | C47: 42 | E47: 24 | F47: 18
A48: 0681 | B48: CAROL CITY ELEMENTARY | C48: 70 | E48: 40 | F48: 30
A49: 0721 | B49: GEORGE WASHINGTON CARVER ELEM | C49: 40 | E49: 25 | F49: 15
A50: 0761 | B50: FIENBERG/FISHER K-8 CENTER | C50: 130 | E50: 25 | F50: 27 | G50: 29 | H50: 24 | I50: 25
A51: 0771 | B51: WILLIAM A. CHAPMAN ELEMENTARY | C51: 41 | E51: 24 | F51: 17
A52: 0801 | B52: CITRUS GROVE ELEMENTARY | C52: 94 | E52: 53 | F52: 41
A53: 0831 | B53: CLAUDE PEPPER ELEMENTARY | C53: 49 | E53: 29 | F53: 20
A54: 0841 | B54: COCONUT GROVE ELEMENTARY | C54: 27 | E54: 17 | F54: 10
A55: 0861 | B55: COLONIAL DRIVE ELEMENTARY | C55: 25 | E55: 12 | F55: 13
A56: 0881 | B56: COMSTOCK ELEMENTARY | C56: 43 | E56: 24 | F56: 19
A57: 0950 | B57: AVENTURA CITY OF EXCELLENCE | C57: 62 | E57: 18 | F57: 11 | G57: 10 | H57: 11 | I57: 12
A58: 0961 | B58: CORAL GABLES PREPARATORY ACAD | C58: 49 | E58: 8 | F58: 7 | G58: 11 | H58: 17 | I58: 6
A59: 1001 | B59: CORAL PARK ELEMENTARY | C59: 40 | E59: 9 | F59: 31
A60: 1010 | B60: CHARTER SCHOOL AT WATERSTONE | C60: 91 | E60: 48 | F60: 43
A61: 1014 | B61: ADVANCED LEARNING CHARTER SCH | C61: 47 | E61: 25 | F61: 22
A62: 1017 | B62: MATER ACADEMY OF INTL STUDIES | C62: 31 | E62: 14 | F62: 17
A63: 1020 | B63: YOUTH CO-OP CHARTER SCHOOL | C63: 78 | E63: 13 | F63: 9 | G63: 13 | H63: 22 | I63: 21
A64: 1041 | B64: CORAL REEF ELEMENTARY | C64: 52 | E64: 35 | F64: 17
A65: 1081 | B65: CORAL TERRACE ELEMENTARY | C65: 36 | E65: 17 | F65: 19
A66: 1121 | B66: CORAL WAY K-8 CENTER | C66: 178 | E66: 33 | F66: 38 | G66: 35 | H66: 30 | I66: 42
A67: 1161 | B67: CRESTVIEW ELEMENTARY | C67: 52 | E67: 20 | F67: 32
A68: 1241 | B68: CUTLER RIDGE ELEMENTARY | C68: 56 | E68: 36 | F68: 20
A69: 1281 | B69: CYPRESS ELEMENTARY | C69: 29 | E69: 16 | F69: 13
A70: 1331 | B70: DEVON AIRE K-8 CENTER | C70: 159 | E70: 41 | F70: 23 | G70: 32 | H70: 34 | I70: 29
A71: 1361 | B71: FREDERICK DOUGLASS ELEMENTARY | C71: 20 | E71: 12 | F71: 8
A72: 1371 | B72: MARJORY STONEMAN DOUGLAS ELEM | C72: 87 | E72: 36 | F72: 51
A73: 1401 | B73: CHARLES R. DREW K-8 CENTER | C73: 37 | E73: 8 | F73: 13 | G73: 16
A74: 1441 | B74: PAUL LAURENCE DUNBAR K-8 CTR | C74: 45 | E74: 22 | F74: 12 | G74: 11
A75: 1481 | B75: JOHN G. DUPUIS ELEMENTARY | C75: 63 | E75: 22 | F75: 41
A76: 1521 | B76: AMELIA EARHART ELEMENTARY | C76: 39 | E76: 17 | F76: 22
A77: 1561 | B77: EARLINGTON HEIGHTS ELEMENTARY | C77: 41 | E77: 22 | F77: 19
A78: 1601 | B78: EDISON PARK K-8 CENTER | C78: 42 | E78: 18 | F78: 17 | G78: 7
A79: 1641 | B79: EMERSON ELEMENTARY | C79: 24 | E79: 14 | F79: 10
A80: 1681 | B80: LILLIE C. EVANS K-8 CENTER | C80: 87 | E80: 29 | F80: 14 | G80: 21 | H80: 16 | I80: 7
A81: 1691 | B81: CHRISTINA M. EVE ELEMENTARY | C81: 24 | E81: 11 | F81: 13
A82: 1721 | B82: EVERGLADES K-8 CENTER | C82: 131 | E82: 30 | F82: 24 | G82: 24 | H82: 27 | I82: 26
A83: 1761 | B83: DAVID FAIRCHILD ELEMENTARY | C83: 26 | E83: 17 | F83: 9
A84: 1801 | B84: FAIRLAWN ELEMENTARY | C84: 58 | E84: 30 | F84: 28
A85: 1811 | B85: DANTE B. FASCELL ELEMENTARY | C85: 22 | E85: 12 | F85: 10
A86: 1841 | B86: FLAGAMI ELEMENTARY | C86: 37 | E86: 17 | F86: 20
A87: 1881 | B87: HENRY M. FLAGLER ELEMENTARY | C87: 50 | E87: 27 | F87: 23
A88: 1921 | B88: FLAMINGO ELEMENTARY | C88: 66 | E88: 26 | F88: 40
A89: 2001 | B89: FLORIDA CITY ELEMENTARY | C89: 70 | D89: 1 | E89: 39 | F89: 30
A90: 2003 | B90: BRIDGEPOINT ACADEMY | C90: 17 | E90: 9 | F90: 8
A91: 2006 | B91: RICHARD ALLEN LEADERSHIP ACAD | C91: 10 | E91: 5 | F91: 5
A92: 2007 | B92: SOMERSET ACADEMY ELEMENTARY | C92: 17 | E92: 9 | F92: 8
A93: 2012 | B93: SOMERSET ARTS ACADEMY | C93: 20 | E93: 16 | F93: 4
A94: 2013 | B94: BRIDGEPOINT ACAD GREATER MIAMI | C94: 9 | E94: 5 | F94: 4
A95: 2021 | B95: GLORIA FLOYD ELEMENTARY | C95: 36 | E95: 21 | F95: 15
A96: 2041 | B96: BENJAMIN FRANKLIN K-8 CENTER | C96: 96 | E96: 29 | F96: 25 | G96: 25 | H96: 17
A97: 2060 | B97: GIBSON CHARTER SCHOOL | C97: 57 | E97: 6 | F97: 11 | G97: 18 | H97: 13 | I97: 9
A98: 2081 | B98: FULFORD ELEMENTARY | C98: 41 | E98: 23 | F98: 18
A99: 2111 | B99: HIALEAH GARDENS ELEMENTARY | C99: 65 | E99: 25 | F99: 40
A100: 2151 | B100: JACK D. GORDON ELEMENTARY | C100: 79 | E100: 41 | F100: 38
A101: 2161 | B101: GOLDEN GLADES ELEMENTARY | C101: 28 | E101: 12 | F101: 16
A102: 2181 | B102: JOELLA C. GOOD ELEMENTARY | C102: 77 | E102: 45 | F102: 32
A103: 2191 | B103: SPANISH LAKE ELEMENTARY | C103: 130 | E103: 57 | F103: 73
A104: 2241 | B104: GRATIGNY ELEMENTARY | C104: 74 | E104: 25 | F104: 24 | G104: 25
A105: 2261 | B105: GREENGLADE ELEMENTARY | C105: 44 | E105: 30 | F105: 14
A106: 2281 | B106: GREYNOLDS PARK ELEMENTARY | C106: 62 | E106: 33 | F106: 29
A107: 2321 | B107: GULFSTREAM ELEMENTARY | C107: 41 | E107: 24 | F107: 17
A108: 2331 | B108: CHARLES R. HADLEY ELEMENTARY | C108: 74 | E108: 42 | F108: 32
A109: 2341 | B109: JOE HALL ELEMENTARY | C109: 44 | E109: 25 | F109: 19
A110: 2351 | B110: ENEIDA MASSAS HARTNER ELEM | C110: 56 | E110: 28 | F110: 28
A111: 2361 | B111: HIALEAH ELEMENTARY | C111: 67 | E111: 39 | F111: 28
A112: 2371 | B112: WEST HIALEAH GARDENS ELEM | C112: 101 | E112: 65 | F112: 36
A113: 2401 | B113: HIBISCUS ELEMENTARY | C113: 60 | D113: 1 | E113: 26 | F113: 33
A114: 2441 | B114: VIRGINIA A BOONE/HIGHLAND OAKS | C114: 23 | E114: 15 | F114: 8
A115: 2501 | B115: HOLMES ELEMENTARY | C115: 61 | E115: 32 | F115: 29
A116: 2511 | B116: ZORA NEALE HURSTON ELEMENTARY | C116: 49 | E116: 26 | F116: 23
A117: 2521 | B117: OLIVER HOOVER ELEMENTARY | C117: 58 | E117: 26 | F117: 32
A118: 2541 | B118: HOWARD DRIVE ELEMENTARY | C118: 39 | E118: 22 | F118: 17
A119: 2581 | B119: MADIE IVES ELEMENTARY | C119: 65 | E119: 35 | F119: 30
A120: 2641 | B120: KENDALE ELEMENTARY | C120: 24 | E120: 11 | F120: 13
A121: 2651 | B121: KENDALE LAKES ELEMENTARY | C121: 36 | E121: 22 | F121: 14
A122: 2661 | B122: KENSINGTON PARK ELEMENTARY | C122: 115 | E122: 62 | F122: 53
A123: 2701 | B123: KENWOOD K-8 CENTER | C123: 103 | D123: 1 | E123: 21 | F123: 21 | G123: 18 | H123: 19 | I123: 23
A124: 2741 | B124: KEY BISCAYNE K-8 CENTER | C124: 76 | E124: 16 | F124: 14 | G124: 17 | H124: 19 | I124: 10
A125: 2781 | B125: KINLOCH PARK ELEMENTARY | C125: 81 | E125: 44 | F125: 37
A126: 2801 | B126: LAKE STEVENS ELEMENTARY | C126: 29 | E126: 17 | F126: 12
A127: 2821 | B127: LAKEVIEW ELEMENTARY | C127: 51 | E127: 23 | F127: 28
A128: 2881 | B128: LEEWOOD K-8 CENTER | C128: 62 | D128: 2 | E128: 15 | F128: 12 | G128: 14 | H128: 14 | I128: 5
A129: 2891 | B129: WILLIAM LEHMAN ELEMENTARY | C129: 36 | E129: 18 | F129: 18
A130: 2901 | B130: LEISURE CITY K-8 CENTER | C130: 217 | E130: 49 | F130: 51 | G130: 33 | H130: 38 | I130: 46
A131: 2911 | B131: LINDA LENTIN K-8 CENTER | C131: 164 | E131: 25 | F131: 36 | G131: 37 | H131: 25 | I131: 41
A132: 2941 | B132: LAURA C. SAUNDERS ELEMENTARY | C132: 72 | E132: 42 | F132: 30
A133: 2981 | B133: LIBERTY CITY ELEMENTARY | C133: 31 | E133: 17 | F133: 14
A134: 3021 | B134: JESSE J MCCRARY JR ELEMENTARY | C134: 56 | E134: 31 | F134: 25
A135: 3024 | B135: FLORIDA INTERNATIONAL EL ACAD | C135: 47 | E135: 26 | F135: 21
A136: 3025 | B136: ADVANTAGE ACADEMY SANTA FE | C136: 12 | E136: 10 | F136: 2
A137: 3029 | B137: DORAL ACADEMY OF TECHNOLOGY | C137: 4 | G137: 2 | H137: 1 | I137: 1
A138: 3030 | B138: DORAL ACADEMY | C138: 44 | E138: 29 | F138: 15
A139: 3032 | B139: PALM GLADES PREPATORY ACADEMY | C139: 117 | G139: 53 | H139: 31 | I139: 33
A140: 3034 | B140: BRIDGEPOINT ACAD VILLAGE GREEN | C140: 8 | E140: 4 | F140: 4
A141: 3035 | B141: RAMZ ACADEMY ELEM MIAMI CAMPUS | C141: 3 | E141: 3
A142: 3041 | B142: LORAH PARK ELEMENTARY | C142: 46 | E142: 24 | F142: 22
A143: 3051 | B143: TOUSSAINT L'OUVERTURE ELEM | C143: 58 | E143: 28 | F143: 30
A144: 3061 | B144: LUDLAM ELEMENTARY | C144: 18 | E144: 10 | F144: 8
A145: 3100 | B145: MATER ACADEMY EAST CHARTER | C145: 25 | E145: 21 | F145: 4
A146: 3101 | B146: FRANK C. MARTIN K-8 CENTER | C146: 76 | E146: 20 | F146: 17 | G146: 16 | H146: 12 | I146: 11
A147: 3111 | B147: WESLEY MATTHEWS ELEMENTARY | C147: 21 | E147: 9 | F147: 12
A148: 3141 | B148: MEADOWLANE ELEMENTARY | C148: 126 | E148: 55 | F148: 71
A149: 3181 | B149: MELROSE ELEMENTARY | C149: 66 | E149: 37 | F149: 29
A150: 3191 | B150: ADA MERRITT K-8 CENTER | C150: 48 | E150: 7 | F150: 9 | G150: 14 | H150: 12 | I150: 6
A151: 3241 | B151: MIAMI GARDENS ELEMENTARY | C151: 26 | E151: 17 | F151: 9
A152: 3261 | B152: MIAMI HEIGHTS ELEMENTARY | C152: 93 | E152: 55 | F152: 38
A153: 3281 | B153: MIAMI LAKES K-8 CENTER | C153: 170 | E153: 31 | F153: 36 | G153: 33 | H153: 28 | I153: 42
A154: 3301 | B154: MIAMI PARK ELEMENTARY | C154: 43 | E154: 24 | F154: 19
A155: 3341 | B155: MIAMI SHORES ELEMENTARY | C155: 67 | E155: 27 | F155: 40
A156: 3381 | B156: MIAMI SPRINGS ELEMENTARY | C156: 49 | E156: 27 | F156: 22
A157: 3421 | B157: M.A. MILAM K-8 CENTER | C157: 178 | E157: 30 | F157: 30 | G157: 35 | H157: 45 | I157: 38
A158: 3431 | B158: PHYLLIS RUTH MILLER ELEMENTARY | C158: 59 | E158: 30 | F158: 29
A159: 3501 | B159: MORNINGSIDE K-8 ACADEMY | C159: 60 | E159: 28 | F159: 16 | G159: 16
A160: 3541 | B160: ROBERT RUSSA MOTON ELEMENTARY | C160: 38 | E160: 21 | F160: 17
A161: 3581 | B161: MYRTLE GROVE K-8 CENTER | C161: 49 | E161: 17 | F161: 15 | G161: 17
A162: 3600 | B162: DOWNTOWN MIAMI CHARTER SCHOOL | C162: 87 | E162: 38 | F162: 22 | G162: 27
A163: 3610 | B163: KEYS GATE CHARTER SCHOOL | C163: 311 | E163: 48 | F163: 44 | G163: 71 | H163: 84 | I163: 64
A164: 3621 | B164: COCONUT PALM K-8 ACADEMY | C164: 203 | E164: 54 | F164: 52 | G164: 43 | H164: 31 | I164: 23
A165: 3661 | B165: NATURAL BRIDGE ELEMENTARY | C165: 36 | E165: 25 | F165: 11
A166: 3701 | B166: NORLAND ELEMENTARY | C166: 70 | E166: 38 | F166: 32
A167: 3741 | B167: NORTH BEACH ELEMENTARY | C167: 43 | E167: 26 | F167: 17
A168: 3781 | B168: BARBARA HAWKINS ELEMENTARY | C168: 34 | E168: 21 | F168: 13
A169: 3821 | B169: NORTH COUNTY K-8 CENTER | C169: 56 | E169: 16 | F169: 10 | G169: 15 | H169: 15
A170: 3861 | B170: NORTH GLADE ELEMENTARY | C170: 17 | E170: 10 | F170: 7
A171: 3901 | B171: NORTH HIALEAH ELEMENTARY | C171: 62 | E171: 34 | F171: 28
A172: 3941 | B172: NORTH MIAMI ELEMENTARY | C172: 60 | E172: 34 | F172: 26
A173: 3981 | B173: NORTH TWIN LAKES ELEMENTARY | C173: 60 | E173: 32 | F173: 28
A174: 4000 | B174: MIAMI CHILDREN'S MUSEUM | C174: 17 | E174: 8 | F174: 9
A175: 4001 | B175: NORWOOD ELEMENTARY | C175: 34 | E175: 16 | F175: 18
A176: 4012 | B176: SOMERSET ACAD AT SILVER PALMS | C176: 38 | E176: 26 | F176: 12
A177: 4021 | B177: OAK GROVE ELEMENTARY | C177: 80 | E177: 30 | F177: 31 | G177: 19
A178: 4031 | B178: GATEWAY ENVIRONMENTAL K-8 | C178: 192 | E178: 61 | F178: 54 | G178: 50 | H178: 27
A179: 4061 | B179: OJUS ELEMENTARY | C179: 64 | E179: 32 | F179: 32
A180: 4071 | B180: OLINDA ELEMENTARY | C180: 37 | E180: 20 | F180: 17
A181: 4091 | B181: OLYMPIA HEIGHTS ELEMENTARY | C181: 46 | E181: 27 | F181: 19
A182: 4121 | B182: DR. ROBERT B. INGRAM EL | C182: 42 | E182: 22 | F182: 20
A183: 4171 | B183: ORCHARD VILLA ELEMENTARY | C183: 46 | E183: 25 | F183: 21
A184: 4221 | B184: PALMETTO ELEMENTARY | C184: 25 | E184: 13 | F184: 12
A185: 4241 | B185: PALM LAKES ELEMENTARY | C185: 73 | E185: 30 | F185: 43
A186: 4261 | B186: PALM SPRINGS ELEMENTARY | C186: 70 | E186: 38 | F186: 32
A187: 4281 | B187: PALM SPRINGS NORTH ELEMENTARY | C187: 83 | E187: 45 | F187: 38
A188: 4301 | B188: PARKVIEW ELEMENTARY | C188: 28 | E188: 19 | F188: 9
A189: 4341 | B189: PARKWAY ELEMENTARY | C189: 36 | E189: 21 | F189: 15
A190: 4381 | B190: DR HENRY E PERRINE ACADEMY | C190: 65 | E190: 30 | F190: 35
A191: 4391 | B191: IRVING & BEATRICE PESKOE K-8 | C191: 87 | E191: 25 | F191: 31 | G191: 19 | H191: 12
A192: 4401 | B192: KELSEY L. PHARR ELEMENTARY | C192: 36 | E192: 19 | F192: 17
A193: 4421 | B193: PINECREST ELEMENTARY | C193: 34 | E193: 13 | F193: 21
A194: 4441 | B194: PINE LAKE ELEMENTARY | C194: 41 | E194: 20 | F194: 21
A195: 4461 | B195: PINE VILLA ELEMENTARY | C195: 26 | E195: 17 | F195: 9
A196: 4491 | B196: HENRY E.S. REEVES ELEMENTARY | C196: 83 | E196: 44 | F196: 39
A197: 4501 | B197: POINCIANA PARK ELEMENTARY | C197: 27 | E197: 12 | F197: 15
A198: 4511 | B198: DR GILBERT L. PORTER ELEM | C198: 50 | E198: 20 | F198: 30
A199: 4541 | B199: RAINBOW PARK ELEMENTARY | C199: 33 | E199: 13 | F199: 20
A200: 4581 | B200: REDLAND ELEMENTARY | C200: 88 | E200: 46 | F200: 42
... 249 more rows

Sheet MEM_RL3 (hidden)
A1: S_SCHOOL_NUM | B1: S_SCHL_NAME | C1: Total Of STUDENT_ID | E1: 04 | F1: 05 | G1: 06 | H1: 07 | I1: 08 | J1: 09 | K1: 10
A2: 0041 | B2: AIR BASE ELEMENTARY | C2: 59 | E2: 29 | F2: 30
A3: 0070 | B3: CORAL REEF MONTESSORI ACAD CH | C3: 54 | E3: 11 | F3: 15 | G3: 6 | H3: 10 | I3: 12
A4: 0071 | B4: EUGENIA B. THOMAS K-8 CENTER | C4: 206 | E4: 36 | F4: 32 | G4: 30 | H4: 48 | I4: 60
A5: 0072 | B5: SUMMERVILLE CHARTER SCHOOL | C5: 45 | E5: 22 | F5: 23
A6: 0073 | B6: MANDARIN LAKES K-8 CENTER | C6: 115 | E6: 23 | F6: 33 | G6: 21 | H6: 16 | I6: 22
A7: 0081 | B7: LENORA B. SMITH ELEMENTARY | C7: 20 | E7: 11 | F7: 9
A8: 0091 | B8: BOB GRAHAM EDUCATION CTR | C8: 317 | E8: 65 | F8: 54 | G8: 50 | H8: 72 | I8: 76
A9: 0092 | B9: NORMAN S. EDELCUP/SUNNY ISLES | C9: 223 | E9: 46 | F9: 42 | G9: 37 | H9: 51 | I9: 47
A10: 0100 | B10: MATER ACADEMY | C10: 68 | E10: 29 | F10: 39
A11: 0101 | B11: ARCOLA LAKE ELEMENTARY | C11: 40 | E11: 18 | F11: 22
A12: 0102 | B12: MIAMI COMMUNITY CHARTER SCHOOL | C12: 35 | E12: 19 | F12: 16
A13: 0111 | B13: MAYA ANGELOU ELEMENTARY | C13: 43 | E13: 14 | F13: 29
A14: 0121 | B14: AUBURNDALE ELEMENTARY | C14: 61 | E14: 31 | F14: 30
A15: 0122 | B15: DR ROLANDO ESPINOSA K-8 | C15: 215 | E15: 38 | F15: 38 | G15: 41 | H15: 56 | I15: 42
A16: 0125 | B16: NORMA BUTLER BOSSARD ELEM | C16: 120 | E16: 52 | F16: 68
A17: 0201 | B17: BANYAN ELEMENTARY | C17: 25 | E17: 14 | F17: 11
A18: 0211 | B18: DR. MANUEL C. BARREIRO ELEM | C18: 91 | E18: 45 | F18: 46
A19: 0231 | B19: AVENTURA WATERWAYS K-8 CENTER | C19: 258 | E19: 42 | F19: 46 | G19: 53 | H19: 52 | I19: 65
A20: 0241 | B20: RUTH K BROAD/BAY HARBOR K-8 | C20: 193 | E20: 37 | F20: 22 | G20: 49 | H20: 41 | I20: 44
A21: 0251 | B21: ETHEL KOGER BECKHAM ELEMENTARY | C21: 62 | E21: 29 | F21: 33
A22: 0261 | B22: BEL-AIRE ELEMENTARY | C22: 24 | E22: 9 | F22: 15
A23: 0271 | B23: BENT TREE ELEMENTARY | C23: 56 | E23: 24 | F23: 32
A24: 0311 | B24: GOULDS ELEMENTARY | C24: 33 | E24: 18 | F24: 15
A25: 0312 | B25: MATER GARDENS ACADEMY | C25: 68 | E25: 31 | F25: 37
A26: 0321 | B26: BISCAYNE ELEMENTARY | C26: 51 | E26: 31 | F26: 20
A27: 0332 | B27: SOMERSET ACADEMY(SILVER PALMS) | C27: 191 | E27: 11 | F27: 30 | G27: 61 | H27: 55 | I27: 34
A28: 0339 | B28: SOMERSET ACADEMY CHARTER ELEM | C28: 25 | E28: 15 | F28: 10
A29: 0341 | B29: ARCH CREEK ELEMENTARY SCHOOL | C29: 51 | E29: 21 | F29: 30
A30: 0342 | B30: PINECREST ACADEMY SOUTH CAMPUS | C30: 62 | E30: 23 | F30: 39
A31: 0361 | B31: BISCAYNE GARDENS ELEMENTARY | C31: 29 | E31: 17 | F31: 12
A32: 0400 | B32: RENAISSANCE ELEMENTARY CHARTER | C32: 62 | E32: 28 | F32: 34
A33: 0401 | B33: VAN E. BLANTON ELEMENTARY | C33: 38 | E33: 18 | F33: 20
A34: 0410 | B34: ACADEMIR CHARTER SCHOOL WEST | C34: 34 | E34: 15 | F34: 19
A35: 0441 | B35: BLUE LAKES ELEMENTARY | C35: 35 | E35: 25 | F35: 10
A36: 0451 | B36: BOWMAN ASHE/DOOLIN K-8 ACAD | C36: 233 | E36: 42 | F36: 35 | G36: 36 | H36: 61 | I36: 59
A37: 0461 | B37: BRENTWOOD ELEMENTARY | C37: 54 | E37: 24 | F37: 30
A38: 0481 | B38: JAMES H. BRIGHT/JW JOHNSON ES | C38: 59 | E38: 29 | F38: 30
A39: 0510 | B39: ARCHIMEDEAN ACADEMY | C39: 43 | E39: 18 | F39: 25
A40: 0520 | B40: SOMERSET ACADEMY | C40: 59 | E40: 29 | F40: 30
A41: 0521 | B41: BROADMOOR ELEMENTARY | C41: 26 | E41: 14 | F41: 12
A42: 0561 | B42: W.J. BRYAN ELEMENTARY | C42: 43 | E42: 17 | F42: 26
A43: 0600 | B43: PINECREST PREP ACADEMY | C43: 47 | E43: 20 | F43: 27
A44: 0641 | B44: BUNCHE PARK ELEMENTARY | C44: 15 | E44: 6 | F44: 9
A45: 0651 | B45: CAMPBELL DRIVE K-8 CENTER | C45: 75 | E45: 19 | F45: 26 | G45: 12 | H45: 18
A46: 0661 | B46: CARIBBEAN ELEMENTARY | C46: 35 | E46: 11 | F46: 24
A47: 0671 | B47: CALUSA ELEMENTARY | C47: 66 | E47: 41 | F47: 25
A48: 0681 | B48: CAROL CITY ELEMENTARY | C48: 26 | E48: 3 | F48: 23
A49: 0721 | B49: GEORGE WASHINGTON CARVER ELEM | C49: 31 | E49: 14 | F49: 17
A50: 0761 | B50: FIENBERG/FISHER K-8 CENTER | C50: 112 | E50: 16 | F50: 19 | G50: 27 | H50: 26 | I50: 24
A51: 0771 | B51: WILLIAM A. CHAPMAN ELEMENTARY | C51: 21 | E51: 12 | F51: 9
A52: 0801 | B52: CITRUS GROVE ELEMENTARY | C52: 57 | E52: 27 | F52: 30
A53: 0831 | B53: CLAUDE PEPPER ELEMENTARY | C53: 63 | E53: 27 | F53: 36
A54: 0841 | B54: COCONUT GROVE ELEMENTARY | C54: 23 | E54: 6 | F54: 17
A55: 0861 | B55: COLONIAL DRIVE ELEMENTARY | C55: 17 | E55: 7 | F55: 10
A56: 0881 | B56: COMSTOCK ELEMENTARY | C56: 41 | E56: 24 | F56: 17
A57: 0950 | B57: AVENTURA CITY OF EXCELLENCE | C57: 173 | E57: 39 | F57: 24 | G57: 29 | H57: 36 | I57: 45
A58: 0961 | B58: CORAL GABLES PREPARATORY ACAD | C58: 111 | E58: 31 | F58: 13 | G58: 16 | H58: 34 | I58: 17
A59: 1001 | B59: CORAL PARK ELEMENTARY | C59: 81 | E59: 37 | F59: 44
A60: 1010 | B60: CHARTER SCHOOL AT WATERSTONE | C60: 84 | E60: 41 | F60: 43
A61: 1014 | B61: ADVANCED LEARNING CHARTER SCH | C61: 34 | E61: 13 | F61: 21
A62: 1017 | B62: MATER ACADEMY OF INTL STUDIES | C62: 28 | E62: 13 | F62: 15
A63: 1020 | B63: YOUTH CO-OP CHARTER SCHOOL | C63: 103 | E63: 8 | F63: 17 | G63: 15 | H63: 28 | I63: 35
A64: 1041 | B64: CORAL REEF ELEMENTARY | C64: 42 | E64: 22 | F64: 20
A65: 1081 | B65: CORAL TERRACE ELEMENTARY | C65: 48 | E65: 22 | F65: 26
A66: 1121 | B66: CORAL WAY K-8 CENTER | C66: 230 | E66: 45 | F66: 37 | G66: 45 | H66: 46 | I66: 57
A67: 1161 | B67: CRESTVIEW ELEMENTARY | C67: 34 | E67: 14 | F67: 20
A68: 1241 | B68: CUTLER RIDGE ELEMENTARY | C68: 78 | E68: 46 | F68: 32
A69: 1281 | B69: CYPRESS ELEMENTARY | C69: 42 | E69: 18 | F69: 24
A70: 1331 | B70: DEVON AIRE K-8 CENTER | C70: 296 | E70: 45 | F70: 51 | G70: 64 | H70: 61 | I70: 75
A71: 1361 | B71: FREDERICK DOUGLASS ELEMENTARY | C71: 10 | E71: 5 | F71: 5
A72: 1371 | B72: MARJORY STONEMAN DOUGLAS ELEM | C72: 82 | E72: 33 | F72: 49
A73: 1401 | B73: CHARLES R. DREW K-8 CENTER | C73: 29 | E73: 12 | F73: 5 | G73: 12
A74: 1441 | B74: PAUL LAURENCE DUNBAR K-8 CTR | C74: 35 | E74: 14 | F74: 15 | G74: 6
A75: 1481 | B75: JOHN G. DUPUIS ELEMENTARY | C75: 59 | E75: 26 | F75: 33
A76: 1521 | B76: AMELIA EARHART ELEMENTARY | C76: 33 | E76: 16 | F76: 17
A77: 1561 | B77: EARLINGTON HEIGHTS ELEMENTARY | C77: 27 | E77: 16 | F77: 11
A78: 1601 | B78: EDISON PARK K-8 CENTER | C78: 18 | E78: 8 | F78: 7 | G78: 3
A79: 1641 | B79: EMERSON ELEMENTARY | C79: 33 | E79: 12 | F79: 21
A80: 1681 | B80: LILLIE C. EVANS K-8 CENTER | C80: 61 | E80: 9 | F80: 13 | G80: 20 | H80: 12 | I80: 7
A81: 1691 | B81: CHRISTINA M. EVE ELEMENTARY | C81: 49 | E81: 23 | F81: 26
A82: 1721 | B82: EVERGLADES K-8 CENTER | C82: 173 | E82: 24 | F82: 36 | G82: 40 | H82: 38 | I82: 35
A83: 1761 | B83: DAVID FAIRCHILD ELEMENTARY | C83: 36 | E83: 17 | F83: 19
A84: 1801 | B84: FAIRLAWN ELEMENTARY | C84: 60 | E84: 37 | F84: 23
A85: 1811 | B85: DANTE B. FASCELL ELEMENTARY | C85: 51 | E85: 23 | F85: 28
A86: 1841 | B86: FLAGAMI ELEMENTARY | C86: 33 | E86: 17 | F86: 16
A87: 1881 | B87: HENRY M. FLAGLER ELEMENTARY | C87: 69 | E87: 29 | F87: 40
A88: 1921 | B88: FLAMINGO ELEMENTARY | C88: 69 | E88: 34 | F88: 35
A89: 2001 | B89: FLORIDA CITY ELEMENTARY | C89: 35 | E89: 19 | F89: 16
A90: 2003 | B90: BRIDGEPOINT ACADEMY | C90: 23 | E90: 13 | F90: 10
A91: 2006 | B91: RICHARD ALLEN LEADERSHIP ACAD | C91: 4 | E91: 2 | F91: 2
A92: 2007 | B92: SOMERSET ACADEMY ELEMENTARY | C92: 36 | E92: 22 | F92: 14
A93: 2012 | B93: SOMERSET ARTS ACADEMY | C93: 33 | E93: 20 | F93: 13
A94: 2013 | B94: BRIDGEPOINT ACAD GREATER MIAMI | C94: 13 | E94: 10 | F94: 3
A95: 2021 | B95: GLORIA FLOYD ELEMENTARY | C95: 60 | E95: 28 | F95: 32
A96: 2041 | B96: BENJAMIN FRANKLIN K-8 CENTER | C96: 38 | E96: 12 | F96: 18 | G96: 4 | H96: 4
A97: 2060 | B97: GIBSON CHARTER SCHOOL | C97: 32 | E97: 5 | F97: 5 | G97: 7 | H97: 8 | I97: 7
A98: 2081 | B98: FULFORD ELEMENTARY | C98: 37 | E98: 16 | F98: 21
A99: 2111 | B99: HIALEAH GARDENS ELEMENTARY | C99: 76 | E99: 43 | F99: 33
A100: 2151 | B100: JACK D. GORDON ELEMENTARY | C100: 92 | E100: 42 | F100: 50
A101: 2161 | B101: GOLDEN GLADES ELEMENTARY | C101: 8 | E101: 4 | F101: 4
A102: 2181 | B102: JOELLA C. GOOD ELEMENTARY | C102: 86 | E102: 42 | F102: 44
A103: 2191 | B103: SPANISH LAKE ELEMENTARY | C103: 165 | E103: 88 | F103: 77
A104: 2241 | B104: GRATIGNY ELEMENTARY | C104: 55 | E104: 16 | F104: 22 | G104: 17
A105: 2261 | B105: GREENGLADE ELEMENTARY | C105: 40 | E105: 21 | F105: 19
A106: 2281 | B106: GREYNOLDS PARK ELEMENTARY | C106: 42 | E106: 22 | F106: 20
A107: 2321 | B107: GULFSTREAM ELEMENTARY | C107: 29 | E107: 17 | F107: 12
A108: 2331 | B108: CHARLES R. HADLEY ELEMENTARY | C108: 75 | E108: 39 | F108: 36
A109: 2341 | B109: JOE HALL ELEMENTARY | C109: 58 | E109: 21 | F109: 37
A110: 2351 | B110: ENEIDA MASSAS HARTNER ELEM | C110: 33 | E110: 14 | F110: 19
A111: 2361 | B111: HIALEAH ELEMENTARY | C111: 57 | E111: 30 | F111: 27
A112: 2371 | B112: WEST HIALEAH GARDENS ELEM | C112: 104 | E112: 62 | F112: 42
A113: 2401 | B113: HIBISCUS ELEMENTARY | C113: 46 | E113: 18 | F113: 28
A114: 2441 | B114: VIRGINIA A BOONE/HIGHLAND OAKS | C114: 52 | E114: 25 | F114: 27
A115: 2501 | B115: HOLMES ELEMENTARY | C115: 28 | E115: 15 | F115: 13
A116: 2511 | B116: ZORA NEALE HURSTON ELEMENTARY | C116: 63 | E116: 29 | F116: 34
A117: 2521 | B117: OLIVER HOOVER ELEMENTARY | C117: 60 | E117: 33 | F117: 27
A118: 2541 | B118: HOWARD DRIVE ELEMENTARY | C118: 44 | E118: 23 | F118: 21
A119: 2581 | B119: MADIE IVES ELEMENTARY | C119: 61 | E119: 32 | F119: 29
A120: 2641 | B120: KENDALE ELEMENTARY | C120: 38 | E120: 18 | F120: 20
A121: 2651 | B121: KENDALE LAKES ELEMENTARY | C121: 52 | E121: 22 | F121: 30
A122: 2661 | B122: KENSINGTON PARK ELEMENTARY | C122: 73 | E122: 34 | F122: 39
A123: 2701 | B123: KENWOOD K-8 CENTER | C123: 193 | E123: 34 | F123: 29 | G123: 36 | H123: 45 | I123: 49
A124: 2741 | B124: KEY BISCAYNE K-8 CENTER | C124: 177 | E124: 31 | F124: 36 | G124: 41 | H124: 41 | I124: 28
A125: 2781 | B125: KINLOCH PARK ELEMENTARY | C125: 67 | E125: 32 | F125: 35
A126: 2801 | B126: LAKE STEVENS ELEMENTARY | C126: 19 | E126: 12 | F126: 7
A127: 2821 | B127: LAKEVIEW ELEMENTARY | C127: 40 | E127: 22 | F127: 18
A128: 2881 | B128: LEEWOOD K-8 CENTER | C128: 103 | E128: 27 | F128: 23 | G128: 15 | H128: 24 | I128: 14
A129: 2891 | B129: WILLIAM LEHMAN ELEMENTARY | C129: 53 | E129: 30 | F129: 23
A130: 2901 | B130: LEISURE CITY K-8 CENTER | C130: 121 | E130: 29 | F130: 16 | G130: 23 | H130: 24 | I130: 29
A131: 2911 | B131: LINDA LENTIN K-8 CENTER | C131: 138 | E131: 22 | F131: 31 | G131: 32 | H131: 28 | I131: 25
A132: 2941 | B132: LAURA C. SAUNDERS ELEMENTARY | C132: 43 | E132: 21 | F132: 22
A133: 2981 | B133: LIBERTY CITY ELEMENTARY | C133: 16 | E133: 10 | F133: 6
A134: 3021 | B134: JESSE J MCCRARY JR ELEMENTARY | C134: 29 | E134: 15 | F134: 14
A135: 3024 | B135: FLORIDA INTERNATIONAL EL ACAD | C135: 16 | E135: 8 | F135: 8
A136: 3025 | B136: ADVANTAGE ACADEMY SANTA FE | C136: 13 | E136: 6 | F136: 7
A137: 3029 | B137: DORAL ACADEMY OF TECHNOLOGY | C137: 35 | G137: 9 | H137: 14 | I137: 12
A138: 3030 | B138: DORAL ACADEMY | C138: 80 | E138: 35 | F138: 45
A139: 3032 | B139: PALM GLADES PREPATORY ACADEMY | C139: 113 | G139: 48 | H139: 31 | I139: 34
A140: 3034 | B140: BRIDGEPOINT ACAD VILLAGE GREEN | C140: 4 | F140: 4
A141: 3041 | B141: LORAH PARK ELEMENTARY | C141: 18 | E141: 10 | F141: 8
A142: 3051 | B142: TOUSSAINT L'OUVERTURE ELEM | C142: 28 | E142: 15 | F142: 13
A143: 3061 | B143: LUDLAM ELEMENTARY | C143: 26 | E143: 14 | F143: 12
A144: 3100 | B144: MATER ACADEMY EAST CHARTER | C144: 24 | E144: 13 | F144: 11
A145: 3101 | B145: FRANK C. MARTIN K-8 CENTER | C145: 188 | E145: 40 | F145: 32 | G145: 29 | H145: 42 | I145: 45
A146: 3111 | B146: WESLEY MATTHEWS ELEMENTARY | C146: 49 | E146: 26 | F146: 23
A147: 3141 | B147: MEADOWLANE ELEMENTARY | C147: 88 | E147: 47 | F147: 41
A148: 3181 | B148: MELROSE ELEMENTARY | C148: 42 | E148: 28 | F148: 14
A149: 3191 | B149: ADA MERRITT K-8 CENTER | C149: 104 | E149: 8 | F149: 19 | G149: 25 | H149: 25 | I149: 27
A150: 3241 | B150: MIAMI GARDENS ELEMENTARY | C150: 15 | E150: 11 | F150: 4
A151: 3261 | B151: MIAMI HEIGHTS ELEMENTARY | C151: 85 | E151: 30 | F151: 55
A152: 3281 | B152: MIAMI LAKES K-8 CENTER | C152: 231 | E152: 36 | F152: 31 | G152: 58 | H152: 42 | I152: 64
A153: 3301 | B153: MIAMI PARK ELEMENTARY | C153: 17 | E153: 8 | F153: 9
A154: 3341 | B154: MIAMI SHORES ELEMENTARY | C154: 66 | E154: 36 | F154: 30
A155: 3381 | B155: MIAMI SPRINGS ELEMENTARY | C155: 40 | E155: 21 | F155: 19
A156: 3421 | B156: M.A. MILAM K-8 CENTER | C156: 171 | E156: 25 | F156: 30 | G156: 39 | H156: 43 | I156: 34
A157: 3431 | B157: PHYLLIS RUTH MILLER ELEMENTARY | C157: 33 | E157: 14 | F157: 19
A158: 3501 | B158: MORNINGSIDE K-8 ACADEMY | C158: 48 | E158: 18 | F158: 26 | G158: 4
A159: 3541 | B159: ROBERT RUSSA MOTON ELEMENTARY | C159: 16 | E159: 9 | F159: 7
A160: 3581 | B160: MYRTLE GROVE K-8 CENTER | C160: 26 | E160: 14 | F160: 7 | G160: 5
A161: 3600 | B161: DOWNTOWN MIAMI CHARTER SCHOOL | C161: 62 | E161: 24 | F161: 25 | G161: 13
A162: 3610 | B162: KEYS GATE CHARTER SCHOOL | C162: 301 | E162: 31 | F162: 46 | G162: 53 | H162: 81 | I162: 90
A163: 3621 | B163: COCONUT PALM K-8 ACADEMY | C163: 146 | E163: 24 | F163: 32 | G163: 36 | H163: 33 | I163: 21
A164: 3661 | B164: NATURAL BRIDGE ELEMENTARY | C164: 36 | E164: 16 | F164: 20
A165: 3701 | B165: NORLAND ELEMENTARY | C165: 37 | E165: 20 | F165: 17
A166: 3741 | B166: NORTH BEACH ELEMENTARY | C166: 69 | E166: 38 | F166: 31
A167: 3781 | B167: BARBARA HAWKINS ELEMENTARY | C167: 20 | E167: 9 | F167: 11
A168: 3821 | B168: NORTH COUNTY K-8 CENTER | C168: 35 | E168: 10 | F168: 8 | G168: 8 | H168: 9
A169: 3861 | B169: NORTH GLADE ELEMENTARY | C169: 24 | E169: 9 | F169: 15
A170: 3901 | B170: NORTH HIALEAH ELEMENTARY | C170: 51 | E170: 16 | F170: 35
A171: 3941 | B171: NORTH MIAMI ELEMENTARY | C171: 32 | E171: 15 | F171: 17
A172: 3981 | B172: NORTH TWIN LAKES ELEMENTARY | C172: 50 | E172: 31 | F172: 19
A173: 4000 | B173: MIAMI CHILDREN'S MUSEUM | C173: 25 | E173: 9 | F173: 16
A174: 4001 | B174: NORWOOD ELEMENTARY | C174: 32 | E174: 14 | F174: 18
A175: 4012 | B175: SOMERSET ACAD AT SILVER PALMS | C175: 38 | E175: 25 | F175: 13
A176: 4021 | B176: OAK GROVE ELEMENTARY | C176: 56 | E176: 13 | F176: 29 | G176: 14
A177: 4031 | B177: GATEWAY ENVIRONMENTAL K-8 | C177: 137 | E177: 36 | F177: 36 | G177: 30 | H177: 35
A178: 4061 | B178: OJUS ELEMENTARY | C178: 80 | E178: 47 | F178: 33
A179: 4071 | B179: OLINDA ELEMENTARY | C179: 18 | E179: 4 | F179: 14
A180: 4091 | B180: OLYMPIA HEIGHTS ELEMENTARY | C180: 46 | E180: 21 | F180: 25
A181: 4121 | B181: DR. ROBERT B. INGRAM EL | C181: 30 | E181: 18 | F181: 12
A182: 4171 | B182: ORCHARD VILLA ELEMENTARY | C182: 10 | E182: 5 | F182: 5
A183: 4221 | B183: PALMETTO ELEMENTARY | C183: 37 | E183: 18 | F183: 19
A184: 4241 | B184: PALM LAKES ELEMENTARY | C184: 79 | E184: 34 | F184: 45
A185: 4261 | B185: PALM SPRINGS ELEMENTARY | C185: 58 | E185: 29 | F185: 29
A186: 4281 | B186: PALM SPRINGS NORTH ELEMENTARY | C186: 77 | E186: 40 | F186: 37
A187: 4301 | B187: PARKVIEW ELEMENTARY | C187: 27 | E187: 13 | F187: 14
A188: 4341 | B188: PARKWAY ELEMENTARY | C188: 25 | E188: 8 | F188: 17
A189: 4381 | B189: DR HENRY E PERRINE ACADEMY | C189: 70 | E189: 39 | F189: 31
A190: 4391 | B190: IRVING & BEATRICE PESKOE K-8 | C190: 65 | E190: 18 | F190: 24 | G190: 17 | H190: 6
A191: 4401 | B191: KELSEY L. PHARR ELEMENTARY | C191: 15 | E191: 5 | F191: 10
A192: 4421 | B192: PINECREST ELEMENTARY | C192: 67 | E192: 28 | F192: 39
A193: 4441 | B193: PINE LAKE ELEMENTARY | C193: 26 | E193: 12 | F193: 14
A194: 4461 | B194: PINE VILLA ELEMENTARY | C194: 13 | E194: 6 | F194: 7
A195: 4491 | B195: HENRY E.S. REEVES ELEMENTARY | C195: 55 | E195: 28 | F195: 27
A196: 4501 | B196: POINCIANA PARK ELEMENTARY | C196: 12 | E196: 6 | F196: 6
A197: 4511 | B197: DR GILBERT L. PORTER ELEM | C197: 71 | E197: 35 | F197: 36
A198: 4541 | B198: RAINBOW PARK ELEMENTARY | C198: 38 | E198: 18 | F198: 20
A199: 4581 | B199: REDLAND ELEMENTARY | C199: 72 | E199: 37 | F199: 35
A200: 4651 | B200: ETHEL F BECKFORD/RICHMOND ELEM | C200: 8 | E200: 4 | F200: 4
... 246 more rows

Sheet MEM_RL4 (hidden)
A1: 1 | B1: 2 | C1: 3 | E1: 5 | F1: 6 | G1: 7 | H1: 8 | I1: 9 | J1: 10 | K1: 11
A2: S_SCHOOL_NUM | B2: S_SCHL_NAME | C2: Total Of STUDENT_ID | E2: 04 | F2: 05 | G2: 06 | H2: 07 | I2: 08 | J2: 09 | K2: 10
A3: 0041 | B3: AIR BASE ELEMENTARY | C3: 93 | E3: 44 | F3: 49
A4: 0070 | B4: CORAL REEF MONTESSORI ACAD CH | C4: 39 | E4: 8 | F4: 11 | G4: 10 | H4: 6 | I4: 4
A5: 0071 | B5: EUGENIA B. THOMAS K-8 CENTER | C5: 204 | E5: 48 | F5: 49 | G5: 42 | H5: 30 | I5: 35
A6: 0072 | B6: SUMMERVILLE CHARTER SCHOOL | C6: 26 | E6: 8 | F6: 18
A7: 0073 | B7: MANDARIN LAKES K-8 CENTER | C7: 37 | E7: 4 | F7: 9 | G7: 12 | H7: 3 | I7: 9
A8: 0081 | B8: LENORA B. SMITH ELEMENTARY | C8: 9 | E8: 3 | F8: 6
A9: 0091 | B9: BOB GRAHAM EDUCATION CTR | C9: 261 | E9: 54 | F9: 55 | G9: 46 | H9: 44 | I9: 62
A10: 0092 | B10: NORMAN S. EDELCUP/SUNNY ISLES | C10: 251 | E10: 55 | F10: 45 | G10: 51 | H10: 48 | I10: 52
A11: 0100 | B11: MATER ACADEMY | C11: 61 | E11: 38 | F11: 23
A12: 0101 | B12: ARCOLA LAKE ELEMENTARY | C12: 15 | E12: 5 | F12: 10
A13: 0102 | B13: MIAMI COMMUNITY CHARTER SCHOOL | C13: 18 | E13: 10 | F13: 8
A14: 0111 | B14: MAYA ANGELOU ELEMENTARY | C14: 25 | E14: 12 | F14: 13
A15: 0121 | B15: AUBURNDALE ELEMENTARY | C15: 61 | E15: 28 | F15: 33
A16: 0122 | B16: DR ROLANDO ESPINOSA K-8 | C16: 222 | E16: 56 | F16: 48 | G16: 46 | H16: 38 | I16: 34
A17: 0125 | B17: NORMA BUTLER BOSSARD ELEM | C17: 114 | E17: 54 | F17: 60
A18: 0201 | B18: BANYAN ELEMENTARY | C18: 40 | E18: 21 | F18: 19
A19: 0211 | B19: DR. MANUEL C. BARREIRO ELEM | C19: 77 | E19: 30 | F19: 47
A20: 0231 | B20: AVENTURA WATERWAYS K-8 CENTER | C20: 241 | E20: 64 | F20: 49 | G20: 47 | H20: 37 | I20: 44
A21: 0241 | B21: RUTH K BROAD/BAY HARBOR K-8 | C21: 195 | E21: 57 | F21: 33 | G21: 46 | H21: 24 | I21: 35
A22: 0251 | B22: ETHEL KOGER BECKHAM ELEMENTARY | C22: 71 | E22: 38 | F22: 33
A23: 0261 | B23: BEL-AIRE ELEMENTARY | C23: 15 | E23: 9 | F23: 6
A24: 0271 | B24: BENT TREE ELEMENTARY | C24: 45 | E24: 20 | F24: 25
A25: 0311 | B25: GOULDS ELEMENTARY | C25: 18 | E25: 9 | F25: 9
A26: 0312 | B26: MATER GARDENS ACADEMY | C26: 56 | E26: 24 | F26: 32
A27: 0321 | B27: BISCAYNE ELEMENTARY | C27: 31 | E27: 13 | F27: 18
A28: 0332 | B28: SOMERSET ACADEMY(SILVER PALMS) | C28: 120 | E28: 8 | F28: 16 | G28: 46 | H28: 22 | I28: 28
A29: 0339 | B29: SOMERSET ACADEMY CHARTER ELEM | C29: 27 | E29: 13 | F29: 14
A30: 0341 | B30: ARCH CREEK ELEMENTARY SCHOOL | C30: 32 | E30: 17 | F30: 15
A31: 0342 | B31: PINECREST ACADEMY SOUTH CAMPUS | C31: 68 | E31: 26 | F31: 42
A32: 0361 | B32: BISCAYNE GARDENS ELEMENTARY | C32: 19 | E32: 7 | F32: 12
A33: 0400 | B33: RENAISSANCE ELEMENTARY CHARTER | C33: 87 | E33: 48 | F33: 39
A34: 0401 | B34: VAN E. BLANTON ELEMENTARY | C34: 21 | E34: 10 | F34: 11
A35: 0410 | B35: ACADEMIR CHARTER SCHOOL WEST | C35: 30 | E35: 13 | F35: 17
A36: 0441 | B36: BLUE LAKES ELEMENTARY | C36: 47 | E36: 19 | F36: 28
A37: 0451 | B37: BOWMAN ASHE/DOOLIN K-8 ACAD | C37: 144 | E37: 35 | F37: 29 | G37: 31 | H37: 17 | I37: 32
A38: 0461 | B38: BRENTWOOD ELEMENTARY | C38: 23 | E38: 5 | F38: 18
A39: 0481 | B39: JAMES H. BRIGHT/JW JOHNSON ES | C39: 46 | E39: 26 | F39: 20
A40: 0510 | B40: ARCHIMEDEAN ACADEMY | C40: 62 | E40: 31 | F40: 31
A41: 0520 | B41: SOMERSET ACADEMY | C41: 74 | E41: 31 | F41: 43
A42: 0521 | B42: BROADMOOR ELEMENTARY | C42: 14 | E42: 5 | F42: 9
A43: 0561 | B43: W.J. BRYAN ELEMENTARY | C43: 47 | E43: 19 | F43: 28
A44: 0600 | B44: PINECREST PREP ACADEMY | C44: 74 | E44: 37 | F44: 37
A45: 0641 | B45: BUNCHE PARK ELEMENTARY | C45: 7 | E45: 4 | F45: 3
A46: 0651 | B46: CAMPBELL DRIVE K-8 CENTER | C46: 32 | E46: 7 | F46: 8 | G46: 9 | H46: 8
A47: 0661 | B47: CARIBBEAN ELEMENTARY | C47: 13 | E47: 7 | F47: 6
A48: 0671 | B48: CALUSA ELEMENTARY | C48: 98 | E48: 43 | F48: 55
A49: 0681 | B49: CAROL CITY ELEMENTARY | C49: 19 | E49: 6 | F49: 13
A50: 0721 | B50: GEORGE WASHINGTON CARVER ELEM | C50: 31 | E50: 15 | F50: 16
A51: 0761 | B51: FIENBERG/FISHER K-8 CENTER | C51: 76 | E51: 16 | F51: 19 | G51: 15 | H51: 12 | I51: 14
A52: 0771 | B52: WILLIAM A. CHAPMAN ELEMENTARY | C52: 14 | E52: 7 | F52: 7
A53: 0801 | B53: CITRUS GROVE ELEMENTARY | C53: 38 | E53: 20 | F53: 18
A54: 0831 | B54: CLAUDE PEPPER ELEMENTARY | C54: 61 | E54: 28 | F54: 33
A55: 0841 | B55: COCONUT GROVE ELEMENTARY | C55: 28 | E55: 17 | F55: 11
A56: 0861 | B56: COLONIAL DRIVE ELEMENTARY | C56: 13 | E56: 1 | F56: 12
A57: 0881 | B57: COMSTOCK ELEMENTARY | C57: 27 | E57: 13 | F57: 14
A58: 0950 | B58: AVENTURA CITY OF EXCELLENCE | C58: 199 | E58: 41 | F58: 50 | G58: 45 | H58: 32 | I58: 31
A59: 0961 | B59: CORAL GABLES PREPARATORY ACAD | C59: 101 | E59: 32 | F59: 26 | G59: 13 | H59: 19 | I59: 11
A60: 1001 | B60: CORAL PARK ELEMENTARY | C60: 145 | E60: 63 | F60: 82
A61: 1010 | B61: CHARTER SCHOOL AT WATERSTONE | C61: 92 | E61: 42 | F61: 50
A62: 1014 | B62: ADVANCED LEARNING CHARTER SCH | C62: 22 | E62: 10 | F62: 12
A63: 1017 | B63: MATER ACADEMY OF INTL STUDIES | C63: 19 | E63: 9 | F63: 10
A64: 1020 | B64: YOUTH CO-OP CHARTER SCHOOL | C64: 72 | E64: 8 | F64: 15 | G64: 14 | H64: 19 | I64: 16
A65: 1041 | B65: CORAL REEF ELEMENTARY | C65: 90 | E65: 38 | F65: 52
A66: 1081 | B66: CORAL TERRACE ELEMENTARY | C66: 24 | E66: 10 | F66: 14
A67: 1121 | B67: CORAL WAY K-8 CENTER | C67: 188 | E67: 32 | F67: 53 | G67: 29 | H67: 29 | I67: 45
A68: 1161 | B68: CRESTVIEW ELEMENTARY | C68: 25 | E68: 9 | F68: 16
A69: 1241 | B69: CUTLER RIDGE ELEMENTARY | C69: 83 | E69: 40 | F69: 43
A70: 1281 | B70: CYPRESS ELEMENTARY | C70: 29 | E70: 15 | F70: 14
A71: 1331 | B71: DEVON AIRE K-8 CENTER | C71: 217 | E71: 43 | F71: 53 | G71: 46 | H71: 40 | I71: 35
A72: 1361 | B72: FREDERICK DOUGLASS ELEMENTARY | C72: 2 | F72: 2
A73: 1371 | B73: MARJORY STONEMAN DOUGLAS ELEM | C73: 96 | E73: 40 | F73: 56
A74: 1401 | B74: CHARLES R. DREW K-8 CENTER | C74: 14 | E74: 8 | F74: 2 | G74: 4
A75: 1441 | B75: PAUL LAURENCE DUNBAR K-8 CTR | C75: 7 | E75: 3 | F75: 3 | G75: 1
A76: 1481 | B76: JOHN G. DUPUIS ELEMENTARY | C76: 55 | E76: 26 | F76: 29
A77: 1521 | B77: AMELIA EARHART ELEMENTARY | C77: 32 | E77: 13 | F77: 19
A78: 1561 | B78: EARLINGTON HEIGHTS ELEMENTARY | C78: 12 | E78: 7 | F78: 5
A79: 1601 | B79: EDISON PARK K-8 CENTER | C79: 9 | E79: 2 | F79: 3 | G79: 4
A80: 1641 | B80: EMERSON ELEMENTARY | C80: 33 | E80: 15 | F80: 18
A81: 1681 | B81: LILLIE C. EVANS K-8 CENTER | C81: 27 | E81: 5 | F81: 11 | G81: 5 | H81: 1 | I81: 5
A82: 1691 | B82: CHRISTINA M. EVE ELEMENTARY | C82: 75 | E82: 35 | F82: 40
A83: 1721 | B83: EVERGLADES K-8 CENTER | C83: 187 | E83: 33 | F83: 37 | G83: 39 | H83: 37 | I83: 41
A84: 1761 | B84: DAVID FAIRCHILD ELEMENTARY | C84: 44 | E84: 23 | F84: 21
A85: 1801 | B85: FAIRLAWN ELEMENTARY | C85: 58 | E85: 25 | F85: 33
A86: 1811 | B86: DANTE B. FASCELL ELEMENTARY | C86: 47 | E86: 21 | F86: 26
A87: 1841 | B87: FLAGAMI ELEMENTARY | C87: 35 | E87: 13 | F87: 22
A88: 1881 | B88: HENRY M. FLAGLER ELEMENTARY | C88: 49 | E88: 21 | F88: 28
A89: 1921 | B89: FLAMINGO ELEMENTARY | C89: 51 | E89: 23 | F89: 28
A90: 2001 | B90: FLORIDA CITY ELEMENTARY | C90: 21 | E90: 16 | F90: 5
A91: 2003 | B91: BRIDGEPOINT ACADEMY | C91: 24 | E91: 13 | F91: 11
A92: 2006 | B92: RICHARD ALLEN LEADERSHIP ACAD | C92: 5 | E92: 2 | F92: 3
A93: 2007 | B93: SOMERSET ACADEMY ELEMENTARY | C93: 63 | E93: 46 | F93: 17
A94: 2012 | B94: SOMERSET ARTS ACADEMY | C94: 25 | E94: 14 | F94: 11
A95: 2013 | B95: BRIDGEPOINT ACAD GREATER MIAMI | C95: 10 | E95: 3 | F95: 7
A96: 2021 | B96: GLORIA FLOYD ELEMENTARY | C96: 51 | E96: 28 | F96: 23
A97: 2041 | B97: BENJAMIN FRANKLIN K-8 CENTER | C97: 24 | E97: 3 | F97: 14 | G97: 2 | H97: 5
A98: 2060 | B98: GIBSON CHARTER SCHOOL | C98: 5 | F98: 1 | G98: 2 | I98: 2
A99: 2081 | B99: FULFORD ELEMENTARY | C99: 26 | E99: 15 | F99: 11
A100: 2111 | B100: HIALEAH GARDENS ELEMENTARY | C100: 67 | E100: 33 | F100: 34
A101: 2151 | B101: JACK D. GORDON ELEMENTARY | C101: 128 | E101: 54 | F101: 74
A102: 2161 | B102: GOLDEN GLADES ELEMENTARY | C102: 6 | E102: 3 | F102: 3
A103: 2181 | B103: JOELLA C. GOOD ELEMENTARY | C103: 66 | E103: 34 | F103: 32
A104: 2191 | B104: SPANISH LAKE ELEMENTARY | C104: 133 | E104: 57 | F104: 76
A105: 2241 | B105: GRATIGNY ELEMENTARY | C105: 24 | E105: 7 | F105: 10 | G105: 7
A106: 2261 | B106: GREENGLADE ELEMENTARY | C106: 40 | E106: 14 | F106: 26
A107: 2281 | B107: GREYNOLDS PARK ELEMENTARY | C107: 42 | E107: 21 | F107: 21
A108: 2321 | B108: GULFSTREAM ELEMENTARY | C108: 21 | E108: 7 | F108: 14
A109: 2331 | B109: CHARLES R. HADLEY ELEMENTARY | C109: 84 | E109: 42 | F109: 42
A110: 2341 | B110: JOE HALL ELEMENTARY | C110: 42 | E110: 17 | F110: 25
A111: 2351 | B111: ENEIDA MASSAS HARTNER ELEM | C111: 28 | E111: 13 | F111: 15
A112: 2361 | B112: HIALEAH ELEMENTARY | C112: 35 | E112: 16 | F112: 19
A113: 2371 | B113: WEST HIALEAH GARDENS ELEM | C113: 81 | E113: 32 | F113: 49
A114: 2401 | B114: HIBISCUS ELEMENTARY | C114: 29 | E114: 7 | F114: 22
A115: 2441 | B115: VIRGINIA A BOONE/HIGHLAND OAKS | C115: 65 | E115: 43 | F115: 22
A116: 2501 | B116: HOLMES ELEMENTARY | C116: 8 | E116: 3 | F116: 5
A117: 2511 | B117: ZORA NEALE HURSTON ELEMENTARY | C117: 55 | E117: 21 | F117: 34
A118: 2521 | B118: OLIVER HOOVER ELEMENTARY | C118: 77 | E118: 34 | F118: 43
A119: 2541 | B119: HOWARD DRIVE ELEMENTARY | C119: 88 | E119: 52 | F119: 36
A120: 2581 | B120: MADIE IVES ELEMENTARY | C120: 52 | E120: 24 | F120: 28
A121: 2641 | B121: KENDALE ELEMENTARY | C121: 54 | E121: 25 | F121: 29
A122: 2651 | B122: KENDALE LAKES ELEMENTARY | C122: 80 | E122: 28 | F122: 52
A123: 2661 | B123: KENSINGTON PARK ELEMENTARY | C123: 62 | E123: 28 | F123: 34
A124: 2701 | B124: KENWOOD K-8 CENTER | C124: 146 | E124: 29 | F124: 22 | G124: 43 | H124: 29 | I124: 23
A125: 2741 | B125: KEY BISCAYNE K-8 CENTER | C125: 180 | E125: 40 | F125: 52 | G125: 40 | H125: 38 | I125: 10
A126: 2781 | B126: KINLOCH PARK ELEMENTARY | C126: 52 | E126: 22 | F126: 30
A127: 2801 | B127: LAKE STEVENS ELEMENTARY | C127: 15 | E127: 7 | F127: 8
A128: 2821 | B128: LAKEVIEW ELEMENTARY | C128: 11 | E128: 4 | F128: 7
A129: 2881 | B129: LEEWOOD K-8 CENTER | C129: 118 | E129: 31 | F129: 37 | G129: 15 | H129: 18 | I129: 17
A130: 2891 | B130: WILLIAM LEHMAN ELEMENTARY | C130: 57 | E130: 31 | F130: 26
A131: 2901 | B131: LEISURE CITY K-8 CENTER | C131: 68 | E131: 14 | F131: 16 | G131: 11 | H131: 9 | I131: 18
A132: 2911 | B132: LINDA LENTIN K-8 CENTER | C132: 58 | E132: 17 | F132: 11 | G132: 9 | H132: 14 | I132: 7
A133: 2941 | B133: LAURA C. SAUNDERS ELEMENTARY | C133: 18 | E133: 6 | F133: 12
A134: 2981 | B134: LIBERTY CITY ELEMENTARY | C134: 9 | E134: 4 | F134: 5
A135: 3021 | B135: JESSE J MCCRARY JR ELEMENTARY | C135: 18 | E135: 8 | F135: 10
A136: 3024 | B136: FLORIDA INTERNATIONAL EL ACAD | C136: 11 | E136: 6 | F136: 5
A137: 3025 | B137: ADVANTAGE ACADEMY SANTA FE | C137: 14 | E137: 6 | F137: 8
A138: 3029 | B138: DORAL ACADEMY OF TECHNOLOGY | C138: 81 | G138: 26 | H138: 25 | I138: 30
A139: 3030 | B139: DORAL ACADEMY | C139: 104 | E139: 44 | F139: 60
A140: 3032 | B140: PALM GLADES PREPATORY ACADEMY | C140: 64 | G140: 22 | H140: 23 | I140: 19
A141: 3034 | B141: BRIDGEPOINT ACAD VILLAGE GREEN | C141: 5 | E141: 3 | F141: 2
A142: 3041 | B142: LORAH PARK ELEMENTARY | C142: 15 | E142: 6 | F142: 9
A143: 3051 | B143: TOUSSAINT L'OUVERTURE ELEM | C143: 13 | E143: 6 | F143: 7
A144: 3061 | B144: LUDLAM ELEMENTARY | C144: 39 | E144: 15 | F144: 24
A145: 3100 | B145: MATER ACADEMY EAST CHARTER | C145: 61 | E145: 23 | F145: 38
A146: 3101 | B146: FRANK C. MARTIN K-8 CENTER | C146: 243 | E146: 51 | F146: 46 | G146: 55 | H146: 47 | I146: 44
A147: 3111 | B147: WESLEY MATTHEWS ELEMENTARY | C147: 43 | E147: 19 | F147: 24
A148: 3141 | B148: MEADOWLANE ELEMENTARY | C148: 82 | E148: 46 | F148: 36
A149: 3181 | B149: MELROSE ELEMENTARY | C149: 23 | E149: 14 | F149: 9
A150: 3191 | B150: ADA MERRITT K-8 CENTER | C150: 162 | E150: 30 | F150: 27 | G150: 33 | H150: 44 | I150: 28
A151: 3241 | B151: MIAMI GARDENS ELEMENTARY | C151: 15 | E151: 6 | F151: 9
A152: 3261 | B152: MIAMI HEIGHTS ELEMENTARY | C152: 79 | E152: 34 | F152: 45
A153: 3281 | B153: MIAMI LAKES K-8 CENTER | C153: 201 | E153: 47 | F153: 51 | G153: 36 | H153: 36 | I153: 31
A154: 3301 | B154: MIAMI PARK ELEMENTARY | C154: 8 | E154: 4 | F154: 4
A155: 3341 | B155: MIAMI SHORES ELEMENTARY | C155: 58 | E155: 29 | F155: 29
A156: 3381 | B156: MIAMI SPRINGS ELEMENTARY | C156: 64 | E156: 33 | F156: 31
A157: 3421 | B157: M.A. MILAM K-8 CENTER | C157: 101 | E157: 19 | F157: 22 | G157: 20 | H157: 17 | I157: 23
A158: 3431 | B158: PHYLLIS RUTH MILLER ELEMENTARY | C158: 45 | E158: 24 | F158: 21
A159: 3501 | B159: MORNINGSIDE K-8 ACADEMY | C159: 24 | E159: 15 | F159: 9
A160: 3541 | B160: ROBERT RUSSA MOTON ELEMENTARY | C160: 7 | E160: 4 | F160: 3
A161: 3581 | B161: MYRTLE GROVE K-8 CENTER | C161: 16 | E161: 1 | F161: 8 | G161: 7
A162: 3600 | B162: DOWNTOWN MIAMI CHARTER SCHOOL | C162: 53 | E162: 16 | F162: 24 | G162: 13
A163: 3610 | B163: KEYS GATE CHARTER SCHOOL | C163: 215 | E163: 46 | F163: 43 | G163: 55 | H163: 32 | I163: 39
A164: 3621 | B164: COCONUT PALM K-8 ACADEMY | C164: 68 | E164: 15 | F164: 11 | G164: 18 | H164: 18 | I164: 6
A165: 3661 | B165: NATURAL BRIDGE ELEMENTARY | C165: 17 | E165: 7 | F165: 10
A166: 3701 | B166: NORLAND ELEMENTARY | C166: 35 | E166: 14 | F166: 21
A167: 3741 | B167: NORTH BEACH ELEMENTARY | C167: 98 | E167: 37 | F167: 61
A168: 3781 | B168: BARBARA HAWKINS ELEMENTARY | C168: 11 | E168: 7 | F168: 4
A169: 3821 | B169: NORTH COUNTY K-8 CENTER | C169: 14 | E169: 2 | F169: 6 | G169: 5 | H169: 1
A170: 3861 | B170: NORTH GLADE ELEMENTARY | C170: 11 | E170: 4 | F170: 7
A171: 3901 | B171: NORTH HIALEAH ELEMENTARY | C171: 35 | E171: 15 | F171: 20
A172: 3941 | B172: NORTH MIAMI ELEMENTARY | C172: 22 | E172: 10 | F172: 12
A173: 3981 | B173: NORTH TWIN LAKES ELEMENTARY | C173: 39 | E173: 22 | F173: 17
A174: 4000 | B174: MIAMI CHILDREN'S MUSEUM | C174: 19 | E174: 11 | F174: 8
A175: 4001 | B175: NORWOOD ELEMENTARY | C175: 28 | E175: 16 | F175: 12
A176: 4012 | B176: SOMERSET ACAD AT SILVER PALMS | C176: 51 | E176: 21 | F176: 30
A177: 4021 | B177: OAK GROVE ELEMENTARY | C177: 41 | E177: 25 | F177: 12 | G177: 4
A178: 4031 | B178: GATEWAY ENVIRONMENTAL K-8 | C178: 100 | E178: 36 | F178: 26 | G178: 25 | H178: 13
A179: 4061 | B179: OJUS ELEMENTARY | C179: 81 | E179: 42 | F179: 39
A180: 4071 | B180: OLINDA ELEMENTARY | C180: 11 | E180: 4 | F180: 7
A181: 4091 | B181: OLYMPIA HEIGHTS ELEMENTARY | C181: 44 | E181: 26 | F181: 18
A182: 4121 | B182: DR. ROBERT B. INGRAM EL | C182: 5 | E182: 2 | F182: 3
A183: 4171 | B183: ORCHARD VILLA ELEMENTARY | C183: 17 | E183: 9 | F183: 8
A184: 4221 | B184: PALMETTO ELEMENTARY | C184: 68 | E184: 36 | F184: 32
A185: 4241 | B185: PALM LAKES ELEMENTARY | C185: 65 | E185: 32 | F185: 33
A186: 4261 | B186: PALM SPRINGS ELEMENTARY | C186: 44 | E186: 22 | F186: 22
A187: 4281 | B187: PALM SPRINGS NORTH ELEMENTARY | C187: 83 | E187: 45 | F187: 38
A188: 4301 | B188: PARKVIEW ELEMENTARY | C188: 28 | E188: 13 | F188: 15
A189: 4341 | B189: PARKWAY ELEMENTARY | C189: 20 | E189: 9 | F189: 11
A190: 4381 | B190: DR HENRY E PERRINE ACADEMY | C190: 71 | E190: 37 | F190: 34
A191: 4391 | B191: IRVING & BEATRICE PESKOE K-8 | C191: 44 | E191: 13 | F191: 18 | G191: 9 | H191: 4
A192: 4401 | B192: KELSEY L. PHARR ELEMENTARY | C192: 10 | E192: 7 | F192: 3
A193: 4421 | B193: PINECREST ELEMENTARY | C193: 109 | E193: 48 | F193: 61
A194: 4441 | B194: PINE LAKE ELEMENTARY | C194: 19 | E194: 6 | F194: 13
A195: 4461 | B195: PINE VILLA ELEMENTARY | C195: 7 | E195: 4 | F195: 3
A196: 4491 | B196: HENRY E.S. REEVES ELEMENTARY | C196: 38 | E196: 15 | F196: 23
A197: 4501 | B197: POINCIANA PARK ELEMENTARY | C197: 14 | E197: 6 | F197: 8
A198: 4511 | B198: DR GILBERT L. PORTER ELEM | C198: 67 | E198: 36 | F198: 31
A199: 4541 | B199: RAINBOW PARK ELEMENTARY | C199: 22 | E199: 7 | F199: 15
A200: 4581 | B200: REDLAND ELEMENTARY | C200: 53 | E200: 21 | F200: 32
... 241 more rows

Sheet MEM_RL5 (hidden)
A1: 1 | B1: 2 | C1: 3 | D1: 4 | E1: 5 | F1: 6 | G1: 7 | H1: 8 | I1: 9 | J1: 10 | K1: 11
A2: S_SCHOOL_NUM | B2: S_SCHL_NAME | C2: Total Of STUDENT_ID | D2: 04 | E2: 05 | F2: 06 | G2: 07 | H2: 08 | I2: 09 | J2: 10
A3: 0041 | B3: AIR BASE ELEMENTARY | C3: 43 | D3: 24 | E3: 19
A4: 0070 | B4: CORAL REEF MONTESSORI ACAD CH | C4: 32 | D4: 12 | E4: 4 | F4: 4 | G4: 6 | H4: 6
A5: 0071 | B5: EUGENIA B. THOMAS K-8 CENTER | C5: 122 | D5: 21 | E5: 39 | F5: 20 | G5: 22 | H5: 20
A6: 0072 | B6: SUMMERVILLE CHARTER SCHOOL | C6: 15 | D6: 10 | E6: 5
A7: 0073 | B7: MANDARIN LAKES K-8 CENTER | C7: 7 | F7: 2 | G7: 1 | H7: 4
A8: 0081 | B8: LENORA B. SMITH ELEMENTARY | C8: 2 | E8: 2
A9: 0091 | B9: BOB GRAHAM EDUCATION CTR | C9: 161 | D9: 38 | E9: 20 | F9: 29 | G9: 42 | H9: 32
A10: 0092 | B10: NORMAN S. EDELCUP/SUNNY ISLES | C10: 128 | D10: 26 | E10: 15 | F10: 29 | G10: 30 | H10: 28
A11: 0100 | B11: MATER ACADEMY | C11: 34 | D11: 19 | E11: 15
A12: 0101 | B12: ARCOLA LAKE ELEMENTARY | C12: 2 | E12: 2
A13: 0102 | B13: MIAMI COMMUNITY CHARTER SCHOOL | C13: 2 | D13: 2
A14: 0111 | B14: MAYA ANGELOU ELEMENTARY | C14: 4 | D14: 2 | E14: 2
A15: 0121 | B15: AUBURNDALE ELEMENTARY | C15: 11 | D15: 6 | E15: 5
A16: 0122 | B16: DR ROLANDO ESPINOSA K-8 | C16: 114 | D16: 35 | E16: 21 | F16: 23 | G16: 14 | H16: 21
A17: 0125 | B17: NORMA BUTLER BOSSARD ELEM | C17: 57 | D17: 26 | E17: 31
A18: 0201 | B18: BANYAN ELEMENTARY | C18: 15 | D18: 9 | E18: 6
A19: 0211 | B19: DR. MANUEL C. BARREIRO ELEM | C19: 45 | D19: 31 | E19: 14
A20: 0231 | B20: AVENTURA WATERWAYS K-8 CENTER | C20: 114 | D20: 34 | E20: 21 | F20: 20 | G20: 16 | H20: 23
A21: 0241 | B21: RUTH K BROAD/BAY HARBOR K-8 | C21: 89 | D21: 25 | E21: 18 | F21: 25 | G21: 8 | H21: 13
A22: 0251 | B22: ETHEL KOGER BECKHAM ELEMENTARY | C22: 43 | D22: 26 | E22: 17
A23: 0261 | B23: BEL-AIRE ELEMENTARY | C23: 2 | D23: 1 | E23: 1
A24: 0271 | B24: BENT TREE ELEMENTARY | C24: 12 | D24: 6 | E24: 6
A25: 0311 | B25: GOULDS ELEMENTARY | C25: 6 | D25: 5 | E25: 1
A26: 0312 | B26: MATER GARDENS ACADEMY | C26: 27 | D26: 14 | E26: 13
A27: 0321 | B27: BISCAYNE ELEMENTARY | C27: 9 | D27: 4 | E27: 5
A28: 0332 | B28: SOMERSET ACADEMY(SILVER PALMS) | C28: 49 | D28: 5 | E28: 8 | F28: 10 | G28: 14 | H28: 12
A29: 0339 | B29: SOMERSET ACADEMY CHARTER ELEM | C29: 6 | D29: 5 | E29: 1
A30: 0341 | B30: ARCH CREEK ELEMENTARY SCHOOL | C30: 10 | D30: 5 | E30: 5
A31: 0342 | B31: PINECREST ACADEMY SOUTH CAMPUS | C31: 30 | D31: 18 | E31: 12
A32: 0361 | B32: BISCAYNE GARDENS ELEMENTARY | C32: 8 | D32: 6 | E32: 2
A33: 0400 | B33: RENAISSANCE ELEMENTARY CHARTER | C33: 61 | D33: 36 | E33: 25
A34: 0401 | B34: VAN E. BLANTON ELEMENTARY | C34: 6 | D34: 2 | E34: 4
A35: 0410 | B35: ACADEMIR CHARTER SCHOOL WEST | C35: 13 | D35: 9 | E35: 4
A36: 0441 | B36: BLUE LAKES ELEMENTARY | C36: 15 | D36: 6 | E36: 9
A37: 0451 | B37: BOWMAN ASHE/DOOLIN K-8 ACAD | C37: 64 | D37: 17 | E37: 16 | F37: 11 | G37: 10 | H37: 10
A38: 0461 | B38: BRENTWOOD ELEMENTARY | C38: 4 | D38: 3 | E38: 1
A39: 0481 | B39: JAMES H. BRIGHT/JW JOHNSON ES | C39: 9 | D39: 7 | E39: 2
A40: 0510 | B40: ARCHIMEDEAN ACADEMY | C40: 39 | D40: 19 | E40: 20
A41: 0520 | B41: SOMERSET ACADEMY | C41: 18 | D41: 10 | E41: 8
A42: 0521 | B42: BROADMOOR ELEMENTARY | C42: 2 | D42: 2
A43: 0561 | B43: W.J. BRYAN ELEMENTARY | C43: 13 | D43: 7 | E43: 6
A44: 0600 | B44: PINECREST PREP ACADEMY | C44: 47 | D44: 31 | E44: 16
A45: 0641 | B45: BUNCHE PARK ELEMENTARY | C45: 1 | D45: 1
A46: 0651 | B46: CAMPBELL DRIVE K-8 CENTER | C46: 7 | D46: 1 | E46: 3 | F46: 3
A47: 0661 | B47: CARIBBEAN ELEMENTARY | C47: 1 | E47: 1
A48: 0671 | B48: CALUSA ELEMENTARY | C48: 88 | D48: 38 | E48: 50
A49: 0681 | B49: CAROL CITY ELEMENTARY | C49: 1 | E49: 1
A50: 0721 | B50: GEORGE WASHINGTON CARVER ELEM | C50: 11 | D50: 5 | E50: 6
A51: 0761 | B51: FIENBERG/FISHER K-8 CENTER | C51: 18 | D51: 2 | E51: 1 | F51: 5 | G51: 6 | H51: 4
A52: 0771 | B52: WILLIAM A. CHAPMAN ELEMENTARY | C52: 2 | D52: 1 | E52: 1
A53: 0801 | B53: CITRUS GROVE ELEMENTARY | C53: 9 | D53: 5 | E53: 4
A54: 0831 | B54: CLAUDE PEPPER ELEMENTARY | C54: 23 | D54: 10 | E54: 13
A55: 0841 | B55: COCONUT GROVE ELEMENTARY | C55: 8 | D55: 3 | E55: 5
A56: 0861 | B56: COLONIAL DRIVE ELEMENTARY | C56: 3 | D56: 2 | E56: 1
A57: 0881 | B57: COMSTOCK ELEMENTARY | C57: 6 | D57: 2 | E57: 4
A58: 0950 | B58: AVENTURA CITY OF EXCELLENCE | C58: 92 | D58: 17 | E58: 25 | F58: 23 | G58: 17 | H58: 10
A59: 0961 | B59: CORAL GABLES PREPARATORY ACAD | C59: 99 | D59: 21 | E59: 33 | F59: 13 | G59: 19 | H59: 13
A60: 1001 | B60: CORAL PARK ELEMENTARY | C60: 66 | D60: 38 | E60: 28
A61: 1010 | B61: CHARTER SCHOOL AT WATERSTONE | C61: 20 | D61: 8 | E61: 12
A62: 1014 | B62: ADVANCED LEARNING CHARTER SCH | C62: 5 | D62: 5
A63: 1017 | B63: MATER ACADEMY OF INTL STUDIES | C63: 3 | D63: 3
A64: 1020 | B64: YOUTH CO-OP CHARTER SCHOOL | C64: 34 | D64: 6 | E64: 3 | F64: 9 | G64: 8 | H64: 8
A65: 1041 | B65: CORAL REEF ELEMENTARY | C65: 83 | D65: 46 | E65: 37
A66: 1081 | B66: CORAL TERRACE ELEMENTARY | C66: 14 | D66: 8 | E66: 6
A67: 1121 | B67: CORAL WAY K-8 CENTER | C67: 83 | D67: 18 | E67: 16 | F67: 18 | G67: 19 | H67: 12
A68: 1161 | B68: CRESTVIEW ELEMENTARY | C68: 9 | D68: 4 | E68: 5
A69: 1241 | B69: CUTLER RIDGE ELEMENTARY | C69: 28 | D69: 7 | E69: 21
A70: 1281 | B70: CYPRESS ELEMENTARY | C70: 14 | D70: 8 | E70: 6
A71: 1331 | B71: DEVON AIRE K-8 CENTER | C71: 139 | D71: 26 | E71: 36 | F71: 27 | G71: 17 | H71: 33
A72: 1371 | B72: MARJORY STONEMAN DOUGLAS ELEM | C72: 37 | D72: 16 | E72: 21
A73: 1401 | B73: CHARLES R. DREW K-8 CENTER | C73: 2 | D73: 1 | F73: 1
A74: 1441 | B74: PAUL LAURENCE DUNBAR K-8 CTR | C74: 1 | D74: 1
A75: 1481 | B75: JOHN G. DUPUIS ELEMENTARY | C75: 16 | D75: 10 | E75: 6
A76: 1521 | B76: AMELIA EARHART ELEMENTARY | C76: 6 | D76: 3 | E76: 3
A77: 1601 | B77: EDISON PARK K-8 CENTER | C77: 1 | D77: 1
A78: 1641 | B78: EMERSON ELEMENTARY | C78: 12 | D78: 4 | E78: 8
A79: 1681 | B79: LILLIE C. EVANS K-8 CENTER | C79: 2 | E79: 1 | F79: 1
A80: 1691 | B80: CHRISTINA M. EVE ELEMENTARY | C80: 46 | D80: 27 | E80: 19
A81: 1721 | B81: EVERGLADES K-8 CENTER | C81: 72 | D81: 14 | E81: 13 | F81: 18 | G81: 13 | H81: 14
A82: 1761 | B82: DAVID FAIRCHILD ELEMENTARY | C82: 49 | D82: 25 | E82: 24
A83: 1801 | B83: FAIRLAWN ELEMENTARY | C83: 12 | D83: 3 | E83: 9
A84: 1811 | B84: DANTE B. FASCELL ELEMENTARY | C84: 29 | D84: 9 | E84: 20
A85: 1841 | B85: FLAGAMI ELEMENTARY | C85: 8 | D85: 4 | E85: 4
A86: 1881 | B86: HENRY M. FLAGLER ELEMENTARY | C86: 22 | D86: 11 | E86: 11
A87: 1921 | B87: FLAMINGO ELEMENTARY | C87: 19 | D87: 8 | E87: 11
A88: 2001 | B88: FLORIDA CITY ELEMENTARY | C88: 5 | D88: 3 | E88: 2
A89: 2003 | B89: BRIDGEPOINT ACADEMY | C89: 13 | D89: 6 | E89: 7
A90: 2006 | B90: RICHARD ALLEN LEADERSHIP ACAD | C90: 2 | D90: 2
A91: 2007 | B91: SOMERSET ACADEMY ELEMENTARY | C91: 28 | D91: 19 | E91: 9
A92: 2012 | B92: SOMERSET ARTS ACADEMY | C92: 9 | D92: 6 | E92: 3
A93: 2013 | B93: BRIDGEPOINT ACAD GREATER MIAMI | C93: 5 | D93: 3 | E93: 2
A94: 2021 | B94: GLORIA FLOYD ELEMENTARY | C94: 16 | D94: 6 | E94: 10
A95: 2041 | B95: BENJAMIN FRANKLIN K-8 CENTER | C95: 5 | D95: 2 | E95: 1 | F95: 1 | G95: 1
A96: 2060 | B96: GIBSON CHARTER SCHOOL | C96: 3 | D96: 1 | F96: 1 | G96: 1
A97: 2081 | B97: FULFORD ELEMENTARY | C97: 5 | D97: 2 | E97: 3
A98: 2111 | B98: HIALEAH GARDENS ELEMENTARY | C98: 27 | D98: 11 | E98: 16
A99: 2151 | B99: JACK D. GORDON ELEMENTARY | C99: 48 | D99: 27 | E99: 21
A100: 2161 | B100: GOLDEN GLADES ELEMENTARY | C100: 4 | D100: 4
A101: 2181 | B101: JOELLA C. GOOD ELEMENTARY | C101: 27 | D101: 14 | E101: 13
A102: 2191 | B102: SPANISH LAKE ELEMENTARY | C102: 57 | D102: 28 | E102: 29
A103: 2241 | B103: GRATIGNY ELEMENTARY | C103: 7 | D103: 1 | E103: 4 | F103: 2
A104: 2261 | B104: GREENGLADE ELEMENTARY | C104: 21 | D104: 11 | E104: 10
A105: 2281 | B105: GREYNOLDS PARK ELEMENTARY | C105: 13 | D105: 6 | E105: 7
A106: 2321 | B106: GULFSTREAM ELEMENTARY | C106: 9 | D106: 6 | E106: 3
A107: 2331 | B107: CHARLES R. HADLEY ELEMENTARY | C107: 43 | D107: 29 | E107: 14
A108: 2341 | B108: JOE HALL ELEMENTARY | C108: 22 | D108: 14 | E108: 8
A109: 2351 | B109: ENEIDA MASSAS HARTNER ELEM | C109: 6 | D109: 1 | E109: 5
A110: 2361 | B110: HIALEAH ELEMENTARY | C110: 14 | D110: 4 | E110: 10
A111: 2371 | B111: WEST HIALEAH GARDENS ELEM | C111: 35 | D111: 16 | E111: 19
A112: 2401 | B112: HIBISCUS ELEMENTARY | C112: 6 | D112: 4 | E112: 2
A113: 2441 | B113: VIRGINIA A BOONE/HIGHLAND OAKS | C113: 40 | D113: 24 | E113: 16
A114: 2511 | B114: ZORA NEALE HURSTON ELEMENTARY | C114: 35 | D114: 11 | E114: 24
A115: 2521 | B115: OLIVER HOOVER ELEMENTARY | C115: 40 | D115: 22 | E115: 18
A116: 2541 | B116: HOWARD DRIVE ELEMENTARY | C116: 37 | D116: 17 | E116: 20
A117: 2581 | B117: MADIE IVES ELEMENTARY | C117: 24 | D117: 14 | E117: 10
A118: 2641 | B118: KENDALE ELEMENTARY | C118: 23 | D118: 13 | E118: 10
A119: 2651 | B119: KENDALE LAKES ELEMENTARY | C119: 34 | D119: 17 | E119: 17
A120: 2661 | B120: KENSINGTON PARK ELEMENTARY | C120: 21 | D120: 10 | E120: 11
A121: 2701 | B121: KENWOOD K-8 CENTER | C121: 77 | D121: 17 | E121: 12 | F121: 18 | G121: 16 | H121: 14
A122: 2741 | B122: KEY BISCAYNE K-8 CENTER | C122: 129 | D122: 40 | E122: 33 | F122: 26 | G122: 27 | H122: 3
A123: 2781 | B123: KINLOCH PARK ELEMENTARY | C123: 19 | D123: 10 | E123: 9
A124: 2801 | B124: LAKE STEVENS ELEMENTARY | C124: 5 | D124: 3 | E124: 2
A125: 2821 | B125: LAKEVIEW ELEMENTARY | C125: 6 | D125: 3 | E125: 3
A126: 2881 | B126: LEEWOOD K-8 CENTER | C126: 74 | D126: 22 | E126: 8 | F126: 20 | G126: 8 | H126: 16
A127: 2891 | B127: WILLIAM LEHMAN ELEMENTARY | C127: 43 | D127: 22 | E127: 21
A128: 2901 | B128: LEISURE CITY K-8 CENTER | C128: 14 | D128: 4 | E128: 3 | F128: 1 | G128: 1 | H128: 5
A129: 2911 | B129: LINDA LENTIN K-8 CENTER | C129: 31 | D129: 7 | E129: 8 | F129: 6 | G129: 3 | H129: 7
A130: 2941 | B130: LAURA C. SAUNDERS ELEMENTARY | C130: 2 | D130: 2
A131: 2981 | B131: LIBERTY CITY ELEMENTARY | C131: 2 | D131: 1 | E131: 1
A132: 3021 | B132: JESSE J MCCRARY JR ELEMENTARY | C132: 2 | D132: 1 | E132: 1
A133: 3024 | B133: FLORIDA INTERNATIONAL EL ACAD | C133: 1 | D133: 1
A134: 3025 | B134: ADVANTAGE ACADEMY SANTA FE | C134: 9 | D134: 6 | E134: 3
A135: 3029 | B135: DORAL ACADEMY OF TECHNOLOGY | C135: 78 | F135: 29 | G135: 23 | H135: 26
A136: 3030 | B136: DORAL ACADEMY | C136: 57 | D136: 30 | E136: 27
A137: 3032 | B137: PALM GLADES PREPATORY ACADEMY | C137: 16 | F137: 8 | G137: 3 | H137: 5
A138: 3041 | B138: LORAH PARK ELEMENTARY | C138: 3 | D138: 1 | E138: 2
A139: 3051 | B139: TOUSSAINT L'OUVERTURE ELEM | C139: 4 | D139: 2 | E139: 2
A140: 3061 | B140: LUDLAM ELEMENTARY | C140: 17 | D140: 10 | E140: 7
A141: 3100 | B141: MATER ACADEMY EAST CHARTER | C141: 17 | D141: 8 | E141: 9
A142: 3101 | B142: FRANK C. MARTIN K-8 CENTER | C142: 125 | D142: 13 | E142: 26 | F142: 30 | G142: 30 | H142: 26
A143: 3111 | B143: WESLEY MATTHEWS ELEMENTARY | C143: 31 | D143: 15 | E143: 16
A144: 3141 | B144: MEADOWLANE ELEMENTARY | C144: 18 | D144: 10 | E144: 8
A145: 3181 | B145: MELROSE ELEMENTARY | C145: 6 | D145: 3 | E145: 3
A146: 3191 | B146: ADA MERRITT K-8 CENTER | C146: 105 | D146: 13 | E146: 15 | F146: 22 | G146: 27 | H146: 28
A147: 3241 | B147: MIAMI GARDENS ELEMENTARY | C147: 6 | D147: 4 | E147: 2
A148: 3261 | B148: MIAMI HEIGHTS ELEMENTARY | C148: 30 | D148: 14 | E148: 16
A149: 3281 | B149: MIAMI LAKES K-8 CENTER | C149: 104 | D149: 31 | E149: 11 | F149: 16 | G149: 22 | H149: 24
A150: 3301 | B150: MIAMI PARK ELEMENTARY | C150: 3 | D150: 1 | E150: 2
A151: 3341 | B151: MIAMI SHORES ELEMENTARY | C151: 26 | D151: 14 | E151: 12
A152: 3381 | B152: MIAMI SPRINGS ELEMENTARY | C152: 21 | D152: 9 | E152: 12
A153: 3421 | B153: M.A. MILAM K-8 CENTER | C153: 35 | D153: 4 | E153: 9 | F153: 5 | G153: 10 | H153: 7
A154: 3431 | B154: PHYLLIS RUTH MILLER ELEMENTARY | C154: 16 | D154: 9 | E154: 7
A155: 3501 | B155: MORNINGSIDE K-8 ACADEMY | C155: 4 | D155: 2 | E155: 2
A156: 3581 | B156: MYRTLE GROVE K-8 CENTER | C156: 7 | D156: 4 | E156: 1 | F156: 2
A157: 3600 | B157: DOWNTOWN MIAMI CHARTER SCHOOL | C157: 14 | D157: 8 | E157: 3 | F157: 3
A158: 3610 | B158: KEYS GATE CHARTER SCHOOL | C158: 80 | D158: 17 | E158: 16 | F158: 15 | G158: 14 | H158: 18
A159: 3621 | B159: COCONUT PALM K-8 ACADEMY | C159: 23 | D159: 3 | E159: 5 | F159: 3 | G159: 9 | H159: 3
A160: 3661 | B160: NATURAL BRIDGE ELEMENTARY | C160: 9 | D160: 5 | E160: 4
A161: 3701 | B161: NORLAND ELEMENTARY | C161: 8 | D161: 5 | E161: 3
A162: 3741 | B162: NORTH BEACH ELEMENTARY | C162: 66 | D162: 35 | E162: 31
A163: 3781 | B163: BARBARA HAWKINS ELEMENTARY | C163: 5 | D163: 3 | E163: 2
A164: 3821 | B164: NORTH COUNTY K-8 CENTER | C164: 3 | E164: 1 | F164: 1 | G164: 1
A165: 3861 | B165: NORTH GLADE ELEMENTARY | C165: 7 | D165: 3 | E165: 4
A166: 3901 | B166: NORTH HIALEAH ELEMENTARY | C166: 16 | D166: 11 | E166: 5
A167: 3941 | B167: NORTH MIAMI ELEMENTARY | C167: 2 | E167: 2
A168: 3981 | B168: NORTH TWIN LAKES ELEMENTARY | C168: 11 | D168: 5 | E168: 6
A169: 4000 | B169: MIAMI CHILDREN'S MUSEUM | C169: 14 | D169: 5 | E169: 9
A170: 4001 | B170: NORWOOD ELEMENTARY | C170: 9 | D170: 1 | E170: 8
A171: 4012 | B171: SOMERSET ACAD AT SILVER PALMS | C171: 12 | D171: 6 | E171: 6
A172: 4021 | B172: OAK GROVE ELEMENTARY | C172: 11 | D172: 7 | E172: 4
A173: 4031 | B173: GATEWAY ENVIRONMENTAL K-8 | C173: 38 | D173: 12 | E173: 14 | F173: 5 | G173: 7
A174: 4061 | B174: OJUS ELEMENTARY | C174: 37 | D174: 17 | E174: 20
A175: 4071 | B175: OLINDA ELEMENTARY | C175: 2 | D175: 1 | E175: 1
A176: 4091 | B176: OLYMPIA HEIGHTS ELEMENTARY | C176: 6 | D176: 2 | E176: 4
A177: 4121 | B177: DR. ROBERT B. INGRAM EL | C177: 5 | D177: 3 | E177: 2
A178: 4221 | B178: PALMETTO ELEMENTARY | C178: 46 | D178: 19 | E178: 27
A179: 4241 | B179: PALM LAKES ELEMENTARY | C179: 23 | D179: 13 | E179: 10
A180: 4261 | B180: PALM SPRINGS ELEMENTARY | C180: 17 | D180: 5 | E180: 12
A181: 4281 | B181: PALM SPRINGS NORTH ELEMENTARY | C181: 49 | D181: 27 | E181: 22
A182: 4301 | B182: PARKVIEW ELEMENTARY | C182: 2 | D182: 1 | E182: 1
A183: 4341 | B183: PARKWAY ELEMENTARY | C183: 8 | D183: 6 | E183: 2
A184: 4381 | B184: DR HENRY E PERRINE ACADEMY | C184: 40 | D184: 19 | E184: 21
A185: 4391 | B185: IRVING & BEATRICE PESKOE K-8 | C185: 10 | D185: 3 | E185: 2 | F185: 4 | G185: 1
A186: 4401 | B186: KELSEY L. PHARR ELEMENTARY | C186: 1 | E186: 1
A187: 4421 | B187: PINECREST ELEMENTARY | C187: 95 | D187: 51 | E187: 44
A188: 4441 | B188: PINE LAKE ELEMENTARY | C188: 3 | D188: 3
A189: 4461 | B189: PINE VILLA ELEMENTARY | C189: 1 | D189: 1
A190: 4491 | B190: HENRY E.S. REEVES ELEMENTARY | C190: 10 | D190: 2 | E190: 8
A191: 4501 | B191: POINCIANA PARK ELEMENTARY | C191: 2 | E191: 2
A192: 4511 | B192: DR GILBERT L. PORTER ELEM | C192: 24 | D192: 10 | E192: 14
A193: 4541 | B193: RAINBOW PARK ELEMENTARY | C193: 3 | D193: 1 | E193: 2
A194: 4581 | B194: REDLAND ELEMENTARY | C194: 19 | D194: 10 | E194: 9
A195: 4681 | B195: RIVERSIDE ELEMENTARY | C195: 12 | D195: 6 | E195: 6
A196: 4691 | B196: JANE ROBERTS K-8 CENTER | C196: 66 | D196: 7 | E196: 11 | F196: 16 | G196: 15 | H196: 17
A197: 4721 | B197: ROCKWAY ELEMENTARY | C197: 17 | D197: 7 | E197: 10
A198: 4741 | B198: ROYAL GREEN ELEMENTARY | C198: 20 | D198: 9 | E198: 11
A199: 4761 | B199: ROYAL PALM ELEMENTARY | C199: 28 | D199: 14 | E199: 14
A200: 4801 | B200: GERTRUDE EDELMAN/SABAL PALM EL | C200: 5 | D200: 3 | E200: 2
... 223 more rows

Sheet MEM_ML1 (hidden)
A1: 1 | B1: 2 | C1: 3 | D1: 4 | E1: 5 | F1: 6 | G1: 7 | H1: 8 | I1: 9
A2: S_SCHOOL_NUM | B2: S_SCHL_NAME | C2: Total Of STUDENT_ID | D2: 03 | E2: 04 | F2: 05 | G2: 06 | H2: 07 | I2: 08
A3: 0041 | B3: AIR BASE ELEMENTARY | C3: 15 | D3: 2 | E3: 2 | F3: 11
A4: 0070 | B4: CORAL REEF MONTESSORI ACAD CH | C4: 19 | D4: 1 | E4: 4 | F4: 8 | G4: 3 | H4: 2 | I4: 1
A5: 0071 | B5: EUGENIA B. THOMAS K-8 CENTER | C5: 95 | D5: 7 | E5: 13 | F5: 7 | G5: 20 | H5: 29 | I5: 19
A6: 0072 | B6: SUMMERVILLE CHARTER SCHOOL | C6: 35 | D6: 2 | E6: 10 | F6: 23
A7: 0073 | B7: MANDARIN LAKES K-8 CENTER | C7: 161 | D7: 14 | E7: 24 | F7: 14 | G7: 38 | H7: 35 | I7: 36
A8: 0081 | B8: LENORA B. SMITH ELEMENTARY | C8: 48 | D8: 6 | E8: 19 | F8: 23
A9: 0091 | B9: BOB GRAHAM EDUCATION CTR | C9: 139 | D9: 2 | E9: 19 | F9: 21 | G9: 47 | H9: 27 | I9: 23
A10: 0092 | B10: NORMAN S. EDELCUP/SUNNY ISLES | C10: 57 | D10: 1 | E10: 11 | F10: 12 | G10: 5 | H10: 8 | I10: 20
A11: 0100 | B11: MATER ACADEMY | C11: 21 | D11: 4 | E11: 11 | F11: 6
A12: 0101 | B12: ARCOLA LAKE ELEMENTARY | C12: 38 | D12: 7 | E12: 12 | F12: 19
A13: 0102 | B13: MIAMI COMMUNITY CHARTER SCHOOL | C13: 42 | D13: 4 | E13: 24 | F13: 14
A14: 0111 | B14: MAYA ANGELOU ELEMENTARY | C14: 48 | D14: 12 | E14: 17 | F14: 19
A15: 0121 | B15: AUBURNDALE ELEMENTARY | C15: 40 | D15: 3 | E15: 22 | F15: 15
A16: 0122 | B16: DR ROLANDO ESPINOSA K-8 | C16: 122 | D16: 5 | E16: 17 | F16: 10 | G16: 25 | H16: 28 | I16: 37
A17: 0125 | B17: NORMA BUTLER BOSSARD ELEM | C17: 33 | D17: 8 | E17: 9 | F17: 16
A18: 0161 | B18: AVOCADO ELEMENTARY | C18: 16 | D18: 16
A19: 0201 | B19: BANYAN ELEMENTARY | C19: 9 | E19: 5 | F19: 4
A20: 0211 | B20: DR. MANUEL C. BARREIRO ELEM | C20: 30 | D20: 2 | E20: 11 | F20: 17
A21: 0231 | B21: AVENTURA WATERWAYS K-8 CENTER | C21: 115 | D21: 6 | E21: 8 | F21: 41 | G21: 21 | H21: 19 | I21: 20
A22: 0241 | B22: RUTH K BROAD/BAY HARBOR K-8 | C22: 50 | D22: 3 | E22: 10 | F22: 7 | G22: 12 | H22: 8 | I22: 10
A23: 0251 | B23: ETHEL KOGER BECKHAM ELEMENTARY | C23: 5 | D23: 1 | F23: 4
A24: 0261 | B24: BEL-AIRE ELEMENTARY | C24: 43 | D24: 6 | E24: 12 | F24: 25
A25: 0271 | B25: BENT TREE ELEMENTARY | C25: 22 | D25: 2 | E25: 6 | F25: 14
A26: 0311 | B26: GOULDS ELEMENTARY | C26: 32 | D26: 8 | E26: 14 | F26: 10
A27: 0312 | B27: MATER GARDENS ACADEMY | C27: 5 | E27: 3 | F27: 2
A28: 0321 | B28: BISCAYNE ELEMENTARY | C28: 46 | D28: 8 | E28: 21 | F28: 17
A29: 0332 | B29: SOMERSET ACADEMY(SILVER PALMS) | C29: 82 | D29: 2 | E29: 3 | F29: 13 | G29: 20 | H29: 29 | I29: 15
A30: 0339 | B30: SOMERSET ACADEMY CHARTER ELEM | C30: 13 | D30: 1 | E30: 6 | F30: 6
A31: 0341 | B31: ARCH CREEK ELEMENTARY SCHOOL | C31: 54 | D31: 4 | E31: 25 | F31: 25
A32: 0342 | B32: PINECREST ACADEMY SOUTH CAMPUS | C32: 12 | D32: 1 | E32: 6 | F32: 5
A33: 0361 | B33: BISCAYNE GARDENS ELEMENTARY | C33: 51 | D33: 7 | E33: 27 | F33: 17
A34: 0400 | B34: RENAISSANCE ELEMENTARY CHARTER | C34: 9 | E34: 3 | F34: 6
A35: 0401 | B35: VAN E. BLANTON ELEMENTARY | C35: 33 | D35: 11 | E35: 8 | F35: 14
A36: 0410 | B36: ACADEMIR CHARTER SCHOOL WEST | C36: 15 | E36: 10 | F36: 5
A37: 0441 | B37: BLUE LAKES ELEMENTARY | C37: 25 | D37: 1 | E37: 15 | F37: 9
A38: 0451 | B38: BOWMAN ASHE/DOOLIN K-8 ACAD | C38: 185 | D38: 1 | E38: 17 | F38: 12 | G38: 31 | H38: 66 | I38: 58
A39: 0461 | B39: BRENTWOOD ELEMENTARY | C39: 65 | D39: 11 | E39: 22 | F39: 32
A40: 0481 | B40: JAMES H. BRIGHT/JW JOHNSON ES | C40: 46 | D40: 7 | E40: 13 | F40: 26
A41: 0510 | B41: ARCHIMEDEAN ACADEMY | C41: 2 | F41: 2
A42: 0520 | B42: SOMERSET ACADEMY | C42: 2 | E42: 2
A43: 0521 | B43: BROADMOOR ELEMENTARY | C43: 37 | D43: 6 | E43: 13 | F43: 18
A44: 0561 | B44: W.J. BRYAN ELEMENTARY | C44: 61 | D44: 12 | E44: 17 | F44: 32
A45: 0600 | B45: PINECREST PREP ACADEMY | C45: 12 | E45: 8 | F45: 4
A46: 0641 | B46: BUNCHE PARK ELEMENTARY | C46: 15 | D46: 2 | E46: 2 | F46: 11
A47: 0651 | B47: CAMPBELL DRIVE K-8 CENTER | C47: 103 | D47: 13 | E47: 21 | F47: 32 | G47: 21 | H47: 16
A48: 0661 | B48: CARIBBEAN ELEMENTARY | C48: 55 | D48: 7 | E48: 25 | F48: 23
A49: 0671 | B49: CALUSA ELEMENTARY | C49: 16 | D49: 1 | E49: 7 | F49: 8
A50: 0681 | B50: CAROL CITY ELEMENTARY | C50: 39 | D50: 7 | E50: 15 | F50: 17
A51: 0721 | B51: GEORGE WASHINGTON CARVER ELEM | C51: 27 | D51: 1 | E51: 13 | F51: 13
A52: 0761 | B52: FIENBERG/FISHER K-8 CENTER | C52: 114 | D52: 4 | E52: 26 | F52: 33 | G52: 18 | H52: 14 | I52: 19
A53: 0771 | B53: WILLIAM A. CHAPMAN ELEMENTARY | C53: 20 | D53: 5 | E53: 10 | F53: 5
A54: 0801 | B54: CITRUS GROVE ELEMENTARY | C54: 109 | D54: 9 | E54: 50 | F54: 50
A55: 0831 | B55: CLAUDE PEPPER ELEMENTARY | C55: 32 | D55: 2 | E55: 16 | F55: 14
A56: 0841 | B56: COCONUT GROVE ELEMENTARY | C56: 11 | E56: 7 | F56: 4
A57: 0861 | B57: COLONIAL DRIVE ELEMENTARY | C57: 19 | D57: 4 | E57: 6 | F57: 9
A58: 0881 | B58: COMSTOCK ELEMENTARY | C58: 36 | D58: 8 | E58: 14 | F58: 14
A59: 0950 | B59: AVENTURA CITY OF EXCELLENCE | C59: 10 | D59: 1 | E59: 2 | F59: 2 | H59: 5
A60: 0961 | B60: CORAL GABLES PREPARATORY ACAD | C60: 42 | E60: 4 | F60: 7 | G60: 12 | H60: 14 | I60: 5
A61: 1001 | B61: CORAL PARK ELEMENTARY | C61: 19 | E61: 4 | F61: 15
A62: 1010 | B62: CHARTER SCHOOL AT WATERSTONE | C62: 30 | E62: 11 | F62: 19
A63: 1014 | B63: ADVANCED LEARNING CHARTER SCH | C63: 10 | D63: 1 | E63: 5 | F63: 4
A64: 1017 | B64: MATER ACADEMY OF INTL STUDIES | C64: 15 | D64: 2 | E64: 3 | F64: 10
A65: 1020 | B65: YOUTH CO-OP CHARTER SCHOOL | C65: 27 | D65: 1 | E65: 4 | F65: 3 | G65: 3 | H65: 11 | I65: 5
A66: 1041 | B66: CORAL REEF ELEMENTARY | C66: 22 | D66: 2 | E66: 9 | F66: 11
A67: 1081 | B67: CORAL TERRACE ELEMENTARY | C67: 34 | D67: 3 | E67: 10 | F67: 21
A68: 1121 | B68: CORAL WAY K-8 CENTER | C68: 185 | D68: 4 | E68: 25 | F68: 40 | G68: 29 | H68: 42 | I68: 45
A69: 1161 | B69: CRESTVIEW ELEMENTARY | C69: 41 | D69: 5 | E69: 17 | F69: 19
A70: 1241 | B70: CUTLER RIDGE ELEMENTARY | C70: 39 | D70: 5 | E70: 25 | F70: 9
A71: 1281 | B71: CYPRESS ELEMENTARY | C71: 15 | E71: 7 | F71: 8
A72: 1331 | B72: DEVON AIRE K-8 CENTER | C72: 68 | E72: 11 | F72: 15 | G72: 15 | H72: 17 | I72: 10
A73: 1361 | B73: FREDERICK DOUGLASS ELEMENTARY | C73: 21 | D73: 6 | E73: 4 | F73: 11
A74: 1371 | B74: MARJORY STONEMAN DOUGLAS ELEM | C74: 51 | D74: 8 | E74: 21 | F74: 22
A75: 1401 | B75: CHARLES R. DREW K-8 CENTER | C75: 27 | D75: 4 | E75: 3 | F75: 12 | G75: 8
A76: 1441 | B76: PAUL LAURENCE DUNBAR K-8 CTR | C76: 57 | D76: 6 | E76: 20 | F76: 23 | G76: 8
A77: 1481 | B77: JOHN G. DUPUIS ELEMENTARY | C77: 22 | D77: 1 | E77: 6 | F77: 15
A78: 1521 | B78: AMELIA EARHART ELEMENTARY | C78: 32 | D78: 10 | E78: 13 | F78: 9
A79: 1561 | B79: EARLINGTON HEIGHTS ELEMENTARY | C79: 38 | D79: 1 | E79: 19 | F79: 18
A80: 1601 | B80: EDISON PARK K-8 CENTER | C80: 36 | D80: 5 | E80: 12 | F80: 11 | G80: 8
A81: 1641 | B81: EMERSON ELEMENTARY | C81: 14 | D81: 4 | E81: 5 | F81: 5
A82: 1681 | B82: LILLIE C. EVANS K-8 CENTER | C82: 52 | D82: 4 | E82: 20 | F82: 11 | G82: 13 | H82: 3 | I82: 1
A83: 1691 | B83: CHRISTINA M. EVE ELEMENTARY | C83: 11 | E83: 3 | F83: 8
A84: 1721 | B84: EVERGLADES K-8 CENTER | C84: 82 | D84: 2 | E84: 7 | F84: 6 | G84: 5 | H84: 33 | I84: 29
A85: 1761 | B85: DAVID FAIRCHILD ELEMENTARY | C85: 10 | E85: 1 | F85: 9
A86: 1801 | B86: FAIRLAWN ELEMENTARY | C86: 31 | D86: 1 | E86: 12 | F86: 18
A87: 1811 | B87: DANTE B. FASCELL ELEMENTARY | C87: 16 | E87: 7 | F87: 9
A88: 1841 | B88: FLAGAMI ELEMENTARY | C88: 32 | D88: 1 | E88: 10 | F88: 21
A89: 1881 | B89: HENRY M. FLAGLER ELEMENTARY | C89: 56 | D89: 8 | E89: 23 | F89: 25
A90: 1921 | B90: FLAMINGO ELEMENTARY | C90: 91 | D90: 14 | E90: 23 | F90: 54
A91: 2001 | B91: FLORIDA CITY ELEMENTARY | C91: 55 | D91: 4 | E91: 28 | F91: 23
A92: 2003 | B92: BRIDGEPOINT ACADEMY | C92: 3 | E92: 1 | F92: 2
A93: 2006 | B93: RICHARD ALLEN LEADERSHIP ACAD | C93: 7 | E93: 6 | F93: 1
A94: 2007 | B94: SOMERSET ACADEMY ELEMENTARY | C94: 2 | F94: 2
A95: 2012 | B95: SOMERSET ARTS ACADEMY | C95: 17 | D95: 1 | E95: 11 | F95: 5
A96: 2013 | B96: BRIDGEPOINT ACAD GREATER MIAMI | C96: 11 | E96: 5 | F96: 6
A97: 2021 | B97: GLORIA FLOYD ELEMENTARY | C97: 13 | D97: 3 | E97: 5 | F97: 5
A98: 2041 | B98: BENJAMIN FRANKLIN K-8 CENTER | C98: 58 | D98: 3 | E98: 7 | F98: 16 | G98: 20 | H98: 12
A99: 2060 | B99: GIBSON CHARTER SCHOOL | C99: 49 | D99: 3 | E99: 4 | F99: 10 | G99: 9 | H99: 13 | I99: 10
A100: 2081 | B100: FULFORD ELEMENTARY | C100: 51 | D100: 8 | E100: 16 | F100: 27
A101: 2111 | B101: HIALEAH GARDENS ELEMENTARY | C101: 25 | D101: 5 | E101: 11 | F101: 9
A102: 2151 | B102: JACK D. GORDON ELEMENTARY | C102: 40 | D102: 3 | E102: 22 | F102: 15
A103: 2161 | B103: GOLDEN GLADES ELEMENTARY | C103: 21 | D103: 4 | E103: 8 | F103: 9
A104: 2181 | B104: JOELLA C. GOOD ELEMENTARY | C104: 47 | D104: 5 | E104: 20 | F104: 22
A105: 2191 | B105: SPANISH LAKE ELEMENTARY | C105: 57 | D105: 6 | E105: 26 | F105: 25
A106: 2241 | B106: GRATIGNY ELEMENTARY | C106: 84 | D106: 7 | E106: 18 | F106: 34 | G106: 25
A107: 2261 | B107: GREENGLADE ELEMENTARY | C107: 21 | E107: 11 | F107: 10
A108: 2281 | B108: GREYNOLDS PARK ELEMENTARY | C108: 70 | D108: 12 | E108: 25 | F108: 33
A109: 2321 | B109: GULFSTREAM ELEMENTARY | C109: 27 | D109: 2 | E109: 9 | F109: 16
A110: 2331 | B110: CHARLES R. HADLEY ELEMENTARY | C110: 30 | D110: 3 | E110: 15 | F110: 12
A111: 2341 | B111: JOE HALL ELEMENTARY | C111: 29 | D111: 2 | E111: 9 | F111: 18
A112: 2351 | B112: ENEIDA MASSAS HARTNER ELEM | C112: 39 | D112: 5 | E112: 14 | F112: 20
A113: 2361 | B113: HIALEAH ELEMENTARY | C113: 53 | D113: 4 | E113: 27 | F113: 22
A114: 2371 | B114: WEST HIALEAH GARDENS ELEM | C114: 48 | D114: 4 | E114: 20 | F114: 24
A115: 2401 | B115: HIBISCUS ELEMENTARY | C115: 31 | D115: 3 | E115: 9 | F115: 19
A116: 2441 | B116: VIRGINIA A BOONE/HIGHLAND OAKS | C116: 22 | E116: 13 | F116: 9
A117: 2501 | B117: HOLMES ELEMENTARY | C117: 46 | D117: 14 | E117: 18 | F117: 14
A118: 2511 | B118: ZORA NEALE HURSTON ELEMENTARY | C118: 37 | D118: 2 | E118: 30 | F118: 5
A119: 2521 | B119: OLIVER HOOVER ELEMENTARY | C119: 39 | D119: 4 | E119: 16 | F119: 19
A120: 2541 | B120: HOWARD DRIVE ELEMENTARY | C120: 41 | D120: 3 | E120: 16 | F120: 22
A121: 2581 | B121: MADIE IVES ELEMENTARY | C121: 66 | D121: 8 | E121: 24 | F121: 34
A122: 2641 | B122: KENDALE ELEMENTARY | C122: 8 | D122: 1 | E122: 4 | F122: 3
A123: 2651 | B123: KENDALE LAKES ELEMENTARY | C123: 21 | D123: 4 | E123: 13 | F123: 4
A124: 2661 | B124: KENSINGTON PARK ELEMENTARY | C124: 152 | D124: 23 | E124: 53 | F124: 76
A125: 2701 | B125: KENWOOD K-8 CENTER | C125: 62 | D125: 3 | E125: 7 | F125: 11 | G125: 15 | H125: 12 | I125: 14
A126: 2741 | B126: KEY BISCAYNE K-8 CENTER | C126: 28 | D126: 1 | E126: 5 | F126: 2 | G126: 5 | H126: 6 | I126: 9
A127: 2781 | B127: KINLOCH PARK ELEMENTARY | C127: 67 | D127: 8 | E127: 16 | F127: 43
A128: 2801 | B128: LAKE STEVENS ELEMENTARY | C128: 25 | D128: 2 | E128: 12 | F128: 11
A129: 2821 | B129: LAKEVIEW ELEMENTARY | C129: 30 | D129: 5 | E129: 11 | F129: 14
A130: 2881 | B130: LEEWOOD K-8 CENTER | C130: 30 | D130: 1 | E130: 3 | F130: 8 | G130: 8 | H130: 7 | I130: 3
A131: 2891 | B131: WILLIAM LEHMAN ELEMENTARY | C131: 16 | D131: 1 | E131: 8 | F131: 7
A132: 2901 | B132: LEISURE CITY K-8 CENTER | C132: 165 | D132: 7 | E132: 29 | F132: 25 | G132: 34 | H132: 34 | I132: 36
A133: 2911 | B133: LINDA LENTIN K-8 CENTER | C133: 151 | D133: 5 | E133: 22 | F133: 47 | G133: 30 | H133: 20 | I133: 27
A134: 2941 | B134: LAURA C. SAUNDERS ELEMENTARY | C134: 41 | D134: 13 | E134: 10 | F134: 18
A135: 2981 | B135: LIBERTY CITY ELEMENTARY | C135: 26 | D135: 2 | E135: 15 | F135: 9
A136: 3021 | B136: JESSE J MCCRARY JR ELEMENTARY | C136: 39 | D136: 9 | E136: 12 | F136: 18
A137: 3024 | B137: FLORIDA INTERNATIONAL EL ACAD | C137: 33 | D137: 9 | E137: 10 | F137: 14
A138: 3025 | B138: ADVANTAGE ACADEMY SANTA FE | C138: 3 | E138: 2 | F138: 1
A139: 3030 | B139: DORAL ACADEMY | C139: 15 | D139: 1 | E139: 8 | F139: 6
A140: 3032 | B140: PALM GLADES PREPATORY ACADEMY | C140: 100 | G140: 38 | H140: 38 | I140: 24
A141: 3034 | B141: BRIDGEPOINT ACAD VILLAGE GREEN | C141: 3 | F141: 3
A142: 3035 | B142: RAMZ ACADEMY ELEM MIAMI CAMPUS | C142: 2 | E142: 1 | F142: 1
A143: 3041 | B143: LORAH PARK ELEMENTARY | C143: 30 | D143: 7 | E143: 10 | F143: 13
A144: 3051 | B144: TOUSSAINT L'OUVERTURE ELEM | C144: 57 | D144: 12 | E144: 23 | F144: 22
A145: 3061 | B145: LUDLAM ELEMENTARY | C145: 16 | E145: 6 | F145: 10
A146: 3100 | B146: MATER ACADEMY EAST CHARTER | C146: 1 | F146: 1
A147: 3101 | B147: FRANK C. MARTIN K-8 CENTER | C147: 16 | E147: 2 | F147: 4 | G147: 4 | H147: 2 | I147: 4
A148: 3111 | B148: WESLEY MATTHEWS ELEMENTARY | C148: 12 | E148: 4 | F148: 8
A149: 3141 | B149: MEADOWLANE ELEMENTARY | C149: 77 | D149: 7 | E149: 22 | F149: 48
A150: 3181 | B150: MELROSE ELEMENTARY | C150: 52 | D150: 3 | E150: 20 | F150: 29
A151: 3191 | B151: ADA MERRITT K-8 CENTER | C151: 7 | F151: 2 | G151: 1 | H151: 2 | I151: 2
A152: 3241 | B152: MIAMI GARDENS ELEMENTARY | C152: 15 | D152: 3 | E152: 5 | F152: 7
A153: 3261 | B153: MIAMI HEIGHTS ELEMENTARY | C153: 59 | D153: 10 | E153: 32 | F153: 17
A154: 3281 | B154: MIAMI LAKES K-8 CENTER | C154: 127 | D154: 5 | E154: 10 | F154: 41 | G154: 20 | H154: 28 | I154: 23
A155: 3301 | B155: MIAMI PARK ELEMENTARY | C155: 47 | D155: 11 | E155: 14 | F155: 22
A156: 3341 | B156: MIAMI SHORES ELEMENTARY | C156: 41 | D156: 10 | E156: 14 | F156: 17
A157: 3381 | B157: MIAMI SPRINGS ELEMENTARY | C157: 38 | D157: 2 | E157: 13 | F157: 23
A158: 3421 | B158: M.A. MILAM K-8 CENTER | C158: 164 | D158: 6 | E158: 18 | F158: 31 | G158: 32 | H158: 53 | I158: 24
A159: 3431 | B159: PHYLLIS RUTH MILLER ELEMENTARY | C159: 41 | D159: 4 | E159: 19 | F159: 18
A160: 3501 | B160: MORNINGSIDE K-8 ACADEMY | C160: 46 | D160: 4 | E160: 7 | F160: 23 | G160: 12
A161: 3541 | B161: ROBERT RUSSA MOTON ELEMENTARY | C161: 29 | D161: 6 | E161: 14 | F161: 9
A162: 3581 | B162: MYRTLE GROVE K-8 CENTER | C162: 46 | D162: 6 | E162: 12 | F162: 18 | G162: 10
A163: 3600 | B163: DOWNTOWN MIAMI CHARTER SCHOOL | C163: 41 | D163: 2 | E163: 15 | F163: 7 | G163: 17
A164: 3610 | B164: KEYS GATE CHARTER SCHOOL | C164: 179 | D164: 7 | E164: 18 | F164: 26 | G164: 25 | H164: 59 | I164: 44
A165: 3621 | B165: COCONUT PALM K-8 ACADEMY | C165: 126 | D165: 11 | E165: 17 | F165: 29 | G165: 32 | H165: 21 | I165: 16
A166: 3661 | B166: NATURAL BRIDGE ELEMENTARY | C166: 49 | D166: 6 | E166: 18 | F166: 25
A167: 3701 | B167: NORLAND ELEMENTARY | C167: 45 | D167: 4 | E167: 13 | F167: 28
A168: 3741 | B168: NORTH BEACH ELEMENTARY | C168: 16 | D168: 2 | E168: 3 | F168: 11
A169: 3781 | B169: BARBARA HAWKINS ELEMENTARY | C169: 20 | D169: 3 | E169: 6 | F169: 11
A170: 3821 | B170: NORTH COUNTY K-8 CENTER | C170: 46 | D170: 2 | E170: 7 | F170: 11 | G170: 13 | H170: 13
A171: 3861 | B171: NORTH GLADE ELEMENTARY | C171: 34 | D171: 4 | E171: 21 | F171: 9
A172: 3901 | B172: NORTH HIALEAH ELEMENTARY | C172: 40 | D172: 7 | E172: 16 | F172: 17
A173: 3941 | B173: NORTH MIAMI ELEMENTARY | C173: 50 | D173: 8 | E173: 24 | F173: 18
A174: 3981 | B174: NORTH TWIN LAKES ELEMENTARY | C174: 25 | D174: 3 | E174: 10 | F174: 12
A175: 4000 | B175: MIAMI CHILDREN'S MUSEUM | C175: 9 | E175: 3 | F175: 6
A176: 4001 | B176: NORWOOD ELEMENTARY | C176: 23 | D176: 2 | E176: 8 | F176: 13
A177: 4012 | B177: SOMERSET ACAD AT SILVER PALMS | C177: 25 | D177: 1 | E177: 7 | F177: 17
A178: 4021 | B178: OAK GROVE ELEMENTARY | C178: 60 | D178: 7 | E178: 17 | F178: 19 | G178: 17
A179: 4031 | B179: GATEWAY ENVIRONMENTAL K-8 | C179: 175 | D179: 12 | E179: 33 | F179: 59 | G179: 41 | H179: 30
A180: 4061 | B180: OJUS ELEMENTARY | C180: 36 | D180: 4 | E180: 7 | F180: 25
A181: 4071 | B181: OLINDA ELEMENTARY | C181: 26 | D181: 3 | E181: 11 | F181: 12
A182: 4091 | B182: OLYMPIA HEIGHTS ELEMENTARY | C182: 9 | D182: 1 | E182: 4 | F182: 4
A183: 4121 | B183: DR. ROBERT B. INGRAM EL | C183: 39 | D183: 10 | E183: 13 | F183: 16
A184: 4171 | B184: ORCHARD VILLA ELEMENTARY | C184: 52 | D184: 5 | E184: 28 | F184: 19
A185: 4221 | B185: PALMETTO ELEMENTARY | C185: 21 | D185: 2 | E185: 9 | F185: 10
A186: 4241 | B186: PALM LAKES ELEMENTARY | C186: 58 | D186: 7 | E186: 17 | F186: 34
A187: 4261 | B187: PALM SPRINGS ELEMENTARY | C187: 55 | D187: 10 | E187: 21 | F187: 24
A188: 4281 | B188: PALM SPRINGS NORTH ELEMENTARY | C188: 34 | D188: 3 | E188: 12 | F188: 19
A189: 4301 | B189: PARKVIEW ELEMENTARY | C189: 19 | D189: 4 | E189: 10 | F189: 5
A190: 4341 | B190: PARKWAY ELEMENTARY | C190: 27 | D190: 2 | E190: 14 | F190: 11
A191: 4381 | B191: DR HENRY E PERRINE ACADEMY | C191: 44 | E191: 26 | F191: 18
A192: 4391 | B192: IRVING & BEATRICE PESKOE K-8 | C192: 76 | D192: 7 | E192: 14 | F192: 17 | G192: 23 | H192: 15
A193: 4401 | B193: KELSEY L. PHARR ELEMENTARY | C193: 25 | D193: 5 | E193: 9 | F193: 11
A194: 4421 | B194: PINECREST ELEMENTARY | C194: 18 | D194: 3 | E194: 6 | F194: 9
A195: 4441 | B195: PINE LAKE ELEMENTARY | C195: 45 | D195: 12 | E195: 19 | F195: 14
A196: 4461 | B196: PINE VILLA ELEMENTARY | C196: 15 | D196: 1 | E196: 6 | F196: 8
A197: 4491 | B197: HENRY E.S. REEVES ELEMENTARY | C197: 51 | D197: 14 | E197: 24 | F197: 13
A198: 4501 | B198: POINCIANA PARK ELEMENTARY | C198: 24 | D198: 12 | E198: 4 | F198: 8
A199: 4511 | B199: DR GILBERT L. PORTER ELEM | C199: 29 | D199: 3 | E199: 13 | F199: 13
A200: 4541 | B200: RAINBOW PARK ELEMENTARY | C200: 33 | D200: 4 | E200: 13 | F200: 16
... 170 more rows

Sheet MEM_ML2 (hidden)
A1: 1 | B1: 2 | C1: 3 | D1: 4 | E1: 5 | F1: 6 | G1: 7 | H1: 8 | I1: 9
A2: S_SCHOOL_NUM | B2: S_SCHL_NAME | C2: Total Of STUDENT_ID | D2: 03 | E2: 04 | F2: 05 | G2: 06 | H2: 07 | I2: 08
A3: 0041 | B3: AIR BASE ELEMENTARY | C3: 48 | E3: 19 | F3: 29
A4: 0070 | B4: CORAL REEF MONTESSORI ACAD CH | C4: 48 | D4: 1 | E4: 15 | F4: 12 | G4: 7 | H4: 10 | I4: 3
A5: 0071 | B5: EUGENIA B. THOMAS K-8 CENTER | C5: 173 | D5: 1 | E5: 44 | F5: 24 | G5: 30 | H5: 34 | I5: 40
A6: 0072 | B6: SUMMERVILLE CHARTER SCHOOL | C6: 42 | E6: 24 | F6: 18
A7: 0073 | B7: MANDARIN LAKES K-8 CENTER | C7: 144 | D7: 10 | E7: 29 | F7: 25 | G7: 41 | H7: 11 | I7: 28
A8: 0081 | B8: LENORA B. SMITH ELEMENTARY | C8: 35 | D8: 2 | E8: 19 | F8: 14
A9: 0091 | B9: BOB GRAHAM EDUCATION CTR | C9: 221 | D9: 2 | E9: 38 | F9: 35 | G9: 51 | H9: 48 | I9: 47
A10: 0092 | B10: NORMAN S. EDELCUP/SUNNY ISLES | C10: 106 | E10: 25 | F10: 26 | G10: 22 | H10: 14 | I10: 19
A11: 0100 | B11: MATER ACADEMY | C11: 41 | D11: 1 | E11: 18 | F11: 22
A12: 0101 | B12: ARCOLA LAKE ELEMENTARY | C12: 54 | D12: 7 | E12: 16 | F12: 31
A13: 0102 | B13: MIAMI COMMUNITY CHARTER SCHOOL | C13: 36 | D13: 1 | E13: 20 | F13: 15
A14: 0111 | B14: MAYA ANGELOU ELEMENTARY | C14: 40 | D14: 2 | E14: 23 | F14: 15
A15: 0121 | B15: AUBURNDALE ELEMENTARY | C15: 50 | D15: 1 | E15: 23 | F15: 26
A16: 0122 | B16: DR ROLANDO ESPINOSA K-8 | C16: 179 | D16: 2 | E16: 25 | F16: 24 | G16: 36 | H16: 44 | I16: 48
A17: 0125 | B17: NORMA BUTLER BOSSARD ELEM | C17: 61 | D17: 1 | E17: 33 | F17: 27
A18: 0161 | B18: AVOCADO ELEMENTARY | C18: 5 | D18: 5
A19: 0201 | B19: BANYAN ELEMENTARY | C19: 26 | E19: 14 | F19: 12
A20: 0211 | B20: DR. MANUEL C. BARREIRO ELEM | C20: 68 | E20: 33 | F20: 35
A21: 0231 | B21: AVENTURA WATERWAYS K-8 CENTER | C21: 186 | D21: 8 | E21: 25 | F21: 31 | G21: 38 | H21: 48 | I21: 36
A22: 0241 | B22: RUTH K BROAD/BAY HARBOR K-8 | C22: 86 | E22: 15 | F22: 20 | G22: 22 | H22: 15 | I22: 14
A23: 0251 | B23: ETHEL KOGER BECKHAM ELEMENTARY | C23: 17 | E23: 10 | F23: 7
A24: 0261 | B24: BEL-AIRE ELEMENTARY | C24: 41 | D24: 1 | E24: 18 | F24: 22
A25: 0271 | B25: BENT TREE ELEMENTARY | C25: 51 | D25: 2 | E25: 18 | F25: 31
A26: 0311 | B26: GOULDS ELEMENTARY | C26: 50 | D26: 3 | E26: 25 | F26: 22
A27: 0312 | B27: MATER GARDENS ACADEMY | C27: 22 | D27: 1 | E27: 12 | F27: 9
A28: 0321 | B28: BISCAYNE ELEMENTARY | C28: 52 | D28: 3 | E28: 25 | F28: 24
A29: 0332 | B29: SOMERSET ACADEMY(SILVER PALMS) | C29: 176 | E29: 18 | F29: 24 | G29: 51 | H29: 43 | I29: 40
A30: 0339 | B30: SOMERSET ACADEMY CHARTER ELEM | C30: 20 | E30: 9 | F30: 11
A31: 0341 | B31: ARCH CREEK ELEMENTARY SCHOOL | C31: 48 | D31: 2 | E31: 14 | F31: 32
A32: 0342 | B32: PINECREST ACADEMY SOUTH CAMPUS | C32: 36 | D32: 1 | E32: 19 | F32: 16
A33: 0361 | B33: BISCAYNE GARDENS ELEMENTARY | C33: 44 | D33: 3 | E33: 21 | F33: 20
A34: 0400 | B34: RENAISSANCE ELEMENTARY CHARTER | C34: 42 | D34: 1 | E34: 33 | F34: 8
A35: 0401 | B35: VAN E. BLANTON ELEMENTARY | C35: 42 | D35: 4 | E35: 13 | F35: 25
A36: 0410 | B36: ACADEMIR CHARTER SCHOOL WEST | C36: 26 | E36: 12 | F36: 14
A37: 0441 | B37: BLUE LAKES ELEMENTARY | C37: 36 | E37: 23 | F37: 13
A38: 0451 | B38: BOWMAN ASHE/DOOLIN K-8 ACAD | C38: 211 | D38: 2 | E38: 34 | F38: 20 | G38: 38 | H38: 65 | I38: 52
A39: 0461 | B39: BRENTWOOD ELEMENTARY | C39: 76 | D39: 7 | E39: 36 | F39: 33
A40: 0481 | B40: JAMES H. BRIGHT/JW JOHNSON ES | C40: 49 | D40: 7 | E40: 15 | F40: 27
A41: 0510 | B41: ARCHIMEDEAN ACADEMY | C41: 13 | E41: 6 | F41: 7
A42: 0520 | B42: SOMERSET ACADEMY | C42: 17 | D42: 1 | E42: 9 | F42: 7
A43: 0521 | B43: BROADMOOR ELEMENTARY | C43: 33 | E43: 21 | F43: 12
A44: 0561 | B44: W.J. BRYAN ELEMENTARY | C44: 54 | D44: 3 | E44: 21 | F44: 30
A45: 0600 | B45: PINECREST PREP ACADEMY | C45: 47 | E45: 22 | F45: 25
A46: 0641 | B46: BUNCHE PARK ELEMENTARY | C46: 15 | E46: 8 | F46: 7
A47: 0651 | B47: CAMPBELL DRIVE K-8 CENTER | C47: 83 | D47: 4 | E47: 17 | F47: 27 | G47: 16 | H47: 19
A48: 0661 | B48: CARIBBEAN ELEMENTARY | C48: 44 | D48: 4 | E48: 24 | F48: 16
A49: 0671 | B49: CALUSA ELEMENTARY | C49: 36 | D49: 2 | E49: 19 | F49: 15
A50: 0681 | B50: CAROL CITY ELEMENTARY | C50: 50 | D50: 4 | E50: 29 | F50: 17
A51: 0721 | B51: GEORGE WASHINGTON CARVER ELEM | C51: 44 | D51: 3 | E51: 23 | F51: 18
A52: 0761 | B52: FIENBERG/FISHER K-8 CENTER | C52: 119 | E52: 22 | F52: 23 | G52: 39 | H52: 17 | I52: 18
A53: 0771 | B53: WILLIAM A. CHAPMAN ELEMENTARY | C53: 26 | D53: 2 | E53: 9 | F53: 15
A54: 0801 | B54: CITRUS GROVE ELEMENTARY | C54: 75 | D54: 2 | E54: 47 | F54: 26
A55: 0831 | B55: CLAUDE PEPPER ELEMENTARY | C55: 47 | D55: 2 | E55: 25 | F55: 20
A56: 0841 | B56: COCONUT GROVE ELEMENTARY | C56: 18 | E56: 11 | F56: 7
A57: 0861 | B57: COLONIAL DRIVE ELEMENTARY | C57: 22 | D57: 3 | E57: 9 | F57: 10
A58: 0881 | B58: COMSTOCK ELEMENTARY | C58: 40 | D58: 1 | E58: 20 | F58: 19
A59: 0950 | B59: AVENTURA CITY OF EXCELLENCE | C59: 57 | E59: 12 | F59: 15 | G59: 8 | H59: 10 | I59: 12
A60: 0961 | B60: CORAL GABLES PREPARATORY ACAD | C60: 61 | E60: 12 | F60: 7 | G60: 10 | H60: 22 | I60: 10
A61: 1001 | B61: CORAL PARK ELEMENTARY | C61: 26 | E61: 11 | F61: 15
A62: 1010 | B62: CHARTER SCHOOL AT WATERSTONE | C62: 76 | E62: 43 | F62: 33
A63: 1014 | B63: ADVANCED LEARNING CHARTER SCH | C63: 36 | D63: 4 | E63: 17 | F63: 15
A64: 1017 | B64: MATER ACADEMY OF INTL STUDIES | C64: 28 | D64: 1 | E64: 14 | F64: 13
A65: 1020 | B65: YOUTH CO-OP CHARTER SCHOOL | C65: 88 | D65: 3 | E65: 8 | F65: 13 | G65: 17 | H65: 23 | I65: 24
A66: 1041 | B66: CORAL REEF ELEMENTARY | C66: 40 | D66: 1 | E66: 27 | F66: 12
A67: 1081 | B67: CORAL TERRACE ELEMENTARY | C67: 41 | D67: 2 | E67: 19 | F67: 20
A68: 1121 | B68: CORAL WAY K-8 CENTER | C68: 186 | D68: 1 | E68: 45 | F68: 28 | G68: 42 | H68: 33 | I68: 37
A69: 1161 | B69: CRESTVIEW ELEMENTARY | C69: 53 | D69: 2 | E69: 21 | F69: 30
A70: 1241 | B70: CUTLER RIDGE ELEMENTARY | C70: 64 | E70: 41 | F70: 23
A71: 1281 | B71: CYPRESS ELEMENTARY | C71: 29 | E71: 14 | F71: 15
A72: 1331 | B72: DEVON AIRE K-8 CENTER | C72: 164 | D72: 2 | E72: 36 | F72: 21 | G72: 37 | H72: 41 | I72: 27
A73: 1361 | B73: FREDERICK DOUGLASS ELEMENTARY | C73: 24 | D73: 2 | E73: 14 | F73: 8
A74: 1371 | B74: MARJORY STONEMAN DOUGLAS ELEM | C74: 62 | D74: 4 | E74: 30 | F74: 28
A75: 1401 | B75: CHARLES R. DREW K-8 CENTER | C75: 28 | E75: 5 | F75: 10 | G75: 13
A76: 1441 | B76: PAUL LAURENCE DUNBAR K-8 CTR | C76: 38 | E76: 12 | F76: 13 | G76: 13
A77: 1481 | B77: JOHN G. DUPUIS ELEMENTARY | C77: 56 | D77: 1 | E77: 24 | F77: 31
A78: 1521 | B78: AMELIA EARHART ELEMENTARY | C78: 24 | D78: 3 | E78: 9 | F78: 12
A79: 1561 | B79: EARLINGTON HEIGHTS ELEMENTARY | C79: 38 | E79: 20 | F79: 18
A80: 1601 | B80: EDISON PARK K-8 CENTER | C80: 30 | D80: 2 | E80: 12 | F80: 9 | G80: 7
A81: 1641 | B81: EMERSON ELEMENTARY | C81: 30 | D81: 2 | E81: 16 | F81: 12
A82: 1681 | B82: LILLIE C. EVANS K-8 CENTER | C82: 71 | E82: 16 | F82: 7 | G82: 20 | H82: 16 | I82: 12
A83: 1691 | B83: CHRISTINA M. EVE ELEMENTARY | C83: 18 | D83: 1 | E83: 5 | F83: 12
A84: 1721 | B84: EVERGLADES K-8 CENTER | C84: 150 | E84: 30 | F84: 22 | G84: 27 | H84: 43 | I84: 28
A85: 1761 | B85: DAVID FAIRCHILD ELEMENTARY | C85: 26 | E85: 12 | F85: 14
A86: 1801 | B86: FAIRLAWN ELEMENTARY | C86: 41 | D86: 1 | E86: 24 | F86: 16
A87: 1811 | B87: DANTE B. FASCELL ELEMENTARY | C87: 51 | E87: 27 | F87: 24
A88: 1841 | B88: FLAGAMI ELEMENTARY | C88: 41 | E88: 19 | F88: 22
A89: 1881 | B89: HENRY M. FLAGLER ELEMENTARY | C89: 43 | D89: 1 | E89: 16 | F89: 26
A90: 1921 | B90: FLAMINGO ELEMENTARY | C90: 69 | D90: 3 | E90: 37 | F90: 29
A91: 2001 | B91: FLORIDA CITY ELEMENTARY | C91: 55 | D91: 5 | E91: 24 | F91: 26
A92: 2003 | B92: BRIDGEPOINT ACADEMY | C92: 10 | D92: 1 | E92: 3 | F92: 6
A93: 2006 | B93: RICHARD ALLEN LEADERSHIP ACAD | C93: 7 | E93: 4 | F93: 3
A94: 2007 | B94: SOMERSET ACADEMY ELEMENTARY | C94: 12 | E94: 7 | F94: 5
A95: 2012 | B95: SOMERSET ARTS ACADEMY | C95: 27 | E95: 19 | F95: 8
A96: 2013 | B96: BRIDGEPOINT ACAD GREATER MIAMI | C96: 12 | E96: 7 | F96: 5
A97: 2021 | B97: GLORIA FLOYD ELEMENTARY | C97: 35 | D97: 4 | E97: 10 | F97: 21
A98: 2041 | B98: BENJAMIN FRANKLIN K-8 CENTER | C98: 73 | D98: 1 | E98: 25 | F98: 14 | G98: 17 | H98: 16
A99: 2060 | B99: GIBSON CHARTER SCHOOL | C99: 49 | E99: 6 | F99: 7 | G99: 17 | H99: 8 | I99: 11
A100: 2081 | B100: FULFORD ELEMENTARY | C100: 30 | D100: 3 | E100: 17 | F100: 10
A101: 2111 | B101: HIALEAH GARDENS ELEMENTARY | C101: 43 | D101: 3 | E101: 19 | F101: 21
A102: 2151 | B102: JACK D. GORDON ELEMENTARY | C102: 69 | D102: 4 | E102: 35 | F102: 30
A103: 2161 | B103: GOLDEN GLADES ELEMENTARY | C103: 24 | D103: 2 | E103: 12 | F103: 10
A104: 2181 | B104: JOELLA C. GOOD ELEMENTARY | C104: 70 | D104: 2 | E104: 36 | F104: 32
A105: 2191 | B105: SPANISH LAKE ELEMENTARY | C105: 74 | D105: 2 | E105: 36 | F105: 36
A106: 2241 | B106: GRATIGNY ELEMENTARY | C106: 68 | D106: 1 | E106: 27 | F106: 20 | G106: 20
A107: 2261 | B107: GREENGLADE ELEMENTARY | C107: 35 | E107: 18 | F107: 17
A108: 2281 | B108: GREYNOLDS PARK ELEMENTARY | C108: 46 | D108: 2 | E108: 22 | F108: 22
A109: 2321 | B109: GULFSTREAM ELEMENTARY | C109: 36 | D109: 4 | E109: 21 | F109: 11
A110: 2331 | B110: CHARLES R. HADLEY ELEMENTARY | C110: 49 | D110: 1 | E110: 23 | F110: 25
A111: 2341 | B111: JOE HALL ELEMENTARY | C111: 47 | D111: 2 | E111: 29 | F111: 16
A112: 2351 | B112: ENEIDA MASSAS HARTNER ELEM | C112: 42 | D112: 5 | E112: 22 | F112: 15
A113: 2361 | B113: HIALEAH ELEMENTARY | C113: 52 | D113: 2 | E113: 32 | F113: 18
A114: 2371 | B114: WEST HIALEAH GARDENS ELEM | C114: 79 | D114: 3 | E114: 40 | F114: 36
A115: 2401 | B115: HIBISCUS ELEMENTARY | C115: 51 | D115: 4 | E115: 22 | F115: 25
A116: 2441 | B116: VIRGINIA A BOONE/HIGHLAND OAKS | C116: 34 | D116: 1 | E116: 17 | F116: 16
A117: 2501 | B117: HOLMES ELEMENTARY | C117: 47 | D117: 7 | E117: 22 | F117: 18
A118: 2511 | B118: ZORA NEALE HURSTON ELEMENTARY | C118: 41 | D118: 1 | E118: 15 | F118: 25
A119: 2521 | B119: OLIVER HOOVER ELEMENTARY | C119: 44 | E119: 22 | F119: 22
A120: 2541 | B120: HOWARD DRIVE ELEMENTARY | C120: 52 | D120: 1 | E120: 26 | F120: 25
A121: 2581 | B121: MADIE IVES ELEMENTARY | C121: 68 | D121: 2 | E121: 39 | F121: 27
A122: 2641 | B122: KENDALE ELEMENTARY | C122: 22 | E122: 13 | F122: 9
A123: 2651 | B123: KENDALE LAKES ELEMENTARY | C123: 30 | D123: 1 | E123: 20 | F123: 9
A124: 2661 | B124: KENSINGTON PARK ELEMENTARY | C124: 85 | D124: 2 | E124: 52 | F124: 31
A125: 2701 | B125: KENWOOD K-8 CENTER | C125: 134 | D125: 6 | E125: 21 | F125: 18 | G125: 34 | H125: 20 | I125: 35
A126: 2741 | B126: KEY BISCAYNE K-8 CENTER | C126: 67 | D126: 2 | E126: 15 | F126: 7 | G126: 16 | H126: 14 | I126: 13
A127: 2781 | B127: KINLOCH PARK ELEMENTARY | C127: 82 | D127: 3 | E127: 35 | F127: 44
A128: 2801 | B128: LAKE STEVENS ELEMENTARY | C128: 20 | D128: 1 | E128: 9 | F128: 10
A129: 2821 | B129: LAKEVIEW ELEMENTARY | C129: 36 | D129: 2 | E129: 15 | F129: 19
A130: 2881 | B130: LEEWOOD K-8 CENTER | C130: 57 | D130: 1 | E130: 9 | F130: 14 | G130: 13 | H130: 14 | I130: 6
A131: 2891 | B131: WILLIAM LEHMAN ELEMENTARY | C131: 34 | D131: 1 | E131: 21 | F131: 12
A132: 2901 | B132: LEISURE CITY K-8 CENTER | C132: 181 | D132: 7 | E132: 42 | F132: 30 | G132: 26 | H132: 35 | I132: 41
A133: 2911 | B133: LINDA LENTIN K-8 CENTER | C133: 154 | D133: 1 | E133: 25 | F133: 28 | G133: 29 | H133: 31 | I133: 40
A134: 2941 | B134: LAURA C. SAUNDERS ELEMENTARY | C134: 66 | D134: 4 | E134: 31 | F134: 31
A135: 2981 | B135: LIBERTY CITY ELEMENTARY | C135: 36 | D135: 1 | E135: 23 | F135: 12
A136: 3021 | B136: JESSE J MCCRARY JR ELEMENTARY | C136: 46 | D136: 7 | E136: 25 | F136: 14
A137: 3024 | B137: FLORIDA INTERNATIONAL EL ACAD | C137: 44 | D137: 5 | E137: 25 | F137: 14
A138: 3025 | B138: ADVANTAGE ACADEMY SANTA FE | C138: 8 | E138: 6 | F138: 2
A139: 3029 | B139: DORAL ACADEMY OF TECHNOLOGY | C139: 5 | G139: 3 | I139: 2
A140: 3030 | B140: DORAL ACADEMY | C140: 39 | E140: 24 | F140: 15
A141: 3032 | B141: PALM GLADES PREPATORY ACADEMY | C141: 120 | G141: 61 | H141: 31 | I141: 28
A142: 3034 | B142: BRIDGEPOINT ACAD VILLAGE GREEN | C142: 11 | E142: 7 | F142: 4
A143: 3035 | B143: RAMZ ACADEMY ELEM MIAMI CAMPUS | C143: 2 | E143: 2
A144: 3041 | B144: LORAH PARK ELEMENTARY | C144: 30 | D144: 1 | E144: 9 | F144: 20
A145: 3051 | B145: TOUSSAINT L'OUVERTURE ELEM | C145: 37 | D145: 4 | E145: 19 | F145: 14
A146: 3061 | B146: LUDLAM ELEMENTARY | C146: 11 | E146: 5 | F146: 6
A147: 3100 | B147: MATER ACADEMY EAST CHARTER | C147: 8 | E147: 3 | F147: 5
A148: 3101 | B148: FRANK C. MARTIN K-8 CENTER | C148: 92 | E148: 17 | F148: 18 | G148: 23 | H148: 18 | I148: 16
A149: 3111 | B149: WESLEY MATTHEWS ELEMENTARY | C149: 29 | E149: 18 | F149: 11
A150: 3141 | B150: MEADOWLANE ELEMENTARY | C150: 94 | D150: 4 | E150: 37 | F150: 53
A151: 3181 | B151: MELROSE ELEMENTARY | C151: 40 | D151: 1 | E151: 24 | F151: 15
A152: 3191 | B152: ADA MERRITT K-8 CENTER | C152: 51 | E152: 7 | F152: 10 | G152: 12 | H152: 15 | I152: 7
A153: 3241 | B153: MIAMI GARDENS ELEMENTARY | C153: 29 | D153: 1 | E153: 18 | F153: 10
A154: 3261 | B154: MIAMI HEIGHTS ELEMENTARY | C154: 67 | D154: 4 | E154: 37 | F154: 26
A155: 3281 | B155: MIAMI LAKES K-8 CENTER | C155: 159 | E155: 25 | F155: 30 | G155: 43 | H155: 31 | I155: 30
A156: 3301 | B156: MIAMI PARK ELEMENTARY | C156: 37 | D156: 2 | E156: 20 | F156: 15
A157: 3341 | B157: MIAMI SHORES ELEMENTARY | C157: 46 | D157: 3 | E157: 22 | F157: 21
A158: 3381 | B158: MIAMI SPRINGS ELEMENTARY | C158: 45 | D158: 2 | E158: 27 | F158: 16
A159: 3421 | B159: M.A. MILAM K-8 CENTER | C159: 161 | E159: 20 | F159: 24 | G159: 32 | H159: 46 | I159: 39
A160: 3431 | B160: PHYLLIS RUTH MILLER ELEMENTARY | C160: 57 | D160: 1 | E160: 25 | F160: 31
A161: 3501 | B161: MORNINGSIDE K-8 ACADEMY | C161: 53 | D161: 3 | E161: 28 | F161: 13 | G161: 9
A162: 3541 | B162: ROBERT RUSSA MOTON ELEMENTARY | C162: 29 | D162: 1 | E162: 18 | F162: 10
A163: 3581 | B163: MYRTLE GROVE K-8 CENTER | C163: 30 | D163: 1 | E163: 8 | F163: 10 | G163: 11
A164: 3600 | B164: DOWNTOWN MIAMI CHARTER SCHOOL | C164: 73 | E164: 24 | F164: 21 | G164: 28
A165: 3610 | B165: KEYS GATE CHARTER SCHOOL | C165: 334 | D165: 5 | E165: 30 | F165: 39 | G165: 80 | H165: 105 | I165: 75
A166: 3621 | B166: COCONUT PALM K-8 ACADEMY | C166: 192 | D166: 5 | E166: 28 | F166: 39 | G166: 55 | H166: 39 | I166: 26
A167: 3661 | B167: NATURAL BRIDGE ELEMENTARY | C167: 38 | D167: 2 | E167: 24 | F167: 12
A168: 3701 | B168: NORLAND ELEMENTARY | C168: 46 | D168: 2 | E168: 20 | F168: 24
A169: 3741 | B169: NORTH BEACH ELEMENTARY | C169: 29 | E169: 15 | F169: 14
A170: 3781 | B170: BARBARA HAWKINS ELEMENTARY | C170: 29 | D170: 3 | E170: 14 | F170: 12
A171: 3821 | B171: NORTH COUNTY K-8 CENTER | C171: 49 | D171: 5 | E171: 10 | F171: 11 | G171: 12 | H171: 11
A172: 3861 | B172: NORTH GLADE ELEMENTARY | C172: 22 | E172: 11 | F172: 11
A173: 3901 | B173: NORTH HIALEAH ELEMENTARY | C173: 64 | D173: 3 | E173: 36 | F173: 25
A174: 3941 | B174: NORTH MIAMI ELEMENTARY | C174: 51 | D174: 6 | E174: 25 | F174: 20
A175: 3981 | B175: NORTH TWIN LAKES ELEMENTARY | C175: 53 | D175: 1 | E175: 33 | F175: 19
A176: 4000 | B176: MIAMI CHILDREN'S MUSEUM | C176: 15 | E176: 5 | F176: 10
A177: 4001 | B177: NORWOOD ELEMENTARY | C177: 19 | E177: 8 | F177: 11
A178: 4012 | B178: SOMERSET ACAD AT SILVER PALMS | C178: 40 | E178: 26 | F178: 14
A179: 4021 | B179: OAK GROVE ELEMENTARY | C179: 63 | D179: 4 | E179: 21 | F179: 21 | G179: 17
A180: 4031 | B180: GATEWAY ENVIRONMENTAL K-8 | C180: 168 | D180: 3 | E180: 53 | F180: 37 | G180: 43 | H180: 32
A181: 4061 | B181: OJUS ELEMENTARY | C181: 38 | D181: 3 | E181: 20 | F181: 15
A182: 4071 | B182: OLINDA ELEMENTARY | C182: 25 | D182: 2 | E182: 15 | F182: 8
A183: 4091 | B183: OLYMPIA HEIGHTS ELEMENTARY | C183: 40 | D183: 1 | E183: 15 | F183: 24
A184: 4121 | B184: DR. ROBERT B. INGRAM EL | C184: 41 | E184: 27 | F184: 14
A185: 4171 | B185: ORCHARD VILLA ELEMENTARY | C185: 29 | D185: 1 | E185: 12 | F185: 16
A186: 4221 | B186: PALMETTO ELEMENTARY | C186: 24 | D186: 1 | E186: 16 | F186: 7
A187: 4241 | B187: PALM LAKES ELEMENTARY | C187: 80 | D187: 2 | E187: 39 | F187: 39
A188: 4261 | B188: PALM SPRINGS ELEMENTARY | C188: 52 | D188: 2 | E188: 31 | F188: 19
A189: 4281 | B189: PALM SPRINGS NORTH ELEMENTARY | C189: 56 | E189: 31 | F189: 25
A190: 4301 | B190: PARKVIEW ELEMENTARY | C190: 24 | D190: 4 | E190: 11 | F190: 9
A191: 4341 | B191: PARKWAY ELEMENTARY | C191: 35 | E191: 19 | F191: 16
A192: 4381 | B192: DR HENRY E PERRINE ACADEMY | C192: 71 | E192: 32 | F192: 39
A193: 4391 | B193: IRVING & BEATRICE PESKOE K-8 | C193: 78 | D193: 3 | E193: 19 | F193: 27 | G193: 18 | H193: 11
A194: 4401 | B194: KELSEY L. PHARR ELEMENTARY | C194: 29 | D194: 3 | E194: 10 | F194: 16
A195: 4421 | B195: PINECREST ELEMENTARY | C195: 41 | E195: 20 | F195: 21
A196: 4441 | B196: PINE LAKE ELEMENTARY | C196: 47 | E196: 24 | F196: 23
A197: 4461 | B197: PINE VILLA ELEMENTARY | C197: 31 | D197: 2 | E197: 21 | F197: 8
A198: 4491 | B198: HENRY E.S. REEVES ELEMENTARY | C198: 69 | D198: 6 | E198: 43 | F198: 20
A199: 4501 | B199: POINCIANA PARK ELEMENTARY | C199: 23 | D199: 4 | E199: 9 | F199: 10
A200: 4511 | B200: DR GILBERT L. PORTER ELEM | C200: 49 | D200: 2 | E200: 28 | F200: 19
... 173 more rows

Sheet MEM_ML3 (hidden)
A1: 1 | B1: 2 | C1: 3 | D1: 4 | E1: 5 | F1: 6 | G1: 7 | H1: 8 | I1: 9
A2: S_SCHOOL_NUM | B2: S_SCHL_NAME | C2: Total Of STUDENT_ID | D2: 03 | E2: 04 | F2: 05 | G2: 06 | H2: 07 | I2: 08
A3: 0041 | B3: AIR BASE ELEMENTARY | C3: 94 | E3: 57 | F3: 37
A4: 0070 | B4: CORAL REEF MONTESSORI ACAD CH | C4: 61 | E4: 12 | F4: 16 | G4: 9 | H4: 10 | I4: 14
A5: 0071 | B5: EUGENIA B. THOMAS K-8 CENTER | C5: 227 | E5: 71 | F5: 33 | G5: 42 | H5: 41 | I5: 40
A6: 0072 | B6: SUMMERVILLE CHARTER SCHOOL | C6: 44 | E6: 22 | F6: 22
A7: 0073 | B7: MANDARIN LAKES K-8 CENTER | C7: 126 | D7: 5 | E7: 32 | F7: 49 | G7: 8 | H7: 14 | I7: 18
A8: 0081 | B8: LENORA B. SMITH ELEMENTARY | C8: 30 | E8: 20 | F8: 10
A9: 0091 | B9: BOB GRAHAM EDUCATION CTR | C9: 278 | D9: 1 | E9: 68 | F9: 49 | G9: 47 | H9: 47 | I9: 66
A10: 0092 | B10: NORMAN S. EDELCUP/SUNNY ISLES | C10: 223 | D10: 1 | E10: 51 | F10: 41 | G10: 48 | H10: 48 | I10: 34
A11: 0100 | B11: MATER ACADEMY | C11: 87 | E11: 38 | F11: 49
A12: 0101 | B12: ARCOLA LAKE ELEMENTARY | C12: 44 | E12: 17 | F12: 27
A13: 0102 | B13: MIAMI COMMUNITY CHARTER SCHOOL | C13: 35 | D13: 1 | E13: 15 | F13: 19
A14: 0111 | B14: MAYA ANGELOU ELEMENTARY | C14: 62 | D14: 1 | E14: 27 | F14: 34
A15: 0121 | B15: AUBURNDALE ELEMENTARY | C15: 89 | E15: 45 | F15: 44
A16: 0122 | B16: DR ROLANDO ESPINOSA K-8 | C16: 248 | E16: 62 | F16: 48 | G16: 58 | H16: 43 | I16: 37
A17: 0125 | B17: NORMA BUTLER BOSSARD ELEM | C17: 166 | D17: 1 | E17: 87 | F17: 78
A18: 0161 | B18: AVOCADO ELEMENTARY | C18: 1 | D18: 1
A19: 0201 | B19: BANYAN ELEMENTARY | C19: 31 | E19: 20 | F19: 11
A20: 0211 | B20: DR. MANUEL C. BARREIRO ELEM | C20: 110 | E20: 57 | F20: 53
A21: 0231 | B21: AVENTURA WATERWAYS K-8 CENTER | C21: 279 | D21: 2 | E21: 50 | F21: 53 | G21: 56 | H21: 56 | I21: 62
A22: 0241 | B22: RUTH K BROAD/BAY HARBOR K-8 | C22: 195 | D22: 1 | E22: 50 | F22: 33 | G22: 45 | H22: 28 | I22: 38
A23: 0251 | B23: ETHEL KOGER BECKHAM ELEMENTARY | C23: 69 | E23: 34 | F23: 35
A24: 0261 | B24: BEL-AIRE ELEMENTARY | C24: 34 | E24: 23 | F24: 11
A25: 0271 | B25: BENT TREE ELEMENTARY | C25: 51 | E25: 24 | F25: 27
A26: 0311 | B26: GOULDS ELEMENTARY | C26: 63 | E26: 30 | F26: 33
A27: 0312 | B27: MATER GARDENS ACADEMY | C27: 59 | E27: 34 | F27: 25
A28: 0321 | B28: BISCAYNE ELEMENTARY | C28: 65 | D28: 2 | E28: 33 | F28: 30
A29: 0332 | B29: SOMERSET ACADEMY(SILVER PALMS) | C29: 162 | E29: 16 | F29: 24 | G29: 51 | H29: 40 | I29: 31
A30: 0339 | B30: SOMERSET ACADEMY CHARTER ELEM | C30: 34 | E30: 17 | F30: 17
A31: 0341 | B31: ARCH CREEK ELEMENTARY SCHOOL | C31: 57 | D31: 1 | E31: 29 | F31: 27
A32: 0342 | B32: PINECREST ACADEMY SOUTH CAMPUS | C32: 80 | E32: 40 | F32: 40
A33: 0361 | B33: BISCAYNE GARDENS ELEMENTARY | C33: 40 | D33: 1 | E33: 18 | F33: 21
A34: 0400 | B34: RENAISSANCE ELEMENTARY CHARTER | C34: 101 | E34: 57 | F34: 44
A35: 0401 | B35: VAN E. BLANTON ELEMENTARY | C35: 52 | D35: 1 | E35: 28 | F35: 23
A36: 0410 | B36: ACADEMIR CHARTER SCHOOL WEST | C36: 34 | E36: 18 | F36: 16
A37: 0441 | B37: BLUE LAKES ELEMENTARY | C37: 36 | E37: 21 | F37: 15
A38: 0451 | B38: BOWMAN ASHE/DOOLIN K-8 ACAD | C38: 205 | E38: 43 | F38: 35 | G38: 37 | H38: 32 | I38: 58
A39: 0461 | B39: BRENTWOOD ELEMENTARY | C39: 58 | D39: 1 | E39: 27 | F39: 30
A40: 0481 | B40: JAMES H. BRIGHT/JW JOHNSON ES | C40: 67 | D40: 2 | E40: 36 | F40: 29
A41: 0510 | B41: ARCHIMEDEAN ACADEMY | C41: 37 | E41: 17 | F41: 20
A42: 0520 | B42: SOMERSET ACADEMY | C42: 63 | E42: 29 | F42: 34
A43: 0521 | B43: BROADMOOR ELEMENTARY | C43: 31 | E43: 14 | F43: 17
A44: 0561 | B44: W.J. BRYAN ELEMENTARY | C44: 62 | E44: 36 | F44: 26
A45: 0600 | B45: PINECREST PREP ACADEMY | C45: 72 | E45: 33 | F45: 39
A46: 0641 | B46: BUNCHE PARK ELEMENTARY | C46: 20 | D46: 1 | E46: 12 | F46: 7
A47: 0651 | B47: CAMPBELL DRIVE K-8 CENTER | C47: 76 | D47: 1 | E47: 28 | F47: 20 | G47: 9 | H47: 18
A48: 0661 | B48: CARIBBEAN ELEMENTARY | C48: 39 | E48: 14 | F48: 25
A49: 0671 | B49: CALUSA ELEMENTARY | C49: 82 | D49: 1 | E49: 50 | F49: 31
A50: 0681 | B50: CAROL CITY ELEMENTARY | C50: 44 | E50: 21 | F50: 23
A51: 0721 | B51: GEORGE WASHINGTON CARVER ELEM | C51: 44 | E51: 23 | F51: 21
A52: 0761 | B52: FIENBERG/FISHER K-8 CENTER | C52: 114 | E52: 20 | F52: 18 | G52: 20 | H52: 30 | I52: 26
A53: 0771 | B53: WILLIAM A. CHAPMAN ELEMENTARY | C53: 34 | D53: 3 | E53: 17 | F53: 14
A54: 0801 | B54: CITRUS GROVE ELEMENTARY | C54: 64 | E54: 32 | F54: 32
A55: 0831 | B55: CLAUDE PEPPER ELEMENTARY | C55: 65 | E55: 33 | F55: 32
A56: 0841 | B56: COCONUT GROVE ELEMENTARY | C56: 33 | E56: 16 | F56: 17
A57: 0861 | B57: COLONIAL DRIVE ELEMENTARY | C57: 18 | E57: 5 | F57: 13
A58: 0881 | B58: COMSTOCK ELEMENTARY | C58: 40 | E58: 24 | F58: 16
A59: 0950 | B59: AVENTURA CITY OF EXCELLENCE | C59: 153 | E59: 43 | F59: 24 | G59: 30 | H59: 33 | I59: 23
A60: 0961 | B60: CORAL GABLES PREPARATORY ACAD | C60: 120 | E60: 39 | F60: 23 | G60: 15 | H60: 27 | I60: 16
A61: 1001 | B61: CORAL PARK ELEMENTARY | C61: 92 | E61: 53 | F61: 39
A62: 1010 | B62: CHARTER SCHOOL AT WATERSTONE | C62: 127 | E62: 63 | F62: 64
A63: 1014 | B63: ADVANCED LEARNING CHARTER SCH | C63: 40 | E63: 29 | F63: 11
A64: 1017 | B64: MATER ACADEMY OF INTL STUDIES | C64: 30 | E64: 13 | F64: 17
A65: 1020 | B65: YOUTH CO-OP CHARTER SCHOOL | C65: 107 | E65: 13 | F65: 14 | G65: 18 | H65: 32 | I65: 30
A66: 1041 | B66: CORAL REEF ELEMENTARY | C66: 76 | E66: 46 | F66: 30
A67: 1081 | B67: CORAL TERRACE ELEMENTARY | C67: 51 | D67: 1 | E67: 24 | F67: 26
A68: 1121 | B68: CORAL WAY K-8 CENTER | C68: 259 | D68: 1 | E68: 53 | F68: 56 | G68: 54 | H68: 43 | I68: 52
A69: 1161 | B69: CRESTVIEW ELEMENTARY | C69: 53 | E69: 18 | F69: 35
A70: 1241 | B70: CUTLER RIDGE ELEMENTARY | C70: 87 | E70: 41 | F70: 46
A71: 1281 | B71: CYPRESS ELEMENTARY | C71: 39 | E71: 20 | F71: 19
A72: 1331 | B72: DEVON AIRE K-8 CENTER | C72: 265 | E72: 56 | F72: 46 | G72: 49 | H72: 51 | I72: 63
A73: 1361 | B73: FREDERICK DOUGLASS ELEMENTARY | C73: 11 | D73: 2 | E73: 6 | F73: 3
A74: 1371 | B74: MARJORY STONEMAN DOUGLAS ELEM | C74: 108 | E74: 45 | F74: 63
A75: 1401 | B75: CHARLES R. DREW K-8 CENTER | C75: 42 | E75: 15 | F75: 11 | G75: 16
A76: 1441 | B76: PAUL LAURENCE DUNBAR K-8 CTR | C76: 35 | E76: 17 | F76: 12 | G76: 6
A77: 1481 | B77: JOHN G. DUPUIS ELEMENTARY | C77: 64 | E77: 31 | F77: 33
A78: 1521 | B78: AMELIA EARHART ELEMENTARY | C78: 46 | E78: 21 | F78: 25
A79: 1561 | B79: EARLINGTON HEIGHTS ELEMENTARY | C79: 33 | E79: 21 | F79: 12
A80: 1601 | B80: EDISON PARK K-8 CENTER | C80: 32 | D80: 1 | E80: 13 | F80: 12 | G80: 6
A81: 1641 | B81: EMERSON ELEMENTARY | C81: 43 | E81: 18 | F81: 25
A82: 1681 | B82: LILLIE C. EVANS K-8 CENTER | C82: 80 | D82: 1 | E82: 25 | F82: 14 | G82: 22 | H82: 12 | I82: 6
A83: 1691 | B83: CHRISTINA M. EVE ELEMENTARY | C83: 56 | E83: 30 | F83: 26
A84: 1721 | B84: EVERGLADES K-8 CENTER | C84: 183 | D84: 1 | E84: 34 | F84: 32 | G84: 41 | H84: 32 | I84: 43
A85: 1761 | B85: DAVID FAIRCHILD ELEMENTARY | C85: 50 | E85: 32 | F85: 18
A86: 1801 | B86: FAIRLAWN ELEMENTARY | C86: 74 | E86: 45 | F86: 29
A87: 1811 | B87: DANTE B. FASCELL ELEMENTARY | C87: 43 | E87: 20 | F87: 23
A88: 1841 | B88: FLAGAMI ELEMENTARY | C88: 43 | E88: 22 | F88: 21
A89: 1881 | B89: HENRY M. FLAGLER ELEMENTARY | C89: 76 | D89: 2 | E89: 32 | F89: 42
A90: 1921 | B90: FLAMINGO ELEMENTARY | C90: 73 | D90: 1 | E90: 39 | F90: 33
A91: 2001 | B91: FLORIDA CITY ELEMENTARY | C91: 60 | D91: 1 | E91: 37 | F91: 22
A92: 2003 | B92: BRIDGEPOINT ACADEMY | C92: 26 | E92: 16 | F92: 10
A93: 2006 | B93: RICHARD ALLEN LEADERSHIP ACAD | C93: 7 | E93: 2 | F93: 5
A94: 2007 | B94: SOMERSET ACADEMY ELEMENTARY | C94: 54 | E94: 37 | F94: 17
A95: 2012 | B95: SOMERSET ARTS ACADEMY | C95: 29 | E95: 19 | F95: 10
A96: 2013 | B96: BRIDGEPOINT ACAD GREATER MIAMI | C96: 9 | E96: 7 | F96: 2
A97: 2021 | B97: GLORIA FLOYD ELEMENTARY | C97: 67 | D97: 1 | E97: 33 | F97: 33
A98: 2041 | B98: BENJAMIN FRANKLIN K-8 CENTER | C98: 70 | D98: 1 | E98: 17 | F98: 31 | G98: 12 | H98: 9
A99: 2060 | B99: GIBSON CHARTER SCHOOL | C99: 37 | E99: 6 | F99: 8 | G99: 10 | H99: 6 | I99: 7
A100: 2081 | B100: FULFORD ELEMENTARY | C100: 53 | E100: 32 | F100: 21
A101: 2111 | B101: HIALEAH GARDENS ELEMENTARY | C101: 88 | E101: 49 | F101: 39
A102: 2151 | B102: JACK D. GORDON ELEMENTARY | C102: 132 | E102: 63 | F102: 69
A103: 2161 | B103: GOLDEN GLADES ELEMENTARY | C103: 20 | E103: 12 | F103: 8
A104: 2181 | B104: JOELLA C. GOOD ELEMENTARY | C104: 98 | E104: 48 | F104: 50
A105: 2191 | B105: SPANISH LAKE ELEMENTARY | C105: 167 | E105: 91 | F105: 76
A106: 2241 | B106: GRATIGNY ELEMENTARY | C106: 60 | D106: 3 | E106: 19 | F106: 18 | G106: 20
A107: 2261 | B107: GREENGLADE ELEMENTARY | C107: 44 | E107: 24 | F107: 20
A108: 2281 | B108: GREYNOLDS PARK ELEMENTARY | C108: 62 | E108: 38 | F108: 24
A109: 2321 | B109: GULFSTREAM ELEMENTARY | C109: 33 | E109: 18 | F109: 15
A110: 2331 | B110: CHARLES R. HADLEY ELEMENTARY | C110: 79 | E110: 49 | F110: 30
A111: 2341 | B111: JOE HALL ELEMENTARY | C111: 49 | E111: 18 | F111: 31
A112: 2351 | B112: ENEIDA MASSAS HARTNER ELEM | C112: 53 | D112: 1 | E112: 25 | F112: 27
A113: 2361 | B113: HIALEAH ELEMENTARY | C113: 61 | E113: 33 | F113: 28
A114: 2371 | B114: WEST HIALEAH GARDENS ELEM | C114: 124 | D114: 2 | E114: 82 | F114: 40
A115: 2401 | B115: HIBISCUS ELEMENTARY | C115: 52 | D115: 2 | E115: 23 | F115: 27
A116: 2441 | B116: VIRGINIA A BOONE/HIGHLAND OAKS | C116: 53 | E116: 33 | F116: 20
A117: 2501 | B117: HOLMES ELEMENTARY | C117: 60 | D117: 1 | E117: 27 | F117: 32
A118: 2511 | B118: ZORA NEALE HURSTON ELEMENTARY | C118: 65 | D118: 1 | E118: 30 | F118: 34
A119: 2521 | B119: OLIVER HOOVER ELEMENTARY | C119: 63 | E119: 35 | F119: 28
A120: 2541 | B120: HOWARD DRIVE ELEMENTARY | C120: 67 | E120: 45 | F120: 22
A121: 2581 | B121: MADIE IVES ELEMENTARY | C121: 63 | E121: 33 | F121: 30
A122: 2641 | B122: KENDALE ELEMENTARY | C122: 47 | E122: 27 | F122: 20
A123: 2651 | B123: KENDALE LAKES ELEMENTARY | C123: 60 | E123: 30 | F123: 30
A124: 2661 | B124: KENSINGTON PARK ELEMENTARY | C124: 92 | D124: 2 | E124: 48 | F124: 42
A125: 2701 | B125: KENWOOD K-8 CENTER | C125: 156 | E125: 26 | F125: 26 | G125: 39 | H125: 27 | I125: 38
A126: 2741 | B126: KEY BISCAYNE K-8 CENTER | C126: 178 | E126: 41 | F126: 38 | G126: 38 | H126: 42 | I126: 19
A127: 2781 | B127: KINLOCH PARK ELEMENTARY | C127: 84 | E127: 43 | F127: 41
A128: 2801 | B128: LAKE STEVENS ELEMENTARY | C128: 27 | E128: 16 | F128: 11
A129: 2821 | B129: LAKEVIEW ELEMENTARY | C129: 44 | D129: 2 | E129: 17 | F129: 25
A130: 2881 | B130: LEEWOOD K-8 CENTER | C130: 104 | E130: 31 | F130: 24 | G130: 16 | H130: 19 | I130: 14
A131: 2891 | B131: WILLIAM LEHMAN ELEMENTARY | C131: 53 | E131: 32 | F131: 21
A132: 2901 | B132: LEISURE CITY K-8 CENTER | C132: 158 | D132: 4 | E132: 34 | F132: 30 | G132: 29 | H132: 26 | I132: 35
A133: 2911 | B133: LINDA LENTIN K-8 CENTER | C133: 135 | E133: 30 | F133: 24 | G133: 31 | H133: 28 | I133: 22
A134: 2941 | B134: LAURA C. SAUNDERS ELEMENTARY | C134: 68 | D134: 5 | E134: 35 | F134: 28
A135: 2981 | B135: LIBERTY CITY ELEMENTARY | C135: 33 | E135: 18 | F135: 15
A136: 3021 | B136: JESSE J MCCRARY JR ELEMENTARY | C136: 49 | E136: 28 | F136: 21
A137: 3024 | B137: FLORIDA INTERNATIONAL EL ACAD | C137: 41 | D137: 4 | E137: 18 | F137: 19
A138: 3025 | B138: ADVANTAGE ACADEMY SANTA FE | C138: 24 | E138: 15 | F138: 9
A139: 3029 | B139: DORAL ACADEMY OF TECHNOLOGY | C139: 51 | G139: 16 | H139: 18 | I139: 17
A140: 3030 | B140: DORAL ACADEMY | C140: 79 | E140: 42 | F140: 37
A141: 3032 | B141: PALM GLADES PREPATORY ACADEMY | C141: 109 | G141: 40 | H141: 28 | I141: 41
A142: 3034 | B142: BRIDGEPOINT ACAD VILLAGE GREEN | C142: 3 | E142: 1 | F142: 2
A143: 3041 | B143: LORAH PARK ELEMENTARY | C143: 42 | D143: 1 | E143: 23 | F143: 18
A144: 3051 | B144: TOUSSAINT L'OUVERTURE ELEM | C144: 37 | E144: 18 | F144: 19
A145: 3061 | B145: LUDLAM ELEMENTARY | C145: 36 | E145: 17 | F145: 19
A146: 3100 | B146: MATER ACADEMY EAST CHARTER | C146: 33 | D146: 1 | E146: 14 | F146: 18
A147: 3101 | B147: FRANK C. MARTIN K-8 CENTER | C147: 219 | E147: 51 | F147: 48 | G147: 31 | H147: 42 | I147: 47
A148: 3111 | B148: WESLEY MATTHEWS ELEMENTARY | C148: 41 | E148: 16 | F148: 25
A149: 3141 | B149: MEADOWLANE ELEMENTARY | C149: 113 | E149: 64 | F149: 49
A150: 3181 | B150: MELROSE ELEMENTARY | C150: 51 | E150: 40 | F150: 11
A151: 3191 | B151: ADA MERRITT K-8 CENTER | C151: 104 | E151: 13 | F151: 15 | G151: 16 | H151: 31 | I151: 29
A152: 3241 | B152: MIAMI GARDENS ELEMENTARY | C152: 19 | E152: 10 | F152: 9
A153: 3261 | B153: MIAMI HEIGHTS ELEMENTARY | C153: 88 | D153: 1 | E153: 45 | F153: 42
A154: 3281 | B154: MIAMI LAKES K-8 CENTER | C154: 231 | E154: 58 | F154: 38 | G154: 48 | H154: 35 | I154: 52
A155: 3301 | B155: MIAMI PARK ELEMENTARY | C155: 28 | D155: 2 | E155: 13 | F155: 13
A156: 3341 | B156: MIAMI SHORES ELEMENTARY | C156: 81 | D156: 2 | E156: 43 | F156: 36
A157: 3381 | B157: MIAMI SPRINGS ELEMENTARY | C157: 64 | E157: 31 | F157: 33
A158: 3421 | B158: M.A. MILAM K-8 CENTER | C158: 154 | D158: 3 | E158: 28 | F158: 25 | G158: 33 | H158: 29 | I158: 36
A159: 3431 | B159: PHYLLIS RUTH MILLER ELEMENTARY | C159: 43 | E159: 27 | F159: 16
A160: 3501 | B160: MORNINGSIDE K-8 ACADEMY | C160: 42 | E160: 18 | F160: 21 | G160: 3
A161: 3541 | B161: ROBERT RUSSA MOTON ELEMENTARY | C161: 24 | E161: 12 | F161: 12
A162: 3581 | B162: MYRTLE GROVE K-8 CENTER | C162: 44 | D162: 1 | E162: 17 | F162: 13 | G162: 13
A163: 3600 | B163: DOWNTOWN MIAMI CHARTER SCHOOL | C163: 79 | E163: 32 | F163: 27 | G163: 20
A164: 3610 | B164: KEYS GATE CHARTER SCHOOL | C164: 332 | E164: 63 | F164: 65 | G164: 67 | H164: 56 | I164: 81
A165: 3621 | B165: COCONUT PALM K-8 ACADEMY | C165: 163 | D165: 1 | E165: 46 | F165: 37 | G165: 37 | H165: 24 | I165: 18
A166: 3661 | B166: NATURAL BRIDGE ELEMENTARY | C166: 37 | D166: 1 | E166: 15 | F166: 21
A167: 3701 | B167: NORLAND ELEMENTARY | C167: 57 | E167: 33 | F167: 24
A168: 3741 | B168: NORTH BEACH ELEMENTARY | C168: 69 | E168: 42 | F168: 27
A169: 3781 | B169: BARBARA HAWKINS ELEMENTARY | C169: 30 | E169: 17 | F169: 13
A170: 3821 | B170: NORTH COUNTY K-8 CENTER | C170: 34 | E170: 8 | F170: 8 | G170: 11 | H170: 7
A171: 3861 | B171: NORTH GLADE ELEMENTARY | C171: 20 | E171: 8 | F171: 12
A172: 3901 | B172: NORTH HIALEAH ELEMENTARY | C172: 49 | D172: 1 | E172: 23 | F172: 25
A173: 3941 | B173: NORTH MIAMI ELEMENTARY | C173: 50 | E173: 28 | F173: 22
A174: 3981 | B174: NORTH TWIN LAKES ELEMENTARY | C174: 52 | E174: 28 | F174: 24
A175: 4000 | B175: MIAMI CHILDREN'S MUSEUM | C175: 34 | E175: 16 | F175: 18
A176: 4001 | B176: NORWOOD ELEMENTARY | C176: 42 | E176: 21 | F176: 21
A177: 4012 | B177: SOMERSET ACAD AT SILVER PALMS | C177: 48 | E177: 30 | F177: 18
A178: 4021 | B178: OAK GROVE ELEMENTARY | C178: 71 | E178: 29 | F178: 28 | G178: 14
A179: 4031 | B179: GATEWAY ENVIRONMENTAL K-8 | C179: 149 | D179: 2 | E179: 55 | F179: 34 | G179: 34 | H179: 24
A180: 4061 | B180: OJUS ELEMENTARY | C180: 102 | D180: 1 | E180: 52 | F180: 49
A181: 4071 | B181: OLINDA ELEMENTARY | C181: 34 | D181: 1 | E181: 15 | F181: 18
A182: 4091 | B182: OLYMPIA HEIGHTS ELEMENTARY | C182: 56 | D182: 1 | E182: 33 | F182: 22
A183: 4121 | B183: DR. ROBERT B. INGRAM EL | C183: 23 | E183: 16 | F183: 7
A184: 4171 | B184: ORCHARD VILLA ELEMENTARY | C184: 26 | E184: 13 | F184: 13
A185: 4221 | B185: PALMETTO ELEMENTARY | C185: 40 | E185: 22 | F185: 18
A186: 4241 | B186: PALM LAKES ELEMENTARY | C186: 88 | E186: 40 | F186: 48
A187: 4261 | B187: PALM SPRINGS ELEMENTARY | C187: 62 | E187: 33 | F187: 29
A188: 4281 | B188: PALM SPRINGS NORTH ELEMENTARY | C188: 90 | E188: 55 | F188: 35
A189: 4301 | B189: PARKVIEW ELEMENTARY | C189: 40 | D189: 2 | E189: 20 | F189: 18
A190: 4341 | B190: PARKWAY ELEMENTARY | C190: 20 | E190: 11 | F190: 9
A191: 4381 | B191: DR HENRY E PERRINE ACADEMY | C191: 69 | E191: 41 | F191: 28
A192: 4391 | B192: IRVING & BEATRICE PESKOE K-8 | C192: 72 | D192: 1 | E192: 26 | F192: 22 | G192: 16 | H192: 7
A193: 4401 | B193: KELSEY L. PHARR ELEMENTARY | C193: 31 | D193: 1 | E193: 19 | F193: 11
A194: 4421 | B194: PINECREST ELEMENTARY | C194: 66 | E194: 33 | F194: 33
A195: 4441 | B195: PINE LAKE ELEMENTARY | C195: 24 | E195: 10 | F195: 14
A196: 4461 | B196: PINE VILLA ELEMENTARY | C196: 19 | E196: 14 | F196: 5
A197: 4491 | B197: HENRY E.S. REEVES ELEMENTARY | C197: 92 | E197: 44 | F197: 48
A198: 4501 | B198: POINCIANA PARK ELEMENTARY | C198: 33 | E198: 17 | F198: 16
A199: 4511 | B199: DR GILBERT L. PORTER ELEM | C199: 76 | E199: 33 | F199: 43
A200: 4541 | B200: RAINBOW PARK ELEMENTARY | C200: 35 | E200: 17 | F200: 18
... 170 more rows

Sheet MEM_ML4 (hidden)
A1: 1 | B1: 2 | C1: 3 | D1: 4 | E1: 5 | F1: 6 | G1: 7 | H1: 8 | I1: 9
A2: S_SCHOOL_NUM | B2: S_SCHL_NAME | C2: Total Of STUDENT_ID | D2: 03 | E2: 04 | F2: 05 | G2: 06 | H2: 07 | I2: 08
A3: 0041 | B3: AIR BASE ELEMENTARY | C3: 53 | E3: 27 | F3: 26
A4: 0070 | B4: CORAL REEF MONTESSORI ACAD CH | C4: 28 | E4: 7 | F4: 4 | G4: 5 | H4: 3 | I4: 9
A5: 0071 | B5: EUGENIA B. THOMAS K-8 CENTER | C5: 184 | E5: 31 | F5: 50 | G5: 26 | H5: 30 | I5: 47
A6: 0072 | B6: SUMMERVILLE CHARTER SCHOOL | C6: 29 | E6: 13 | F6: 16
A7: 0073 | B7: MANDARIN LAKES K-8 CENTER | C7: 53 | D7: 1 | E7: 18 | F7: 13 | G7: 9 | H7: 3 | I7: 9
A8: 0081 | B8: LENORA B. SMITH ELEMENTARY | C8: 4 | E8: 2 | F8: 2
A9: 0091 | B9: BOB GRAHAM EDUCATION CTR | C9: 281 | E9: 56 | F9: 51 | G9: 44 | H9: 66 | I9: 64
A10: 0092 | B10: NORMAN S. EDELCUP/SUNNY ISLES | C10: 229 | E10: 47 | F10: 33 | G10: 48 | H10: 51 | I10: 50
A11: 0100 | B11: MATER ACADEMY | C11: 60 | E11: 32 | F11: 28
A12: 0101 | B12: ARCOLA LAKE ELEMENTARY | C12: 17 | E12: 11 | F12: 6
A13: 0102 | B13: MIAMI COMMUNITY CHARTER SCHOOL | C13: 26 | E13: 10 | F13: 16
A14: 0111 | B14: MAYA ANGELOU ELEMENTARY | C14: 35 | D14: 1 | E14: 11 | F14: 23
A15: 0121 | B15: AUBURNDALE ELEMENTARY | C15: 54 | E15: 26 | F15: 28
A16: 0122 | B16: DR ROLANDO ESPINOSA K-8 | C16: 178 | E16: 39 | F16: 56 | G16: 33 | H16: 31 | I16: 19
A17: 0125 | B17: NORMA BUTLER BOSSARD ELEM | C17: 112 | E17: 44 | F17: 68
A18: 0161 | B18: AVOCADO ELEMENTARY | C18: 1 | D18: 1
A19: 0201 | B19: BANYAN ELEMENTARY | C19: 28 | E19: 11 | F19: 17
A20: 0211 | B20: DR. MANUEL C. BARREIRO ELEM | C20: 69 | E20: 30 | F20: 39
A21: 0231 | B21: AVENTURA WATERWAYS K-8 CENTER | C21: 212 | E21: 60 | F21: 33 | G21: 37 | H21: 38 | I21: 44
A22: 0241 | B22: RUTH K BROAD/BAY HARBOR K-8 | C22: 201 | E22: 48 | F22: 30 | G22: 45 | H22: 36 | I22: 42
A23: 0251 | B23: ETHEL KOGER BECKHAM ELEMENTARY | C23: 69 | E23: 35 | F23: 34
A24: 0261 | B24: BEL-AIRE ELEMENTARY | C24: 12 | E24: 5 | F24: 7
A25: 0271 | B25: BENT TREE ELEMENTARY | C25: 38 | E25: 21 | F25: 17
A26: 0311 | B26: GOULDS ELEMENTARY | C26: 26 | E26: 18 | F26: 8
A27: 0312 | B27: MATER GARDENS ACADEMY | C27: 71 | E27: 29 | F27: 42
A28: 0321 | B28: BISCAYNE ELEMENTARY | C28: 35 | E28: 17 | F28: 18
A29: 0332 | B29: SOMERSET ACADEMY(SILVER PALMS) | C29: 108 | E29: 5 | F29: 19 | G29: 33 | H29: 22 | I29: 29
A30: 0339 | B30: SOMERSET ACADEMY CHARTER ELEM | C30: 16 | E30: 11 | F30: 5
A31: 0341 | B31: ARCH CREEK ELEMENTARY SCHOOL | C31: 25 | E31: 17 | F31: 8
A32: 0342 | B32: PINECREST ACADEMY SOUTH CAMPUS | C32: 62 | E32: 29 | F32: 33
A33: 0361 | B33: BISCAYNE GARDENS ELEMENTARY | C33: 21 | E33: 12 | F33: 9
A34: 0400 | B34: RENAISSANCE ELEMENTARY CHARTER | C34: 69 | E34: 38 | F34: 31
A35: 0401 | B35: VAN E. BLANTON ELEMENTARY | C35: 24 | D35: 1 | E35: 13 | F35: 10
A36: 0410 | B36: ACADEMIR CHARTER SCHOOL WEST | C36: 30 | E36: 15 | F36: 15
A37: 0441 | B37: BLUE LAKES ELEMENTARY | C37: 24 | E37: 10 | F37: 14
A38: 0451 | B38: BOWMAN ASHE/DOOLIN K-8 ACAD | C38: 137 | E38: 30 | F38: 38 | G38: 23 | H38: 17 | I38: 29
A39: 0461 | B39: BRENTWOOD ELEMENTARY | C39: 23 | E39: 5 | F39: 18
A40: 0481 | B40: JAMES H. BRIGHT/JW JOHNSON ES | C40: 61 | D40: 1 | E40: 33 | F40: 27
A41: 0510 | B41: ARCHIMEDEAN ACADEMY | C41: 48 | E41: 28 | F41: 20
A42: 0520 | B42: SOMERSET ACADEMY | C42: 57 | E42: 30 | F42: 27
A43: 0521 | B43: BROADMOOR ELEMENTARY | C43: 18 | E43: 7 | F43: 11
A44: 0561 | B44: W.J. BRYAN ELEMENTARY | C44: 39 | D44: 1 | E44: 22 | F44: 16
A45: 0600 | B45: PINECREST PREP ACADEMY | C45: 41 | E45: 26 | F45: 15
A46: 0641 | B46: BUNCHE PARK ELEMENTARY | C46: 8 | E46: 5 | F46: 3
A47: 0651 | B47: CAMPBELL DRIVE K-8 CENTER | C47: 37 | E47: 12 | F47: 16 | G47: 3 | H47: 6
A48: 0661 | B48: CARIBBEAN ELEMENTARY | C48: 18 | E48: 6 | F48: 12
A49: 0671 | B49: CALUSA ELEMENTARY | C49: 96 | E49: 42 | F49: 54
A50: 0681 | B50: CAROL CITY ELEMENTARY | C50: 28 | E50: 8 | F50: 20
A51: 0721 | B51: GEORGE WASHINGTON CARVER ELEM | C51: 22 | E51: 10 | F51: 12
A52: 0761 | B52: FIENBERG/FISHER K-8 CENTER | C52: 64 | E52: 8 | F52: 7 | G52: 17 | H52: 19 | I52: 13
A53: 0771 | B53: WILLIAM A. CHAPMAN ELEMENTARY | C53: 20 | E53: 13 | F53: 7
A54: 0801 | B54: CITRUS GROVE ELEMENTARY | C54: 31 | D54: 1 | E54: 14 | F54: 16
A55: 0831 | B55: CLAUDE PEPPER ELEMENTARY | C55: 56 | E55: 25 | F55: 31
A56: 0841 | B56: COCONUT GROVE ELEMENTARY | C56: 22 | E56: 15 | F56: 7
A57: 0861 | B57: COLONIAL DRIVE ELEMENTARY | C57: 15 | E57: 7 | F57: 8
A58: 0881 | B58: COMSTOCK ELEMENTARY | C58: 36 | E58: 20 | F58: 16
A59: 0950 | B59: AVENTURA CITY OF EXCELLENCE | C59: 175 | E59: 37 | F59: 38 | G59: 40 | H59: 25 | I59: 35
A60: 0961 | B60: CORAL GABLES PREPARATORY ACAD | C60: 82 | E60: 28 | F60: 17 | G60: 11 | H60: 14 | I60: 12
A61: 1001 | B61: CORAL PARK ELEMENTARY | C61: 132 | E61: 52 | F61: 80
A62: 1010 | B62: CHARTER SCHOOL AT WATERSTONE | C62: 60 | E62: 27 | F62: 33
A63: 1014 | B63: ADVANCED LEARNING CHARTER SCH | C63: 29 | E63: 10 | F63: 19
A64: 1017 | B64: MATER ACADEMY OF INTL STUDIES | C64: 17 | E64: 10 | F64: 7
A65: 1020 | B65: YOUTH CO-OP CHARTER SCHOOL | C65: 68 | E65: 6 | F65: 12 | G65: 17 | H65: 12 | I65: 21
A66: 1041 | B66: CORAL REEF ELEMENTARY | C66: 80 | E66: 45 | F66: 35
A67: 1081 | B67: CORAL TERRACE ELEMENTARY | C67: 27 | E67: 14 | F67: 13
A68: 1121 | B68: CORAL WAY K-8 CENTER | C68: 137 | E68: 28 | F68: 36 | G68: 29 | H68: 21 | I68: 23
A69: 1161 | B69: CRESTVIEW ELEMENTARY | C69: 12 | E69: 5 | F69: 7
A70: 1241 | B70: CUTLER RIDGE ELEMENTARY | C70: 64 | E70: 30 | F70: 34
A71: 1281 | B71: CYPRESS ELEMENTARY | C71: 24 | E71: 12 | F71: 12
A72: 1331 | B72: DEVON AIRE K-8 CENTER | C72: 214 | E72: 29 | F72: 46 | G72: 57 | H72: 35 | I72: 47
A73: 1361 | B73: FREDERICK DOUGLASS ELEMENTARY | C73: 5 | E73: 1 | F73: 4
A74: 1371 | B74: MARJORY STONEMAN DOUGLAS ELEM | C74: 92 | D74: 1 | E74: 37 | F74: 54
A75: 1401 | B75: CHARLES R. DREW K-8 CENTER | C75: 15 | E75: 7 | F75: 4 | G75: 4
A76: 1441 | B76: PAUL LAURENCE DUNBAR K-8 CTR | C76: 8 | E76: 3 | F76: 4 | G76: 1
A77: 1481 | B77: JOHN G. DUPUIS ELEMENTARY | C77: 51 | E77: 22 | F77: 29
A78: 1521 | B78: AMELIA EARHART ELEMENTARY | C78: 33 | E78: 14 | F78: 19
A79: 1561 | B79: EARLINGTON HEIGHTS ELEMENTARY | C79: 16 | E79: 7 | F79: 9
A80: 1601 | B80: EDISON PARK K-8 CENTER | C80: 14 | E80: 5 | F80: 8 | G80: 1
A81: 1641 | B81: EMERSON ELEMENTARY | C81: 24 | E81: 8 | F81: 16
A82: 1681 | B82: LILLIE C. EVANS K-8 CENTER | C82: 24 | E82: 3 | F82: 9 | G82: 9 | H82: 2 | I82: 1
A83: 1691 | B83: CHRISTINA M. EVE ELEMENTARY | C83: 75 | E83: 41 | F83: 34
A84: 1721 | B84: EVERGLADES K-8 CENTER | C84: 146 | E84: 24 | F84: 39 | G84: 37 | H84: 26 | I84: 20
A85: 1761 | B85: DAVID FAIRCHILD ELEMENTARY | C85: 46 | E85: 24 | F85: 22
A86: 1801 | B86: FAIRLAWN ELEMENTARY | C86: 60 | E86: 28 | F86: 32
A87: 1811 | B87: DANTE B. FASCELL ELEMENTARY | C87: 28 | E87: 12 | F87: 16
A88: 1841 | B88: FLAGAMI ELEMENTARY | C88: 25 | D88: 1 | E88: 12 | F88: 12
A89: 1881 | B89: HENRY M. FLAGLER ELEMENTARY | C89: 42 | E89: 23 | F89: 19
A90: 1921 | B90: FLAMINGO ELEMENTARY | C90: 41 | D90: 1 | E90: 17 | F90: 23
A91: 2001 | B91: FLORIDA CITY ELEMENTARY | C91: 37 | E91: 23 | F91: 14
A92: 2003 | B92: BRIDGEPOINT ACADEMY | C92: 27 | E92: 16 | F92: 11
A93: 2006 | B93: RICHARD ALLEN LEADERSHIP ACAD | C93: 5 | E93: 4 | F93: 1
A94: 2007 | B94: SOMERSET ACADEMY ELEMENTARY | C94: 45 | E94: 29 | F94: 16
A95: 2012 | B95: SOMERSET ARTS ACADEMY | C95: 12 | E95: 8 | F95: 4
A96: 2013 | B96: BRIDGEPOINT ACAD GREATER MIAMI | C96: 9 | E96: 4 | F96: 5
A97: 2021 | B97: GLORIA FLOYD ELEMENTARY | C97: 44 | E97: 26 | F97: 18
A98: 2041 | B98: BENJAMIN FRANKLIN K-8 CENTER | C98: 24 | E98: 8 | F98: 12 | G98: 2 | H98: 2
A99: 2060 | B99: GIBSON CHARTER SCHOOL | C99: 10 | E99: 2 | F99: 2 | G99: 4 | H99: 2
A100: 2081 | B100: FULFORD ELEMENTARY | C100: 20 | E100: 12 | F100: 8
A101: 2111 | B101: HIALEAH GARDENS ELEMENTARY | C101: 69 | E101: 36 | F101: 33
A102: 2151 | B102: JACK D. GORDON ELEMENTARY | C102: 98 | D102: 1 | E102: 46 | F102: 51
A103: 2161 | B103: GOLDEN GLADES ELEMENTARY | C103: 6 | E103: 3 | F103: 3
A104: 2181 | B104: JOELLA C. GOOD ELEMENTARY | C104: 66 | D104: 1 | E104: 35 | F104: 30
A105: 2191 | B105: SPANISH LAKE ELEMENTARY | C105: 158 | E105: 66 | F105: 92
A106: 2241 | B106: GRATIGNY ELEMENTARY | C106: 21 | E106: 6 | F106: 10 | G106: 5
A107: 2261 | B107: GREENGLADE ELEMENTARY | C107: 33 | E107: 19 | F107: 14
A108: 2281 | B108: GREYNOLDS PARK ELEMENTARY | C108: 29 | E108: 15 | F108: 14
A109: 2321 | B109: GULFSTREAM ELEMENTARY | C109: 13 | E109: 9 | F109: 4
A110: 2331 | B110: CHARLES R. HADLEY ELEMENTARY | C110: 91 | E110: 49 | F110: 42
A111: 2341 | B111: JOE HALL ELEMENTARY | C111: 45 | E111: 21 | F111: 24
A112: 2351 | B112: ENEIDA MASSAS HARTNER ELEM | C112: 21 | E112: 7 | F112: 14
A113: 2361 | B113: HIALEAH ELEMENTARY | C113: 41 | E113: 14 | F113: 27
A114: 2371 | B114: WEST HIALEAH GARDENS ELEM | C114: 94 | E114: 45 | F114: 49
A115: 2401 | B115: HIBISCUS ELEMENTARY | C115: 27 | E115: 8 | F115: 19
A116: 2441 | B116: VIRGINIA A BOONE/HIGHLAND OAKS | C116: 47 | E116: 26 | F116: 21
A117: 2501 | B117: HOLMES ELEMENTARY | C117: 9 | E117: 2 | F117: 7
A118: 2511 | B118: ZORA NEALE HURSTON ELEMENTARY | C118: 66 | E118: 21 | F118: 45
A119: 2521 | B119: OLIVER HOOVER ELEMENTARY | C119: 69 | E119: 33 | F119: 36
A120: 2541 | B120: HOWARD DRIVE ELEMENTARY | C120: 43 | E120: 29 | F120: 14
A121: 2581 | B121: MADIE IVES ELEMENTARY | C121: 39 | E121: 21 | F121: 18
A122: 2641 | B122: KENDALE ELEMENTARY | C122: 34 | E122: 14 | F122: 20
A123: 2651 | B123: KENDALE LAKES ELEMENTARY | C123: 66 | E123: 20 | F123: 46
A124: 2661 | B124: KENSINGTON PARK ELEMENTARY | C124: 46 | E124: 21 | F124: 25
A125: 2701 | B125: KENWOOD K-8 CENTER | C125: 149 | E125: 33 | F125: 24 | G125: 33 | H125: 32 | I125: 27
A126: 2741 | B126: KEY BISCAYNE K-8 CENTER | C126: 182 | E126: 33 | F126: 43 | G126: 45 | H126: 50 | I126: 11
A127: 2781 | B127: KINLOCH PARK ELEMENTARY | C127: 47 | E127: 24 | F127: 23
A128: 2801 | B128: LAKE STEVENS ELEMENTARY | C128: 11 | E128: 6 | F128: 5
A129: 2821 | B129: LAKEVIEW ELEMENTARY | C129: 32 | E129: 16 | F129: 16
A130: 2881 | B130: LEEWOOD K-8 CENTER | C130: 122 | E130: 30 | F130: 32 | G130: 24 | H130: 18 | I130: 18
A131: 2891 | B131: WILLIAM LEHMAN ELEMENTARY | C131: 55 | E131: 32 | F131: 23
A132: 2901 | B132: LEISURE CITY K-8 CENTER | C132: 66 | E132: 16 | F132: 24 | G132: 7 | H132: 10 | I132: 9
A133: 2911 | B133: LINDA LENTIN K-8 CENTER | C133: 60 | E133: 15 | F133: 12 | G133: 14 | H133: 9 | I133: 10
A134: 2941 | B134: LAURA C. SAUNDERS ELEMENTARY | C134: 26 | E134: 15 | F134: 11
A135: 2981 | B135: LIBERTY CITY ELEMENTARY | C135: 7 | E135: 3 | F135: 4
A136: 3021 | B136: JESSE J MCCRARY JR ELEMENTARY | C136: 21 | E136: 14 | F136: 7
A137: 3024 | B137: FLORIDA INTERNATIONAL EL ACAD | C137: 9 | E137: 5 | F137: 4
A138: 3025 | B138: ADVANTAGE ACADEMY SANTA FE | C138: 9 | E138: 6 | F138: 3
A139: 3029 | B139: DORAL ACADEMY OF TECHNOLOGY | C139: 77 | G139: 18 | H139: 30 | I139: 29
A140: 3030 | B140: DORAL ACADEMY | C140: 93 | E140: 41 | F140: 52
A141: 3032 | B141: PALM GLADES PREPATORY ACADEMY | C141: 48 | G141: 21 | H141: 13 | I141: 14
A142: 3034 | B142: BRIDGEPOINT ACAD VILLAGE GREEN | C142: 2 | E142: 1 | F142: 1
A143: 3041 | B143: LORAH PARK ELEMENTARY | C143: 9 | E143: 7 | F143: 2
A144: 3051 | B144: TOUSSAINT L'OUVERTURE ELEM | C144: 15 | E144: 7 | F144: 8
A145: 3061 | B145: LUDLAM ELEMENTARY | C145: 28 | E145: 17 | F145: 11
A146: 3100 | B146: MATER ACADEMY EAST CHARTER | C146: 41 | D146: 3 | E146: 25 | F146: 13
A147: 3101 | B147: FRANK C. MARTIN K-8 CENTER | C147: 223 | E147: 39 | F147: 44 | G147: 47 | H147: 48 | I147: 45
A148: 3111 | B148: WESLEY MATTHEWS ELEMENTARY | C148: 49 | E148: 24 | F148: 25
A149: 3141 | B149: MEADOWLANE ELEMENTARY | C149: 67 | E149: 36 | F149: 31
A150: 3181 | B150: MELROSE ELEMENTARY | C150: 28 | E150: 14 | F150: 14
A151: 3191 | B151: ADA MERRITT K-8 CENTER | C151: 145 | E151: 20 | F151: 28 | G151: 30 | H151: 38 | I151: 29
A152: 3241 | B152: MIAMI GARDENS ELEMENTARY | C152: 17 | E152: 7 | F152: 10
A153: 3261 | B153: MIAMI HEIGHTS ELEMENTARY | C153: 68 | E153: 26 | F153: 42
A154: 3281 | B154: MIAMI LAKES K-8 CENTER | C154: 174 | E154: 46 | F154: 26 | G154: 25 | H154: 29 | I154: 48
A155: 3301 | B155: MIAMI PARK ELEMENTARY | C155: 11 | E155: 7 | F155: 4
A156: 3341 | B156: MIAMI SHORES ELEMENTARY | C156: 52 | E156: 21 | F156: 31
A157: 3381 | B157: MIAMI SPRINGS ELEMENTARY | C157: 35 | E157: 18 | F157: 17
A158: 3421 | B158: M.A. MILAM K-8 CENTER | C158: 92 | E158: 21 | F158: 17 | G158: 14 | H158: 16 | I158: 24
A159: 3431 | B159: PHYLLIS RUTH MILLER ELEMENTARY | C159: 33 | E159: 17 | F159: 16
A160: 3501 | B160: MORNINGSIDE K-8 ACADEMY | C160: 19 | E160: 9 | F160: 9 | G160: 1
A161: 3541 | B161: ROBERT RUSSA MOTON ELEMENTARY | C161: 3 | E161: 1 | F161: 2
A162: 3581 | B162: MYRTLE GROVE K-8 CENTER | C162: 22 | E162: 13 | F162: 5 | G162: 4
A163: 3600 | B163: DOWNTOWN MIAMI CHARTER SCHOOL | C163: 41 | E163: 15 | F163: 22 | G163: 4
A164: 3610 | B164: KEYS GATE CHARTER SCHOOL | C164: 182 | E164: 30 | F164: 30 | G164: 36 | H164: 39 | I164: 47
A165: 3621 | B165: COCONUT PALM K-8 ACADEMY | C165: 70 | E165: 20 | F165: 14 | G165: 8 | H165: 21 | I165: 7
A166: 3661 | B166: NATURAL BRIDGE ELEMENTARY | C166: 20 | E166: 14 | F166: 6
A167: 3701 | B167: NORLAND ELEMENTARY | C167: 29 | E167: 15 | F167: 14
A168: 3741 | B168: NORTH BEACH ELEMENTARY | C168: 80 | E168: 37 | F168: 43
A169: 3781 | B169: BARBARA HAWKINS ELEMENTARY | C169: 11 | E169: 6 | F169: 5
A170: 3821 | B170: NORTH COUNTY K-8 CENTER | C170: 21 | E170: 8 | F170: 4 | G170: 6 | H170: 3
A171: 3861 | B171: NORTH GLADE ELEMENTARY | C171: 11 | E171: 3 | F171: 8
A172: 3901 | B172: NORTH HIALEAH ELEMENTARY | C172: 37 | E172: 16 | F172: 21
A173: 3941 | B173: NORTH MIAMI ELEMENTARY | C173: 17 | E173: 8 | F173: 9
A174: 3981 | B174: NORTH TWIN LAKES ELEMENTARY | C174: 48 | E174: 27 | F174: 21
A175: 4000 | B175: MIAMI CHILDREN'S MUSEUM | C175: 14 | E175: 5 | F175: 9
A176: 4001 | B176: NORWOOD ELEMENTARY | C176: 26 | E176: 14 | F176: 12
A177: 4012 | B177: SOMERSET ACAD AT SILVER PALMS | C177: 33 | E177: 18 | F177: 15
A178: 4021 | B178: OAK GROVE ELEMENTARY | C178: 44 | E178: 19 | F178: 20 | G178: 5
A179: 4031 | B179: GATEWAY ENVIRONMENTAL K-8 | C179: 77 | E179: 27 | F179: 14 | G179: 18 | H179: 18
A180: 4061 | B180: OJUS ELEMENTARY | C180: 74 | E180: 47 | F180: 27
A181: 4071 | B181: OLINDA ELEMENTARY | C181: 11 | E181: 5 | F181: 6
A182: 4091 | B182: OLYMPIA HEIGHTS ELEMENTARY | C182: 43 | E182: 28 | F182: 15
A183: 4121 | B183: DR. ROBERT B. INGRAM EL | C183: 8 | E183: 2 | F183: 6
A184: 4171 | B184: ORCHARD VILLA ELEMENTARY | C184: 5 | E184: 2 | F184: 3
A185: 4221 | B185: PALMETTO ELEMENTARY | C185: 51 | E185: 22 | F185: 29
A186: 4241 | B186: PALM LAKES ELEMENTARY | C186: 53 | E186: 23 | F186: 30
A187: 4261 | B187: PALM SPRINGS ELEMENTARY | C187: 44 | E187: 25 | F187: 19
A188: 4281 | B188: PALM SPRINGS NORTH ELEMENTARY | C188: 96 | E188: 48 | F188: 48
A189: 4301 | B189: PARKVIEW ELEMENTARY | C189: 21 | E189: 9 | F189: 12
A190: 4341 | B190: PARKWAY ELEMENTARY | C190: 16 | E190: 4 | F190: 12
A191: 4381 | B191: DR HENRY E PERRINE ACADEMY | C191: 47 | E191: 24 | F191: 23
A192: 4391 | B192: IRVING & BEATRICE PESKOE K-8 | C192: 39 | E192: 14 | F192: 16 | G192: 8 | H192: 1
A193: 4401 | B193: KELSEY L. PHARR ELEMENTARY | C193: 8 | E193: 4 | F193: 4
A194: 4421 | B194: PINECREST ELEMENTARY | C194: 87 | E194: 33 | F194: 54
A195: 4441 | B195: PINE LAKE ELEMENTARY | C195: 15 | E195: 3 | F195: 12
A196: 4461 | B196: PINE VILLA ELEMENTARY | C196: 9 | D196: 1 | E196: 4 | F196: 4
A197: 4491 | B197: HENRY E.S. REEVES ELEMENTARY | C197: 41 | E197: 15 | F197: 26
A198: 4501 | B198: POINCIANA PARK ELEMENTARY | C198: 17 | E198: 7 | F198: 10
A199: 4511 | B199: DR GILBERT L. PORTER ELEM | C199: 58 | E199: 28 | F199: 30
A200: 4541 | B200: RAINBOW PARK ELEMENTARY | C200: 26 | E200: 10 | F200: 16
... 166 more rows

Sheet MEM_ML5 (hidden)
A1: 1 | B1: 2 | C1: 3 | D1: 4 | E1: 5 | F1: 6 | G1: 7 | H1: 8 | I1: 9
A2: S_SCHOOL_NUM | B2: S_SCHL_NAME | C2: Total Of STUDENT_ID | D2: 03 | E2: 04 | F2: 05 | G2: 06 | H2: 07 | I2: 08
A3: 0041 | B3: AIR BASE ELEMENTARY | C3: 22 | E3: 9 | F3: 13
A4: 0070 | B4: CORAL REEF MONTESSORI ACAD CH | C4: 19 | E4: 4 | F4: 1 | G4: 5 | H4: 5 | I4: 4
A5: 0071 | B5: EUGENIA B. THOMAS K-8 CENTER | C5: 92 | E5: 8 | F5: 36 | G5: 19 | H5: 8 | I5: 21
A6: 0072 | B6: SUMMERVILLE CHARTER SCHOOL | C6: 11 | E6: 4 | F6: 7
A7: 0073 | B7: MANDARIN LAKES K-8 CENTER | C7: 17 | E7: 2 | F7: 9 | G7: 4 | I7: 2
A8: 0081 | B8: LENORA B. SMITH ELEMENTARY | C8: 1 | F8: 1
A9: 0091 | B9: BOB GRAHAM EDUCATION CTR | C9: 152 | E9: 29 | F9: 31 | G9: 20 | H9: 37 | I9: 35
A10: 0092 | B10: NORMAN S. EDELCUP/SUNNY ISLES | C10: 195 | E10: 44 | F10: 30 | G10: 26 | H10: 47 | I10: 48
A11: 0100 | B11: MATER ACADEMY | C11: 42 | E11: 23 | F11: 19
A12: 0101 | B12: ARCOLA LAKE ELEMENTARY | C12: 4 | E12: 2 | F12: 2
A13: 0102 | B13: MIAMI COMMUNITY CHARTER SCHOOL | C13: 5 | E13: 2 | F13: 3
A14: 0111 | B14: MAYA ANGELOU ELEMENTARY | C14: 9 | E14: 5 | F14: 4
A15: 0121 | B15: AUBURNDALE ELEMENTARY | C15: 15 | E15: 5 | F15: 10
A16: 0122 | B16: DR ROLANDO ESPINOSA K-8 | C16: 114 | E16: 36 | F16: 17 | G16: 18 | H16: 19 | I16: 24
A17: 0125 | B17: NORMA BUTLER BOSSARD ELEM | C17: 47 | E17: 18 | F17: 29
A18: 0201 | B18: BANYAN ELEMENTARY | C18: 16 | E18: 7 | F18: 9
A19: 0211 | B19: DR. MANUEL C. BARREIRO ELEM | C19: 46 | E19: 31 | F19: 15
A20: 0231 | B20: AVENTURA WATERWAYS K-8 CENTER | C20: 123 | E20: 37 | F20: 20 | G20: 23 | H20: 12 | I20: 31
A21: 0241 | B21: RUTH K BROAD/BAY HARBOR K-8 | C21: 109 | E21: 28 | F21: 20 | G21: 28 | H21: 15 | I21: 18
A22: 0251 | B22: ETHEL KOGER BECKHAM ELEMENTARY | C22: 59 | E22: 34 | F22: 25
A23: 0261 | B23: BEL-AIRE ELEMENTARY | C23: 2 | E23: 1 | F23: 1
A24: 0271 | B24: BENT TREE ELEMENTARY | C24: 17 | E24: 10 | F24: 7
A25: 0311 | B25: GOULDS ELEMENTARY | C25: 6 | E25: 3 | F25: 3
A26: 0312 | B26: MATER GARDENS ACADEMY | C26: 39 | E26: 19 | F26: 20
A27: 0321 | B27: BISCAYNE ELEMENTARY | C27: 14 | E27: 5 | F27: 9
A28: 0332 | B28: SOMERSET ACADEMY(SILVER PALMS) | C28: 32 | E28: 4 | F28: 2 | G28: 7 | H28: 15 | I28: 4
A29: 0339 | B29: SOMERSET ACADEMY CHARTER ELEM | C29: 7 | E29: 6 | F29: 1
A30: 0341 | B30: ARCH CREEK ELEMENTARY SCHOOL | C30: 10 | E30: 6 | F30: 4
A31: 0342 | B31: PINECREST ACADEMY SOUTH CAMPUS | C31: 34 | E31: 12 | F31: 22
A32: 0361 | B32: BISCAYNE GARDENS ELEMENTARY | C32: 5 | E32: 2 | F32: 3
A33: 0400 | B33: RENAISSANCE ELEMENTARY CHARTER | C33: 45 | E33: 15 | F33: 30
A34: 0401 | B34: VAN E. BLANTON ELEMENTARY | C34: 7 | E34: 4 | F34: 3
A35: 0410 | B35: ACADEMIR CHARTER SCHOOL WEST | C35: 13 | E35: 9 | F35: 4
A36: 0441 | B36: BLUE LAKES ELEMENTARY | C36: 18 | E36: 5 | F36: 13
A37: 0451 | B37: BOWMAN ASHE/DOOLIN K-8 ACAD | C37: 71 | E37: 19 | F37: 24 | G37: 9 | H37: 11 | I37: 8
A38: 0461 | B38: BRENTWOOD ELEMENTARY | C38: 7 | E38: 4 | F38: 3
A39: 0481 | B39: JAMES H. BRIGHT/JW JOHNSON ES | C39: 29 | E39: 14 | F39: 15
A40: 0510 | B40: ARCHIMEDEAN ACADEMY | C40: 57 | E40: 25 | F40: 32
A41: 0520 | B41: SOMERSET ACADEMY | C41: 43 | E41: 20 | F41: 23
A42: 0521 | B42: BROADMOOR ELEMENTARY | C42: 5 | E42: 3 | F42: 2
A43: 0561 | B43: W.J. BRYAN ELEMENTARY | C43: 14 | E43: 5 | F43: 9
A44: 0600 | B44: PINECREST PREP ACADEMY | C44: 36 | E44: 22 | F44: 14
A45: 0641 | B45: BUNCHE PARK ELEMENTARY | C45: 5 | E45: 4 | F45: 1
A46: 0651 | B46: CAMPBELL DRIVE K-8 CENTER | C46: 15 | E46: 1 | F46: 4 | G46: 8 | H46: 2
A47: 0661 | B47: CARIBBEAN ELEMENTARY | C47: 4 | E47: 2 | F47: 2
A48: 0671 | B48: CALUSA ELEMENTARY | C48: 84 | E48: 35 | F48: 49
A49: 0681 | B49: CAROL CITY ELEMENTARY | C49: 15 | E49: 4 | F49: 11
A50: 0721 | B50: GEORGE WASHINGTON CARVER ELEM | C50: 12 | E50: 4 | F50: 8
A51: 0761 | B51: FIENBERG/FISHER K-8 CENTER | C51: 18 | F51: 3 | G51: 4 | H51: 6 | I51: 5
A52: 0771 | B52: WILLIAM A. CHAPMAN ELEMENTARY | C52: 4 | E52: 2 | F52: 2
A53: 0801 | B53: CITRUS GROVE ELEMENTARY | C53: 14 | E53: 4 | F53: 10
A54: 0831 | B54: CLAUDE PEPPER ELEMENTARY | C54: 26 | E54: 11 | F54: 15
A55: 0841 | B55: COCONUT GROVE ELEMENTARY | C55: 15 | E55: 5 | F55: 10
A56: 0861 | B56: COLONIAL DRIVE ELEMENTARY | C56: 4 | E56: 1 | F56: 3
A57: 0881 | B57: COMSTOCK ELEMENTARY | C57: 9 | E57: 3 | F57: 6
A58: 0950 | B58: AVENTURA CITY OF EXCELLENCE | C58: 135 | E58: 21 | F58: 30 | G58: 30 | H58: 24 | I58: 30
A59: 0961 | B59: CORAL GABLES PREPARATORY ACAD | C59: 74 | E59: 13 | F59: 28 | G59: 11 | H59: 17 | I59: 5
A60: 1001 | B60: CORAL PARK ELEMENTARY | C60: 91 | E60: 39 | F60: 52
A61: 1010 | B61: CHARTER SCHOOL AT WATERSTONE | C61: 16 | E61: 7 | F61: 9
A62: 1014 | B62: ADVANCED LEARNING CHARTER SCH | C62: 19 | E62: 8 | F62: 11
A63: 1017 | B63: MATER ACADEMY OF INTL STUDIES | C63: 10 | E63: 6 | F63: 4
A64: 1020 | B64: YOUTH CO-OP CHARTER SCHOOL | C64: 32 | E64: 7 | F64: 6 | G64: 4 | H64: 10 | I64: 5
A65: 1041 | B65: CORAL REEF ELEMENTARY | C65: 73 | E65: 23 | F65: 50
A66: 1081 | B66: CORAL TERRACE ELEMENTARY | C66: 11 | E66: 5 | F66: 6
A67: 1121 | B67: CORAL WAY K-8 CENTER | C67: 58 | E67: 7 | F67: 13 | G67: 7 | H67: 14 | I67: 17
A68: 1161 | B68: CRESTVIEW ELEMENTARY | C68: 3 | F68: 3
A69: 1241 | B69: CUTLER RIDGE ELEMENTARY | C69: 35 | E69: 12 | F69: 23
A70: 1281 | B70: CYPRESS ELEMENTARY | C70: 16 | E70: 9 | F70: 7
A71: 1331 | B71: DEVON AIRE K-8 CENTER | C71: 162 | E71: 30 | F71: 41 | G71: 28 | H71: 27 | I71: 36
A72: 1361 | B72: FREDERICK DOUGLASS ELEMENTARY | C72: 1 | F72: 1
A73: 1371 | B73: MARJORY STONEMAN DOUGLAS ELEM | C73: 49 | E73: 19 | F73: 30
A74: 1401 | B74: CHARLES R. DREW K-8 CENTER | C74: 7 | E74: 3 | F74: 2 | G74: 2
A75: 1441 | B75: PAUL LAURENCE DUNBAR K-8 CTR | C75: 1 | F75: 1
A76: 1481 | B76: JOHN G. DUPUIS ELEMENTARY | C76: 34 | E76: 15 | F76: 19
A77: 1521 | B77: AMELIA EARHART ELEMENTARY | C77: 11 | E77: 3 | F77: 8
A78: 1561 | B78: EARLINGTON HEIGHTS ELEMENTARY | C78: 2 | F78: 2
A79: 1601 | B79: EDISON PARK K-8 CENTER | C79: 3 | E79: 1 | F79: 1 | G79: 1
A80: 1641 | B80: EMERSON ELEMENTARY | C80: 11 | E80: 5 | F80: 6
A81: 1681 | B81: LILLIE C. EVANS K-8 CENTER | C81: 10 | F81: 4 | G81: 2 | H81: 2 | I81: 2
A82: 1691 | B82: CHRISTINA M. EVE ELEMENTARY | C82: 47 | E82: 22 | F82: 25
A83: 1721 | B83: EVERGLADES K-8 CENTER | C83: 85 | E83: 17 | F83: 19 | G83: 20 | H83: 12 | I83: 17
A84: 1761 | B84: DAVID FAIRCHILD ELEMENTARY | C84: 32 | E84: 15 | F84: 17
A85: 1801 | B85: FAIRLAWN ELEMENTARY | C85: 19 | E85: 3 | F85: 16
A86: 1811 | B86: DANTE B. FASCELL ELEMENTARY | C86: 27 | E86: 8 | F86: 19
A87: 1841 | B87: FLAGAMI ELEMENTARY | C87: 11 | E87: 3 | F87: 8
A88: 1881 | B88: HENRY M. FLAGLER ELEMENTARY | C88: 29 | E88: 19 | F88: 10
A89: 1921 | B89: FLAMINGO ELEMENTARY | C89: 16 | E89: 7 | F89: 9
A90: 2001 | B90: FLORIDA CITY ELEMENTARY | C90: 2 | F90: 2
A91: 2003 | B91: BRIDGEPOINT ACADEMY | C91: 17 | E91: 8 | F91: 9
A92: 2006 | B92: RICHARD ALLEN LEADERSHIP ACAD | C92: 1 | F92: 1
A93: 2007 | B93: SOMERSET ACADEMY ELEMENTARY | C93: 34 | E93: 24 | F93: 10
A94: 2012 | B94: SOMERSET ARTS ACADEMY | C94: 14 | E94: 8 | F94: 6
A95: 2013 | B95: BRIDGEPOINT ACAD GREATER MIAMI | C95: 3 | E95: 1 | F95: 2
A96: 2021 | B96: GLORIA FLOYD ELEMENTARY | C96: 25 | E96: 14 | F96: 11
A97: 2041 | B97: BENJAMIN FRANKLIN K-8 CENTER | C97: 1 | E97: 1
A98: 2081 | B98: FULFORD ELEMENTARY | C98: 7 | E98: 1 | F98: 6
A99: 2111 | B99: HIALEAH GARDENS ELEMENTARY | C99: 43 | E99: 15 | F99: 28
A100: 2151 | B100: JACK D. GORDON ELEMENTARY | C100: 46 | E100: 18 | F100: 28
A101: 2161 | B101: GOLDEN GLADES ELEMENTARY | C101: 4 | E101: 2 | F101: 2
A102: 2181 | B102: JOELLA C. GOOD ELEMENTARY | C102: 35 | E102: 18 | F102: 17
A103: 2191 | B103: SPANISH LAKE ELEMENTARY | C103: 93 | E103: 35 | F103: 58
A104: 2241 | B104: GRATIGNY ELEMENTARY | C104: 8 | E104: 1 | F104: 5 | G104: 2
A105: 2261 | B105: GREENGLADE ELEMENTARY | C105: 30 | E105: 15 | F105: 15
A106: 2281 | B106: GREYNOLDS PARK ELEMENTARY | C106: 19 | E106: 6 | F106: 13
A107: 2321 | B107: GULFSTREAM ELEMENTARY | C107: 18 | E107: 4 | F107: 14
A108: 2331 | B108: CHARLES R. HADLEY ELEMENTARY | C108: 57 | E108: 27 | F108: 30
A109: 2341 | B109: JOE HALL ELEMENTARY | C109: 28 | E109: 12 | F109: 16
A110: 2351 | B110: ENEIDA MASSAS HARTNER ELEM | C110: 9 | E110: 4 | F110: 5
A111: 2361 | B111: HIALEAH ELEMENTARY | C111: 19 | E111: 4 | F111: 15
A112: 2371 | B112: WEST HIALEAH GARDENS ELEM | C112: 35 | E112: 13 | F112: 22
A113: 2401 | B113: HIBISCUS ELEMENTARY | C113: 14 | E113: 3 | F113: 11
A114: 2441 | B114: VIRGINIA A BOONE/HIGHLAND OAKS | C114: 45 | E114: 30 | F114: 15
A115: 2501 | B115: HOLMES ELEMENTARY | C115: 1 | F115: 1
A116: 2511 | B116: ZORA NEALE HURSTON ELEMENTARY | C116: 26 | E116: 10 | F116: 16
A117: 2521 | B117: OLIVER HOOVER ELEMENTARY | C117: 46 | E117: 21 | F117: 25
A118: 2541 | B118: HOWARD DRIVE ELEMENTARY | C118: 35 | E118: 13 | F118: 22
A119: 2581 | B119: MADIE IVES ELEMENTARY | C119: 9 | E119: 3 | F119: 6
A120: 2641 | B120: KENDALE ELEMENTARY | C120: 36 | E120: 13 | F120: 23
A121: 2651 | B121: KENDALE LAKES ELEMENTARY | C121: 48 | E121: 19 | F121: 29
A122: 2661 | B122: KENSINGTON PARK ELEMENTARY | C122: 16 | E122: 7 | F122: 9
A123: 2701 | B123: KENWOOD K-8 CENTER | C123: 87 | E123: 22 | F123: 16 | G123: 14 | H123: 25 | I123: 10
A124: 2741 | B124: KEY BISCAYNE K-8 CENTER | C124: 140 | E124: 40 | F124: 49 | G124: 26 | H124: 19 | I124: 6
A125: 2781 | B125: KINLOCH PARK ELEMENTARY | C125: 14 | E125: 9 | F125: 5
A126: 2801 | B126: LAKE STEVENS ELEMENTARY | C126: 8 | E126: 6 | F126: 2
A127: 2821 | B127: LAKEVIEW ELEMENTARY | C127: 11 | E127: 7 | F127: 4
A128: 2881 | B128: LEEWOOD K-8 CENTER | C128: 67 | E128: 27 | F128: 9 | G128: 12 | H128: 8 | I128: 11
A129: 2891 | B129: WILLIAM LEHMAN ELEMENTARY | C129: 45 | E129: 17 | F129: 28
A130: 2901 | B130: LEISURE CITY K-8 CENTER | C130: 20 | E130: 2 | F130: 7 | G130: 1 | H130: 3 | I130: 7
A131: 2911 | B131: LINDA LENTIN K-8 CENTER | C131: 34 | E131: 3 | F131: 17 | G131: 4 | H131: 6 | I131: 4
A132: 2941 | B132: LAURA C. SAUNDERS ELEMENTARY | C132: 8 | E132: 4 | F132: 4
A133: 2981 | B133: LIBERTY CITY ELEMENTARY | C133: 2 | F133: 2
A134: 3021 | B134: JESSE J MCCRARY JR ELEMENTARY | C134: 10 | E134: 2 | F134: 8
A135: 3024 | B135: FLORIDA INTERNATIONAL EL ACAD | C135: 3 | E135: 2 | F135: 1
A136: 3025 | B136: ADVANTAGE ACADEMY SANTA FE | C136: 8 | E136: 3 | F136: 5
A137: 3029 | B137: DORAL ACADEMY OF TECHNOLOGY | C137: 67 | G137: 31 | H137: 15 | I137: 21
A138: 3030 | B138: DORAL ACADEMY | C138: 72 | E138: 32 | F138: 40
A139: 3032 | B139: PALM GLADES PREPATORY ACADEMY | C139: 8 | G139: 2 | H139: 2 | I139: 4
A140: 3034 | B140: BRIDGEPOINT ACAD VILLAGE GREEN | C140: 1 | F140: 1
A141: 3035 | B141: RAMZ ACADEMY ELEM MIAMI CAMPUS | C141: 1 | E141: 1
A142: 3041 | B142: LORAH PARK ELEMENTARY | C142: 2 | E142: 2
A143: 3051 | B143: TOUSSAINT L'OUVERTURE ELEM | C143: 8 | E143: 4 | F143: 4
A144: 3061 | B144: LUDLAM ELEMENTARY | C144: 23 | E144: 8 | F144: 15
A145: 3100 | B145: MATER ACADEMY EAST CHARTER | C145: 50 | E145: 24 | F145: 26
A146: 3101 | B146: FRANK C. MARTIN K-8 CENTER | C146: 96 | E146: 18 | F146: 10 | G146: 28 | H146: 22 | I146: 18
A147: 3111 | B147: WESLEY MATTHEWS ELEMENTARY | C147: 28 | E147: 13 | F147: 15
A148: 3141 | B148: MEADOWLANE ELEMENTARY | C148: 48 | E148: 23 | F148: 25
A149: 3181 | B149: MELROSE ELEMENTARY | C149: 7 | E149: 3 | F149: 4
A150: 3191 | B150: ADA MERRITT K-8 CENTER | C150: 119 | E150: 20 | F150: 16 | G150: 37 | H150: 24 | I150: 22
A151: 3241 | B151: MIAMI GARDENS ELEMENTARY | C151: 10 | E151: 8 | F151: 2
A152: 3261 | B152: MIAMI HEIGHTS ELEMENTARY | C152: 62 | E152: 18 | F152: 44
A153: 3281 | B153: MIAMI LAKES K-8 CENTER | C153: 101 | E153: 18 | F153: 9 | G153: 23 | H153: 24 | I153: 27
A154: 3301 | B154: MIAMI PARK ELEMENTARY | C154: 4 | E154: 1 | F154: 3
A155: 3341 | B155: MIAMI SHORES ELEMENTARY | C155: 30 | E155: 14 | F155: 16
A156: 3381 | B156: MIAMI SPRINGS ELEMENTARY | C156: 17 | E156: 8 | F156: 9
A157: 3421 | B157: M.A. MILAM K-8 CENTER | C157: 40 | E157: 8 | F157: 10 | G157: 6 | H157: 5 | I157: 11
A158: 3431 | B158: PHYLLIS RUTH MILLER ELEMENTARY | C158: 17 | E158: 5 | F158: 12
A159: 3501 | B159: MORNINGSIDE K-8 ACADEMY | C159: 9 | E159: 9
A160: 3581 | B160: MYRTLE GROVE K-8 CENTER | C160: 4 | F160: 2 | G160: 2
A161: 3600 | B161: DOWNTOWN MIAMI CHARTER SCHOOL | C161: 15 | E161: 6 | F161: 9
A162: 3610 | B162: KEYS GATE CHARTER SCHOOL | C162: 71 | E162: 21 | F162: 14 | G162: 14 | H162: 12 | I162: 10
